Workbook

Sheet Disclaimer
B4: Oklahoma Department of Transportation
B5: Reconnecting Neighborhoods in West Tulsa: W. 51st Street Extension Project
B6: April 14, 2022
B13: Disclaimer
B14: ="The Model is provided to "&Client.Name&" on the basis that it is strictly private and confidential. The Recipients agree to not disclose that information to any person or entity except with the prior consent of HDR Inc. (HDR) or as required by law." -> The Model is provided to Oklahoma Department of Transportation on the basis that it is strictly private and confidential. The Recipients agree to not disclose that information to any person or entity except with the prior consent of HDR Inc. (HDR) or as required by law.
B17: ="HDR retains all intellectual property with respect to this Model. The Recipients agree to use this Model only for the purpose of performing analysis in support of the "&Project.Name&" project. The Model must not be used for any other purpose. " -> HDR retains all intellectual property with respect to this Model. The Recipients agree to use this Model only for the purpose of performing analysis in support of the Reconnecting Neighborhoods in West Tulsa: W. 51st Street Extension Project project. The Model must not be used for any other purpose.
B20: By retaining and using this Model, the Recipients represent to HDR that they are capable of making their own independent assessment as to the validity of the assumptions, data and results contained in this Model.
B22: The Model may be a development version and may not be complete or, in the event that development of the Model has concluded, material events may have occurred since completion which are not reflected in the Model. In consultation with the client, HDR used what was deemed the best available data at the time of analysis and makes no warranties as to the accuracy of this information or completeness of the Model.

Sheet Results
B1: Cost-Benefit Analysis Results
B3: All values are in 2020$ millions
B4: Benefit Category | C4: Impact # | D4: Over Years 2024-2045 (20 Years of Operations)
D5: Undiscounted | E5: 0.07 | F5: 0.03
B6: Travel Time Savings | C6: 1 | D6: =(SUM(D30:AD30))/10^6 -> 37.05901113 | E6: =(SUM(D47:AD47))/10^6 -> 13.09512853 | F6: =(SUM(D64:AD64))/10^6 -> 23.0883547
B7: Vehicle Operating Cost Savings | C7: 2 | D7: 5.271741092 | E7: 1.952119115 | F7: 3.353151182
B8: Highway Use Cost Savings | C8: 5 | D8: 1.363079669 | E8: 0.5083355285 | F8: 0.8697334744
B9: Reduction in Accident Costs | C9: 3 | D9: 7.335724512 | E9: 2.733438197 | F9: 4.678926585
B10: Pedestrian Benefits | C10: 6 | D10: 0.1564898868 | E10: 0.05829249343 | F10: 0.0997992269
B11: Environmental Cost Savings | C11: 4 | D11: 0.486726155 | E11: 0.2621125158 | F11: 0.3051067522
B12: Agency Cost Savings | C12: 5 | D12: 0.8425605246 | E12: 0.6007340094 | F12: 0.7268001099
B13: Residual Value | C13: 5 | D13: =(SUM(D37:AD37))/10^6 -> 11.84601908 | E13: =(SUM(D54:AD54))/10^6 -> 2.182619272 | F13: =(SUM(D71:AD71))/10^6 -> 5.657724685
B14: O&M Costs | C14: 5 | D14: -0.8870040984 | E14: -0.1768857861 | F14: -0.4354682789
B15: Capital Costs | C15: 5 | D15: -18.65129661 | E15: -13.64991631 | F15: -16.27118342
B16: NPV | D16: =SUM(D6:D15) -> 44.82305134 | E16: =SUM(E6:E15) -> 7.565977567 | F16: =SUM(F6:F15) -> 22.07294502
B18: All values are in 2020$ millions | D18: Over Years 2024-2045 (20 Years of Operations)
B19: Financial Metrics | D19: Undiscounted | E19: 0.07 | F19: 0.03
B20: Total Benefits | D20: =(SUM(D40:AD40))/10^6 -> 64.36135205 | E20: =(SUM(D57:AD57))/10^6 -> 21.39277966 | F20: =(SUM(D74:AD74))/10^6 -> 38.77959672
B21: Total O&M Costs | D21: =(-SUM(D38:AD38)/10^6) -> 0.8870040984 | E21: =-(SUM(D55:AD55)/10^6) -> 0.1768857861 | F21: =-(SUM(D72:AD72)/10^6) -> 0.4354682789
B22: Total Capital Costs | D22: =((-SUM(D39:AD39))/10^6) -> 18.65129661 | E22: =((-SUM(D56:AD56))/10^6) -> 13.64991631 | F22: =(-SUM(D73:AD73))/10^6 -> 16.27118342
B23: NPV | D23: =D16 -> 44.82305134 | E23: =E16 -> 7.565977567 | F23: =F16 -> 22.07294502
B24: ROI | D24: =IFERROR(D23/D22,"-") -> 2.40321369 | E24: =IFERROR(E23/E22,"-") -> 0.5542874694 | F24: =IFERROR(F23/F22,"-") -> 1.356566665
B25: BC Ratio | D25: =IFERROR((D20-D21)/D22,"-") -> 3.40321369 | E25: =IFERROR((E20-E21)/E22,"-") -> 1.554287469 | F25: =IFERROR((F20-F21)/F22,"-") -> 2.356566665
B26: IRR | D26: =IFERROR(IRR(I42:AD42),"-") -> 0.1214416201
B28: Results - Undiscounted 2020$ | K28: 1 | L28: =K28+1 -> 2 | M28: 3 | N28: 4 | O28: 5 | P28: 6 | Q28: 7 | R28: 8 | S28: 9 | T28: 10 | U28: 11 | V28: 12 | W28: 13 | X28: 14 | Y28: 15 | Z28: 16 | AA28: 17 | AB28: 18 | AC28: 19 | AD28: 20 | AE28: 21 | AF28: 22 | AG28: 23 | AH28: 24 | AI28: 25 | AJ28: 26 | AK28: 27 | AL28: 28 | AM28: =AL28+1 -> 29 | AN28: =AM28+1 -> 30
B29: Impact Category | C29: Total | D29: 2019 | E29: =D29+1 -> 2020 | F29: =E29+1 -> 2021 | G29: 2022 | H29: 2023 | I29: 2024 | J29: 2025 | K29: 2026 | L29: 2027 | M29: 2028 | N29: 2029 | O29: 2030 | P29: 2031 | Q29: 2032 | R29: 2033 | S29: 2034 | T29: 2035 | U29: 2036 | V29: 2037 | W29: 2038 | X29: 2039 | Y29: 2040 | Z29: 2041 | AA29: 2042 | AB29: 2043 | AC29: =AB29+1 -> 2044 | AD29: =AC29+1 -> 2045 | AE29: =AD29+1 -> 2046 | AF29: =AE29+1 -> 2047 | AG29: =AF29+1 -> 2048 | AH29: =AG29+1 -> 2049 | AI29: =AH29+1 -> 2050 | AJ29: =AI29+1 -> 2051 | AK29: =AJ29+1 -> 2052 | AL29: =AK29+1 -> 2053 | AM29: 2054 | AN29: 2055
B30: Travel Time Savings | C30: =SUM(D30:AD30)/10^6 -> 37.05901113 | D30: ='Calc-1'!D48 -> 0 | E30: ='Calc-1'!E48 -> 0 | F30: ='Calc-1'!F48 -> 0 | G30: ='Calc-1'!G48 -> 0 | H30: ='Calc-1'!H48 -> 0 | I30: ='Calc-1'!I48 -> 0 | J30: ='Calc-1'!J51 -> 0 | K30: ='Calc-1'!K51 -> 1381583.265 | L30: ='Calc-1'!L51 -> 1420468.573 | M30: ='Calc-1'!M51 -> 1460857.084 | N30: ='Calc-1'!N51 -> 1502807.865 | O30: ='Calc-1'!O51 -> 1546382.277 | P30: ='Calc-1'!P51 -> 1591644.065 | Q30: ='Calc-1'!Q51 -> 1638659.451 | R30: ='Calc-1'!R51 -> 1687497.228 | S30: ='Calc-1'!S51 -> 1738228.861 | T30: ='Calc-1'!T51 -> 1790928.589 | U30: ='Calc-1'!U51 -> 1845673.535 | V30: ='Calc-1'!V51 -> 1902543.814 | W30: ='Calc-1'!W51 -> 1961622.65 | X30: ='Calc-1'!X51 -> 2022996.501 | Y30: ='Calc-1'!Y51 -> 2086755.175 | Z30: ='Calc-1'!Z51 -> 2152991.969 | AA30: ='Calc-1'!AA51 -> 2221803.798 | AB30: ='Calc-1'!AB51 -> 2293291.337 | AC30: ='Calc-1'!AC51 -> 2367559.168 | AD30: ='Calc-1'!AD51 -> 2444715.929 | AE30: ='Calc-1'!AE51 -> 2524874.472 | AF30: ='Calc-1'!AF51 -> 2608152.027 | AG30: ='Calc-1'!AG51 -> 2694670.37 | AH30: ='Calc-1'!AH51 -> 2784556.002 | AI30: ='Calc-1'!AI51 -> 2877940.328 | AJ30: ='Calc-1'!AJ51 -> 2974959.849 | AK30: ='Calc-1'!AK51 -> 3075756.36 | AL30: ='Calc-1'!AL51 -> 3180477.157 | AM30: ='Calc-1'!AM51 -> 3289275.244 | AN30: ='Calc-1'!AN51 -> 3402309.561
B31: Vehicle Operating Cost Savings | C31: =SUM(D31:AD31)/10^6 -> 5.271741092 | D31: ='Calc-2'!D45 -> 0 | E31: ='Calc-2'!E45 -> 0 | F31: ='Calc-2'!F45 -> 0 | G31: ='Calc-2'!G45 -> 0 | H31: ='Calc-2'!H45 -> 0 | I31: ='Calc-2'!I45 -> 0 | J31: ='Calc-2'!J48 -> 0 | K31: ='Calc-2'!K48 -> 241600.8878 | L31: ='Calc-2'!L48 -> 243734.2632 | M31: ='Calc-2'!M48 -> 245876.8757 | N31: ='Calc-2'!N48 -> 247963.7686 | O31: ='Calc-2'!O48 -> 250429.5689 | P31: ='Calc-2'!P48 -> 253213.7651 | Q31: ='Calc-2'!Q48 -> 255485.7396 | R31: ='Calc-2'!R48 -> 257731.4877 | S31: ='Calc-2'!S48 -> 260004.1838 | T31: ='Calc-2'!T48 -> 262188.1445 | U31: ='Calc-2'!U48 -> 264508.4838 | V31: ='Calc-2'!V48 -> 266846.8682 | W31: ='Calc-2'!W48 -> 269343.274 | X31: ='Calc-2'!X48 -> 271539.6222 | Y31: ='Calc-2'!Y48 -> 274007.6634 | Z31: ='Calc-2'!Z48 -> 276452.42 | AA31: ='Calc-2'!AA48 -> 278747.6481 | AB31: ='Calc-2'!AB48 -> 281408.931 | AC31: ='Calc-2'!AC48 -> 284100.1831 | AD31: ='Calc-2'!AD48 -> 286557.3133 | AE31: ='Calc-2'!AE48 -> 289247.678 | AF31: ='Calc-2'!AF48 -> 291757.345 | AG31: ='Calc-2'!AG48 -> 294035.7401 | AH31: ='Calc-2'!AH48 -> 296482.3911 | AI31: ='Calc-2'!AI48 -> 298895.1205 | AJ31: ='Calc-2'!AJ48 -> 301358.6397 | AK31: ='Calc-2'!AK48 -> 303845.1198 | AL31: ='Calc-2'!AL48 -> 306354.7925 | AM31: ='Calc-2'!AM48 -> 308887.8917 | AN31: ='Calc-2'!AN48 -> 311444.6538
B32: Highway Use Cost Savings | C32: =SUM(D32:AD32)/10^6 -> 1.363079669 | D32: ='Calc-5'!D33 -> 0 | E32: ='Calc-5'!E33 -> 0 | F32: ='Calc-5'!F33 -> 0 | G32: ='Calc-5'!G33 -> 0 | H32: ='Calc-5'!H33 -> 0 | I32: ='Calc-5'!I33 -> 0 | J32: ='Calc-5'!J36 -> 0 | K32: ='Calc-5'!K36 -> 64488.91729 | L32: ='Calc-5'!L36 -> 64861.47681 | M32: ='Calc-5'!M36 -> 65236.18864 | N32: ='Calc-5'!N36 -> 65613.06523 | O32: ='Calc-5'!O36 -> 65992.11907 | P32: ='Calc-5'!P36 -> 66373.36275 | Q32: ='Calc-5'!Q36 -> 66756.80891 | R32: ='Calc-5'!R36 -> 67142.47028 | S32: ='Calc-5'!S36 -> 67530.35966 | T32: ='Calc-5'!T36 -> 67920.48992 | U32: ='Calc-5'!U36 -> 68312.87401 | V32: ='Calc-5'!V36 -> 68707.52494 | W32: ='Calc-5'!W36 -> 69104.45581 | X32: ='Calc-5'!X36 -> 69503.6798 | Y32: ='Calc-5'!Y36 -> 69905.21015 | Z32: ='Calc-5'!Z36 -> 70309.06018 | AA32: ='Calc-5'!AA36 -> 70715.2433 | AB32: ='Calc-5'!AB36 -> 71123.77298 | AC32: ='Calc-5'!AC36 -> 71534.66278 | AD32: ='Calc-5'!AD36 -> 71947.92634 | AE32: ='Calc-5'!AE36 -> 72363.57736 | AF32: ='Calc-5'!AF36 -> 72781.62965 | AG32: ='Calc-5'!AG36 -> 73202.09707 | AH32: ='Calc-5'!AH36 -> 73624.99358 | AI32: ='Calc-5'!AI36 -> 74050.3332 | AJ32: ='Calc-5'!AJ36 -> 74478.13006 | AK32: ='Calc-5'!AK36 -> 74908.39835 | AL32: ='Calc-5'!AL36 -> 75341.15235 | AM32: ='Calc-5'!AM36 -> 75776.40641 | AN32: ='Calc-5'!AN36 -> 76214.17498
B33: Reduction in Accident Costs | C33: =SUM(D33:AD33)/10^6 -> 7.335724512 | D33: ='Calc-3'!D49 -> 0 | E33: ='Calc-3'!E49 -> 0 | F33: ='Calc-3'!F49 -> 0 | G33: ='Calc-3'!G49 -> 0 | H33: ='Calc-3'!H49 -> 0 | I33: ='Calc-3'!I49 -> 0 | J33: ='Calc-3'!J55 -> 0 | K33: ='Calc-3'!K55 -> 345785.0715 | L33: ='Calc-3'!L55 -> 347914.9064 | M33: ='Calc-3'!M55 -> 350057.8597 | N33: ='Calc-3'!N55 -> 352214.0124 | O33: ='Calc-3'!O55 -> 354383.4458 | P33: ='Calc-3'!P55 -> 356566.2416 | Q33: ='Calc-3'!Q55 -> 358762.4822 | R33: ='Calc-3'!R55 -> 360972.2503 | S33: ='Calc-3'!S55 -> 363195.6293 | T33: ='Calc-3'!T55 -> 365432.703 | U33: ='Calc-3'!U55 -> 367683.5558 | V33: ='Calc-3'!V55 -> 369948.2726 | W33: ='Calc-3'!W55 -> 372226.9387 | X33: ='Calc-3'!X55 -> 374519.64 | Y33: ='Calc-3'!Y55 -> 376826.4631 | Z33: ='Calc-3'!Z55 -> 379147.4948 | AA33: ='Calc-3'!AA55 -> 381482.8227 | AB33: ='Calc-3'!AB55 -> 383832.5349 | AC33: ='Calc-3'!AC55 -> 386196.72 | AD33: ='Calc-3'!AD55 -> 388575.467 | AE33: ='Calc-3'!AE55 -> 390968.8658 | AF33: ='Calc-3'!AF55 -> 393377.0065 | AG33: ='Calc-3'!AG55 -> 395799.98 | AH33: ='Calc-3'!AH55 -> 398237.8775 | AI33: ='Calc-3'!AI55 -> 400690.7911 | AJ33: ='Calc-3'!AJ55 -> 403158.8132 | AK33: ='Calc-3'!AK55 -> 405642.0369 | AL33: ='Calc-3'!AL55 -> 408140.5558 | AM33: ='Calc-3'!AM55 -> 410654.4641 | AN33: ='Calc-3'!AN55 -> 413183.8567
B34: Pedestrian Benefits | C34: =SUM(D34:AD34)/10^6 -> 0.1564898868 | D34: ='Calc-6'!D22 -> 0 | E34: ='Calc-6'!E22 -> 0 | F34: ='Calc-6'!F22 -> 0 | G34: ='Calc-6'!G22 -> 0 | H34: ='Calc-6'!H22 -> 0 | I34: ='Calc-6'!I22 -> 0 | J34: ='Calc-6'!J22 -> 0 | K34: ='Calc-6'!K22 -> 7366.009128 | L34: ='Calc-6'!L22 -> 7412.46474 | M34: ='Calc-6'!M22 -> 7459.213336 | N34: ='Calc-6'!N22 -> 7506.256764 | O34: ='Calc-6'!O22 -> 7553.596883 | P34: ='Calc-6'!P22 -> 7601.235565 | Q34: ='Calc-6'!Q22 -> 7649.174692 | R34: ='Calc-6'!R22 -> 7697.41616 | S34: ='Calc-6'!S22 -> 7745.961875 | T34: ='Calc-6'!T22 -> 7794.813755 | U34: ='Calc-6'!U22 -> 7843.973733 | V34: ='Calc-6'!V22 -> 7893.44375 | W34: ='Calc-6'!W22 -> 7943.225762 | X34: ='Calc-6'!X22 -> 7993.321738 | Y34: ='Calc-6'!Y22 -> 8043.733657 | Z34: ='Calc-6'!Z22 -> 8094.463511 | AA34: ='Calc-6'!AA22 -> 8145.513306 | AB34: ='Calc-6'!AB22 -> 8196.885059 | AC34: ='Calc-6'!AC22 -> 8248.580801 | AD34: ='Calc-6'!AD22 -> 8300.602576 | AE34: ='Calc-6'!AE22 -> 8352.95244 | AF34: ='Calc-6'!AF22 -> 8405.632461 | AG34: ='Calc-6'!AG22 -> 8458.644722 | AH34: ='Calc-6'!AH22 -> 8511.991318 | AI34: ='Calc-6'!AI22 -> 8565.674358 | AJ34: ='Calc-6'!AJ22 -> 8619.695964 | AK34: ='Calc-6'!AK22 -> 8674.058272 | AL34: ='Calc-6'!AL22 -> 8728.763428 | AM34: ='Calc-6'!AM22 -> 8783.813597 | AN34: ='Calc-6'!AN22 -> 8839.210954
B35: Environmental Cost Savings | C35: =SUM(D35:AD35)/10^6 -> 0.486726155 | D35: ='Calc-4'!D176 -> 0 | E35: ='Calc-4'!E176 -> 0 | F35: ='Calc-4'!F176 -> 0 | G35: ='Calc-4'!G176 -> 0 | H35: ='Calc-4'!H176 -> 0 | I35: ='Calc-4'!I176 -> 0 | J35: ='Calc-4'!J176 -> 0 | K35: ='Calc-4'!K176 -> 20647.26832 | L35: ='Calc-4'!L176 -> 20615.29152 | M35: ='Calc-4'!M176 -> 20766.47233 | N35: ='Calc-4'!N176 -> 20670.60623 | O35: ='Calc-4'!O176 -> 20564.25365 | P35: ='Calc-4'!P176 -> 21051.92414 | Q35: ='Calc-4'!Q176 -> 21554.28749 | R35: ='Calc-4'!R176 -> 22071.79889 | S35: ='Calc-4'!S176 -> 22604.92155 | T35: ='Calc-4'!T176 -> 23154.12648 | U35: ='Calc-4'!U176 -> 23953.14592 | V35: ='Calc-4'!V176 -> 24539.64181 | W35: ='Calc-4'!W176 -> 25143.7829 | X35: ='Calc-4'!X176 -> 25766.07057 | Y35: ='Calc-4'!Y176 -> 26407.01228 | Z35: ='Calc-4'!Z176 -> 27313.989 | AA35: ='Calc-4'!AA176 -> 28257.37457 | AB35: ='Calc-4'!AB176 -> 29506.44108 | AC35: ='Calc-4'!AC176 -> 30534.21718 | AD35: ='Calc-4'!AD176 -> 31603.5291 | AE35: ='Calc-4'!AE176 -> 32716.15042 | AF35: ='Calc-4'!AF176 -> 33873.92884 | AG35: ='Calc-4'!AG176 -> 35078.78926 | AH35: ='Calc-4'!AH176 -> 36332.73692 | AI35: ='Calc-4'!AI176 -> 37958.91151 | AJ35: ='Calc-4'!AJ176 -> 39054.17163 | AK35: ='Calc-4'!AK176 -> 40190.5638 | AL35: ='Calc-4'!AL176 -> 41369.6572 | AM35: ='Calc-4'!AM176 -> 42593.08061 | AN35: ='Calc-4'!AN176 -> 43862.52461
B36: Agency Cost Savings | C36: 0.8425605246 | D36: ='Calc-Costs'!D36 -> 0 | E36: ='Calc-Costs'!E36 -> 0 | F36: ='Calc-Costs'!F36 -> 0 | G36: ='Calc-Costs'!G36 -> 0 | H36: ='Calc-Costs'!H36 -> 0 | I36: ='Calc-Costs'!I36 -> 0 | J36: ='Calc-Costs'!J36 -> 842560.5246 | K36: ='Calc-Costs'!K36 -> 0 | L36: ='Calc-Costs'!L36 -> 0 | M36: ='Calc-Costs'!M36 -> 0 | N36: ='Calc-Costs'!N36 -> 0 | O36: ='Calc-Costs'!O36 -> 0 | P36: ='Calc-Costs'!P36 -> 0 | Q36: ='Calc-Costs'!Q36 -> 0 | R36: ='Calc-Costs'!R36 -> 0 | S36: ='Calc-Costs'!S36 -> 0 | T36: ='Calc-Costs'!T36 -> 0 | U36: ='Calc-Costs'!U36 -> 0 | V36: ='Calc-Costs'!V36 -> 0 | W36: ='Calc-Costs'!W36 -> 0 | X36: ='Calc-Costs'!X36 -> 0 | Y36: ='Calc-Costs'!Y36 -> 0 | Z36: ='Calc-Costs'!Z36 -> 0 | AA36: ='Calc-Costs'!AA36 -> 0 | AB36: ='Calc-Costs'!AB36 -> 0 | AC36: ='Calc-Costs'!AC36 -> 0 | AD36: ='Calc-Costs'!AD36 -> 0 | AE36: ='Calc-Costs'!AE36 -> 0 | AF36: ='Calc-Costs'!AF36 -> 0 | AG36: ='Calc-Costs'!AG36 -> 0 | AH36: ='Calc-Costs'!AH36 -> 0 | AI36: ='Calc-Costs'!AI36 -> 0 | AJ36: ='Calc-Costs'!AJ36 -> 0 | AK36: ='Calc-Costs'!AK36 -> 0 | AL36: ='Calc-Costs'!AL36 -> 0 | AM36: ='Calc-Costs'!AM36 -> 0 | AN36: ='Calc-Costs'!AN36 -> 0
B37: Residual Value | C37: 11.84601908 | D37: ='Calc-Costs'!D42 -> 0 | E37: ='Calc-Costs'!E42 -> 0 | F37: ='Calc-Costs'!F42 -> 0 | G37: ='Calc-Costs'!G42 -> 0 | H37: ='Calc-Costs'!H42 -> 0 | I37: ='Calc-Costs'!I42 -> 0 | J37: ='Calc-Costs'!J42 -> 0 | K37: ='Calc-Costs'!K42 -> 0 | L37: ='Calc-Costs'!L42 -> 0 | M37: ='Calc-Costs'!M42 -> 0 | N37: ='Calc-Costs'!N42 -> 0 | O37: ='Calc-Costs'!O42 -> 0 | P37: ='Calc-Costs'!P42 -> 0 | Q37: ='Calc-Costs'!Q42 -> 0 | R37: ='Calc-Costs'!R42 -> 0 | S37: ='Calc-Costs'!S42 -> 0 | T37: ='Calc-Costs'!T42 -> 0 | U37: ='Calc-Costs'!U42 -> 0 | V37: ='Calc-Costs'!V42 -> 0 | W37: ='Calc-Costs'!W42 -> 0 | X37: ='Calc-Costs'!X42 -> 0 | Y37: ='Calc-Costs'!Y42 -> 0 | Z37: ='Calc-Costs'!Z42 -> 0 | AA37: ='Calc-Costs'!AA42 -> 0 | AB37: ='Calc-Costs'!AB42 -> 0 | AC37: ='Calc-Costs'!AC42 -> 0 | AD37: ='Calc-Costs'!AD42 -> 11846019.08 | AE37: ='Calc-Costs'!AE42 -> 0 | AF37: ='Calc-Costs'!AF42 -> 0 | AG37: ='Calc-Costs'!AG42 -> 0 | AH37: ='Calc-Costs'!AH42 -> 0 | AI37: ='Calc-Costs'!AI42 -> 0 | AJ37: ='Calc-Costs'!AJ42 -> 0 | AK37: ='Calc-Costs'!AK42 -> 0 | AL37: ='Calc-Costs'!AL42 -> 0 | AM37: ='Calc-Costs'!AM42 -> 0 | AN37: ='Calc-Costs'!AN42 -> 0
B38: O&M Costs | C38: -0.8870040984 | D38: =-'Calc-Costs'!D30 -> 0 | E38: =-'Calc-Costs'!E30 -> 0 | F38: =-'Calc-Costs'!F30 -> 0 | G38: =-'Calc-Costs'!G30 -> 0 | H38: =-'Calc-Costs'!H30 -> 0 | I38: =-'Calc-Costs'!I30 -> 0 | J38: =-'Calc-Costs'!J30 -> 0 | K38: =-'Calc-Costs'!K30 -> 0 | L38: =-'Calc-Costs'!L30 -> 0 | M38: =-'Calc-Costs'!M30 -> 0 | N38: =-'Calc-Costs'!N30 -> 0 | O38: =-'Calc-Costs'!O30 -> -23342.21311 | P38: =-'Calc-Costs'!P30 -> 0 | Q38: =-'Calc-Costs'!Q30 -> 0 | R38: =-'Calc-Costs'!R30 -> 0 | S38: =-'Calc-Costs'!S30 -> 0 | T38: =-'Calc-Costs'!T30 -> -23342.21311 | U38: =-'Calc-Costs'!U30 -> 0 | V38: =-'Calc-Costs'!V30 -> 0 | W38: =-'Calc-Costs'!W30 -> 0 | X38: =-'Calc-Costs'!X30 -> 0 | Y38: =-'Calc-Costs'!Y30 -> -23342.21311 | Z38: =-'Calc-Costs'!Z30 -> 0 | AA38: =-'Calc-Costs'!AA30 -> 0 | AB38: =-'Calc-Costs'!AB30 -> 0 | AC38: =-'Calc-Costs'!AC30 -> 0 | AD38: =-'Calc-Costs'!AD30 -> -816977.459 | AE38: =-'Calc-Costs'!AE30 -> 0 | AF38: =-'Calc-Costs'!AF30 -> 0 | AG38: =-'Calc-Costs'!AG30 -> 0 | AH38: =-'Calc-Costs'!AH30 -> 0 | AI38: =-'Calc-Costs'!AI30 -> 0 | AJ38: =-'Calc-Costs'!AJ30 -> 0 | AK38: =-'Calc-Costs'!AK30 -> 0 | AL38: =-'Calc-Costs'!AL30 -> 0 | AM38: =-'Calc-Costs'!AM30 -> 0 | AN38: =-'Calc-Costs'!AN30 -> 0
B39: Capital Costs | C39: =SUM(D39:AD39)/10^6 -> -18.65129661 | D39: =-'Calc-Costs'!D24 -> 0 | E39: =-'Calc-Costs'!E24 -> 0 | F39: =-'Calc-Costs'!F24 -> 0 | G39: =-'Calc-Costs'!G24 -> 0 | H39: =-'Calc-Costs'!H24 -> 0 | I39: =-'Calc-Costs'!I24 -> -7048816.158 | J39: =-'Calc-Costs'!J24 -> -11602480.45 | K39: =-'Calc-Costs'!K24 -> 0 | L39: =-'Calc-Costs'!L24 -> 0 | M39: =-'Calc-Costs'!M24 -> 0 | N39: =-'Calc-Costs'!N24 -> 0 | O39: =-'Calc-Costs'!O24 -> 0 | P39: =-'Calc-Costs'!P24 -> 0 | Q39: =-'Calc-Costs'!Q24 -> 0 | R39: =-'Calc-Costs'!R24 -> 0 | S39: =-'Calc-Costs'!S24 -> 0 | T39: =-'Calc-Costs'!T24 -> 0 | U39: =-'Calc-Costs'!U24 -> 0 | V39: =-'Calc-Costs'!V24 -> 0 | W39: =-'Calc-Costs'!W24 -> 0 | X39: =-'Calc-Costs'!X24 -> 0 | Y39: =-'Calc-Costs'!Y24 -> 0 | Z39: =-'Calc-Costs'!Z24 -> 0 | AA39: =-'Calc-Costs'!AA24 -> 0 | AB39: =-'Calc-Costs'!AB24 -> 0 | AC39: =-'Calc-Costs'!AC24 -> 0 | AD39: =-'Calc-Costs'!AD24 -> 0 | AE39: =-'Calc-Costs'!AE24 -> 0 | AF39: =-'Calc-Costs'!AF24 -> 0 | AG39: =-'Calc-Costs'!AG24 -> 0 | AH39: =-'Calc-Costs'!AH24 -> 0 | AI39: =-'Calc-Costs'!AI24 -> 0 | AJ39: =-'Calc-Costs'!AJ24 -> 0 | AK39: =-'Calc-Costs'!AK24 -> 0 | AL39: =-'Calc-Costs'!AL24 -> 0 | AM39: =-'Calc-Costs'!AM24 -> 0 | AN39: =-'Calc-Costs'!AN24 -> 0
B40: Total Benefits | C40: =SUM(D40:AD40)/10^6 -> 64.36135205 | D40: =SUM(D30:D37) -> 0 | E40: 0 | F40: 0 | G40: 0 | H40: 0 | I40: 0 | J40: =SUM(J30:J37) -> 842560.5246 | K40: 2061471.419 | L40: 2105006.976 | M40: 2150253.694 | N40: 2196775.574 | O40: 2245305.261 | P40: 2296450.594 | Q40: 2348867.944 | R40: 2403112.651 | S40: 2459309.917 | T40: 2517418.867 | U40: 2577975.568 | V40: 2640479.565 | W40: 2705384.328 | X40: 2772318.835 | Y40: 2841945.258 | Z40: 2914309.396 | AA40: 2989152.4 | AB40: 3067359.902 | AC40: 3148173.532 | AD40: 15077719.85 | AE40: 3318523.696 | AF40: 3408347.569 | AG40: 3501245.622 | AH40: 3597745.993 | AI40: 3698101.158 | AJ40: 3801629.299 | AK40: 3909016.538 | AL40: 4020412.078 | AM40: =SUM(AM30:AM37) -> 4135970.901 | AN40: 4255853.982
B41: Total Costs | C41: =SUM(D41:AD41)/10^6 -> -19.53830071 | D41: =SUM(D38:D39) -> 0 | E41: =SUM(E38:E39) -> 0 | F41: 0 | G41: 0 | H41: 0 | I41: -7048816.158 | J41: -11602480.45 | K41: 0 | L41: 0 | M41: 0 | N41: 0 | O41: -23342.21311 | P41: 0 | Q41: 0 | R41: 0 | S41: 0 | T41: -23342.21311 | U41: 0 | V41: 0 | W41: 0 | X41: 0 | Y41: -23342.21311 | Z41: 0 | AA41: 0 | AB41: 0 | AC41: =SUM(AC38:AC39) -> 0 | AD41: -816977.459 | AE41: 0 | AF41: 0 | AG41: 0 | AH41: 0 | AI41: 0 | AJ41: 0 | AK41: 0 | AL41: 0 | AM41: =SUM(AM38:AM39) -> 0 | AN41: 0
B42: Net Impacts | C42: =SUM(D42:AD42)/10^6 -> 44.82305134 | D42: =SUM(D30:D39) -> 0 | E42: 0 | F42: 0 | G42: 0 | H42: 0 | I42: -7048816.158 | J42: -10759919.93 | K42: 2061471.419 | L42: 2105006.976 | M42: 2150253.694 | N42: 2196775.574 | O42: 2221963.048 | P42: 2296450.594 | Q42: 2348867.944 | R42: 2403112.651 | S42: 2459309.917 | T42: 2494076.654 | U42: 2577975.568 | V42: 2640479.565 | W42: 2705384.328 | X42: 2772318.835 | Y42: 2818603.044 | Z42: 2914309.396 | AA42: 2989152.4 | AB42: 3067359.902 | AC42: 3148173.532 | AD42: 14260742.39 | AE42: 3318523.696 | AF42: 3408347.569 | AG42: 3501245.622 | AH42: 3597745.993 | AI42: 3698101.158 | AJ42: 3801629.299 | AK42: 3909016.538 | AL42: 4020412.078 | AM42: =SUM(AM30:AM39) -> 4135970.901 | AN42: 4255853.982
B43: Cumulative Net Impacts | D43: =D42 -> 0 | E43: =D43+E42 -> 0 | F43: =E43+F42 -> 0 | G43: =F43+G42 -> 0 | H43: =G43+H42 -> 0 | I43: -7048816.158 | J43: -17808736.08 | K43: -15747264.67 | L43: -13642257.69 | M43: -11492004 | N43: -9295228.422 | O43: -7073265.374 | P43: -4776814.78 | Q43: -2427946.836 | R43: -24834.18496 | S43: 2434475.732 | T43: 4928552.386 | U43: 7506527.955 | V43: 10147007.52 | W43: 12852391.85 | X43: 15624710.68 | Y43: 18443313.73 | Z43: 21357623.12 | AA43: 24346775.52 | AB43: 27414135.42 | AC43: =AB43+AC42 -> 30562308.96 | AD43: =AC43+AD42 -> 44823051.34 | AE43: =AD43+AE42 -> 48141575.04 | AF43: =AE43+AF42 -> 51549922.61 | AG43: =AF43+AG42 -> 55051168.23 | AH43: =AG43+AH42 -> 58648914.22 | AI43: =AH43+AI42 -> 62347015.38 | AJ43: =AI43+AJ42 -> 66148644.68 | AK43: =AJ43+AK42 -> 70057661.22 | AL43: =AK43+AL42 -> 74078073.29 | AM43: =AL43+AM42 -> 78214044.2 | AN43: =AM43+AN42 -> 82469898.18
B45: Results - 7% 2020$
B46: Impact Category | C46: Total | D46: 2019 | E46: =D46+1 -> 2020 | F46: 2021 | G46: 2022 | H46: 2023 | I46: 2024 | J46: 2025 | K46: 2026 | L46: 2027 | M46: 2028 | N46: 2029 | O46: 2030 | P46: 2031 | Q46: 2032 | R46: 2033 | S46: 2034 | T46: 2035 | U46: 2036 | V46: 2037 | W46: 2038 | X46: 2039 | Y46: 2040 | Z46: 2041 | AA46: 2042 | AB46: 2043 | AC46: =AB46+1 -> 2044 | AD46: =AC46+1 -> 2045 | AE46: =AD46+1 -> 2046 | AF46: =AE46+1 -> 2047 | AG46: =AF46+1 -> 2048 | AH46: =AG46+1 -> 2049 | AI46: =AH46+1 -> 2050 | AJ46: =AI46+1 -> 2051 | AK46: =AJ46+1 -> 2052 | AL46: =AK46+1 -> 2053 | AM46: =AL46+1 -> 2054 | AN46: =AM46+1 -> 2055
B47: Travel Time Savings | C47: =SUM(D47:AD47)/10^6 -> 13.09512853 | D47: ='Calc-1'!D56 -> 0 | E47: ='Calc-1'!E56 -> 0 | F47: ='Calc-1'!F56 -> 0 | G47: ='Calc-1'!G56 -> 0 | H47: ='Calc-1'!H56 -> 0 | I47: ='Calc-1'!I56 -> 0 | J47: ='Calc-1'!J56 -> 0 | K47: ='Calc-1'!K56 -> 920607.2653 | L47: ='Calc-1'!L56 -> 884596.4372 | M47: ='Calc-1'!M56 -> 850232.1234 | N47: ='Calc-1'!N56 -> 817427.9063 | O47: ='Calc-1'!O56 -> 786102.3357 | P47: ='Calc-1'!P56 -> 756178.6296 | Q47: ='Calc-1'!Q56 -> 727584.3933 | R47: ='Calc-1'!R56 -> 700251.3555 | S47: ='Calc-1'!S56 -> 674115.1211 | T47: ='Calc-1'!T56 -> 649114.9387 | U47: ='Calc-1'!U56 -> 625193.4826 | V47: ='Calc-1'!V56 -> 602296.6481 | W47: ='Calc-1'!W56 -> 580373.3597 | X47: ='Calc-1'!X56 -> 559375.3901 | Y47: ='Calc-1'!Y56 -> 539257.1914 | Z47: ='Calc-1'!Z56 -> 519975.7361 | AA47: ='Calc-1'!AA56 -> 501490.3676 | AB47: ='Calc-1'!AB56 -> 483762.6601 | AC47: ='Calc-1'!AC56 -> 466756.2874 | AD47: ='Calc-1'!AD56 -> 450436.8991 | AE47: ='Calc-1'!AE56 -> 434772.0044 | AF47: ='Calc-1'!AF56 -> 419730.8636 | AG47: ='Calc-1'!AG56 -> 405284.3855 | AH47: ='Calc-1'!AH56 -> 391405.0312 | AI47: ='Calc-1'!AI56 -> 378066.7242 | AJ47: ='Calc-1'!AJ56 -> 365244.7654 | AK47: ='Calc-1'!AK56 -> 352915.7535 | AL47: ='Calc-1'!AL56 -> 341057.5101 | AM47: ='Calc-1'!AM56 -> 329649.0095 | AN47: ='Calc-1'!AN56 -> 318670.3128
B48: Vehicle Operating Cost Savings | C48: =SUM(D48:AD48)/10^6 -> 1.952119115 | D48: ='Calc-2'!D50 -> 0 | E48: ='Calc-2'!E50 -> 0 | F48: ='Calc-2'!F50 -> 0 | G48: ='Calc-2'!G50 -> 0 | H48: ='Calc-2'!H50 -> 0 | I48: ='Calc-2'!I50 -> 0 | J48: ='Calc-2'!J53 -> 0 | K48: ='Calc-2'!K53 -> 160988.8729 | L48: ='Calc-2'!L53 -> 151785.4495 | M48: ='Calc-2'!M53 -> 143102.5803 | N48: ='Calc-2'!N53 -> 134875.8607 | O48: ='Calc-2'!O53 -> 127305.6941 | P48: ='Calc-2'!P53 -> 120300.0358 | Q48: ='Calc-2'!Q53 -> 113438.7238 | R48: ='Calc-2'!R53 -> 106949.4045 | S48: ='Calc-2'!S53 -> 100834.1052 | T48: ='Calc-2'!T53 -> 95029.04938 | U48: ='Calc-2'!U53 -> 89598.17487 | V48: ='Calc-2'!V53 -> 84476.88463 | W48: ='Calc-2'!W53 -> 79688.95588 | X48: ='Calc-2'!X53 -> 75082.96829 | Y48: ='Calc-2'!Y53 -> 70808.78714 | Z48: ='Calc-2'!Z53 -> 66766.87729 | AA48: ='Calc-2'!AA53 -> 62917.01394 | AB48: ='Calc-2'!AB53 -> 59362.33695 | AC48: ='Calc-2'!AC53 -> 56009.39082 | AD48: ='Calc-2'!AD53 -> 52797.9493 | AE48: ='Calc-2'!AE53 -> 49807.14652 | AF48: ='Calc-2'!AF53 -> 46952.61669 | AG48: ='Calc-2'!AG53 -> 44223.62584 | AH48: ='Calc-2'!AH53 -> 41674.3996 | AI48: ='Calc-2'!AI53 -> 39264.99031 | AJ48: ='Calc-2'!AJ53 -> 36998.70629 | AK48: ='Calc-2'!AK53 -> 34863.53171 | AL48: ='Calc-2'!AL53 -> 32851.86391 | AM48: ='Calc-2'!AM53 -> 30956.54209 | AN48: ='Calc-2'!AN53 -> 29170.8216
B49: Highway Use Cost Savings | C49: =SUM(D49:AD49)/10^6 -> 0.5083355285 | D49: ='Calc-5'!D38 -> 0 | E49: ='Calc-5'!E38 -> 0 | F49: ='Calc-5'!F38 -> 0 | G49: ='Calc-5'!G38 -> 0 | H49: ='Calc-5'!H38 -> 0 | I49: ='Calc-5'!I38 -> 0 | J49: ='Calc-5'!J41 -> 0 | K49: ='Calc-5'!K41 -> 42971.68856 | L49: ='Calc-5'!L41 -> 40392.46794 | M49: ='Calc-5'!M41 -> 37968.05574 | N49: ='Calc-5'!N41 -> 35689.16013 | O49: ='Calc-5'!O41 -> 33547.04701 | P49: ='Calc-5'!P41 -> 31533.50651 | Q49: ='Calc-5'!Q41 -> 29640.82152 | R49: ='Calc-5'!R41 -> 27861.73811 | S49: ='Calc-5'!S41 -> 26189.43777 | T49: ='Calc-5'!T41 -> 24617.51123 | U49: ='Calc-5'!U41 -> 23139.9339 | V49: ='Calc-5'!V41 -> 21751.04283 | W49: ='Calc-5'!W41 -> 20445.51493 | X49: ='Calc-5'!X41 -> 19218.34664 | Y49: ='Calc-5'!Y41 -> 18064.8347 | Z49: ='Calc-5'!Z41 -> 16980.55815 | AA49: ='Calc-5'!AA41 -> 15961.36139 | AB49: ='Calc-5'!AB41 -> 15003.33824 | AC49: ='Calc-5'!AC41 -> 14102.81698 | AD49: ='Calc-5'!AD41 -> 13256.34625 | AE49: ='Calc-5'!AE41 -> 12460.68188 | AF49: ='Calc-5'!AF41 -> 11712.77439 | AG49: ='Calc-5'!AG41 -> 11009.75735 | AH49: ='Calc-5'!AH41 -> 10348.93638 | AI49: ='Calc-5'!AI41 -> 9727.778797 | AJ49: ='Calc-5'!AJ41 -> 9143.90396 | AK49: ='Calc-5'!AK41 -> 8595.074104 | AL49: ='Calc-5'!AL41 -> 8079.185781 | AM49: ='Calc-5'!AM41 -> 7594.261794 | AN49: ='Calc-5'!AN41 -> 7138.44362
B50: Reduction in Accident Costs | C50: =SUM(D50:AD50)/10^6 -> 2.733438197 | D50: ='Calc-3'!D63 -> 0 | E50: ='Calc-3'!E63 -> 0 | F50: ='Calc-3'!F63 -> 0 | G50: ='Calc-3'!G63 -> 0 | H50: ='Calc-3'!H63 -> 0 | I50: ='Calc-3'!I63 -> 0 | J50: ='Calc-3'!J63 -> 0 | K50: ='Calc-3'!K63 -> 230411.1935 | L50: ='Calc-3'!L63 -> 216663.9181 | M50: ='Calc-3'!M63 -> 203736.8615 | N50: ='Calc-3'!N63 -> 191581.086 | O50: ='Calc-3'!O63 -> 180150.5738 | P50: ='Calc-3'!P63 -> 169402.0528 | Q50: ='Calc-3'!Q63 -> 159294.8326 | R50: ='Calc-3'!R63 -> 149790.6505 | S50: ='Calc-3'!S63 -> 140853.5269 | T50: ='Calc-3'!T63 -> 132449.6287 | U50: ='Calc-3'!U63 -> 124547.1414 | V50: ='Calc-3'!V63 -> 117116.1489 | W50: ='Calc-3'!W63 -> 110128.5198 | X50: ='Calc-3'!X63 -> 103557.8013 | Y50: ='Calc-3'!Y63 -> 97379.11882 | Z50: ='Calc-3'!Z63 -> 91569.0818 | AA50: ='Calc-3'!AA63 -> 86105.69538 | AB50: ='Calc-3'!AB63 -> 80968.27697 | AC50: ='Calc-3'!AC63 -> 76137.37798 | AD50: ='Calc-3'!AD63 -> 71594.71021 | AE50: ='Calc-3'!AE63 -> 67323.0766 | AF50: ='Calc-3'!AF63 -> 63306.30615 | AG50: ='Calc-3'!AG63 -> 59529.19267 | AH50: ='Calc-3'!AH63 -> 55977.43725 | AI50: ='Calc-3'!AI63 -> 52637.5941 | AJ50: ='Calc-3'!AJ63 -> 49497.01967 | AK50: ='Calc-3'!AK63 -> 46543.82477 | AL50: ='Calc-3'!AL63 -> 43766.82958 | AM50: ='Calc-3'!AM63 -> 41155.52129 | AN50: ='Calc-3'!AN63 -> 38700.01435
B51: Pedestrian Benefits | C51: =SUM(D51:AD51)/10^6 -> 0.05829249343 | D51: ='Calc-6'!D23 -> 0 | E51: ='Calc-6'!E23 -> 0 | F51: ='Calc-6'!F23 -> 0 | G51: ='Calc-6'!G23 -> 0 | H51: ='Calc-6'!H23 -> 0 | I51: ='Calc-6'!I23 -> 0 | J51: ='Calc-6'!J23 -> 0 | K51: ='Calc-6'!K23 -> 4908.282903 | L51: ='Calc-6'!L23 -> 4616.110504 | M51: ='Calc-6'!M23 -> 4341.330074 | N51: ='Calc-6'!N23 -> 4082.906334 | O51: ='Calc-6'!O23 -> 3839.865629 | P51: ='Calc-6'!P23 -> 3611.292261 | Q51: ='Calc-6'!Q23 -> 3396.325042 | R51: ='Calc-6'!R23 -> 3194.154047 | S51: ='Calc-6'!S23 -> 3004.017563 | T51: ='Calc-6'!T23 -> 2825.199219 | U51: ='Calc-6'!U23 -> 2657.025287 | V51: ='Calc-6'!V23 -> 2498.862144 | W51: ='Calc-6'!W23 -> 2350.113882 | X51: ='Calc-6'!X23 -> 2210.220069 | Y51: ='Calc-6'!Y23 -> 2078.65363 | Z51: ='Calc-6'!Z23 -> 1954.918868 | AA51: ='Calc-6'!AA23 -> 1838.54959 | AB51: ='Calc-6'!AB23 -> 1729.107356 | AC51: ='Calc-6'!AC23 -> 1626.179824 | AD51: ='Calc-6'!AD23 -> 1529.379198 | AE51: ='Calc-6'!AE23 -> 1438.340763 | AF51: ='Calc-6'!AF23 -> 1352.721519 | AG51: ='Calc-6'!AG23 -> 1272.19888 | AH51: ='Calc-6'!AH23 -> 1196.469464 | AI51: ='Calc-6'!AI23 -> 1125.247947 | AJ51: ='Calc-6'!AJ23 -> 1058.26599 | AK51: ='Calc-6'!AK23 -> 995.2712282 | AL51: ='Calc-6'!AL23 -> 936.0263174 | AM51: ='Calc-6'!AM23 -> 880.3080427 | AN51: ='Calc-6'!AN23 -> 827.9064761
B52: Environmental Cost Savings | C52: =SUM(D52:AD52)/10^6 -> 0.2621125158 | D52: ='Calc-4'!D183 -> 0 | E52: ='Calc-4'!E183 -> 0 | F52: ='Calc-4'!F183 -> 0 | G52: ='Calc-4'!G183 -> 0 | H52: ='Calc-4'!H183 -> 0 | I52: ='Calc-4'!I183 -> 0 | J52: ='Calc-4'!J183 -> 0 | K52: ='Calc-4'!K183 -> 15843.45846 | L52: ='Calc-4'!L183 -> 15197.58515 | M52: ='Calc-4'!M183 -> 14744.58478 | N52: ='Calc-4'!N183 -> 14140.52895 | O52: ='Calc-4'!O183 -> 13570.80177 | P52: ='Calc-4'!P183 -> 13372.69938 | Q52: ='Calc-4'!Q183 -> 13186.44687 | R52: ='Calc-4'!R183 -> 13011.32478 | S52: ='Calc-4'!S183 -> 12846.6585 | T52: ='Calc-4'!T183 -> 12691.81514 | U52: ='Calc-4'!U183 -> 12691.55652 | V52: ='Calc-4'!V183 -> 12552.60747 | W52: ='Calc-4'!W183 -> 12421.86003 | X52: ='Calc-4'!X183 -> 12298.81849 | Y52: ='Calc-4'!Y183 -> 12183.01604 | Z52: ='Calc-4'!Z183 -> 12177.77311 | AA52: ='Calc-4'!AA183 -> 12178.52453 | AB52: ='Calc-4'!AB183 -> 12320.72809 | AC52: ='Calc-4'!AC183 -> 12332.319 | AD52: ='Calc-4'!AD183 -> 12349.4088 | AE52: ='Calc-4'!AE183 -> 12371.84111 | AF52: ='Calc-4'!AF183 -> 12399.46951 | AG52: ='Calc-4'!AG183 -> 12432.15696 | AH52: ='Calc-4'!AH183 -> 12469.77511 | AI52: ='Calc-4'!AI183 -> 12644.47249 | AJ52: ='Calc-4'!AJ183 -> 12578.52648 | AK52: ='Calc-4'!AK183 -> 12517.68559 | AL52: ='Calc-4'!AL183 -> 12461.77812 | AM52: ='Calc-4'!AM183 -> 12410.64063 | AN52: ='Calc-4'!AN183 -> 12364.11746
B53: Agency Cost Savings | C53: 0.6007340094 | D53: ='Calc-Costs'!D37 -> 0 | E53: ='Calc-Costs'!E37 -> 0 | F53: ='Calc-Costs'!F37 -> 0 | G53: ='Calc-Costs'!G37 -> 0 | H53: ='Calc-Costs'!H37 -> 0 | I53: ='Calc-Costs'!I37 -> 0 | J53: ='Calc-Costs'!J37 -> 600734.0094 | K53: ='Calc-Costs'!K37 -> 0 | L53: ='Calc-Costs'!L37 -> 0 | M53: ='Calc-Costs'!M37 -> 0 | N53: ='Calc-Costs'!N37 -> 0 | O53: ='Calc-Costs'!O37 -> 0 | P53: ='Calc-Costs'!P37 -> 0 | Q53: ='Calc-Costs'!Q37 -> 0 | R53: ='Calc-Costs'!R37 -> 0 | S53: ='Calc-Costs'!S37 -> 0 | T53: ='Calc-Costs'!T37 -> 0 | U53: ='Calc-Costs'!U37 -> 0 | V53: ='Calc-Costs'!V37 -> 0 | W53: ='Calc-Costs'!W37 -> 0 | X53: ='Calc-Costs'!X37 -> 0 | Y53: ='Calc-Costs'!Y37 -> 0 | Z53: ='Calc-Costs'!Z37 -> 0 | AA53: ='Calc-Costs'!AA37 -> 0 | AB53: ='Calc-Costs'!AB37 -> 0 | AC53: ='Calc-Costs'!AC37 -> 0 | AD53: ='Calc-Costs'!AD37 -> 0 | AE53: ='Calc-Costs'!AE37 -> 0 | AF53: ='Calc-Costs'!AF37 -> 0 | AG53: ='Calc-Costs'!AG37 -> 0 | AH53: ='Calc-Costs'!AH37 -> 0 | AI53: ='Calc-Costs'!AI37 -> 0 | AJ53: ='Calc-Costs'!AJ37 -> 0 | AK53: ='Calc-Costs'!AK37 -> 0 | AL53: ='Calc-Costs'!AL37 -> 0 | AM53: ='Calc-Costs'!AM37 -> 0 | AN53: ='Calc-Costs'!AN37 -> 0
B54: Residual Value | C54: 2.182619272 | D54: ='Calc-Costs'!D43 -> 0 | E54: ='Calc-Costs'!E43 -> 0 | F54: ='Calc-Costs'!F43 -> 0 | G54: ='Calc-Costs'!G43 -> 0 | H54: ='Calc-Costs'!H43 -> 0 | I54: ='Calc-Costs'!I43 -> 0 | J54: ='Calc-Costs'!J43 -> 0 | K54: ='Calc-Costs'!K43 -> 0 | L54: ='Calc-Costs'!L43 -> 0 | M54: ='Calc-Costs'!M43 -> 0 | N54: ='Calc-Costs'!N43 -> 0 | O54: ='Calc-Costs'!O43 -> 0 | P54: ='Calc-Costs'!P43 -> 0 | Q54: ='Calc-Costs'!Q43 -> 0 | R54: ='Calc-Costs'!R43 -> 0 | S54: ='Calc-Costs'!S43 -> 0 | T54: ='Calc-Costs'!T43 -> 0 | U54: ='Calc-Costs'!U43 -> 0 | V54: ='Calc-Costs'!V43 -> 0 | W54: ='Calc-Costs'!W43 -> 0 | X54: ='Calc-Costs'!X43 -> 0 | Y54: ='Calc-Costs'!Y43 -> 0 | Z54: ='Calc-Costs'!Z43 -> 0 | AA54: ='Calc-Costs'!AA43 -> 0 | AB54: ='Calc-Costs'!AB43 -> 0 | AC54: ='Calc-Costs'!AC43 -> 0 | AD54: ='Calc-Costs'!AD43 -> 2182619.272 | AE54: ='Calc-Costs'!AE43 -> 0 | AF54: ='Calc-Costs'!AF43 -> 0 | AG54: ='Calc-Costs'!AG43 -> 0 | AH54: ='Calc-Costs'!AH43 -> 0 | AI54: ='Calc-Costs'!AI43 -> 0 | AJ54: ='Calc-Costs'!AJ43 -> 0 | AK54: ='Calc-Costs'!AK43 -> 0 | AL54: ='Calc-Costs'!AL43 -> 0 | AM54: ='Calc-Costs'!AM43 -> 0 | AN54: ='Calc-Costs'!AN43 -> 0
B55: O&M Costs | C55: -0.1768857861 | D55: =-'Calc-Costs'!D31 -> 0 | E55: =-'Calc-Costs'!E31 -> 0 | F55: =-'Calc-Costs'!F31 -> 0 | G55: =-'Calc-Costs'!G31 -> 0 | H55: =-'Calc-Costs'!H31 -> 0 | I55: =-'Calc-Costs'!I31 -> 0 | J55: =-'Calc-Costs'!J31 -> 0 | K55: =-'Calc-Costs'!K31 -> 0 | L55: =-'Calc-Costs'!L31 -> 0 | M55: =-'Calc-Costs'!M31 -> 0 | N55: =-'Calc-Costs'!N31 -> 0 | O55: =-'Calc-Costs'!O31 -> -11865.99751 | P55: =-'Calc-Costs'!P31 -> 0 | Q55: =-'Calc-Costs'!Q31 -> 0 | R55: =-'Calc-Costs'!R31 -> 0 | S55: =-'Calc-Costs'!S31 -> 0 | T55: =-'Calc-Costs'!T31 -> -8460.292233 | U55: =-'Calc-Costs'!U31 -> 0 | V55: =-'Calc-Costs'!V31 -> 0 | W55: =-'Calc-Costs'!W31 -> 0 | X55: =-'Calc-Costs'!X31 -> 0 | Y55: =-'Calc-Costs'!Y31 -> -6032.071437 | Z55: =-'Calc-Costs'!Z31 -> 0 | AA55: =-'Calc-Costs'!AA31 -> 0 | AB55: =-'Calc-Costs'!AB31 -> 0 | AC55: =-'Calc-Costs'!AC31 -> 0 | AD55: =-'Calc-Costs'!AD31 -> -150527.4249 | AE55: =-'Calc-Costs'!AE31 -> 0 | AF55: =-'Calc-Costs'!AF31 -> 0 | AG55: =-'Calc-Costs'!AG31 -> 0 | AH55: =-'Calc-Costs'!AH31 -> 0 | AI55: =-'Calc-Costs'!AI31 -> 0 | AJ55: =-'Calc-Costs'!AJ31 -> 0 | AK55: =-'Calc-Costs'!AK31 -> 0 | AL55: =-'Calc-Costs'!AL31 -> 0 | AM55: =-'Calc-Costs'!AM31 -> 0 | AN55: =-'Calc-Costs'!AN31 -> 0
B56: =B39 -> Capital Costs | C56: =SUM(D56:AD56)/10^6 -> -13.64991631 | D56: =-'Calc-Costs'!D25 -> 0 | E56: =-'Calc-Costs'!E25 -> 0 | F56: =-'Calc-Costs'!F25 -> 0 | G56: =-'Calc-Costs'!G25 -> 0 | H56: =-'Calc-Costs'!H25 -> 0 | I56: =-'Calc-Costs'!I25 -> -5377508.098 | J56: =-'Calc-Costs'!J25 -> -8272408.209 | K56: =-'Calc-Costs'!K25 -> 0 | L56: =-'Calc-Costs'!L25 -> 0 | M56: =-'Calc-Costs'!M25 -> 0 | N56: =-'Calc-Costs'!N25 -> 0 | O56: =-'Calc-Costs'!O25 -> 0 | P56: =-'Calc-Costs'!P25 -> 0 | Q56: =-'Calc-Costs'!Q25 -> 0 | R56: =-'Calc-Costs'!R25 -> 0 | S56: =-'Calc-Costs'!S25 -> 0 | T56: =-'Calc-Costs'!T25 -> 0 | U56: =-'Calc-Costs'!U25 -> 0 | V56: =-'Calc-Costs'!V25 -> 0 | W56: =-'Calc-Costs'!W25 -> 0 | X56: =-'Calc-Costs'!X25 -> 0 | Y56: =-'Calc-Costs'!Y25 -> 0 | Z56: =-'Calc-Costs'!Z25 -> 0 | AA56: =-'Calc-Costs'!AA25 -> 0 | AB56: =-'Calc-Costs'!AB25 -> 0 | AC56: =-'Calc-Costs'!AC25 -> 0 | AD56: =-'Calc-Costs'!AD25 -> 0 | AE56: =-'Calc-Costs'!AE25 -> 0 | AF56: =-'Calc-Costs'!AF25 -> 0 | AG56: =-'Calc-Costs'!AG25 -> 0 | AH56: =-'Calc-Costs'!AH25 -> 0 | AI56: =-'Calc-Costs'!AI25 -> 0 | AJ56: =-'Calc-Costs'!AJ25 -> 0 | AK56: =-'Calc-Costs'!AK25 -> 0 | AL56: =-'Calc-Costs'!AL25 -> 0 | AM56: =-'Calc-Costs'!AM25 -> 0 | AN56: =-'Calc-Costs'!AN25 -> 0
B57: Total Benefits | C57: =SUM(D57:AD57)/10^6 -> 21.39277966 | D57: =SUM(D47:D54) -> 0 | E57: 0 | F57: 0 | G57: 0 | H57: 0 | I57: 0 | J57: 600734.0094 | K57: 1375730.762 | L57: 1313251.968 | M57: 1254125.536 | N57: 1197797.448 | O57: 1144516.318 | P57: 1094398.216 | Q57: 1046541.543 | R57: 1001058.627 | S57: 957842.8671 | T57: 916728.1423 | U57: 877827.3145 | V57: 840692.1941 | W57: 805408.3243 | X57: 771743.5449 | Y57: 739771.6018 | Z57: 709424.9453 | AA57: 680491.5124 | AB57: 653146.4477 | AC57: 626964.372 | AD57: 2784583.965 | AE57: 578173.0913 | AF57: 555454.7519 | AG57: 533751.3172 | AH57: 513072.049 | AI57: 493466.8078 | AJ57: 474521.1878 | AK57: 456431.1409 | AL57: 439153.1938 | AM57: =SUM(AM47:AM54) -> 422646.2833 | AN57: 406871.6163
B58: Total Costs | C58: =SUM(D58:AD58)/10^6 -> -13.82680209 | D58: =SUM(D55:D56) -> 0 | E58: =SUM(E55:E56) -> 0 | F58: =SUM(F55:F56) -> 0 | G58: =SUM(G55:G56) -> 0 | H58: 0 | I58: -5377508.098 | J58: -8272408.209 | K58: 0 | L58: 0 | M58: 0 | N58: 0 | O58: -11865.99751 | P58: 0 | Q58: 0 | R58: 0 | S58: 0 | T58: -8460.292233 | U58: 0 | V58: 0 | W58: 0 | X58: 0 | Y58: -6032.071437 | Z58: 0 | AA58: 0 | AB58: =SUM(AB55:AB56) -> 0 | AC58: =SUM(AC55:AC56) -> 0 | AD58: -150527.4249 | AE58: 0 | AF58: 0 | AG58: 0 | AH58: 0 | AI58: 0 | AJ58: 0 | AK58: 0 | AL58: 0 | AM58: =SUM(AM55:AM56) -> 0 | AN58: 0
B59: Net Impacts | C59: =SUM(D59:AD59)/10^6 -> 7.565977567 | D59: =SUM(D47:D56) -> 0 | E59: 0 | F59: 0 | G59: 0 | H59: 0 | I59: -5377508.098 | J59: -7671674.2 | K59: 1375730.762 | L59: 1313251.968 | M59: 1254125.536 | N59: 1197797.448 | O59: 1132650.32 | P59: 1094398.216 | Q59: 1046541.543 | R59: 1001058.627 | S59: 957842.8671 | T59: 908267.8501 | U59: 877827.3145 | V59: 840692.1941 | W59: 805408.3243 | X59: 771743.5449 | Y59: 733739.5303 | Z59: 709424.9453 | AA59: 680491.5124 | AB59: 653146.4477 | AC59: 626964.372 | AD59: 2634056.54 | AE59: 578173.0913 | AF59: 555454.7519 | AG59: 533751.3172 | AH59: 513072.049 | AI59: 493466.8078 | AJ59: 474521.1878 | AK59: 456431.1409 | AL59: 439153.1938 | AM59: =SUM(AM47:AM56) -> 422646.2833 | AN59: 406871.6163
B60: Cumulative Net Impacts | D60: =D59 -> 0 | E60: =D60+E59 -> 0 | F60: =E60+F59 -> 0 | G60: 0 | H60: 0 | I60: -5377508.098 | J60: -13049182.3 | K60: -11673451.54 | L60: =K60+L59 -> -10360199.57 | M60: -9106074.032 | N60: -7908276.583 | O60: -6775626.263 | P60: -5681228.046 | Q60: -4634686.503 | R60: -3633627.876 | S60: -2675785.009 | T60: -1767517.159 | U60: -889689.8442 | V60: -48997.6501 | W60: 756410.6742 | X60: 1528154.219 | Y60: 2261893.749 | Z60: 2971318.695 | AA60: 3651810.207 | AB60: 4304956.655 | AC60: =AB60+AC59 -> 4931921.027 | AD60: =AC60+AD59 -> 7565977.567 | AE60: =AD60+AE59 -> 8144150.658 | AF60: =AE60+AF59 -> 8699605.41 | AG60: =AF60+AG59 -> 9233356.727 | AH60: =AG60+AH59 -> 9746428.776 | AI60: =AH60+AI59 -> 10239895.58 | AJ60: =AI60+AJ59 -> 10714416.77 | AK60: =AJ60+AK59 -> 11170847.91 | AL60: =AK60+AL59 -> 11610001.11 | AM60: =AL60+AM59 -> 12032647.39 | AN60: =AM60+AN59 -> 12439519.01
B62: Results - 3% 2020$
B63: Impact Category | C63: Total | D63: 2019 | E63: =D63+1 -> 2020 | F63: 2021 | G63: 2022 | H63: 2023 | I63: 2024 | J63: 2025 | K63: 2026 | L63: 2027 | M63: 2028 | N63: 2029 | O63: 2030 | P63: 2031 | Q63: 2032 | R63: 2033 | S63: 2034 | T63: 2035 | U63: 2036 | V63: 2037 | W63: 2038 | X63: 2039 | Y63: 2040 | Z63: 2041 | AA63: 2042 | AB63: 2043 | AC63: =AB63+1 -> 2044 | AD63: =AC63+1 -> 2045 | AE63: =AD63+1 -> 2046 | AF63: =AE63+1 -> 2047 | AG63: =AF63+1 -> 2048 | AH63: =AG63+1 -> 2049 | AI63: =AH63+1 -> 2050 | AJ63: =AI63+1 -> 2051 | AK63: =AJ63+1 -> 2052 | AL63: =AK63+1 -> 2053 | AM63: =AL63+1 -> 2054 | AN63: =AM63+1 -> 2055
B64: Travel Time Savings | C64: =SUM(D64:AD64)/10^6 -> 23.0883547 | D64: ='Calc-1'!D61 -> 0 | E64: ='Calc-1'!E61 -> 0 | F64: ='Calc-1'!F61 -> 0 | G64: ='Calc-1'!G61 -> 0 | H64: ='Calc-1'!H61 -> 0 | I64: ='Calc-1'!I61 -> 0 | J64: ='Calc-1'!J61 -> 0 | K64: ='Calc-1'!K61 -> 1157054.234 | L64: ='Calc-1'!L61 -> 1154970.939 | M64: ='Calc-1'!M61 -> 1153214.072 | N64: ='Calc-1'!N61 -> 1151777.093 | O64: ='Calc-1'!O61 -> 1150653.642 | P64: ='Calc-1'!P61 -> 1149837.537 | Q64: ='Calc-1'!Q61 -> 1149322.769 | R64: ='Calc-1'!R61 -> 1149103.499 | S64: ='Calc-1'!S61 -> 1149174.051 | T64: ='Calc-1'!T61 -> 1149528.912 | U64: ='Calc-1'!U61 -> 1150162.728 | V64: ='Calc-1'!V61 -> 1151070.296 | W64: ='Calc-1'!W61 -> 1152246.567 | X64: ='Calc-1'!X61 -> 1153686.637 | Y64: ='Calc-1'!Y61 -> 1155385.745 | Z64: ='Calc-1'!Z61 -> 1157339.274 | AA64: ='Calc-1'!AA61 -> 1159542.74 | AB64: ='Calc-1'!AB61 -> 1161991.797 | AC64: ='Calc-1'!AC61 -> 1164682.227 | AD64: ='Calc-1'!AD61 -> 1167609.943 | AE64: ='Calc-1'!AE61 -> 1170770.98 | AF64: ='Calc-1'!AF61 -> 1174161.498 | AG64: ='Calc-1'!AG61 -> 1177777.776 | AH64: ='Calc-1'!AH61 -> 1181616.21 | AI64: ='Calc-1'!AI61 -> 1185673.31 | AJ64: ='Calc-1'!AJ61 -> 1189945.697 | AK64: ='Calc-1'!AK61 -> 1194430.103 | AL64: ='Calc-1'!AL61 -> 1199123.365 | AM64: ='Calc-1'!AM61 -> 1204022.427 | AN64: ='Calc-1'!AN61 -> 1209124.332
B65: Vehicle Operating Cost Savings | C65: =SUM(D65:AD65)/10^6 -> 3.353151182 | D65: ='Calc-2'!D55 -> 0 | E65: ='Calc-2'!E55 -> 0 | F65: ='Calc-2'!F55 -> 0 | G65: ='Calc-2'!G55 -> 0 | H65: ='Calc-2'!H55 -> 0 | I65: ='Calc-2'!I55 -> 0 | J65: ='Calc-2'!J58 -> 0 | K65: ='Calc-2'!K58 -> 202336.94 | L65: ='Calc-2'!L58 -> 198178.2605 | M65: ='Calc-2'!M58 -> 194097.4762 | N65: ='Calc-2'!N58 -> 190043.5813 | O65: ='Calc-2'!O58 -> 186343.1183 | P65: ='Calc-2'!P58 -> 182927.0115 | Q65: ='Calc-2'!Q58 -> 179192.5574 | R65: ='Calc-2'!R58 -> 175502.6019 | S65: ='Calc-2'!S58 -> 171893.3955 | T65: ='Calc-2'!T58 -> 168288.593 | U65: ='Calc-2'!U58 -> 164832.9422 | V65: ='Calc-2'!V58 -> 161446.7438 | W65: ='Calc-2'!W58 -> 158210.7868 | X65: ='Calc-2'!X58 -> 154855.2523 | Y65: ='Calc-2'!Y58 -> 151711.3997 | Z65: ='Calc-2'!Z58 -> 148606.7982 | AA65: ='Calc-2'!AA58 -> 145476.3072 | AB65: ='Calc-2'!AB58 -> 142587.5833 | AC65: ='Calc-2'!AC58 -> 139758.4646 | AD65: ='Calc-2'!AD58 -> 136861.3688 | AE65: ='Calc-2'!AE58 -> 134122.6232 | AF65: ='Calc-2'!AF58 -> 131345.9637 | AG65: ='Calc-2'!AG58 -> 128516.1866 | AH65: ='Calc-2'!AH58 -> 125811.2242 | AI65: ='Calc-2'!AI58 -> 123140.8321 | AJ65: ='Calc-2'!AJ58 -> 120539.582 | AK65: ='Calc-2'!AK58 -> 117994.3127 | AL65: ='Calc-2'!AL58 -> 115503.7976 | AM65: ='Calc-2'!AM58 -> 113066.8373 | AN65: ='Calc-2'!AN58 -> 110682.2593
B66: Highway Use Cost Savings | C66: =SUM(D66:AD66)/10^6 -> 0.8697334744 | D66: ='Calc-5'!D46 -> 0 | E66: ='Calc-5'!E46 -> 0 | F66: ='Calc-5'!F46 -> 0 | G66: ='Calc-5'!G46 -> 0 | H66: ='Calc-5'!H46 -> 0 | I66: ='Calc-5'!I46 -> 0 | J66: ='Calc-5'!J46 -> 0 | K66: ='Calc-5'!K46 -> 54008.45296 | L66: ='Calc-5'!L46 -> 52738.31621 | M66: ='Calc-5'!M46 -> 51498.04973 | N66: ='Calc-5'!N46 -> 50286.95105 | O66: ='Calc-5'!O46 -> 49104.33423 | P66: ='Calc-5'!P46 -> 47949.52945 | Q66: ='Calc-5'!Q46 -> 46821.88263 | R66: ='Calc-5'!R46 -> 45720.75511 | S66: ='Calc-5'!S46 -> 44645.52321 | T66: ='Calc-5'!T46 -> 43595.57793 | U66: ='Calc-5'!U46 -> 42570.32461 | V66: ='Calc-5'!V46 -> 41569.18254 | W66: ='Calc-5'!W46 -> 40591.58471 | X66: ='Calc-5'!X46 -> 39636.9774 | Y66: ='Calc-5'!Y46 -> 38704.81995 | Z66: ='Calc-5'!Z46 -> 37794.58439 | AA66: ='Calc-5'!AA46 -> 36905.75517 | AB66: ='Calc-5'!AB46 -> 36037.82888 | AC66: ='Calc-5'!AC46 -> 35190.31394 | AD66: ='Calc-5'!AD46 -> 34362.73031 | AE66: ='Calc-5'!AE46 -> 33554.60928 | AF66: ='Calc-5'!AF46 -> 32765.49313 | AG66: ='Calc-5'!AG46 -> 31994.93491 | AH66: ='Calc-5'!AH46 -> 31242.4982 | AI66: ='Calc-5'!AI46 -> 30507.75682 | AJ66: ='Calc-5'!AJ46 -> 29790.29462 | AK66: ='Calc-5'!AK46 -> 29089.70525 | AL66: ='Calc-5'!AL46 -> 28405.59189 | AM66: ='Calc-5'!AM46 -> 27737.56709 | AN66: ='Calc-5'!AN46 -> 27085.25247
B67: Reduction in Accident Costs | C67: =SUM(D67:AD67)/10^6 -> 4.678926585 | D67: ='Calc-3'!D71 -> 0 | E67: ='Calc-3'!E71 -> 0 | F67: ='Calc-3'!F71 -> 0 | G67: ='Calc-3'!G71 -> 0 | H67: ='Calc-3'!H71 -> 0 | I67: ='Calc-3'!I71 -> 0 | J67: ='Calc-3'!J71 -> 0 | K67: ='Calc-3'!K71 -> 289589.5536 | L67: ='Calc-3'!L71 -> 282886.657 | M67: ='Calc-3'!M71 -> 276338.907 | N67: ='Calc-3'!N71 -> 269942.7125 | O67: ='Calc-3'!O71 -> 263694.5656 | P67: ='Calc-3'!P71 -> 257591.0395 | Q67: ='Calc-3'!Q71 -> 251628.7868 | R67: ='Calc-3'!R71 -> 245804.5375 | S67: ='Calc-3'!S71 -> 240115.0975 | T67: ='Calc-3'!T71 -> 234557.3464 | U67: ='Calc-3'!U71 -> 229128.2361 | V67: ='Calc-3'!V71 -> 223824.789 | W67: ='Calc-3'!W71 -> 218644.0966 | X67: ='Calc-3'!X71 -> 213583.3175 | Y67: ='Calc-3'!Y71 -> 208639.6761 | Z67: ='Calc-3'!Z71 -> 203810.4613 | AA67: ='Calc-3'!AA71 -> 199093.0244 | AB67: ='Calc-3'!AB71 -> 194484.7782 | AC67: ='Calc-3'!AC71 -> 189983.1954 | AD67: ='Calc-3'!AD71 -> 185585.8071 | AE67: ='Calc-3'!AE71 -> 181290.2017 | AF67: ='Calc-3'!AF71 -> 177094.0231 | AG67: ='Calc-3'!AG71 -> 172994.9701 | AH67: ='Calc-3'!AH71 -> 168990.7947 | AI67: ='Calc-3'!AI71 -> 165079.3006 | AJ67: ='Calc-3'!AJ71 -> 161258.3427 | AK67: ='Calc-3'!AK71 -> 157525.8255 | AL67: ='Calc-3'!AL71 -> 153879.7019 | AM67: ='Calc-3'!AM71 -> 150317.9722 | AN67: ='Calc-3'!AN71 -> 146838.6829
B68: Pedestrian Benefits | C68: =SUM(D68:AD68)/10^6 -> 0.0997992269 | D68: ='Calc-6'!D24 -> 0 | E68: ='Calc-6'!E24 -> 0 | F68: ='Calc-6'!F24 -> 0 | G68: ='Calc-6'!G24 -> 0 | H68: ='Calc-6'!H24 -> 0 | I68: ='Calc-6'!I24 -> 0 | J68: ='Calc-6'!J24 -> 0 | K68: ='Calc-6'!K24 -> 6168.916679 | L68: ='Calc-6'!L24 -> 6027.012158 | M68: ='Calc-6'!M24 -> 5888.371888 | N68: ='Calc-6'!N24 -> 5752.920781 | O68: ='Calc-6'!O24 -> 5620.585476 | P68: ='Calc-6'!P24 -> 5491.294301 | Q68: ='Calc-6'!Q24 -> 5364.977229 | R68: ='Calc-6'!R24 -> 5241.565849 | S68: ='Calc-6'!S24 -> 5120.993318 | T68: ='Calc-6'!T24 -> 5003.194336 | U68: ='Calc-6'!U24 -> 4888.105102 | V68: ='Calc-6'!V24 -> 4775.663283 | W68: ='Calc-6'!W24 -> 4665.80798 | X68: ='Calc-6'!X24 -> 4558.479695 | Y68: ='Calc-6'!Y24 -> 4453.620299 | Z68: ='Calc-6'!Z24 -> 4351.172999 | AA68: ='Calc-6'!AA24 -> 4251.08231 | AB68: ='Calc-6'!AB24 -> 4153.294022 | AC68: ='Calc-6'!AC24 -> 4057.755173 | AD68: ='Calc-6'!AD24 -> 3964.414019 | AE68: ='Calc-6'!AE24 -> 3873.220005 | AF68: ='Calc-6'!AF24 -> 3784.123741 | AG68: ='Calc-6'!AG24 -> 3697.076971 | AH68: ='Calc-6'!AH24 -> 3612.032552 | AI68: ='Calc-6'!AI24 -> 3528.944422 | AJ68: ='Calc-6'!AJ24 -> 3447.767581 | AK68: ='Calc-6'!AK24 -> 3368.458063 | AL68: ='Calc-6'!AL24 -> 3290.972914 | AM68: ='Calc-6'!AM24 -> 3215.270168 | AN68: ='Calc-6'!AN24 -> 3141.308823
B69: Environmental Cost Savings | C69: =SUM(D69:AD69)/10^6 -> 0.3051067522 | D69: ='Calc-4'!D190 -> 0 | E69: ='Calc-4'!E190 -> 0 | F69: ='Calc-4'!F190 -> 0 | G69: ='Calc-4'!G190 -> 0 | H69: ='Calc-4'!H190 -> 0 | I69: ='Calc-4'!I190 -> 0 | J69: ='Calc-4'!J190 -> 0 | K69: ='Calc-4'!K190 -> 17291.76216 | L69: ='Calc-4'!L190 -> 16762.11854 | M69: ='Calc-4'!M190 -> 16393.24502 | N69: ='Calc-4'!N190 -> 15842.29849 | O69: ='Calc-4'!O190 -> 15301.736 | P69: ='Calc-4'!P190 -> 15208.35791 | Q69: ='Calc-4'!Q190 -> 15117.74358 | R69: ='Calc-4'!R190 -> 15029.82103 | S69: ='Calc-4'!S190 -> 14944.51614 | T69: ='Calc-4'!T190 -> 14861.75272 | U69: ='Calc-4'!U190 -> 14926.80863 | V69: ='Calc-4'!V190 -> 14846.88687 | W69: ='Calc-4'!W190 -> 14769.32249 | X69: ='Calc-4'!X190 -> 14694.03001 | Y69: ='Calc-4'!Y190 -> 14620.92244 | Z69: ='Calc-4'!Z190 -> 14682.61501 | AA69: ='Calc-4'!AA190 -> 14747.31188 | AB69: ='Calc-4'!AB190 -> 14950.67022 | AC69: ='Calc-4'!AC190 -> 15020.81154 | AD69: ='Calc-4'!AD190 -> 15094.02151 | AE69: ='Calc-4'!AE190 -> 15170.30645 | AF69: ='Calc-4'!AF190 -> 15249.67204 | AG69: ='Calc-4'!AG190 -> 15332.12332 | AH69: ='Calc-4'!AH190 -> 15417.66474 | AI69: ='Calc-4'!AI190 -> 15638.56895 | AJ69: ='Calc-4'!AJ190 -> 15621.16662 | AK69: ='Calc-4'!AK190 -> 15607.48435 | AL69: ='Calc-4'!AL190 -> 15597.44658 | AM69: ='Calc-4'!AM190 -> 15590.97992 | AN69: ='Calc-4'!AN190 -> 15588.01303
B70: Agency Cost Savings | C70: 0.7268001099 | D70: ='Calc-Costs'!D38 -> 0 | E70: ='Calc-Costs'!E38 -> 0 | F70: ='Calc-Costs'!F38 -> 0 | G70: ='Calc-Costs'!G38 -> 0 | H70: ='Calc-Costs'!H38 -> 0 | I70: ='Calc-Costs'!I38 -> 0 | J70: ='Calc-Costs'!J38 -> 726800.1099 | K70: ='Calc-Costs'!K38 -> 0 | L70: ='Calc-Costs'!L38 -> 0 | M70: ='Calc-Costs'!M38 -> 0 | N70: ='Calc-Costs'!N38 -> 0 | O70: ='Calc-Costs'!O38 -> 0 | P70: ='Calc-Costs'!P38 -> 0 | Q70: ='Calc-Costs'!Q38 -> 0 | R70: ='Calc-Costs'!R38 -> 0 | S70: ='Calc-Costs'!S38 -> 0 | T70: ='Calc-Costs'!T38 -> 0 | U70: ='Calc-Costs'!U38 -> 0 | V70: ='Calc-Costs'!V38 -> 0 | W70: ='Calc-Costs'!W38 -> 0 | X70: ='Calc-Costs'!X38 -> 0 | Y70: ='Calc-Costs'!Y38 -> 0 | Z70: ='Calc-Costs'!Z38 -> 0 | AA70: ='Calc-Costs'!AA38 -> 0 | AB70: ='Calc-Costs'!AB38 -> 0 | AC70: ='Calc-Costs'!AC38 -> 0 | AD70: ='Calc-Costs'!AD38 -> 0 | AE70: ='Calc-Costs'!AE38 -> 0 | AF70: ='Calc-Costs'!AF38 -> 0 | AG70: ='Calc-Costs'!AG38 -> 0 | AH70: ='Calc-Costs'!AH38 -> 0 | AI70: ='Calc-Costs'!AI38 -> 0 | AJ70: ='Calc-Costs'!AJ38 -> 0 | AK70: ='Calc-Costs'!AK38 -> 0 | AL70: ='Calc-Costs'!AL38 -> 0 | AM70: ='Calc-Costs'!AM38 -> 0 | AN70: ='Calc-Costs'!AN38 -> 0
B71: Residual Value | C71: 5.657724685 | D71: ='Calc-Costs'!D44 -> 0 | E71: ='Calc-Costs'!E44 -> 0 | F71: ='Calc-Costs'!F44 -> 0 | G71: ='Calc-Costs'!G44 -> 0 | H71: ='Calc-Costs'!H44 -> 0 | I71: ='Calc-Costs'!I44 -> 0 | J71: ='Calc-Costs'!J44 -> 0 | K71: ='Calc-Costs'!K44 -> 0 | L71: ='Calc-Costs'!L44 -> 0 | M71: ='Calc-Costs'!M44 -> 0 | N71: ='Calc-Costs'!N44 -> 0 | O71: ='Calc-Costs'!O44 -> 0 | P71: ='Calc-Costs'!P44 -> 0 | Q71: ='Calc-Costs'!Q44 -> 0 | R71: ='Calc-Costs'!R44 -> 0 | S71: ='Calc-Costs'!S44 -> 0 | T71: ='Calc-Costs'!T44 -> 0 | U71: ='Calc-Costs'!U44 -> 0 | V71: ='Calc-Costs'!V44 -> 0 | W71: ='Calc-Costs'!W44 -> 0 | X71: ='Calc-Costs'!X44 -> 0 | Y71: ='Calc-Costs'!Y44 -> 0 | Z71: ='Calc-Costs'!Z44 -> 0 | AA71: ='Calc-Costs'!AA44 -> 0 | AB71: ='Calc-Costs'!AB44 -> 0 | AC71: ='Calc-Costs'!AC44 -> 0 | AD71: ='Calc-Costs'!AD44 -> 5657724.685 | AE71: ='Calc-Costs'!AE44 -> 0 | AF71: ='Calc-Costs'!AF44 -> 0 | AG71: ='Calc-Costs'!AG44 -> 0 | AH71: ='Calc-Costs'!AH44 -> 0 | AI71: ='Calc-Costs'!AI44 -> 0 | AJ71: ='Calc-Costs'!AJ44 -> 0 | AK71: ='Calc-Costs'!AK44 -> 0 | AL71: ='Calc-Costs'!AL44 -> 0 | AM71: ='Calc-Costs'!AM44 -> 0 | AN71: ='Calc-Costs'!AN44 -> 0
B72: O&M Costs | C72: -0.4354682789 | D72: =-'Calc-Costs'!D32 -> 0 | E72: =-'Calc-Costs'!E32 -> 0 | F72: =-'Calc-Costs'!F32 -> 0 | G72: =-'Calc-Costs'!G32 -> 0 | H72: =-'Calc-Costs'!H32 -> 0 | I72: =-'Calc-Costs'!I32 -> 0 | J72: =-'Calc-Costs'!J32 -> 0 | K72: =-'Calc-Costs'!K32 -> 0 | L72: =-'Calc-Costs'!L32 -> 0 | M72: =-'Calc-Costs'!M32 -> 0 | N72: =-'Calc-Costs'!N32 -> 0 | O72: =-'Calc-Costs'!O32 -> -17368.79874 | P72: =-'Calc-Costs'!P32 -> 0 | Q72: =-'Calc-Costs'!Q32 -> 0 | R72: =-'Calc-Costs'!R32 -> 0 | S72: =-'Calc-Costs'!S32 -> 0 | T72: =-'Calc-Costs'!T32 -> -14982.47837 | U72: =-'Calc-Costs'!U32 -> 0 | V72: =-'Calc-Costs'!V32 -> 0 | W72: =-'Calc-Costs'!W32 -> 0 | X72: =-'Calc-Costs'!X32 -> 0 | Y72: =-'Calc-Costs'!Y32 -> -12924.01745 | Z72: =-'Calc-Costs'!Z32 -> 0 | AA72: =-'Calc-Costs'!AA32 -> 0 | AB72: =-'Calc-Costs'!AB32 -> 0 | AC72: =-'Calc-Costs'!AC32 -> 0 | AD72: =-'Calc-Costs'!AD32 -> -390192.9844 | AE72: =-'Calc-Costs'!AE32 -> 0 | AF72: =-'Calc-Costs'!AF32 -> 0 | AG72: =-'Calc-Costs'!AG32 -> 0 | AH72: =-'Calc-Costs'!AH32 -> 0 | AI72: =-'Calc-Costs'!AI32 -> 0 | AJ72: =-'Calc-Costs'!AJ32 -> 0 | AK72: =-'Calc-Costs'!AK32 -> 0 | AL72: =-'Calc-Costs'!AL32 -> 0 | AM72: =-'Calc-Costs'!AM32 -> 0 | AN72: =-'Calc-Costs'!AN32 -> 0
B73: =B56 -> Capital Costs | C73: =SUM(D73:AD73)/10^6 -> -16.27118342 | D73: =-'Calc-Costs'!D26 -> 0 | E73: =-'Calc-Costs'!E26 -> 0 | F73: =-'Calc-Costs'!F26 -> 0 | G73: =-'Calc-Costs'!G26 -> 0 | H73: =-'Calc-Costs'!H26 -> 0 | I73: =-'Calc-Costs'!I26 -> -6262781.86 | J73: =-'Calc-Costs'!J26 -> -10008401.56 | K73: =-'Calc-Costs'!K26 -> 0 | L73: =-'Calc-Costs'!L26 -> 0 | M73: =-'Calc-Costs'!M26 -> 0 | N73: =-'Calc-Costs'!N26 -> 0 | O73: =-'Calc-Costs'!O26 -> 0 | P73: =-'Calc-Costs'!P26 -> 0 | Q73: =-'Calc-Costs'!Q26 -> 0 | R73: =-'Calc-Costs'!R26 -> 0 | S73: =-'Calc-Costs'!S26 -> 0 | T73: =-'Calc-Costs'!T26 -> 0 | U73: =-'Calc-Costs'!U26 -> 0 | V73: =-'Calc-Costs'!V26 -> 0 | W73: =-'Calc-Costs'!W26 -> 0 | X73: =-'Calc-Costs'!X26 -> 0 | Y73: =-'Calc-Costs'!Y26 -> 0 | Z73: =-'Calc-Costs'!Z26 -> 0 | AA73: =-'Calc-Costs'!AA26 -> 0 | AB73: =-'Calc-Costs'!AB26 -> 0 | AC73: =-'Calc-Costs'!AC26 -> 0 | AD73: =-'Calc-Costs'!AD26 -> 0 | AE73: =-'Calc-Costs'!AE26 -> 0 | AF73: =-'Calc-Costs'!AF26 -> 0 | AG73: =-'Calc-Costs'!AG26 -> 0 | AH73: =-'Calc-Costs'!AH26 -> 0 | AI73: =-'Calc-Costs'!AI26 -> 0 | AJ73: =-'Calc-Costs'!AJ26 -> 0 | AK73: =-'Calc-Costs'!AK26 -> 0 | AL73: =-'Calc-Costs'!AL26 -> 0 | AM73: =-'Calc-Costs'!AM26 -> 0 | AN73: =-'Calc-Costs'!AN26 -> 0
B74: Total Benefits | C74: =SUM(D74:AD74)/10^6 -> 38.77959672 | D74: =SUM(D64:D71) -> 0 | E74: 0 | F74: 0 | G74: 0 | H74: 0 | I74: 0 | J74: 726800.1099 | K74: 1726449.859 | L74: 1711563.303 | M74: 1697430.122 | N74: 1683645.557 | O74: 1670717.982 | P74: 1659004.77 | Q74: 1647448.717 | R74: 1636402.78 | S74: 1625893.576 | T74: 1615835.376 | U74: 1606509.144 | V74: 1597533.562 | W74: 1589128.166 | X74: 1581014.693 | Y74: 1573516.184 | Z74: 1566584.906 | AA74: 1560016.221 | AB74: 1554205.952 | AC74: 1548692.768 | AD74: 7201202.97 | AE74: 1538781.941 | AF74: 1534400.774 | AG74: 1530313.068 | AH74: 1526690.424 | AI74: 1523568.713 | AJ74: 1520602.85 | AK74: 1518015.889 | AL74: 1515800.876 | AM74: =SUM(AM64:AM71) -> 1513951.054 | AN74: 1512459.849
B75: Total Costs | C75: =SUM(D75:AD75)/10^6 -> -16.7066517 | D75: =SUM(D72:D73) -> 0 | E75: =SUM(E72:E73) -> 0 | F75: =SUM(F72:F73) -> 0 | G75: 0 | H75: 0 | I75: -6262781.86 | J75: -10008401.56 | K75: 0 | L75: 0 | M75: 0 | N75: 0 | O75: -17368.79874 | P75: 0 | Q75: 0 | R75: 0 | S75: 0 | T75: -14982.47837 | U75: 0 | V75: 0 | W75: 0 | X75: 0 | Y75: -12924.01745 | Z75: 0 | AA75: 0 | AB75: 0 | AC75: =SUM(AC72:AC73) -> 0 | AD75: -390192.9844 | AE75: 0 | AF75: 0 | AG75: 0 | AH75: 0 | AI75: 0 | AJ75: 0 | AK75: 0 | AL75: 0 | AM75: =SUM(AM72:AM73) -> 0 | AN75: 0
B76: Net Impacts | C76: =SUM(D76:AD76)/10^6 -> 22.07294502 | D76: =SUM(D64:D73) -> 0 | E76: 0 | F76: 0 | G76: 0 | H76: 0 | I76: -6262781.86 | J76: -9281601.448 | K76: 1726449.859 | L76: 1711563.303 | M76: 1697430.122 | N76: 1683645.557 | O76: 1653349.183 | P76: 1659004.77 | Q76: 1647448.717 | R76: 1636402.78 | S76: 1625893.576 | T76: 1600852.898 | U76: 1606509.144 | V76: 1597533.562 | W76: 1589128.166 | X76: 1581014.693 | Y76: 1560592.166 | Z76: 1566584.906 | AA76: 1560016.221 | AB76: 1554205.952 | AC76: 1548692.768 | AD76: 6811009.986 | AE76: 1538781.941 | AF76: 1534400.774 | AG76: 1530313.068 | AH76: 1526690.424 | AI76: 1523568.713 | AJ76: 1520602.85 | AK76: 1518015.889 | AL76: 1515800.876 | AM76: =SUM(AM64:AM73) -> 1513951.054 | AN76: 1512459.849
B77: Cumulative Net Impacts | D77: =D76 -> 0 | E77: =D77+E76 -> 0 | F77: =E77+F76 -> 0 | G77: 0 | H77: 0 | I77: -6262781.86 | J77: -15544383.31 | K77: -13817933.45 | L77: -12106370.14 | M77: -10408940.02 | N77: -8725294.466 | O77: -7071945.283 | P77: -5412940.513 | Q77: -3765491.796 | R77: -2129089.016 | S77: -503195.4398 | T77: 1097657.458 | U77: 2704166.603 | V77: 4301700.164 | W77: 5890828.33 | X77: 7471843.023 | Y77: 9032435.19 | Z77: 10599020.1 | AA77: 12159036.32 | AB77: 13713242.27 | AC77: =AB77+AC76 -> 15261935.04 | AD77: =AC77+AD76 -> 22072945.02 | AE77: =AD77+AE76 -> 23611726.96 | AF77: =AE77+AF76 -> 25146127.74 | AG77: =AF77+AG76 -> 26676440.8 | AH77: =AG77+AH76 -> 28203131.23 | AI77: =AH77+AI76 -> 29726699.94 | AJ77: =AI77+AJ76 -> 31247302.79 | AK77: =AJ77+AK76 -> 32765318.68 | AL77: =AK77+AL76 -> 34281119.56 | AM77: =AL77+AM76 -> 35795070.61 | AN77: =AM77+AN76 -> 37307530.46
A79: RESULTS FOR 30 YEARS OF PROJECT OPERATIONS
B81: All values are in 2020$ millions
B82: Benefit Category | C82: Impact # | D82: Over Years 2024-2045 (30 Years of Operations)
D83: Undiscounted | E83: 0.07 | F83: 0.03
B84: Travel Time Savings | C84: 1 | D84: =(SUM(D30:AN30))/10^6 -> 66.4719825 | E84: =(SUM(D47:AN47))/10^6 -> 16.83192489 | F84: =(SUM(D64:AN64))/10^6 -> 34.9750004
B85: Vehicle Operating Cost Savings | C85: 2 | D85: =(SUM(D31:AN31))/10^6 -> 8.274050464 | E85: =(SUM(D48:AN48))/10^6 -> 2.33888336 | F85: =(SUM(D65:AN65))/10^6 -> 4.573874801
B86: Highway Use Cost Savings | C86: 5 | D86: 2.105820562 | E86: 0.6041463266 | F86: 1.171907178
B87: Reduction in Accident Costs | C87: 3 | D87: 11.35557876 | E87: 3.251875014 | F87: 6.314196401
B88: Pedestrian Benefits | C88: 6 | D88: 0.2424303243 | E88: 0.06937525005 | F88: 0.1347584021
B89: Environmental Cost Savings | C89: 4 | D89: 0.8697566698 | E89: 0.3867629793 | F89: 0.4599201782
B90: Agency Cost Savings | C90: 5 | D90: 0.8425605246 | E90: 0.6007340094 | F90: 0.7268001099
B91: Residual Value | C91: 5 | D91: 11.84601908 | E91: 2.182619272 | F91: 5.657724685
B92: O&M Costs | C92: 5 | D92: -0.8870040984 | E92: -0.1768857861 | F92: -0.4354682789
B93: Capital Costs | C93: 5 | D93: -18.65129661 | E93: -13.64991631 | F93: -16.27118342
B94: NPV | D94: =SUM(D84:D93) -> 82.46989818 | E94: =SUM(E84:E93) -> 12.43951901 | F94: =SUM(F84:F93) -> 37.30753046
B96: All values are in 2020$ millions | D96: Over Years 2024-2055 (30 Years of Operations)
B97: Financial Metrics | D97: Undiscounted | E97: 0.07 | F97: 0.03
B98: Total Benefits | D98: =(SUM(D40:AN40))/10^6 -> 102.0081989 | E98: =(SUM(D57:AN57))/10^6 -> 26.2663211 | F98: =(SUM(D74:AN74))/10^6 -> 54.01418216
B99: Total O&M Costs | D99: =(-SUM(D38:AN38)/10^6) -> 0.8870040984 | E99: =-(SUM(D55:AN55)/10^6) -> 0.1768857861 | F99: =-(SUM(D72:AN72)/10^6) -> 0.4354682789
B100: Total Capital Costs | D100: =((-SUM(D39:AN39))/10^6) -> 18.65129661 | E100: =((-SUM(D56:AN56))/10^6) -> 13.64991631 | F100: =(-SUM(D73:AN73))/10^6 -> 16.27118342
B101: NPV | D101: =D94 -> 82.46989818 | E101: =E94 -> 12.43951901 | F101: =F94 -> 37.30753046
B102: ROI | D102: =IFERROR(D101/D100,"-") -> 4.421671045 | E102: =IFERROR(E101/E100,"-") -> 0.9113256614 | F102: =IFERROR(F101/F100,"-") -> 2.292859069
B103: BC Ratio | D103: =IFERROR((D98-D99)/D100,"-") -> 5.421671045 | E103: =IFERROR((E98-E99)/E100,"-") -> 1.911325661 | F103: =IFERROR((F98-F99)/F100,"-") -> 3.292859069
B104: IRR | D104: =IFERROR(IRR(I42:AN42),"-") -> 0.1331976688

Sheet Report Tables _Main
A2: Table ES-1
A3: Current Status or Baseline & Problems to be Addressed | B3: Changes to Baseline / Alternatives | C3: Type of Impacts | D3: Population Affected by Impacts | E3: Economic Benefit/Impact | F3: Benefit Value, $ Millions
A4: Improvements to the I-44/US-75 interchange area are needed to address the growth occurring in the Tulsa metropolitan area as well as congestion and frequent collisions in the corridor. One of the challenges is maintaining and enhancing access, community connectivity, mobility and safety for residents of local neighborhoods while making improvements to this major regional interchange. Some communities still face gaps in connectivity within their transportation networks. | B4: ODOT) proposes to reconstruct portions W. 51st Street by constructing an extension under US-75 connecting eastern and western parts of the roadway as well as implementing other improvements and upgrades on W. 51st Street east of Union Avenue. The Project will reconnect portions of W. 51st Street and the community bisected by the original construction of the highway. It will reduce distances for pedestrians and vehicular traffic, walk time and vehicle travel time on W. 51st Street for trips between locations on the east and west side of US-75 while new bridges and ramps will improve vehicle flow around the interchange and reduce peak-hour delays at intersections. The Project will also enhance comfort and safety for pedestrians, connectivity to amenities and destinations on both sides of US-75, such as grocery stores, local library, churches, transit network, or recreation areas around the Arkansas River. | C4: Economic Competitiveness: Travel time savings | D4: Auto Users, Truck Operators | E4: Travel time savings to local traffic due to shorter distances on W. 51st Street, improved traffic circulation, reduced delays at intersections | F4: =Results!E6 -> 13.09512853
C5: Economic Competitiveness: Vehicle operating cost savings | D5: Auto Users, Truck Operators | E5: Vehicle operating cost savings due to shorter distances on W. 51st Street, reduced delays at intersections/less fuel use | F5: =Results!E7 -> 1.952119115
C6: Economic Competitiveness: External highway use cost savings | D6: Residents in the communities around W. 51st Street | E6: Reduction in VMT, road congestion and noise. | F6: =Results!E8 -> 0.5083355285
C7: Safety Benefits: Reduction in accident costs | D7: Auto Users, Truck Operators, society | E7: Reduction in number of crashes, injuries, property losses due to reduced VMT and roadway safety improvements | F7: =Results!E9 -> 2.733438197
C8: Quality of Life: Pedestrian Benefits | D8: Residents in the communities around W. 51st Street; pedestrians, cyclists | E8: Improved comfort and safety to pedestrians using W. 51st Street due to sidewalks and other improvements on W. 51st Street | F8: =Results!E10 -> 0.05829249343
C9: Environmental Sustainability: Emissions costs savings | D9: Residents of Tulsa | E9: Reduced vehicle emissions and emissions costs due to shorter distances on W. 51st Street, reduced delays at intersections/less fuel use | F9: =Results!E11 -> 0.2621125158
C10: Agency Costs Savings | D10: City of Tulsa, ODOT | E10: Savings in major rehab work that would have to be undertaken in the absence of Project. | F10: =Results!E12 -> 0.6007340094
C11: Residual Value of Project Assets | D11: City of Tulsa, ODOT | E11: Value of investment remaining at the end of analysis period | F11: =Results!E13 -> 2.182619272
A14: Table ES-2
A15: Project Evaluation Metric | B15: Undiscounted | C15: Present Value at 7% Discount Rate | D15: Present Value at 3% Discount Rate
A16: Total Benefits | B16: =Results!D20 -> 64.36135205 | C16: =Results!E20 -> 21.39277966 | D16: =Results!F20 -> 38.77959672
A17: Total O&M Costs | B17: =Results!D21 -> 0.8870040984 | C17: =Results!E21 -> 0.1768857861 | D17: =Results!F21 -> 0.4354682789
A18: Total Costs | B18: =Results!D22 -> 18.65129661 | C18: =Results!E22 -> 13.64991631 | D18: =Results!F22 -> 16.27118342
A19: Net Present Value | B19: =Results!D23 -> 44.82305134 | C19: =Results!E23 -> 7.565977567 | D19: =Results!F23 -> 22.07294502
A20: Benefit / Cost Ratio | B20: =Results!D25 -> 3.40321369 | C20: =Results!E25 -> 1.554287469 | D20: =Results!F25 -> 2.356566665
A21: Internal Rate of Return (%) | B21: =Results!D26 -> 0.1214416201
A24: Table 1
B25: Over the Project Lifecycle
B26: In Constant Dollars | C26: Discounted at 7 Percent | D26: Discounted at 3 Percent
A27: Construction & Development Costs | B27: =Results!D22 -> 18.65129661 | C27: =Results!E22 -> 13.64991631 | D27: =Results!F22 -> 16.27118342
A28: Operations and Maintenance | B28: =Results!D21 -> 0.8870040984 | C28: =Results!E21 -> 0.1768857861 | D28: =Results!F21 -> 0.4354682789
A29: Total | B29: =SUM(B27:B28) -> 19.53830071 | C29: =SUM(C27:C28) -> 13.82680209 | D29: =SUM(D27:D28) -> 16.7066517
A32: Table 3
A33: Origin-Destination Pair | B33: Average Daily Traffic (ADT) | D33: Rate of Growth | E33: Share of Trucks
B34: 2016 | C34: 2045 | D34: Average Annual | E34: Percent (%)
A35: W. 51st Street East – Union Ave North | B35: ='Vehicle Traffic'!G20 -> 1280 | C35: ='Vehicle Traffic'!H20 -> 1600 | D35: =(C35/B35)^(1/(2045-2016))-1 -> 0.007724284768 | E35: =E37 -> 0.08
A36: W. 51st Street East – Union Ave South & 51st Street West of US 75 | B36: ='Vehicle Traffic'!G21 -> 3520 | C36: ='Vehicle Traffic'!H21 -> 4160 | D36: =(C36/B36)^(1/(2045-2016))-1 -> 0.00577710918 | E36: =E37 -> 0.08
A37: Total | B37: =B35+B36 -> 4800 | C37: =C35+C36 -> 5760 | D37: 0.006306754587 | E37: =ShareTruck -> 0.08
A40: Table 4: Number of Walk Trips in US
B41: To/From Work (Work trips) | C41: Work-related Business | D41: Shopping and Errands | E41: School or Church | F41: Social and Recreation | G41: Other / Miscellaneous | H41: Total
A42: Number of Trips (Millions) | B42: ='Pedestrian Traffic'!I18 -> 2523 | C42: ='Pedestrian Traffic'!J18 -> 510 | D42: ='Pedestrian Traffic'!K18 -> 11496 | E42: ='Pedestrian Traffic'!L18 -> 4146 | F42: ='Pedestrian Traffic'!M18 -> 18483 | G42: ='Pedestrian Traffic'!N18 -> 1790 | H42: =SUM(B42:G42) -> 38948
A43: Distribution | B43: ='Pedestrian Traffic'!I19 -> 0.06477867926 | C43: ='Pedestrian Traffic'!J19 -> 0.01309438225 | D43: ='Pedestrian Traffic'!K19 -> 0.2951627811 | E43: ='Pedestrian Traffic'!L19 -> 0.1064496251 | F43: ='Pedestrian Traffic'!M19 -> 0.474555818 | G43: ='Pedestrian Traffic'!N19 -> 0.04595871418
A44: As Trip Ratio to Work Trips – “Walk Multipliers” | B44: ='Pedestrian Traffic'!I20 -> 1 | C44: ='Pedestrian Traffic'!J20 -> 0.2021403092 | D44: ='Pedestrian Traffic'!K20 -> 4.55648038 | E44: ='Pedestrian Traffic'!L20 -> 1.643281807 | F44: ='Pedestrian Traffic'!M20 -> 7.325802616 | G44: ='Pedestrian Traffic'!N20 -> 0.7094728498
A46: Table 5: Number of Walk Trips on 51st Street
A47: Purpose | B47: Average Daily Number
A48: Work | B48: ='Pedestrian Traffic'!C38 -> 17.016
A49: Transit Access When Going to/from Work | B49: ='Pedestrian Traffic'!C39 -> 12.35787
A50: Work-related business | B50: ='Pedestrian Traffic'!C40 -> 0
A51: Shopping and Errands | B51: ='Pedestrian Traffic'!C41 -> 29.07490131
A52: School or Church | B52: ='Pedestrian Traffic'!C42 -> 4.194312485
A53: Social and Recreation | B53: ='Pedestrian Traffic'!C43 -> 31.16396433
A54: Other | B54: ='Pedestrian Traffic'!C44 -> 3.018097503
A55: Total | B55: =SUM(B48:B54) -> 96.82514562
A58: Table 6: Travel Distances and Travel Times
A59: Origin-Destination | C59: Distance (miles) - Build | D59: Travel Time (s) - Build | E59: Distance (miles) - No Build | F59: Travel Time (s) - No Build | G59: Daily Traffic Volume (2016) | H59: Daily Traffic Volume (2045)
A60: 51st East | B60: Union North | C60: ='Vehicle Traffic'!C20 -> 0.57 | D60: ='Vehicle Traffic'!D20 -> 58.62857143 | E60: ='Vehicle Traffic'!E20 -> 0.57 | F60: ='Vehicle Traffic'!F20 -> 82.08 | G60: ='Vehicle Traffic'!G20 -> 1280 | H60: ='Vehicle Traffic'!H20 -> 1600
A61: 51st East | B61: Union South/51st West | C61: ='Vehicle Traffic'!C21 -> 0.4 | D61: ='Vehicle Traffic'!D21 -> 41.14285714 | E61: ='Vehicle Traffic'!E21 -> 0.73 | F61: ='Vehicle Traffic'!F21 -> 98.12571429 | G61: ='Vehicle Traffic'!G21 -> 3520 | H61: ='Vehicle Traffic'!H21 -> 4160
A64: Table 7: Intersection Delays
A65: Time Period | B65: Model | C65: Total Daily Delay (hr) | D65: Total Delay/Vehicle (seconds) | E65: Fuel Used (gal)
A67: 2016 AM | B67: No Build | C67: ='Vehicle Traffic'!C7 -> 15.5 | D67: ='Vehicle Traffic'!D7 -> 24.9 | E67: ='Vehicle Traffic'!I7 -> 73.8
B68: Build | C68: ='Vehicle Traffic'!C8 -> 12.7 | D68: ='Vehicle Traffic'!D8 -> 21.5 | E68: ='Vehicle Traffic'!I8 -> 66.8
A69: 2016 PM | B69: No Build | C69: ='Vehicle Traffic'!C9 -> 25.5 | D69: ='Vehicle Traffic'!D9 -> 35 | E69: ='Vehicle Traffic'!I9 -> 86.8
B70: Build | C70: ='Vehicle Traffic'!C10 -> 19.3 | D70: ='Vehicle Traffic'!D10 -> 27.8 | E70: ='Vehicle Traffic'!I10 -> 80.1
A71: 2045 AM | B71: No Build | C71: ='Vehicle Traffic'!C11 -> 35.2 | D71: ='Vehicle Traffic'!D11 -> 44.1 | E71: ='Vehicle Traffic'!I11 -> 97.5
B72: Build | C72: ='Vehicle Traffic'!C12 -> 21.2 | D72: ='Vehicle Traffic'!D12 -> 28.3 | E72: ='Vehicle Traffic'!I12 -> 85.5
A73: 2045 PM | B73: No Build | C73: ='Vehicle Traffic'!C13 -> 78.5 | D73: ='Vehicle Traffic'!D13 -> 83.2 | E73: ='Vehicle Traffic'!I13 -> 117.3
B74: Build | C74: ='Vehicle Traffic'!C14 -> 33.2 | D74: ='Vehicle Traffic'!D14 -> 37.8 | E74: ='Vehicle Traffic'!I14 -> 100.5
A77: Table 8
A78: Variable Name | B78: Units | C78: Value | D78: Source
A79: Average Vehicle Occupancy – Auto | B79: persons/vehicle | C79: =Avg_Veh_Occ -> 1.67 | D79: US DOT, Benefit-Cost Analysis Guidance for Discretionary Grants Program, March 2022 Revised; Table A-4.
A80: Average Vehicle Occupancy – Truck | B80: persons/vehicle | C80: =Inputs!D129 -> 1
A81: Value of Time – Auto (All Purpose Travel) | B81: $/hour | C81: =Inputs!D135 -> 17.8 | D81: US DOT, Benefit-Cost Analysis Guidance for Discretionary Grants Program, March 2022 Revised; Table A-3
A82: Value of Time – Truck | B82: $/hour | C82: =TimeValue_truck -> 32
A83: Share of Trucks in Total Traffic | B83: Percent | C83: =ShareTruck -> 0.08 | D83: Transportation model for I-44 & US-75 area; Garver.
A86: Table 9: Assumptions for Vehicle Operating Costs Savings
A87: Variable Name | B87: Units | C87: Value | D87: Source
A88: Vehicle Operating Cost – Light Duty Vehicles | B88: $/mile | C88: =OperatingCost_Passenger -> 0.45 | D88: US DOT, Benefit-Cost Analysis Guidance for Discretionary Grants Program, March 2022 Revised, Table A-5.
A89: Vehicle Operating Cost – Commercial Trucks | B89: $/mile | C89: =OperatingCost_Trucks -> 0.94
A90: Fuel Price – Motor Gasoline (Net of Federal and State Tax), 2030 | B90: $/gallon | C90: =Inputs!D94 -> 2.386133045 | D90: Energy Information Agency, Annual Energy Outlook 2022, March 2022. Prices vary by year, value shown is for 2030 adjusted from 2021 dollars to 2020 dollars using a GDP deflator.
A91: Fuel Price – Diesel Fuel (net of Federal and State Tax), 2030 | B91: $/gallon | C91: =Inputs!D95 -> 3.054678647
A94: Table 10: External Highway Use Costs
A95: Variable Name | B95: Cost per Vehicle Mile Travelled | E95: Source
B96: Congestion | C96: Noise | D96: Total
A97: Light-Duty Vehicles - Urban | B97: ='US DOT BCA Guidance'!C230 -> 0.124 | C97: ='US DOT BCA Guidance'!D230 -> 0.0017 | D97: =B97+C97 -> 0.1257 | E97: US DOT, Benefit-Cost Analysis Guidance for Discretionary Grants Program, March 2022 Revised; Table A-13
A98: Buses and Trucks - Urban | B98: ='US DOT BCA Guidance'!C235 -> 0.212 | C98: ='US DOT BCA Guidance'!D235 -> 0.0197 | D98: =B98+C98 -> 0.2317
A101: Table 11: Assumptions for Safety Benefits
A102: Variable Name | B102: Unit | C102: Value | D102: Source
A103: Accident Costs
A104: Fatality | B104: $/victim | C104: =AccidentCost_Fatality -> 11600000 | D104: US DOT, Benefit-Cost Analysis Guidance for Discretionary Grants Program, March 2022; Table A-1
A105: Suspected Serious Injury | B105: $/victim | C105: =Inputs!D140 -> 554800
A106: Non-Incapacitating | B106: $/victim | C106: =Inputs!D141 -> 151100
A107: Possible Injury | B107: $/victim | C107: =AccidentCost_Injury -> 77200
A108: PDO | B108: $/vehicle | C108: =AccidentCost_PDO -> 4600
A109: Crash Rate Estimates
A110: Expected Number of Crashes, 2016 | B110: accidents/year | C110: =Inputs!D111 -> 4.27047619 | D110: Calculated based existing number of crashes on Union Ave converted to a crash rate to represent crash rate on an urban collector facility and applied to traffic on 51st Street.
A111: Expected Number of Crashes, 2045 | B111: accidents/year | C111: =Inputs!D114 -> 5.102857143
A112: Share of Accidents – Fatality | B112: percentage | C112: =Inputs!D121 -> 0.002914507772
A113: Share of Accidents – Suspected Serious Injury | B113: percentage | C113: =Inputs!D122 -> 0.02910621762
A114: Share of Accidents – Non-Incapacitating Injury | B114: percentage | C114: =Inputs!D123 -> 0.1984067358
A115: Share of Accidents – Possible Injury | B115: percentage | C115: =Inputs!D124 -> 0.2556476684
A116: Share of Accidents – Property Damage Only (PDO) | B116: percentage | C116: =Inputs!D125 -> 0.5139248705
A117: Crash Modification Factor | B117: percentage | C117: =Inputs!D116 -> 0.39 | D117: CMF Clearinghouse, ID# 7848: Install Traffic Lights at stop-controlled intersection.
A118: Number of Injured per Injury Crash | B118: victims/crash | C118: =Inputs!D126 -> 1.44 | D118: California Department of Transportation, TASAS Unit, 2010 to 2013 average
A119: Number of Vehicles per PDO Crash | B119: vehicles/crash | C119: =Inputs!D127 -> 1.9
A122: Table 12: Assumptions for Pedestrain Benefits
A123: Variable Name | B123: Unit | C123: Value | D123: Source
A124: Number of Pedestrian Trips on 51st Street
A125: No Build/Build, 2019 | B125: Daily Number | C125: =Inputs!D99 -> 96.82514562 | D125: As a conservative assumption, the number of walk trips under Build is assumed to be the same as under No-Build scenario.
A126: Average Annual Rate of Growth | B126: % | C126: =Inputs!D100 -> 0.006306754587 | D126: Rate of growth assumed equal to rate of growth in auto traffic. The same rate of growth for No Build and Build conditions.
A127: Annualization Factor for Pedestrian Traffic | B127: Number | C127: =Inputs!D102 -> 260 | D127: Annualization factor is equal to the number of work days since volumes were extrapolated based on daily work commuting trips.
A128: Measures of Pedestrian Benefits
A129: Width of Sidewalk to be Installed | B129: feet | C129: =Inputs!D104 -> 7 | D129: Project design.
A130: Unit Monetary Benefit of Improved Sidewalk | B130: $/foot per person-mile | C130: =Inputs!D105 -> 0.1 | D130: US DOT, Benefit-Cost Analysis Guidance for Discretionary Grants Program, March 2022, Table A-8
A131: Total Benefit of Improved Sidewalk | B131: $/foot per person-mile | C131: =Inputs!D106 -> 0.7 | D131: Calculated from inputs above.
A132: Average pedestrian trip length | B132: miles per person | C132: =Inputs!D107 -> 0.4 | D132: Assumption; most trips in the project area expected to be short.
A135: Table 13: Emission Costs Assumptions
A136: Variable Name | B136: Unit | C136: Value | D136: Source
A137: Nitrogen Oxides (NOx) | B137: $/metric ton | C137: =Inputs!D153 -> 18100 | D137: US DOT, Benefit-Cost Analysis Guidance for Discretionary Grants Program, March 2022 Revised; Table A-6.
A138: Sulfur Oxides (SOx) | B138: $/metric ton | C138: =Inputs!D154 -> 49100
A139: Fine Particulate Matter (PM2.5) | B139: $/metric ton | C139: =Inputs!D155 -> 867600
A140: Carbon Dioxide (CO2) | B140: $/metric ton | C140: =Inputs!D156 -> 62
A141: NOx Emission Rate | B141: grams/mile | C141: Varies by year, speed, and vehicle | D141: Estimates from MOVES run based on Tulsa, Oklahoma. Speed bins of 2.5 mph were used to represent idling vehicles; speed bins of 25 mph were used for the no-build case; and speed bins of 35 mph were used for the build case. Truck data is based on combination short-haul trucks using diesel fuel. Values were gathered for 2020, 2030, 2040, 2050, and 2060, and interpolation was used to estimate years in between.
A142: SOx Emission Rate | B142: grams/mile | C142: Varies by year, speed, and vehicle
A143: PM2.5 Emission Rate | B143: grams/mile | C143: Varies by year, speed, and vehicle
A144: CO2 Emission Rate | B144: grams/mile | C144: Varies by year, speed, and vehicle
A147: Table 14: Residual Value and Agency Costs Savings
A148: Residual Value and Agency Costs Savings | B148: Units | C148: Value | D148: Source/Comment
A149: Project Costs by Cost Element | B149: $M | D149: ODOT, cost estimate in 2022 dollars was deflated to 2020 dollars.
A150: Roadway Construction | C150: =Inputs!D165 -> 14.47217213
A151: Design | C151: =Inputs!D166 -> 1.238005625
A152: Right of Way | C152: =Inputs!D167 -> 2.380905738
A153: Utilities | C153: =Inputs!D168 -> 0.5602131148
A154: Total Cost | C154: =Inputs!D169 -> 18.65129661
A155: Estimated Project Useful Life | B155: Years | C155: =Inputs!D170 -> 50 | D155: Assumption.
A156: No-Build Major Rehabilitation | B156: $M | C156: =Inputs!D171 -> 0.8425605246 | D156: ODOT, cost estimate in 2022 dollars was deflated to 2020 dollars.
A159: Table 15
A160: Project Evaluation Metric | B160: Undiscounted | C160: Present Value at 7% Discount Rate | D160: Present Value at 3% Discount Rate
A161: Total Benefits | B161: =Results!D20 -> 64.36135205 | C161: =Results!E20 -> 21.39277966 | D161: =Results!F20 -> 38.77959672
A162: Total O&M Costs | B162: =Results!D21 -> 0.8870040984 | C162: =Results!E21 -> 0.1768857861 | D162: =Results!F21 -> 0.4354682789
A163: Total Capital Costs | B163: =Results!D22 -> 18.65129661 | C163: =Results!E22 -> 13.64991631 | D163: =Results!F22 -> 16.27118342
A164: Net Present Value | B164: =Results!D23 -> 44.82305134 | C164: =Results!E23 -> 7.565977567 | D164: =Results!F23 -> 22.07294502
A165: Benefit / Cost Ratio | B165: =Results!D25 -> 3.40321369 | C165: =Results!E25 -> 1.554287469 | D165: =Results!F25 -> 2.356566665
A166: Internal Rate of Return (%) | B166: =Results!D26 -> 0.1214416201
A169: Table 16
A170: Benefit Categories | B170: Over Project Lifecycle
B171: Undiscounted | C171: Present Value at 7% Discount Rate | D171: Present Value at 3% Discount Rate
A172: Travel Time Savings | B172: =Results!D6 -> 37.05901113 | C172: =Results!E6 -> 13.09512853 | D172: =Results!F6 -> 23.0883547 | E172: =C172/$C$180 -> 0.6121284254
A173: Vehicle Operating Cost Savings | B173: =Results!D7 -> 5.271741092 | C173: =Results!E7 -> 1.952119115 | D173: =Results!F7 -> 3.353151182 | E173: 0.09125130751
A174: Highway Use Cost Savings | B174: =Results!D8 -> 1.363079669 | C174: =Results!E8 -> 0.5083355285 | D174: =Results!F8 -> 0.8697334744 | E174: 0.02376201394
A175: Reduction in Accident Costs | B175: =Results!D9 -> 7.335724512 | C175: =Results!E9 -> 2.733438197 | D175: =Results!F9 -> 4.678926585 | E175: 0.1277738677
A176: Pedestrian Benefits | B176: =Results!D10 -> 0.1564898868 | C176: =Results!E10 -> 0.05829249343 | D176: =Results!F10 -> 0.0997992269 | E176: 0.002724867659
A177: Environmental Cost Savings | B177: =Results!D11 -> 0.486726155 | C177: =Results!E11 -> 0.2621125158 | D177: =Results!F11 -> 0.3051067522 | E177: 0.01225238235
A178: Agency Costs Savings | B178: =Results!D12 -> 0.8425605246 | C178: =Results!E12 -> 0.6007340094 | D178: =Results!F12 -> 0.7268001099 | E178: 0.02808115724
A179: Residual Value | B179: =Results!D13 -> 11.84601908 | C179: =Results!E13 -> 2.182619272 | D179: =Results!F13 -> 5.657724685 | E179: 0.1020259782
A180: Total Benefits | B180: =SUM(B172:B179) -> 64.36135205 | C180: =SUM(C172:C179) -> 21.39277966 | D180: =SUM(D172:D179) -> 38.77959672
A182: Table 16: Other Measures of Quantified Benefits
A183: Impact | B183: Over Project Analysis Period | C183: Average Annual
A184: Person-Hours of Travel Time (Thousand Hours) | B184: ='Additional Tables'!C120 -> 2028.050034 | C184: ='Additional Tables'!D120 -> 101.4025017
A185: VMT Avoided (Thousand VMT) | B185: ='Additional Tables'!C121 -> 9939.536497 | C185: ='Additional Tables'!D121 -> 496.9768249
A186: Fuel Saved (Gallons) | B186: ='Additional Tables'!C122 -> 502150.4603 | C186: ='Additional Tables'!D122 -> 25107.52301
A187: Accidents Avoided (Total Number) | B187: ='Additional Tables'!C123 -> 72.83634962 | C187: ='Additional Tables'!D123 -> 3.641817481
A188: GHG Emissions Avoided (Metric Tons) | B188: ='Additional Tables'!C124 -> 4732.315907 | C188: ='Additional Tables'!D124 -> 234.2281448
A190: Table 17
A191: Parameters | B191: Change in Parameter Value | C191: New NPV | D191: % Change in NPV | E191: New B/C Ratio
A192: Value of Travel Time | B192: Lower Bound of Range Recommended by US DOT (Auto $12.46 and Truck $25.60) | C192: 3.814474967 | D192: =(C192-$C$164)/$C$164 -> -0.4958384514 | E192: 1.279450429
B193: Upper Bound of Range Recommended by US DOT (Auto $21.36 and Truck $38.40) | C193: 10.18500327 | D193: =(C193-$C$164)/$C$164 -> 0.34615827 | E193: 1.746158661
A194: Value of Statistical Life | B194: Lower Bound of Range Recommended by US DOT ($6.96 million) | C194: 6.509588924 | D194: =(C194-$C$164)/$C$164 -> -0.1396235494 | E194: 1.476895886
B195: Upper Bound of Range Recommended by US DOT ($16.24 million) | C195: 8.621610431 | D195: 0.1395236577 | E195: 1.631623685
A196: Capital Cost Estimate | B196: 20% Reduction | C196: 9.859436974 | D196: 0.3031279682 | E196: 1.90288438
B197: 2% Increase | C197: 5.27251816 | D197: -0.3031279682 | E197: 1.321889529
A198: Evaluation Period /Years of Project Operation | B198: 30 Years of Project Operation | C198: =Results!E101 -> 12.43951901 | D198: 0.6441390284 | E198: =Results!E103 -> 1.911325661
A200: NOTE: Full results for 30 years of operaitons are on "Results" tab, Line 79-104

Sheet Additional Tables
A1: ADDITIONAL TABULATED RESULTS
B4: Travel Time Savings | C4: Over Project Lifecycle
A5: Travel Time Savings | C5: Undiscounted | D5: Discounted at 7% | E5: Discounted at 3%
B6: From Increased Travel Speed and Reduced Distance | C6: ='Calc-1'!$C$49 -> 16103801.53 | D6: ='Calc-1'!$C$54 -> 6002184.297 | E6: ='Calc-1'!$C$59 -> 10272654.2
B7: From Reduced Delays | C7: ='Calc-1'!$C$50 -> 20955209.6 | D7: ='Calc-1'!$C$55 -> 7092944.232 | E7: ='Calc-1'!$C$60 -> 12815700.5
B8: Total Travel Time Savings | C8: =SUM(C6:C7) -> 37059011.13 | D8: =SUM(D6:D7) -> 13095128.53 | E8: =SUM(E6:E7) -> 23088354.7
B10: Key Quantifiable Impacts
B11: Total person-hours saved | C11: ='Calc-1'!C65 -> 2028050.034
A14: VOC Savings | C14: Unit | D14: Value | E14: Source
B15: Vehicle Operating Cost – Light Duty Vehicles | C15: $/mile | D15: =OperatingCost_Passenger -> 0.45 | E15: US DOT, Benefit-Cost Analysis Guidance for Discretionary Grants Program, March 2022 Revised, Table A-5.
B16: Vehicle Operating Cost – Commercial Trucks | C16: $/mile | D16: =OperatingCost_Trucks -> 0.94
B17: Fuel Price – Motor Gasoline, 2045 | C17: $/gallon | D17: ='Fuel Prices'!$AA$42/DeflatorRate -> 3.063367921 | E17: US EIA, Annual Energy Outlook 2022
B18: Fuel Price – Diesel Fuel, 2045 | C18: $/gallon | D18: ='Fuel Prices'!$AA$44/DeflatorRate -> 3.415027815
B22: VOC Savings | C22: Over Project Lifecycle
C23: Undiscounted | D23: Discounted at 7% | E23: Discounted at 3%
B24: From Reduced Distance | C24: ='Calc-2'!C46 -> 4643971.46 | D24: ='Calc-2'!C51 -> 1731883.866 | E24: ='Calc-2'!C56 -> 2963155.805
B25: From Reduced Fuel Used During Delays | C25: ='Calc-2'!C47 -> 627769.6322 | D25: ='Calc-2'!C52 -> 220235.2492 | E25: ='Calc-2'!C57 -> 389995.3776
B26: Total VOC Savings | C26: =SUM(C24:C25) -> 5271741.092 | D26: =SUM(D24:D25) -> 1952119.115 | E26: =SUM(E24:E25) -> 3353151.182
B28: Key Quantified Impacts
B29: Reduction in VMT (millions of miles miles) | C29: ='Calc-2'!C62/1000000 -> 9.939536497
B30: Reduction in Fuel Used During Delays (gallons) | C30: ='Calc-2'!C63 -> 502150.4603
A32: External Highway Use | C32: Cost per Vehicle Mile Travelled | E32: Source
B33: Vehicle Type and Location | C33: Congestion | D33: Noise
B34: Light-Duty Vehicles - Urban | C34: 0.124 | D34: 0.0017 | E34: US DOT, Benefit-Cost Analysis Guidance for Discretionary Grants Program, March 2022 Revised; Table A-13
B35: Buses and Trucks - Urban | C35: 0.31 | D35: 0.0393
C37: Over Project Lifecycle
C38: Undiscounted | D38: Discounted at 7% | E38: Discounted at 3%
B39: Automobiles | C39: ='Calc-5'!C34 -> 1097807.513 | D39: ='Calc-5'!C39 -> 409407.1501 | E39: ='Calc-5'!C44 -> 700472.5877
B40: Trucks | C40: ='Calc-5'!C35 -> 265272.1555 | D40: ='Calc-5'!C40 -> 98928.37848 | E40: ='Calc-5'!C45 -> 169260.8868
B41: Total External Highway Use Cost Savings | C41: =SUM(C39:C40) -> 1363079.669 | D41: =SUM(D39:D40) -> 508335.5285 | E41: =SUM(E39:E40) -> 869733.4744
A43: Economic Competitiveness
B45: Benefit Stream | C45: Over Project Lifecycle
C46: Undiscounted | D46: Discounted at 7% | E46: Discounted at 3%
B47: Travel Time Savings | C47: =C8 -> 37059011.13 | D47: =D8 -> 13095128.53 | E47: =E8 -> 23088354.7
B48: VOC Savings | C48: =C26 -> 5271741.092 | D48: =D26 -> 1952119.115 | E48: =E26 -> 3353151.182
B49: External Highway Use Cost Savings | C49: =C41 -> 1363079.669 | D49: =D41 -> 508335.5285 | E49: =E41 -> 869733.4744
B50: Total Economic Competitiveness Benefits | C50: =SUM(C47:C49) -> 43693831.89 | D50: =SUM(D47:D49) -> 15555583.17 | E50: =SUM(E47:E49) -> 27311239.36
B53: Average Trip Length (miles) | C53: =Inputs!D107 -> 0.4
B54: Sidewalk Benefit Value | C54: =Inputs!D106 -> 0.7
A56: Pedestrian Benefits | C56: Over Project Lifecycle
C57: Undiscounted | D57: Discounted at 7% | E57: Discounted at 3%
B58: Total Pedestrian Safety Benefits | C58: ='Calc-6'!$C$22 -> 156489.8868 | D58: ='Calc-6'!$C$23 -> 58292.49343 | E58: ='Calc-6'!$C$24 -> 99799.2269
B63: Estimates of safety benefits by accident type
A64: Accidents | C64: Over Project Lifecycle
C65: Undiscounted | D65: Discounted at 7% | E65: Discounted at 3%
B66: Fatality | C66: ='Calc-3'!C50 -> 1862717.511 | D66: ='Calc-3'!C58 -> 694085.9333 | E66: ='Calc-3'!C66 -> 1188092.392
B67: Suspected Serious Injury | C67: ='Calc-3'!C51 -> 1281175.151 | D67: ='Calc-3'!C59 -> 477391.5774 | E67: ='Calc-3'!C67 -> 817168.7018
B68: Non-Incapacitating | C68: ='Calc-3'!C52 -> 2378521.923 | D68: ='Calc-3'!C60 -> 886285.0107 | E68: ='Calc-3'!C68 -> 1517086.614
B69: Possible Injury | C69: ='Calc-3'!C53 -> 1565832.918 | D69: ='Calc-3'!C61 -> 583460.7749 | E69: ='Calc-3'!C69 -> 998731.244
B70: PDO | C70: ='Calc-3'!C54 -> 247477.0087 | D70: ='Calc-3'!C62 -> 92214.90084 | E70: ='Calc-3'!C70 -> 157847.6336
B71: Total Safety Benefits from Avoided Accident Costs | C71: =SUM(C66:C70) -> 7335724.512 | D71: =SUM(D66:D70) -> 2733438.197 | E71: =SUM(E66:E70) -> 4678926.585
B73: Key Quantifiable Impacts
B74: Accidents Avoided | C74: Count
B75: Fatality | C75: ='Calc-3'!C74 -> 0.2122821071
B76: Suspected Serious Injury | C76: ='Calc-3'!C75 -> 2.119990642
B77: Non-Incapacitating | C77: ='Calc-3'!C76 -> 14.45122237
B78: Possible Injury | C78: ='Calc-3'!C77 -> 18.62044295
B79: PDO | C79: ='Calc-3'!C78 -> 37.43241154
B80: Total | C80: =SUM(C75:C79) -> 72.83634962
A82: Safety | C82: Over Project Lifecycle
C83: Undiscounted | D83: Discounted at 7% | E83: Discounted at 3%
B84: Total Avoided Accident Costs | C84: =C71 -> 7335724.512 | D84: =D71 -> 2733438.197 | E84: =E71 -> 4678926.585
B85: Total Pedestrian Safety Benefits | C85: ='Calc-6'!$C$22 -> 156489.8868 | D85: ='Calc-6'!$C$23 -> 58292.49343 | E85: ='Calc-6'!$C$24 -> 99799.2269
B86: Total Safety Benefits | C86: =SUM(C84:C85) -> 7492214.399 | D86: =SUM(D84:D85) -> 2791730.691 | E86: =SUM(E84:E85) -> 4778725.812
B90: Estimates of environmental sustainability benefits by emission type, 2020 dollars
A91: Emissions | C91: Over Project Lifecycle
C92: Undiscounted | D92: Discounted at 7% (CO2 at 3%) | E92: Discounted at 3%
B93: Nitrogen Oxides (NOx) | C93: =SUM('Calc-4'!D172:AD172) -> 105723.3373 | D93: =SUM('Calc-4'!D179:AD179) -> 38320.71484 | E93: =SUM('Calc-4'!D186:AD186) -> 66586.26031
B94: Sulfur Oxides (SOx) | C94: =SUM('Calc-4'!D173:AD173) -> 1293.762403 | D94: =SUM('Calc-4'!D180:AD180) -> 470.3127666 | E94: =SUM('Calc-4'!D187:AD187) -> 816.0886235
B95: Fine Particulate Matter (PM2.5) | C95: =SUM('Calc-4'!D174:AD174) -> 55340.22165 | D95: =SUM('Calc-4'!D181:AD181) -> 21634.28595 | E95: =SUM('Calc-4'!D188:AD188) -> 36017.20095
B96: Carbon Dioxide (CO2) | C96: =SUM('Calc-4'!D175:AD175) -> 324368.8337 | D96: =SUM('Calc-4'!D182:AD182) -> 201687.2023 | E96: =SUM('Calc-4'!D189:AD189) -> 201687.2023
B97: Total Environmental Sustainability Benefits | C97: =SUM(C93:C96) -> 486726.155 | D97: =SUM(D93:D96) -> 262112.5158 | E97: =SUM(E93:E96) -> 305106.7522
B99: Estimates of environmental sustainability benefits by emission source, 2020 dollars
C100: Over Project Lifecycle
C101: Undiscounted | D101: Discounted at 7% (CO2 at 3%) | E101: Discounted at 3%
B102: From Reduced VMT | C102: =SUM('Calc-4'!D193:AD193) -> 265574.1972 | D102: =SUM('Calc-4'!D198:AD198) -> 147592.4262 | E102: =SUM('Calc-4'!D203:AD203) -> 169870.5279
B103: From Reduced Idling | C103: =SUM('Calc-4'!D194:AD194) -> 221151.9578 | D103: =SUM('Calc-4'!D199:AD199) -> 114520.0896 | E103: =SUM('Calc-4'!D204:AD204) -> 135236.2243
B104: Total Environmental Sustainability Benefits | C104: =SUM(C102:C103) -> 486726.155 | D104: =SUM(D102:D103) -> 262112.5158 | E104: =SUM(E102:E103) -> 305106.7522
B106: Key Quantifiable Impacts
C107: Over Project Lifecycle
C108: Undiscounted | D108: Discounted at 7% (CO2 at 3%) | E108: Discounted at 3%
B109: Share of total impact from reduced VMT | C109: =C102/C$104 -> 0.5456337089 | D109: 0.5630880531 | E109: 0.5567576814
B110: Share of total impact from reduced idling | C110: 0.4543662911 | D110: 0.4369119469 | E110: 0.4432423186
C112: Metric tons
B113: Avoided GHG emissions over project lifecycle | C113: =SUM('Calc-4'!D212:AD212) -> 4732.315907
B114: Avoided GHG emissions, annual average | C114: =AVERAGE('Calc-4'!D212:AC212) -> 234.2281448
B117: Summary of Key Quantifiable Impacts
B119: Impact | C119: Over Project Analysis Period | D119: Average Annual
B120: Person-Hours of Travel Time (Thousand Hours) | C120: =C11/1000 -> 2028.050034 | D120: =C120/20 -> 101.4025017
B121: VMT Avoided (Thousand VMT) | C121: =C29*1000 -> 9939.536497 | D121: =C121/20 -> 496.9768249
B122: Fuel Saved (Gallons) | C122: =C30 -> 502150.4603 | D122: =C122/20 -> 25107.52301
B123: Accidents Avoided (Total Number) | C123: =C80 -> 72.83634962 | D123: 3.641817481
B124: GHG Emissions Avoided (Metric Tons) | C124: =C113 -> 4732.315907 | D124: =C114 -> 234.2281448

Sheet Inputs
B1: General Inputs
B3: General Inputs | C3: Units | D3: Value | E3: Source/Comment
B4: Real Discount Factor | C4: % | D4: 0.07
B5: Real Discount Factor - Sensitivity | C5: % | D5: 0.03
B6: Base Year of Analysis | C6: - | D6: 2020
B7: First Year after construction finished | C7: - | D7: 2026 | E7: Assumption
B8: Length of Analysis | C8: - | D8: 20
B9: End Year of Analysis | C9: - | D9: =D8+(D7)-1 -> 2045
B10: Time/Data start construction | C10: - | D10: 2024-01-01 | E10: Engineering assessment.
B11: Time/Data end construction | C11: - | D11: 2025-12-25 | E11: Engineering assessment.
B12: GDP Deflators | C12: Index | E12: Office of Management and Budget- Table 10.1 Gross Domestic Product and Deflators used in the historical Tables: 1940-2025.
B13: 2021 to 2020 | D13: ='GDP Deflator'!C97 -> 1.030726012
B14: 2022 to 2020 | D14: ='GDP Deflator'!C98 -> 1.071020981
B16: Traffic Inputs | C16: Units | D16: Value | E16: Source/Comment
B17: VEHICLE TRAFFIC ON 51st STREET
B18: Current traffic, by OD Pairs (2016) | C18: ADT | E18: Transportation model for I-44 & US-75 area; Garver.
B19: 51st Street to Union Ave North | D19: ='Vehicle Traffic'!G20 -> 1280
B20: 51st Street to Union Ave South | D20: ='Vehicle Traffic'!G21 -> 3520
B21: Future Traffic, by OD Pairs (2045) | C21: ADT | E21: Transportation model for I-44 & US-75 area; Garver.
B22: 51st Street to Union Ave North | D22: ='Vehicle Traffic'!H20 -> 1600
B23: 51st Street to Union Ave South | D23: ='Vehicle Traffic'!H21 -> 4160
B24: Traffic Rate of Growth, by OD Pairs | C24: % | E24: Calculated from above.
B25: 51st Street to Union Ave North | D25: =(D22/D19)^(1/(2045-2016))-1 -> 0.007724284768
B26: 51st Street to Union Ave South | D26: =(D23/D20)^(1/(2045-2016))-1 -> 0.00577710918
B27: Percent of Truck Traffic | C27: % | D27: 0.08 | E27: Transportation model for I-44 & US-75 area; Garver.
B28: Trip Length, by OD Pairs | C28: miles/vehicle | E28: Transportation model for I-44 & US-75 area; Garver.
B29: 51st Street to Union Ave North
B30: No Build | D30: ='Vehicle Traffic'!E20 -> 0.57
B31: Build | D31: ='Vehicle Traffic'!C20 -> 0.57
B32: 51st Street to Union Ave South
B33: No Build | D33: ='Vehicle Traffic'!E21 -> 0.73
B34: Build | D34: ='Vehicle Traffic'!C21 -> 0.4
B35: Travel Times, by OD Pairs | C35: seconds/vehicle | E35: Travel times calculated considering length of the alignment and posted/travel speeds (25 mph under No-Build and 35 mph under Build scenario). Travel Times assumed constant over analysis period.
B36: 51st Street to Union Ave North
B37: No Build | D37: ='Vehicle Traffic'!F20 -> 82.08
B38: Build | D38: ='Vehicle Traffic'!D20 -> 58.62857143
B39: 51st Street to Union Ave South
B40: No Build | D40: ='Vehicle Traffic'!F21 -> 98.12571429
B41: Build | D41: ='Vehicle Traffic'!D21 -> 41.14285714
B42: VEHICLE DELAYS AND IMPACTS ON INTERSECTIONS
B43: Delays in 2016 | C43: Daily Vehicle-hours | E43: Transportation modeling conducted by Garver. Data represents total intersection delays for all vehicles during peak-hour conditions.
B44: AM Delays
B45: No Build | C45: hours | D45: ='Vehicle Traffic'!C7 -> 15.5
B46: Build | C46: hours | D46: ='Vehicle Traffic'!C8 -> 12.7
B47: PM Delays
B48: No Build | C48: hours | D48: ='Vehicle Traffic'!C9 -> 25.5
B49: Build | C49: hours | D49: ='Vehicle Traffic'!C10 -> 19.3
B50: Delays in 2045 | C50: Daily Vehicle-hours
B51: AM Delays
B52: No Build | D52: ='Vehicle Traffic'!C11 -> 35.2
B53: Build | D53: ='Vehicle Traffic'!C12 -> 21.2
B54: PM Delays
B55: No Build | D55: ='Vehicle Traffic'!C13 -> 78.5
B56: Build | D56: ='Vehicle Traffic'!C14 -> 33.2
B57: Rate of Growth in Delays, 2016-2045 | C57: % Annually | E57: Calculated from 2016 and 2045 outputs.
B58: AM Delays
B59: No Build | D59: =(D52/D45)^(1/(2045-2016))-1 -> 0.0286867282
B60: Build | D60: =(D53/D46)^(1/(2045-2016))-1 -> 0.01782595662
B61: PM Delays
B62: No Build | D62: =(D55/D48)^(1/(2045-2016))-1 -> 0.03953459626
B63: Build | D63: =(D56/D49)^(1/(2045-2016))-1 -> 0.01888102664
B64: Duration of Peak Period | C64: hours | E64: Assumption
B65: AM | D65: 2
B66: PM | D66: 2
B68: Fuel Use during Delays in 2016 | C68: gallons | E68: Transportation modeling conducted by Garver. Data represents total fuel usage for all vehicles during peak-hour conditions.
B69: AM Delays
B70: No Build | D70: ='Vehicle Traffic'!I7 -> 73.8
B71: Build | D71: ='Vehicle Traffic'!I8 -> 66.8
B72: PM Delays
B73: No Build | D73: ='Vehicle Traffic'!I9 -> 86.8
B74: Build | D74: ='Vehicle Traffic'!I10 -> 80.1
B75: Fuel Use During Delays in 2045 | C75: gallons
B76: AM Delays
B77: No Build | D77: ='Vehicle Traffic'!I11 -> 97.5
B78: Build | D78: ='Vehicle Traffic'!I12 -> 85.5
B79: PM Delays
B80: No Build | D80: ='Vehicle Traffic'!I13 -> 117.3
B81: Build | D81: ='Vehicle Traffic'!I14 -> 100.5
B82: Rate of Growth in Fuel Use, 2016-2045 | C82: % Annually | E82: Calculated from 2016 and 2045 outputs.
B83: AM Delays
B84: No Build | D84: =(D77/D70)^(1/(2045-2016))-1 -> 0.009649488151
B85: Build | D85: =(D78/D71)^(1/(2045-2016))-1 -> 0.00854712314
B86: PM Delays
B87: No Build | D87: =(D80/D73)^(1/(2045-2016))-1 -> 0.01043782675
B88: Build | D88: =(D81/D74)^(1/(2045-2016))-1 -> 0.007854196519
B89: Duration of Peak Period | C89: hours | E89: Assumption
B90: AM | D90: 2
B91: PM | D91: 2
B92: Annualization Factor for Intersection Delay Impacts | D92: =5*52 -> 260 | E92: Annualization factor refelcts assumption of impacts taking place primarily during peak commuting hours.
B93: Fuel Cost | C93: $/Gallon | E93: Energy Information Agency, Annual Energy Outlook 2022, March 2022. Prices vary by year, value shown is for 2030 adjusted from 2021 dollars to 2020 dollars using a GDP deflator.
B94: Gasoline | D94: ='Fuel Prices'!L129/DeflatorRate -> 2.386133045
B95: Diesel | D95: ='Fuel Prices'!L130/DeflatorRate -> 3.054678647
B97: PEDESTRIAN BENEFITS
B98: Number of Pedestrian Trips on 51st Street
B99: No Build, 2019 | C99: Daily Number | D99: ='Pedestrian Traffic'!C45 -> 96.82514562
B100: Average Annual Rate of Growth | C100: % | D100: =((D22+D23)/(D19+D20))^(1/(2045-2016))-1 -> 0.006306754587 | E100: Rate of growth assumed euqal to rate of growth in auto traffic. The same rate of growth for No Build and Build conditions.
B101: Increase in Pedestrian Demand under Build | C101: % | D101: 0 | E101: As a conservative assumption, the increase in number of walk trips under Build is assumed at 0% due to lack of data.
B102: Annualization Factor for Pedestrian Traffic | C102: Number | D102: =52*5 -> 260 | E102: Annualization factor is equal to the number of work days in a year since the volumes were extrapolated based on number of daily work commuting trips.
B103: Measures of Pedestrian Benefits
B104: Width of Sidewalk to be Installed | C104: feet | D104: 7 | E104: Project design.
B105: Unit Monetary Benefit of Improved Sidewalk | C105: $/foot per person-mile | D105: ='US DOT BCA Guidance'!C249 -> 0.1 | E105: US DOT, Benefit-Cost Analysis Guidance for Discretionary Grants Program, March 2022, Table A-8
B106: Total Monetary Benefit of Improved Sidewalk | C106: $/foot per person-mile | D106: =D104*D105 -> 0.7 | E106: Calculated from inputs above.
B107: Average pedestrian trip length | C107: miles per person | D107: 0.4 | E107: Assumption; most trips in the project area expected to be short.
B108: ROAD ACCIDENTS
B109: Expected Number of Crashes on 51st Street
B110: 2016
B111: No Build | C111: accidents/year | D111: ='Accident Data'!F63 -> 4.27047619 | E111: Calculated based existing number of crashes on Union Ave converted to a crash rate to represent crash rate on an urban collector facility and applied to traffic on 51st Street.
B112: Build | C112: accidents/year | D112: ='Accident Data'!F100 -> 1.828063492 | E112: Number of Crashes under Build reduced using a Crash Modification Factor Methodology (CMF ID# 7848: Install Traffic Lights at stop-controlled intersection).
B113: 2045
B114: No Build | C114: accidents/year | D114: ='Accident Data'!F128 -> 5.102857143 | E114: Calculated based existing number of crashes on Union Ave converted to a crash rate to represent crash rate on an urban collector facility and applied to traffic on 51st Street.
B115: Build | C115: accidents/year | D115: ='Accident Data'!F166 -> 2.184380952 | E115: Number of Crashes under Build reduced using a Crash Modification Factor Methodology (CMF ID# 7848: Install Traffic Lights at stop-controlled intersection).
B116: Crash Modification Factor | C116: percentage | D116: ='Accident Data'!$F$99 -> 0.39 | E116: CMF ID# 7848: Install Traffic Lights at stop-controlled intersection.
B117: Rate of growth in Crashes
B118: No Build | D118: =(D114/D111)^(1/(2045-2016))-1 -> 0.006159418092
B119: Build | D119: =(D115/D112)^(1/(2045-2016))-1 -> 0.006159418092
B120: Distribution of Accidents by Severity | C120: %
B121: Fatality | D121: ='Accident Data'!G58 -> 0.002914507772 | E121: Calculated based existing number of crashes on Union Ave converted to a crash rate to represent crash rate on an urban collector facility and applied to traffic on 51st Street.
B122: Suspected Serious Injury | D122: ='Accident Data'!F58 -> 0.02910621762
B123: Non-Incapacitating | D123: ='Accident Data'!E58 -> 0.1984067358
B124: Possible Injury | D124: ='Accident Data'!D58 -> 0.2556476684
B125: PDO | D125: =1-SUM(D121:D124) -> 0.5139248705
B126: Number of Injured per Injury Crash | C126: victims/crash | D126: 1.44 | E126: California Department of Transportation, TASAS Unit, 2010 to 2013 average
B127: Number of Vehicles per PDO Crash | C127: vehicles/crash | D127: 1.9
B128: Average Vehicle Occupancy - Auto | C128: persons/vehicle | D128: ='US DOT BCA Guidance'!$C$107 -> 1.67 | E128: US DOT, Benefit-Cost Analysis Guidance for Discretionary Grants Program, March 2022 Revised; Table A-4.
B129: Average Vehicle Occupancy - Truck | C129: persons/vehicle | D129: 1
B130: Annualization Factor | C130: days/year | D130: 365
B132: Valuation Parameters (2020 dollars) | C132: Units | D132: Value | E132: Source/Comment
B133: Value of Time | E133: US DOT, Benefit-Cost Analysis Guidance for Discretionary Grants Program, March 2022 Revised; Table A-3 | H133: Alternative Values
B134: Autos - Personal | C134: $/person-hour | D134: 16.2 | H134: Low | I134: High
B135: Autos - All Purposes | C135: $/person-hour | D135: =G135 -> 17.8 | G135: ='US DOT BCA Guidance'!C67 -> 17.8 | H135: =G135*0.7 -> 12.46 | I135: =G135*1.2 -> 21.36
B136: Trucks | C136: $/person-hour | D136: =G136 -> 32 | G136: ='US DOT BCA Guidance'!C72 -> 32 | H136: =G136*0.8 -> 25.6 | I136: =G136*1.2 -> 38.4 | J136: <<< for sensiivity testing
B137: Blended Value (Autos and Trucks) | C137: $/person-hour | D137: =D136*ShareTruck+D135*(1-ShareTruck) -> 18.936 | E137: Blended value reflecting share of trucks in total traffic and auto traffic for all purposes.
B138: Accident Costs | E138: US DOT, Benefit-Cost Analysis Guidance for Discretionary Grants Program, March 2022; Table A-1 | G138: make change on UD DOT BCA Guidance tab
B139: Fatality | C139: $/victim | D139: ='US DOT BCA Guidance'!E24 -> 11600000 | G139: ='US DOT BCA Guidance'!$E$24 -> 11600000 | H139: =G139*0.6 -> 6960000 | I139: =G139*1.4 -> 16240000
B140: Suspected Serious Injury | C140: $/victim | D140: ='US DOT BCA Guidance'!C44 -> 554800
B141: Non-Incapacitating | C141: $/victim | D141: ='US DOT BCA Guidance'!C43 -> 151100
B142: Possible Injury | C142: $/victim | D142: ='US DOT BCA Guidance'!C42 -> 77200
B143: PDO | C143: $/vehicle | D143: ='US DOT BCA Guidance'!B56 -> 4600
B144: Vehicle Operating Costs | E144: US DOT, Benefit-Cost Analysis Guidance for Discretionary Grants Program, March 2022 Revised, Table A-5.
B145: Passenger Vehicles | C145: $/mile | D145: ='US DOT BCA Guidance'!C116 -> 0.45
B146: Trucks | C146: $/mile | D146: ='US DOT BCA Guidance'!C117 -> 0.94
B147: Fuel Prices, 2030 | C147: $/gallon | E147: US EIA, Annual Energy Outlook 2022. Values vary by year; 2030 values shown for illustration. Converted from 2021 dollars to 2020 dollars using GDP deflator.
B148: Motor Gasoline | D148: ='Fuel Prices'!L42/DeflatorRate -> 2.712396862
B149: Diesel | D149: ='Fuel Prices'!L44/DeflatorRate -> 3.073910975
B151: Emissions Inputs (2020 dollars) | C151: Units | D151: Value | E151: Source/Comment
B152: Emission Cost | C152: $/metric ton | E152: US DOT, Benefit-Cost Analysis Guidance for Discretionary Grants Program, March 2022 Revised; Table A-6. Values vary by year. Values shown are for 2030.
B153: NOX | D153: ='US DOT BCA Guidance'!C145 -> 18100
B154: SOX | D154: ='US DOT BCA Guidance'!D145 -> 49100
B155: PM2.5 | D155: ='US DOT BCA Guidance'!E145 -> 867600
B156: CO2 | D156: ='US DOT BCA Guidance'!F145 -> 62
B158: External Highway Use Costs (2020 dollars) | C158: Units | D158: Value | E158: Source/Comment
B159: Noise and Congestion Costs, Autos | C159: $/VMT | E159: US DOT, Benefit-Cost Analysis Guidance for Discretionary Grants Program, March 2022 Revised; Table A-13
B160: Auto | D160: ='US DOT BCA Guidance'!C230+'US DOT BCA Guidance'!D230 -> 0.1257
B161: Truck | D161: ='US DOT BCA Guidance'!C233+'US DOT BCA Guidance'!D233 -> 0.3493
B163: Residual Value and Agency Costs Savings | C163: Units | D163: Value | E163: Source/Comment
B164: Project Costs by Cost Element | C164: $M | E164: ODOT, cost estimate in 2022 dollars was deflated to 2020 dollars.
B165: Roadway Construction | D165: ='Project Costs'!D4/1000000 -> 14.47217213
B166: Design | D166: ='Project Costs'!D5/1000000 -> 1.238005625
B167: Right of Way | D167: ='Project Costs'!D6/1000000 -> 2.380905738
B168: Utilities | D168: ='Project Costs'!D7/1000000 -> 0.5602131148
B169: Total Cost | D169: ='Project Costs'!D8/1000000 -> 18.65129661
B170: Estimated Project Useful Life | C170: Years | D170: ='Project Costs'!C17 -> 50 | E170: Assumption.
B171: No-Build Major Rehabilitation | C171: $M | D171: ='Project Costs'!F38/1000000 -> 0.8425605246 | E171: ODOT, cost estimate in 2022 dollars was deflated to 2020 dollars.

Sheet PROJECT

Sheet Vehicle Traffic
A1: Traffic and Travel Times
A2: Source: Garver
A4: Delays on Project Area Intersections | K4: Emissions per gallon of fuel
A5: Time Period | B5: Model | C5: Total Delay (hr) | D5: Total Delay/Veh (seconds) | E5: Avg Network Speed | F5: HC Emissions | G5: CO Emissions | H5: NOx Emissions | I5: Fuel Used (gal) | K5: HC Emissions | L5: CO Emissions | M5: NOx Emissions
A7: 2016 AM | B7: No Build | C7: 15.5 | D7: 24.9 | E7: 24 | F7: 2077 | G7: 49743 | H7: 5893 | I7: 73.8 | K7: =F7/I7 -> 28.14363144 | L7: =G7/I7 -> 674.0243902 | M7: =H7/I7 -> 79.85094851
B8: Build | C8: 12.7 | D8: 21.5 | E8: 25 | F8: 1856 | G8: 43097 | H8: 5343 | I8: 66.8 | K8: =F8/I8 -> 27.78443114 | L8: =G8/I8 -> 645.1646707 | M8: =H8/I8 -> 79.98502994
A9: 2016 PM | B9: No Build | C9: 25.5 | D9: 35 | E9: 23 | F9: 2508 | G9: 58795 | H9: 7058 | I9: 86.8 | K9: 28.89400922 | L9: 677.3617512 | M9: 81.31336406
B10: Build | C10: 19.3 | D10: 27.8 | E10: 24 | F10: 2232 | G10: 51103 | H10: 6404 | I10: 80.1 | K10: 27.86516854 | L10: 637.9900125 | M10: 79.95006242
A11: 2045 AM | B11: No Build | C11: 35.2 | D11: 44.1 | E11: 21 | F11: 2738 | G11: 64925 | H11: 7682 | I11: 97.5 | K11: 28.08205128 | L11: 665.8974359 | M11: 78.78974359
B12: Build | C12: 21.2 | D12: 28.3 | E12: 24 | F12: 2373 | G12: 54931 | H12: 6795 | I12: 85.5 | K12: 27.75438596 | L12: 642.4678363 | M12: 79.47368421
A13: 2045 PM | B13: No Build | C13: 78.5 | D13: 83.2 | E13: 17 | F13: 3073 | G13: 71590 | H13: 8426 | I13: 117.3 | K13: 26.19778346 | L13: 610.3154305 | M13: 71.83290708
B14: Build | C14: 33.2 | D14: 37.8 | E14: 23 | F14: 2772 | G14: 63123 | H14: 7920 | I14: 100.5 | K14: 27.58208955 | L14: 628.0895522 | M14: 78.80597015
A15: Source: Based on transportation model simulations
A16: Note: Delays applicable to peak hour conditions. They are incremental to travel time impacts shown in table below.
A18: Volumes (ADT) and Travel Times for 51st Street Traffic | J18: Assumed Speeds
A19: Origin-Destination | C19: Distance (miles) - Build | D19: Travel Time (s) - Build | E19: Distance (miles) - No Build | F19: Travel Time (s) - No Build | G19: Daily Traffic Volume (2016) | H19: Daily Traffic Volume (2045) | J19: Union | K19: 35
A20: 51st East | B20: Union North | C20: 0.57 | D20: =3600*C20/K20 -> 58.62857143 | E20: 0.57 | F20: =3600*(E20/K21) -> 82.08 | G20: =80+1200 -> 1280 | H20: =120+1480 -> 1600 | J20: 51st St | K20: 35
A21: 51st East | B21: Union South/51st West | C21: 0.4 | D21: =3600*C21/K19 -> 41.14285714 | E21: =0.56+0.17 -> 0.73 | F21: =3600*(0.56/K21)+3600*(0.17/K19) -> 98.12571429 | G21: =1280+2240 -> 3520 | H21: =2440+1720 -> 4160 | J21: 49th | K21: 25
A22: Source: High-level calculations based on distances and allowed speeds (posted speeds) | G22: =G20+G21 -> 4800 | H22: =H20+H21 -> 5760
A23: Note: These travel times reflect "no traffic", or off-peak travel conditions.
C24: =C20+C21 -> 0.97 | E24: =E20+E21 -> 1.3

Sheet Pedestrian Traffic
A1: Developing Pedestrian Volumes in Project Location
A2: Tulsa, CT 49
A4: Item and Factor | B4: Unit | C4: Value | D4: Source and Comment
A5: Workers 16 Years and over in Tulsa CT 49 | C5: 709 | D5: US Census Bureau; ACS 5-Year Estimates Subject Tables, 2019.
A6: Means of transportation to work, Share | B6: % of Total | D6: US Census Bureau; ACS 5-Year Estimates Subject Tables
A7: Walk | C7: 0.024
A8: Public Transportation | C8: 0.014 | D8: Including public transportation trips in pedestrain volumes as walking is needed in order to access it.
A9: Work Commuting | B9: Number of People | D9: Calculated from inputs above.
A10: Walk | C10: =C7*C5 -> 17.016
A11: Public Transportation | C11: =C8*C5 -> 9.926
A12: Number of trips per person | B12: Number | C12: 2 | D12: Assuming a return trip by the same mode
A13: Percent of Public Transport trips with walk as access/egress mode | B13: % of Total | C13: 0.83 | D13: Based on NTHS data.
A14: Number of Walk Trips Related to Work | B14: Daily Number | G14: Source: FHWA, "Summary of Travel Trends: 2017 National Household Travel Survey", July 2018
A15: Work/Walk Commuting | C15: =C10*C12 -> 34.032 | E15: =C15*SUM(J20:N20)+C15 -> 525.3580404
A16: Transit Access | C16: =C11*C12*C13*2 -> 32.95432 | I16: Trips by Purpose | K16: 2017
A17: Other Walk Trips Made by Household Members, by Purpose | B17: Average Daily Number | D17: Extrapolated from walk commuting trips and walk multipliers for walk trips for other purposes shown Table to the right | I17: To/From Work (Work Trips) | J17: Work-related business | K17: Shopping and Errands | L17: School or Church | M17: Social and Recreation | N17: Other | O17: Total
A18: Work-related business | C18: =($C$15)*J20 -> 6.879239001 | H18: Number of trips | I18: 2523 | J18: 510 | K18: 11496 | L18: 4146 | M18: 18483 | N18: 1790 | O18: =SUM(I18:N18) -> 38948
A19: Shopping and Errands | C19: =($C$15)*K20 -> 155.0661403 | H19: Distribution | I19: =I18/$O$18 -> 0.06477867926 | J19: 0.01309438225 | K19: 0.2951627811 | L19: 0.1064496251 | M19: 0.474555818 | N19: 0.04595871418
A20: School or Church | C20: =($C$15)*L20 -> 55.92416647 | H20: As Trip Ratio to Work Trips - Walk Multipliers | I20: =I18/$I$18 -> 1 | J20: 0.2021403092 | K20: 4.55648038 | L20: 1.643281807 | M20: 7.325802616 | N20: 0.7094728498
A21: Social and Recreation | C21: =($C$15)*M20 -> 249.3117146 | H21: Note:
A22: Other | C22: =($C$15)*N20 -> 24.14478002 | H22: NHTS survey asked respondents to record the way they accessed public transport. So walk access/egress would be captured in the data.
A23: Total Walk Trips by Households in CT 49 | B23: Average Daily Number | C23: =SUM(C15:C22) -> 558.3123604 | D23: Calculated as sum of trips to work (when walking to work or walking to access transit) and walk trips for other purposes. | H23: It is not clear where this walk trip is classified (to/from work?), likely not as the number of such trips is greater (see table below).
H24: Pedestrian volumes calculations assume that to/from work trips are walk commuting trips. This is a conservative assumption resulting in overall lower pedestrian volumes.
A25: Walk Trips by Purpose which are local in CT 49
A26: Walk Trips by Purpose | B26: Percent in CT 49 | C26: Number in CT 49 - Average Daily | D26: Comment
A27: Work | B27: 1 | C27: =C15 -> 34.032 | D27: Typical walk commuting expected to start and end at home and thus have a local segment.
A28: Work-related business | B28: 0 | C28: =C18*B28 -> 0 | D28: Many such trips can be expected to start and end at work place, and be short trips in dense employment areas. Such trips are unlikely in CT 49.
A29: Shopping and Errands | B29: 0.25 | C29: =C19*B29 -> 38.76653508 | D29: CT 49 has a rather low density of places such as shops and services where people would be going for errands. Most errands and shoping with walk mode likely taking place in another CT. | H29: 2017 NHTS Data Extract
A30: School or Church | B30: 0.75 | C30: =C20*B30 -> 41.94312485 | D30: Most to/from school and church trips with walk mode can be expected to be local, e.g. children walking to school locally. | H30: Person Trips (Travel Day PT, annualized, millions)
A31: Social and Recreation | B31: 0.5 | C31: =C21*B31 -> 124.6558573 | D31: Many walk trips in this category can be expected to be local by their nature, e.g. walking a dog, visiting a neighbor, or going out for a walk. 50% share is assumed as a conservative assumption. | H31: 2017 National Household Travel Survey
A32: Other | B32: 0.5 | C32: =C22*B32 -> 12.07239001 | D32: Similar as above. | H32: Where TRPTRANS GT '-9' and TRACC_WLK GT '-9'
A33: Transit Access | B33: 0.5 | C33: =C16*B33 -> 16.47716 | D33: Only half of transit access trips will be local (from home to transit stop on the way to work and from transit stop to home on the way back), the other half will be in the vicinity of workplaces, likely located in another CT. | H33: Trip Mode, derived | I33: Travel Day Person Trips (Millions)
A34: Total | C34: =SUM(C27:C33) -> 267.9470673 | I34: Walk as mode used to get to public transit? | K34: All
I35: Yes | J35: No | L35: % Yes
H36: Public or commuter bus | I36: 4631 | J36: 655 | K36: 5286 | L36: =I36/K36 -> 0.876087779
A37: Walk Trips by Purpose | B37: Percent on 51st Street | C37: Average Daily Number | D37: Comment | H37: Amtrak / Commuter rail | I37: 419 | J37: 366 | K37: 785 | L37: =I37/K37 -> 0.5337579618
A38: Work | B38: 0.5 | C38: =C27*B38 -> 17.016 | D38: Conservative assumption used without knowledge of workplace and home locations. However, improved 51st Street may be seen as attractive for using it for walk commuting. | H38: Subway / elevated / light rail / street car | I38: 2803 | J38: 540 | K38: 3344 | L38: 0.8382177033
A39: Transit Access | B39: 0.75 | C39: =C33*B39 -> 12.35787 | D39: Transit stops located on 51st St and 49th St. | H39: All | I39: 7854 | J39: 1561 | K39: 9415 | L39: 0.8342007435
A40: Work-related business | B40: 0 | C40: =C28*B40 -> 0
A41: Shopping and Errands | B41: 0.75 | C41: =C29*B41 -> 29.07490131 | D41: Concentration of establishments on west end of 51st St can be expected to make the improved 51st St convenient for access.
A42: School or Church | B42: 0.1 | C42: =C30*B42 -> 4.194312485 | D42: Percentage expected to be small; two churches located at west end of 51st Street, other located further away.
A43: Social and Recreation | B43: 0.25 | C43: =C31*B43 -> 31.16396433 | D43: Conservative assumption, street will provide good access to trails along Arkansas River. However, given its location on the southern edge of CT 49 its use for other social and recreational uses may be less practical.
A44: Other | B44: 0.25 | C44: =C32*B44 -> 3.018097503 | D44: As above.
A45: Total | C45: =SUM(C38:C44) -> 96.82514562
C46: =C45/C34 -> 0.361359229
A47: Increase in volumes due to Build/latent demand | C47: 0 | D47: Conservative assumption given lack of data to support possible increase

Sheet Accident Data
A1: Accidents - Expected Number
A2: Source: calculated by Garver
A4: Note:
A5: The methodology first establishes a crash rate for an urban collector road. This crash rate is then applied to traffic volumes on 51st Street to forecast number of crashes.
A7: Urban Collector Crash Rate - Based on crashes on Union Ave
B9: Union Avenue Variables | F9: Calculated Crash Rate (R) | J9: UNION AVENUE CRASHES (maroon); TULSA CITY CRASHES (green) | U9: Length used for calculation
B10: Crashes | C10: C | D10: 50 | F10: =(D10*D15)/(D12*D13*D14*D11) -> 434.8771472 | G10: = | H10: Crash Rate (Urban Collector)
B11: Length | C11: L | D11: 1
B12: 2016 AADT | C12: V | D12: =3150+3150 -> 6300 | E12: =D12*D11*365 -> 2299500
B13: Days | C13: - | D13: 365 | E13: =10/(E12/1000000) -> 4.348771472
B14: Years | C14: N | D14: 5
B15: MVMT | C15: - | D15: 100000000
B28: AADT value came from prior I-44/US-75 Volume Graphics
J38: Crash Data is for years 2015 to 2019
J39: - 50 crashes returned along Union Avenue b/w 41st and 51st St.
A49: DISTRIBUTION OF CRASHES IN THE INTERCHANGE AREA (5 years of data)
B51: Roadway | C51: PDO | D51: Possible Injury | E51: Non-Incapacitating | F51: Suspected Serious | G51: Fatal | H51: TOTAL
B52: I-44 and US-75 | C52: 815 | D52: 388 | E52: 273 | F52: 59 | G52: 9 | H52: 1544
C53: =C52/$H$52 -> 0.5278497409 | D53: =D52/$H$52 -> 0.2512953368 | E53: 0.1768134715 | F53: 0.03821243523 | G53: 0.005829015544
B55: Urban Collector | C55: 25 | D55: 13 | E55: 11 | F55: 1 | G55: 0 | H55: =SUM(C55:G55) -> 50
C56: =C55/$H$55 -> 0.5 | D56: =D55/$H$55 -> 0.26 | E56: 0.22 | F56: 0.02 | G56: 0
B58: USE IN BCA | C58: =(C53+C56)/2 -> 0.5139248705 | D58: =(D53+D56)/2 -> 0.2556476684 | E58: 0.1984067358 | F58: 0.02910621762 | G58: 0.002914507772 | H58: <<< average of the two distributions
A60: 51st Street - 2016 No-Build
B62: 51st Street Variables | F62: Number of Expected Crashes (equation based) | L62: Length used for calculation
B63: CR - Urban Collector | C63: R | D63: =F10 -> 434.8771472 | E63: =D63*E69 -> 4.27047619 | F63: =(D63*D66*D67*D68*D65)/D69 -> 4.27047619 | G63: = | H63: Number of Expected Crashes
B65: Length | C65: L | D65: 0.57 | F65: Number of Expected Crashes (manually typed to see equation)
B66: 2016 AADT | C66: V | D66: 4720 | F66: R | G66: = | H66: (C * 100,000,000)/(V*365*N*L)
B67: Days | C67: - | D67: 365 | F67: C | G67: = | H67: (V*365*N*L*R)/100,000,000
B68: Years | C68: N | D68: 1 | F68: C | G68: = | H68: (4,720*365*0.57*434.88)/(100,000,000)
B69: MVMT | C69: - | D69: 100000000 | E69: =D66*D65*D67/D69 -> 0.00981996 | F69: C | G69: = | H69: (427,050,421)/(100,000,000)
F70: C | G70: = | H70: 4.2705
A95: 51st Street - 2016 Build
B97: 51st Street Variables | F97: Number of Expected Crashes (equation based) per 100 MVMT | L97: Length used for calculation
B98: CR - Urban Collector | C98: R | D98: =F10 -> 434.8771472 | F98: =(D98*D101*D102*D103*D100)/D104 -> 2.996825397 | G98: = | H98: Number of Expected Crashes
F99: 0.39 | G99: = | H99: Crash Reduction Factor
B100: Length | C100: L | D100: =0.4 -> 0.4 | F100: =F98*(1-F99) -> 1.828063492 | G100: = | H100: # of Expected Crashes w/ CMF Applied
B101: 2016 AADT | C101: V | D101: 4720
B102: Days | C102: - | D102: 365 | F102: Number of Expected Crashes (manually typed to see equation)
B103: Years | C103: N | D103: 1 | F103: R | G103: = | H103: (C * 100,000,000)/(V*365*N*L)
B104: MVMT | C104: - | D104: 100000000 | F104: C | G104: = | H104: (V*365*N*L*R)/100,000,000
F105: C | G105: = | H105: (4,720*365*0.4*434.88)/(100,000,000)
F106: C | G106: = | H106: (299,682,540)/(100,000,000)
F107: C | G107: = | H107: 2.9968
F108: 0.39 | G108: = | H108: Crash Reduction Factor
F109: =H107*(1-F108) -> 1.828048 | G109: = | H109: # of Expected Crashes w/ CMF Applied
H112: CMF ID: 7848
H113: Install a Traffic Signal
H114: Prior Condition: Stop-controlled Intersection
H115: Category: Intersection Traffic Control
A125: 51st Street - 2045 No-Build
B127: 51st Street Variables | F127: Number of Expected Crashes (equation based) per 100 MVMT | L127: Length used for calculation
B128: CR - Urban Collector | C128: R | D128: =F10 -> 434.8771472 | F128: =(D128*D131*D132*D133*D130)/D134 -> 5.102857143 | G128: = | H128: Number of Expected Crashes
B130: Length | C130: L | D130: 0.57 | F130: Number of Expected Crashes (manually typed to see equation)
B131: 2045 AADT | C131: V | D131: 5640 | F131: R | G131: = | H131: (C * 100,000,000)/(V*365*N*L)
B132: Days | C132: - | D132: 365 | F132: C | G132: = | H132: (V*365*N*L*R)/100,000,000
B133: Years | C133: N | D133: 1 | F133: C | G133: = | H133: (5,640*365*0.57*434.88)/(100,000,000)
B134: MVMT | C134: - | D134: 100000000 | F134: C | G134: = | H134: (510,285,714)/(100,000,000)
F135: C | G135: = | H135: 5.1029
A161: 51st Street - 2045 Build
B163: 51st Street Variables | F163: Number of Expected Crashes (equation based) per 100 MVMT | L163: Length used for calculation
B164: CR - Urban Collector | C164: R | D164: =F10 -> 434.8771472 | E164: ='[1]51st Street - 2045 No-Build'!D107:D108 -> 0 | F164: =(D164*D167*D168*D169*D166)/D170 -> 3.580952381 | G164: = | H164: Number of Expected Crashes
E165: 0 | F165: 0.39 | G165: = | H165: Crash Reduction Factor
B166: Length | C166: L | D166: =0.4 -> 0.4 | E166: ='[1]51st Street - 2045 No-Build'!D109 -> 0 | F166: =F164*(1-F165) -> 2.184380952 | G166: = | H166: # of Expected Crashes w/ CMF Applied
B167: 2045 AADT | C167: V | D167: 5640 | E167: ='[1]51st Street - 2045 No-Build'!D110 -> 0
B168: Days | C168: - | D168: 365 | E168: ='[1]51st Street - 2045 No-Build'!D111 -> 0 | F168: Number of Expected Crashes (manually typed to see equation)
B169: Years | C169: N | D169: 1 | E169: ='[1]51st Street - 2045 No-Build'!D112 -> 0 | F169: R | G169: = | H169: (C * 100,000,000)/(V*365*N*L)
B170: MVMT | C170: - | D170: 100000000 | E170: ='[1]51st Street - 2045 No-Build'!D113 -> 0 | F170: C | G170: = | H170: (V*365*N*L*R)/100,000,000
F171: C | G171: = | H171: (5,640*365*0.4*434.88)/(100,000,000)
F172: C | G172: = | H172: (358,095,238)/(100,000,000)
F173: C | G173: = | H173: 3.581
F174: 0.39 | G174: = | H174: Crash Reduction Factor
F175: =H173*(1-F174) -> 2.18441 | G175: = | H175: # of Expected Crashes w/ CMF Applied
H178: CMF ID: 7848
H179: Install a Traffic Signal
H180: Prior Condition: Stop-controlled Intersection
H181: Category: Intersection Traffic Control

Sheet Traffic
A1: Traffic Projections
K2: 1 | L2: =K2+1 -> 2 | M2: 3 | N2: 4 | O2: 5 | P2: 6 | Q2: 7 | R2: 8 | S2: 9 | T2: 10 | U2: 11 | V2: 12 | W2: 13 | X2: 14 | Y2: 15 | Z2: 16 | AA2: 17 | AB2: 18 | AC2: 19 | AD2: 20 | AE2: 21 | AF2: 22 | AG2: 23 | AH2: 24 | AI2: 25 | AJ2: 26 | AK2: 27 | AL2: 28 | AM2: =AL2+1 -> 29 | AN2: =AM2+1 -> 30
B3: Unit | C3: Value | D3: =2019 -> 2019 | E3: =D3+1 -> 2020 | F3: 2021 | G3: 2022 | H3: 2023 | I3: 2024 | J3: 2025 | K3: 2026 | L3: 2027 | M3: 2028 | N3: 2029 | O3: 2030 | P3: 2031 | Q3: 2032 | R3: 2033 | S3: 2034 | T3: 2035 | U3: 2036 | V3: 2037 | W3: 2038 | X3: 2039 | Y3: 2040 | Z3: 2041 | AA3: 2042 | AB3: 2043 | AC3: 2044 | AD3: 2045 | AE3: 2046 | AF3: 2047 | AG3: 2048 | AH3: 2049 | AI3: 2050 | AJ3: 2051 | AK3: 2052 | AL3: 2053 | AM3: 2054 | AN3: 2055
A5: Traffic on 51st Street
A6: 51st Street to Union Ave North | B6: ADT | D6: =Inputs!D19*(1+Inputs!D25)^(D3-2016) -> 1309.890955 | E6: =D6*(1+Inputs!$D$25) -> 1320.008926 | F6: =E6*(1+Inputs!$D$25) -> 1330.205051 | G6: =F6*(1+Inputs!$D$25) -> 1340.479934 | H6: =G6*(1+Inputs!$D$25) -> 1350.834182 | I6: =H6*(1+Inputs!$D$25) -> 1361.26841 | J6: =I6*(1+Inputs!$D$25) -> 1371.783235 | K6: =J6*(1+Inputs!$D$25) -> 1382.379279 | L6: =K6*(1+Inputs!$D$25) -> 1393.057171 | M6: =L6*(1+Inputs!$D$25) -> 1403.817541 | N6: =M6*(1+Inputs!$D$25) -> 1414.661027 | O6: =N6*(1+Inputs!$D$25) -> 1425.588272 | P6: =O6*(1+Inputs!$D$25) -> 1436.599922 | Q6: =P6*(1+Inputs!$D$25) -> 1447.696629 | R6: =Q6*(1+Inputs!$D$25) -> 1458.87905 | S6: =R6*(1+Inputs!$D$25) -> 1470.147847 | T6: =S6*(1+Inputs!$D$25) -> 1481.503688 | U6: =T6*(1+Inputs!$D$25) -> 1492.947244 | V6: =U6*(1+Inputs!$D$25) -> 1504.479194 | W6: =V6*(1+Inputs!$D$25) -> 1516.100219 | X6: =W6*(1+Inputs!$D$25) -> 1527.811009 | Y6: =X6*(1+Inputs!$D$25) -> 1539.612256 | Z6: =Y6*(1+Inputs!$D$25) -> 1551.50466 | AA6: =Z6*(1+Inputs!$D$25) -> 1563.488924 | AB6: =AA6*(1+Inputs!$D$25) -> 1575.565757 | AC6: =AB6*(1+Inputs!$D$25) -> 1587.735876 | AD6: =AC6*(1+Inputs!$D$25) -> 1600 | AE6: =AD6*(1+Inputs!$D$25) -> 1612.358856 | AF6: =AE6*(1+Inputs!$D$25) -> 1624.813175 | AG6: =AF6*(1+Inputs!$D$25) -> 1637.363694 | AH6: =AG6*(1+Inputs!$D$25) -> 1650.011158 | AI6: =AH6*(1+Inputs!$D$25) -> 1662.756314 | AJ6: =AI6*(1+Inputs!$D$25) -> 1675.599917 | AK6: =AJ6*(1+Inputs!$D$25) -> 1688.542728 | AL6: =AK6*(1+Inputs!$D$25) -> 1701.585513 | AM6: =AL6*(1+Inputs!$D$25) -> 1714.729044 | AN6: =AM6*(1+Inputs!$D$25) -> 1727.974099
A7: 51st Street to Union Ave South | D7: =Inputs!D20*(1+Inputs!D26)^(D3-2016) -> 3581.359392 | E7: =D7*(1+Inputs!$D$26) -> 3602.049296 | F7: =E7*(1+Inputs!$D$26) -> 3622.858728 | G7: =F7*(1+Inputs!$D$26) -> 3643.788378 | H7: =G7*(1+Inputs!$D$26) -> 3664.838942 | I7: =H7*(1+Inputs!$D$26) -> 3686.011116 | J7: =I7*(1+Inputs!$D$26) -> 3707.305605 | K7: =J7*(1+Inputs!$D$26) -> 3728.723114 | L7: =K7*(1+Inputs!$D$26) -> 3750.264355 | M7: =L7*(1+Inputs!$D$26) -> 3771.930041 | N7: =M7*(1+Inputs!$D$26) -> 3793.720893 | O7: =N7*(1+Inputs!$D$26) -> 3815.637633 | P7: =O7*(1+Inputs!$D$26) -> 3837.680988 | Q7: =P7*(1+Inputs!$D$26) -> 3859.85169 | R7: =Q7*(1+Inputs!$D$26) -> 3882.150475 | S7: =R7*(1+Inputs!$D$26) -> 3904.578082 | T7: =S7*(1+Inputs!$D$26) -> 3927.135256 | U7: =T7*(1+Inputs!$D$26) -> 3949.822745 | V7: =U7*(1+Inputs!$D$26) -> 3972.641302 | W7: =V7*(1+Inputs!$D$26) -> 3995.591685 | X7: =W7*(1+Inputs!$D$26) -> 4018.674654 | Y7: =X7*(1+Inputs!$D$26) -> 4041.890976 | Z7: =Y7*(1+Inputs!$D$26) -> 4065.241422 | AA7: =Z7*(1+Inputs!$D$26) -> 4088.726765 | AB7: =AA7*(1+Inputs!$D$26) -> 4112.347786 | AC7: =AB7*(1+Inputs!$D$26) -> 4136.105268 | AD7: =AC7*(1+Inputs!$D$26) -> 4160 | AE7: =AD7*(1+Inputs!$D$26) -> 4184.032774 | AF7: =AE7*(1+Inputs!$D$26) -> 4208.204388 | AG7: =AF7*(1+Inputs!$D$26) -> 4232.515645 | AH7: =AG7*(1+Inputs!$D$26) -> 4256.96735 | AI7: =AH7*(1+Inputs!$D$26) -> 4281.560315 | AJ7: =AI7*(1+Inputs!$D$26) -> 4306.295356 | AK7: =AJ7*(1+Inputs!$D$26) -> 4331.173295 | AL7: =AK7*(1+Inputs!$D$26) -> 4356.194956 | AM7: =AL7*(1+Inputs!$D$26) -> 4381.361169 | AN7: =AM7*(1+Inputs!$D$26) -> 4406.672771
A9: Share of Traffic - Auto | B9: % | D9: =1-ShareTruck -> 0.92 | E9: =1-ShareTruck -> 0.92 | F9: 0.92 | G9: 0.92 | H9: 0.92 | I9: 0.92 | J9: 0.92 | K9: 0.92 | L9: 0.92 | M9: 0.92 | N9: 0.92 | O9: 0.92 | P9: 0.92 | Q9: 0.92 | R9: 0.92 | S9: 0.92 | T9: 0.92 | U9: 0.92 | V9: 0.92 | W9: 0.92 | X9: 0.92 | Y9: 0.92 | Z9: 0.92 | AA9: 0.92 | AB9: 0.92 | AC9: 0.92 | AD9: 0.92 | AE9: 0.92 | AF9: 0.92 | AG9: 0.92 | AH9: 0.92 | AI9: 0.92 | AJ9: 0.92 | AK9: 0.92 | AL9: 0.92 | AM9: 0.92 | AN9: 0.92
A10: Share of Traffic - Trucks | B10: % | D10: =Inputs!$D$27 -> 0.08 | E10: =Inputs!$D$27 -> 0.08 | F10: =Inputs!$D$27 -> 0.08 | G10: =Inputs!$D$27 -> 0.08 | H10: =Inputs!$D$27 -> 0.08 | I10: =Inputs!$D$27 -> 0.08 | J10: =Inputs!$D$27 -> 0.08 | K10: =Inputs!$D$27 -> 0.08 | L10: =Inputs!$D$27 -> 0.08 | M10: =Inputs!$D$27 -> 0.08 | N10: =Inputs!$D$27 -> 0.08 | O10: =Inputs!$D$27 -> 0.08 | P10: =Inputs!$D$27 -> 0.08 | Q10: =Inputs!$D$27 -> 0.08 | R10: =Inputs!$D$27 -> 0.08 | S10: =Inputs!$D$27 -> 0.08 | T10: =Inputs!$D$27 -> 0.08 | U10: =Inputs!$D$27 -> 0.08 | V10: =Inputs!$D$27 -> 0.08 | W10: =Inputs!$D$27 -> 0.08 | X10: =Inputs!$D$27 -> 0.08 | Y10: =Inputs!$D$27 -> 0.08 | Z10: =Inputs!$D$27 -> 0.08 | AA10: =Inputs!$D$27 -> 0.08 | AB10: =Inputs!$D$27 -> 0.08 | AC10: =Inputs!$D$27 -> 0.08 | AD10: =Inputs!$D$27 -> 0.08 | AE10: =Inputs!$D$27 -> 0.08 | AF10: =Inputs!$D$27 -> 0.08 | AG10: =Inputs!$D$27 -> 0.08 | AH10: =Inputs!$D$27 -> 0.08 | AI10: =Inputs!$D$27 -> 0.08 | AJ10: =Inputs!$D$27 -> 0.08 | AK10: =Inputs!$D$27 -> 0.08 | AL10: =Inputs!$D$27 -> 0.08 | AM10: =Inputs!$D$27 -> 0.08 | AN10: =Inputs!$D$27 -> 0.08
A11: Auto Traffic | D11: =(D6+D7)*D9 -> 4499.950319 | E11: =(E6+E7)*E9 -> 4528.293564 | F11: 4556.818676 | G11: 4585.526847 | H11: 4614.419274 | I11: 4643.497164 | J11: 4672.761733 | K11: 4702.214202 | L11: 4731.855803 | M11: 4761.687776 | N11: 4791.711367 | O11: 4821.927832 | P11: 4852.338437 | Q11: 4882.944453 | R11: 4913.747162 | S11: 4944.747854 | T11: 4975.947828 | U11: 5007.34839 | V11: 5038.950856 | W11: 5070.756552 | X11: 5102.76681 | Y11: 5134.982974 | Z11: 5167.406395 | AA11: 5200.038434 | AB11: 5232.88046 | AC11: 5265.933853 | AD11: 5299.2 | AE11: 5332.680299 | AF11: 5366.376158 | AG11: 5400.288992 | AH11: 5434.420227 | AI11: 5468.771298 | AJ11: 5503.343651 | AK11: 5538.138741 | AL11: 5573.158031 | AM11: =(AM6+AM7)*AM9 -> 5608.402996 | AN11: 5643.875121
A12: Truck Traffic | D12: =(D6+D7)*D10 -> 391.3000278 | E12: =(E6+E7)*E10 -> 393.7646578 | F12: 396.2451023 | G12: 398.7414649 | H12: 401.2538499 | I12: 403.7823621 | J12: 406.3271072 | K12: 408.8881915 | L12: 411.465722 | M12: 414.0598066 | N12: 416.6705536 | O12: 419.2980724 | P12: 421.9424728 | Q12: 424.6038655 | R12: 427.2823619 | S12: 429.9780743 | T12: 432.6911155 | U12: 435.4215991 | V12: 438.1696396 | W12: 440.9353523 | X12: 443.718853 | Y12: 446.5202586 | Z12: 449.3396865 | AA12: 452.1772551 | AB12: 455.0330835 | AC12: 457.9072915 | AD12: 460.8 | AE12: 463.7113304 | AF12: 466.641405 | AG12: 469.5903471 | AH12: 472.5582806 | AI12: 475.5453303 | AJ12: 478.5516218 | AK12: 481.5772818 | AL12: 484.6224375 | AM12: =(AM6+AM7)*AM10 -> 487.6872171 | AN12: 490.7717496
A14: Daily VMT without Project/No Build | B14: Unit | C14: Value | D14: 2019 | E14: =D14+1 -> 2020 | F14: 2021 | G14: 2022 | H14: 2023 | I14: 2024 | J14: 2025 | K14: 2026 | L14: 2027 | M14: 2028 | N14: 2029 | O14: 2030 | P14: 2031 | Q14: 2032 | R14: 2033 | S14: 2034 | T14: 2035 | U14: 2036 | V14: 2037 | W14: 2038 | X14: 2039 | Y14: 2040 | Z14: 2041 | AA14: 2042 | AB14: 2043 | AC14: =AB14+1 -> 2044 | AD14: =AC14+1 -> 2045 | AE14: =AD14+1 -> 2046 | AF14: =AE14+1 -> 2047 | AG14: =AF14+1 -> 2048 | AH14: =AG14+1 -> 2049 | AI14: =AH14+1 -> 2050 | AJ14: =AI14+1 -> 2051 | AK14: =AJ14+1 -> 2052 | AL14: =AK14+1 -> 2053 | AM14: =AL14+1 -> 2054 | AN14: =AM14+1 -> 2055
A15: Traffic on 51st Street
A16: 51st Street to Union Ave North | B16: Daily VMT | D16: =D6*Inputs!$D$30 -> 746.6378446 | E16: =E6*Inputs!$D$30 -> 752.4050879 | F16: =F6*Inputs!$D$30 -> 758.2168791 | G16: =G6*Inputs!$D$30 -> 764.0735621 | H16: =H6*Inputs!$D$30 -> 769.9754839 | I16: =I6*Inputs!$D$30 -> 775.9229938 | J16: =J6*Inputs!$D$30 -> 781.916444 | K16: =K6*Inputs!$D$30 -> 787.9561893 | L16: =L6*Inputs!$D$30 -> 794.0425873 | M16: =M6*Inputs!$D$30 -> 800.1759983 | N16: =N6*Inputs!$D$30 -> 806.3567856 | O16: =O6*Inputs!$D$30 -> 812.585315 | P16: =P6*Inputs!$D$30 -> 818.8619554 | Q16: =Q6*Inputs!$D$30 -> 825.1870783 | R16: =R6*Inputs!$D$30 -> 831.5610583 | S16: =S6*Inputs!$D$30 -> 837.9842727 | T16: =T6*Inputs!$D$30 -> 844.4571019 | U16: =U6*Inputs!$D$30 -> 850.979929 | V16: =V6*Inputs!$D$30 -> 857.5531403 | W16: =W6*Inputs!$D$30 -> 864.177125 | X16: =X6*Inputs!$D$30 -> 870.8522752 | Y16: =Y6*Inputs!$D$30 -> 877.5789861 | Z16: =Z6*Inputs!$D$30 -> 884.3576561 | AA16: =AA6*Inputs!$D$30 -> 891.1886865 | AB16: =AB6*Inputs!$D$30 -> 898.0724817 | AC16: =AC6*Inputs!$D$30 -> 905.0094493 | AD16: =AD6*Inputs!$D$30 -> 912 | AE16: =AE6*Inputs!$D$30 -> 919.0445477 | AF16: =AF6*Inputs!$D$30 -> 926.1435095 | AG16: =AG6*Inputs!$D$30 -> 933.2973057 | AH16: =AH6*Inputs!$D$30 -> 940.5063599 | AI16: =AI6*Inputs!$D$30 -> 947.7710988 | AJ16: =AJ6*Inputs!$D$30 -> 955.0919527 | AK16: =AK6*Inputs!$D$30 -> 962.4693549 | AL16: =AL6*Inputs!$D$30 -> 969.9037423 | AM16: =AM6*Inputs!$D$30 -> 977.395555 | AN16: =AN6*Inputs!$D$30 -> 984.9452366
A17: 51st Street to Union Ave South | B17: Daily VMT | D17: =D7*Inputs!$D$33 -> 2614.392356 | E17: =E7*Inputs!$D$33 -> 2629.495986 | F17: =F7*Inputs!$D$33 -> 2644.686871 | G17: =G7*Inputs!$D$33 -> 2659.965516 | H17: =H7*Inputs!$D$33 -> 2675.332427 | I17: =I7*Inputs!$D$33 -> 2690.788115 | J17: =J7*Inputs!$D$33 -> 2706.333092 | K17: =K7*Inputs!$D$33 -> 2721.967873 | L17: =L7*Inputs!$D$33 -> 2737.692979 | M17: =M7*Inputs!$D$33 -> 2753.50893 | N17: =N7*Inputs!$D$33 -> 2769.416252 | O17: =O7*Inputs!$D$33 -> 2785.415472 | P17: =P7*Inputs!$D$33 -> 2801.507121 | Q17: =Q7*Inputs!$D$33 -> 2817.691734 | R17: =R7*Inputs!$D$33 -> 2833.969846 | S17: =S7*Inputs!$D$33 -> 2850.342 | T17: =T7*Inputs!$D$33 -> 2866.808737 | U17: =U7*Inputs!$D$33 -> 2883.370604 | V17: =V7*Inputs!$D$33 -> 2900.02815 | W17: =W7*Inputs!$D$33 -> 2916.78193 | X17: =X7*Inputs!$D$33 -> 2933.632497 | Y17: =Y7*Inputs!$D$33 -> 2950.580413 | Z17: =Z7*Inputs!$D$33 -> 2967.626238 | AA17: =AA7*Inputs!$D$33 -> 2984.770539 | AB17: =AB7*Inputs!$D$33 -> 3002.013884 | AC17: =AC7*Inputs!$D$33 -> 3019.356846 | AD17: =AD7*Inputs!$D$33 -> 3036.8 | AE17: =AE7*Inputs!$D$33 -> 3054.343925 | AF17: =AF7*Inputs!$D$33 -> 3071.989203 | AG17: =AG7*Inputs!$D$33 -> 3089.736421 | AH17: =AH7*Inputs!$D$33 -> 3107.586165 | AI17: =AI7*Inputs!$D$33 -> 3125.53903 | AJ17: =AJ7*Inputs!$D$33 -> 3143.59561 | AK17: =AK7*Inputs!$D$33 -> 3161.756505 | AL17: =AL7*Inputs!$D$33 -> 3180.022318 | AM17: =AM7*Inputs!$D$33 -> 3198.393654 | AN17: =AN7*Inputs!$D$33 -> 3216.871123
A18: Total VMT Travelled | D18: =D16+D17 -> 3361.0302 | E18: =E16+E17 -> 3381.901074 | F18: 3402.90375 | G18: 3424.039078 | H18: 3445.307911 | I18: 3466.711109 | J18: 3488.249536 | K18: 3509.924063 | L18: 3531.735566 | M18: 3553.684928 | N18: 3575.773037 | O18: 3598.000787 | P18: 3620.369077 | Q18: 3642.878812 | R18: 3665.530905 | S18: 3688.326272 | T18: 3711.265839 | U18: 3734.350533 | V18: 3757.581291 | W18: 3780.959055 | X18: 3804.484773 | Y18: 3828.159399 | Z18: 3851.983894 | AA18: 3875.959225 | AB18: 3900.086366 | AC18: 3924.366295 | AD18: 3948.8 | AE18: 3973.388473 | AF18: 3998.132713 | AG18: 4023.033726 | AH18: 4048.092525 | AI18: 4073.310129 | AJ18: 4098.687563 | AK18: 4124.22586 | AL18: 4149.92606 | AM18: =AM16+AM17 -> 4175.789209 | AN18: 4201.81636
A19: Autos | D19: =D18*D9 -> 3092.147784 | E19: =E18*E9 -> 3111.348988 | F19: =F18*F9 -> 3130.67145 | G19: 3150.115952 | H19: 3169.683278 | I19: 3189.37422 | J19: 3209.189573 | K19: 3229.130138 | L19: 3249.196721 | M19: 3269.390134 | N19: 3289.711194 | O19: 3310.160724 | P19: 3330.73955 | Q19: 3351.448507 | R19: 3372.288432 | S19: 3393.260171 | T19: 3414.364571 | U19: 3435.60249 | V19: 3456.974788 | W19: 3478.48233 | X19: 3500.125991 | Y19: 3521.906647 | Z19: 3543.825182 | AA19: 3565.882487 | AB19: 3588.079456 | AC19: 3610.416992 | AD19: 3632.896 | AE19: 3655.517395 | AF19: 3678.282096 | AG19: 3701.191028 | AH19: 3724.245123 | AI19: 3747.445318 | AJ19: 3770.792558 | AK19: 3794.287791 | AL19: 3817.931975 | AM19: =AM18*AM9 -> 3841.726072 | AN19: 3865.671051
A20: Trucks | D20: =D18*D10 -> 268.882416 | E20: =E18*E10 -> 270.5520859 | F20: 272.2323 | G20: 273.9231263 | H20: 275.6246329 | I20: 277.3368887 | J20: 279.0599628 | K20: 280.793925 | L20: 282.5388453 | M20: 284.2947943 | N20: 286.061843 | O20: 287.840063 | P20: 289.6295261 | Q20: 291.430305 | R20: 293.2424724 | S20: 295.0661018 | T20: 296.9012671 | U20: 298.7480426 | V20: 300.6065033 | W20: 302.4767244 | X20: 304.3587818 | Y20: 306.2527519 | Z20: 308.1587115 | AA20: 310.076738 | AB20: 312.0069092 | AC20: 313.9493036 | AD20: 315.904 | AE20: 317.8710778 | AF20: 319.850617 | AG20: 321.8426981 | AH20: 323.847402 | AI20: 325.8648103 | AJ20: 327.895005 | AK20: 329.9380688 | AL20: 331.9940848 | AM20: =AM18*AM10 -> 334.0631367 | AN20: 336.1453088
A22: Daily VMT with Project/Build | B22: Unit | C22: Value | D22: 2019 | E22: =D22+1 -> 2020 | F22: 2021 | G22: 2022 | H22: 2023 | I22: 2024 | J22: 2025 | K22: 2026 | L22: 2027 | M22: 2028 | N22: 2029 | O22: 2030 | P22: 2031 | Q22: 2032 | R22: 2033 | S22: 2034 | T22: 2035 | U22: 2036 | V22: 2037 | W22: 2038 | X22: 2039 | Y22: 2040 | Z22: 2041 | AA22: 2042 | AB22: 2043 | AC22: =AB22+1 -> 2044 | AD22: =AC22+1 -> 2045 | AE22: =AD22+1 -> 2046 | AF22: =AE22+1 -> 2047 | AG22: =AF22+1 -> 2048 | AH22: =AG22+1 -> 2049 | AI22: =AH22+1 -> 2050 | AJ22: =AI22+1 -> 2051 | AK22: =AJ22+1 -> 2052 | AL22: =AK22+1 -> 2053 | AM22: =AL22+1 -> 2054 | AN22: =AM22+1 -> 2055
A23: Traffic on 51st Street
A24: 51st Street to Union Ave North | B24: Daily VMT | D24: =D6*Inputs!$D$31 -> 746.6378446 | E24: =E6*Inputs!$D$31 -> 752.4050879 | F24: =F6*Inputs!$D$31 -> 758.2168791 | G24: =G6*Inputs!$D$31 -> 764.0735621 | H24: =H6*Inputs!$D$31 -> 769.9754839 | I24: =I6*Inputs!$D$31 -> 775.9229938 | J24: =J6*Inputs!$D$31 -> 781.916444 | K24: =K6*Inputs!$D$31 -> 787.9561893 | L24: =L6*Inputs!$D$31 -> 794.0425873 | M24: =M6*Inputs!$D$31 -> 800.1759983 | N24: =N6*Inputs!$D$31 -> 806.3567856 | O24: =O6*Inputs!$D$31 -> 812.585315 | P24: =P6*Inputs!$D$31 -> 818.8619554 | Q24: =Q6*Inputs!$D$31 -> 825.1870783 | R24: =R6*Inputs!$D$31 -> 831.5610583 | S24: =S6*Inputs!$D$31 -> 837.9842727 | T24: =T6*Inputs!$D$31 -> 844.4571019 | U24: =U6*Inputs!$D$31 -> 850.979929 | V24: =V6*Inputs!$D$31 -> 857.5531403 | W24: =W6*Inputs!$D$31 -> 864.177125 | X24: =X6*Inputs!$D$31 -> 870.8522752 | Y24: =Y6*Inputs!$D$31 -> 877.5789861 | Z24: =Z6*Inputs!$D$31 -> 884.3576561 | AA24: =AA6*Inputs!$D$31 -> 891.1886865 | AB24: =AB6*Inputs!$D$31 -> 898.0724817 | AC24: =AC6*Inputs!$D$31 -> 905.0094493 | AD24: =AD6*Inputs!$D$31 -> 912 | AE24: =AE6*Inputs!$D$31 -> 919.0445477 | AF24: =AF6*Inputs!$D$31 -> 926.1435095 | AG24: =AG6*Inputs!$D$31 -> 933.2973057 | AH24: =AH6*Inputs!$D$31 -> 940.5063599 | AI24: =AI6*Inputs!$D$31 -> 947.7710988 | AJ24: =AJ6*Inputs!$D$31 -> 955.0919527 | AK24: =AK6*Inputs!$D$31 -> 962.4693549 | AL24: =AL6*Inputs!$D$31 -> 969.9037423 | AM24: =AM6*Inputs!$D$31 -> 977.395555 | AN24: =AN6*Inputs!$D$31 -> 984.9452366
A25: 51st Street to Union Ave South | B25: Daily VMT | D25: =D7*Inputs!$D$34 -> 1432.543757 | E25: =E7*Inputs!$D$34 -> 1440.819718 | F25: =F7*Inputs!$D$34 -> 1449.143491 | G25: =G7*Inputs!$D$34 -> 1457.515351 | H25: =H7*Inputs!$D$34 -> 1465.935577 | I25: =I7*Inputs!$D$34 -> 1474.404446 | J25: =J7*Inputs!$D$34 -> 1482.922242 | K25: =K7*Inputs!$D$34 -> 1491.489246 | L25: =L7*Inputs!$D$34 -> 1500.105742 | M25: =M7*Inputs!$D$34 -> 1508.772017 | N25: =N7*Inputs!$D$34 -> 1517.488357 | O25: =O7*Inputs!$D$34 -> 1526.255053 | P25: =P7*Inputs!$D$34 -> 1535.072395 | Q25: =Q7*Inputs!$D$34 -> 1543.940676 | R25: =R7*Inputs!$D$34 -> 1552.86019 | S25: =S7*Inputs!$D$34 -> 1561.831233 | T25: =T7*Inputs!$D$34 -> 1570.854102 | U25: =U7*Inputs!$D$34 -> 1579.929098 | V25: =V7*Inputs!$D$34 -> 1589.056521 | W25: =W7*Inputs!$D$34 -> 1598.236674 | X25: =X7*Inputs!$D$34 -> 1607.469862 | Y25: =Y7*Inputs!$D$34 -> 1616.75639 | Z25: =Z7*Inputs!$D$34 -> 1626.096569 | AA25: =AA7*Inputs!$D$34 -> 1635.490706 | AB25: =AB7*Inputs!$D$34 -> 1644.939114 | AC25: =AC7*Inputs!$D$34 -> 1654.442107 | AD25: =AD7*Inputs!$D$34 -> 1664 | AE25: =AE7*Inputs!$D$34 -> 1673.61311 | AF25: =AF7*Inputs!$D$34 -> 1683.281755 | AG25: =AG7*Inputs!$D$34 -> 1693.006258 | AH25: =AH7*Inputs!$D$34 -> 1702.78694 | AI25: =AI7*Inputs!$D$34 -> 1712.624126 | AJ25: =AJ7*Inputs!$D$34 -> 1722.518142 | AK25: =AK7*Inputs!$D$34 -> 1732.469318 | AL25: =AL7*Inputs!$D$34 -> 1742.477982 | AM25: =AM7*Inputs!$D$34 -> 1752.544468 | AN25: =AN7*Inputs!$D$34 -> 1762.669108
A26: Total VMT Travelled | B26: Daily VMT | D26: =D24+D25 -> 2179.181601 | E26: =E24+E25 -> 2193.224806 | F26: 2207.36037 | G26: 2221.588913 | H26: 2235.911061 | I26: 2250.32744 | J26: 2264.838686 | K26: 2279.445435 | L26: 2294.148329 | M26: 2308.948015 | N26: 2323.845143 | O26: 2338.840368 | P26: 2353.934351 | Q26: 2369.127754 | R26: 2384.421248 | S26: 2399.815505 | T26: 2415.311204 | U26: 2430.909027 | V26: 2446.609661 | W26: 2462.413799 | X26: 2478.322137 | Y26: 2494.335377 | Z26: 2510.454225 | AA26: 2526.679393 | AB26: 2543.011596 | AC26: 2559.451557 | AD26: 2576 | AE26: 2592.657657 | AF26: 2609.425265 | AG26: 2626.303564 | AH26: 2643.2933 | AI26: 2660.395225 | AJ26: 2677.610095 | AK26: 2694.938673 | AL26: 2712.381724 | AM26: =AM24+AM25 -> 2729.940023 | AN26: 2747.614345
A27: Autos | D27: =D26*D9 -> 2004.847073 | E27: =E26*E9 -> 2017.766822 | F27: 2030.771541 | G27: 2043.8618 | H27: 2057.038176 | I27: 2070.301245 | J27: 2083.651591 | K27: 2097.0898 | L27: 2110.616463 | M27: 2124.232174 | N27: 2137.937531 | O27: 2151.733139 | P27: 2165.619603 | Q27: 2179.597534 | R27: 2193.667548 | S27: 2207.830265 | T27: 2222.086308 | U27: 2236.436305 | V27: 2250.880888 | W27: 2265.420695 | X27: 2280.056366 | Y27: 2294.788546 | Z27: 2309.617887 | AA27: 2324.545041 | AB27: 2339.570668 | AC27: 2354.695432 | AD27: 2369.92 | AE27: 2385.245045 | AF27: 2400.671244 | AG27: 2416.199278 | AH27: 2431.829836 | AI27: 2447.563607 | AJ27: 2463.401288 | AK27: 2479.343579 | AL27: 2495.391187 | AM27: =AM26*AM9 -> 2511.544821 | AN27: 2527.805197
A28: Trucks | D28: =D26*D10 -> 174.3345281 | E28: =E26*E10 -> 175.4579845 | F28: 176.5888296 | G28: 177.7271131 | H28: 178.8728848 | I28: 180.0261952 | J28: 181.1870949 | K28: 182.3556348 | L28: 183.5318663 | M28: 184.7158412 | N28: 185.9076114 | O28: 187.1072295 | P28: 188.314748 | Q28: 189.5302203 | R28: 190.7536999 | S28: 191.9852404 | T28: 193.2248963 | U28: 194.4727222 | V28: 195.7287729 | W28: 196.9931039 | X28: 198.2657709 | Y28: 199.5468301 | Z28: 200.836338 | AA28: 202.1343514 | AB28: 203.4409277 | AC28: 204.7561245 | AD28: 206.08 | AE28: 207.4126126 | AF28: 208.7540212 | AG28: 210.1042851 | AH28: 211.463464 | AI28: 212.831618 | AJ28: 214.2088076 | AK28: 215.5950938 | AL28: 216.990538 | AM28: =AM26*AM10 -> 218.3952018 | AN28: 219.8091476
A30: Key Quantified Impacts
A31: Total Daily Auto VMT Avoided | B31: Daily VMT | D31: =D19-D27 -> 1087.300711 | E31: =E19-E27 -> 1093.582166 | F31: 1099.89991 | G31: 1106.254152 | H31: 1112.645103 | I31: 1119.072975 | J31: 1125.537982 | K31: 1132.040337 | L31: 1138.580258 | M31: 1145.157961 | N31: 1151.773663 | O31: 1158.427585 | P31: 1165.119948 | Q31: 1171.850973 | R31: 1178.620884 | S31: 1185.429906 | T31: 1192.278264 | U31: 1199.166185 | V31: 1206.093899 | W31: 1213.061635 | X31: 1220.069625 | Y31: 1227.1181 | Z31: 1234.207296 | AA31: 1241.337446 | AB31: 1248.508788 | AC31: 1255.721559 | AD31: 1262.976 | AE31: 1270.27235 | AF31: 1277.610852 | AG31: 1284.99175 | AH31: 1292.415287 | AI31: 1299.881712 | AJ31: 1307.39127 | AK31: 1314.944212 | AL31: 1322.540788 | AM31: =AM19-AM27 -> 1330.181251 | AN31: 1337.865853
A32: Total Daily Trucks VMT Avoided | B32: Daily VMT | D32: =D20-D28 -> 94.54788794 | E32: =E20-E28 -> 95.09410141 | F32: 95.64347041 | G32: 96.19601319 | H32: 96.75174806 | I32: 97.31069347 | J32: 97.87286797 | K32: 98.43829021 | L32: 99.00697896 | M32: 99.57895309 | N32: 100.1542316 | O32: 100.7328335 | P32: 101.3147781 | Q32: 101.9000846 | R32: 102.4887725 | S32: 103.0808614 | T32: 103.6763707 | U32: 104.2753205 | V32: 104.8777304 | W32: 105.4836205 | X32: 106.0930109 | Y32: 106.7059218 | Z32: 107.3223735 | AA32: 107.9423866 | AB32: 108.5659816 | AC32: 109.1931791 | AD32: 109.824 | AE32: 110.4584652 | AF32: 111.0965959 | AG32: 111.738413 | AH32: 112.383938 | AI32: 113.0331923 | AJ32: 113.6861974 | AK32: 114.342975 | AL32: 115.0035468 | AM32: =AM20-AM28 -> 115.6679349 | AN32: 116.3361612
A35: Daily Pedestrian Volumes | B35: Unit | C35: Value | D35: 2019 | E35: =D35+1 -> 2020 | F35: =E35+1 -> 2021 | G35: =F35+1 -> 2022 | H35: =G35+1 -> 2023 | I35: =H35+1 -> 2024 | J35: =I35+1 -> 2025 | K35: =J35+1 -> 2026 | L35: =K35+1 -> 2027 | M35: =L35+1 -> 2028 | N35: =M35+1 -> 2029 | O35: =N35+1 -> 2030 | P35: =O35+1 -> 2031 | Q35: =P35+1 -> 2032 | R35: =Q35+1 -> 2033 | S35: =R35+1 -> 2034 | T35: =S35+1 -> 2035 | U35: =T35+1 -> 2036 | V35: =U35+1 -> 2037 | W35: =V35+1 -> 2038 | X35: =W35+1 -> 2039 | Y35: =X35+1 -> 2040 | Z35: =Y35+1 -> 2041 | AA35: =Z35+1 -> 2042 | AB35: =AA35+1 -> 2043 | AC35: =AB35+1 -> 2044 | AD35: =AC35+1 -> 2045 | AE35: =AD35+1 -> 2046 | AF35: =AE35+1 -> 2047 | AG35: =AF35+1 -> 2048 | AH35: =AG35+1 -> 2049 | AI35: =AH35+1 -> 2050 | AJ35: =AI35+1 -> 2051 | AK35: =AJ35+1 -> 2052 | AL35: =AK35+1 -> 2053 | AM35: =AL35+1 -> 2054 | AN35: =AM35+1 -> 2055
A36: No Build | B36: Daily Number | D36: =Inputs!D99 -> 96.82514562 | E36: =D36*(1+Inputs!$D$100) -> 97.43579806 | F36: =E36*(1+Inputs!$D$100) -> 98.05030172 | G36: =F36*(1+Inputs!$D$100) -> 98.66868091 | H36: =G36*(1+Inputs!$D$100) -> 99.29096007 | I36: =H36*(1+Inputs!$D$100) -> 99.91716379 | J36: =I36*(1+Inputs!$D$100) -> 100.5473168 | K36: =J36*(1+Inputs!$D$100) -> 101.1814441 | L36: =K36*(1+Inputs!$D$100) -> 101.8195706 | M36: =L36*(1+Inputs!$D$100) -> 102.4617216 | N36: =M36*(1+Inputs!$D$100) -> 103.1079226 | O36: =N36*(1+Inputs!$D$100) -> 103.7581989 | P36: =O36*(1+Inputs!$D$100) -> 104.4125764 | Q36: =P36*(1+Inputs!$D$100) -> 105.0710809 | R36: =Q36*(1+Inputs!$D$100) -> 105.7337385 | S36: =R36*(1+Inputs!$D$100) -> 106.4005752 | T36: =S36*(1+Inputs!$D$100) -> 107.0716175 | U36: =T36*(1+Inputs!$D$100) -> 107.7468919 | V36: =U36*(1+Inputs!$D$100) -> 108.4264251 | W36: =V36*(1+Inputs!$D$100) -> 109.110244 | X36: =W36*(1+Inputs!$D$100) -> 109.7983755 | Y36: =X36*(1+Inputs!$D$100) -> 110.4908469 | Z36: =Y36*(1+Inputs!$D$100) -> 111.1876856 | AA36: =Z36*(1+Inputs!$D$100) -> 111.888919 | AB36: =AA36*(1+Inputs!$D$100) -> 112.594575 | AC36: =AB36*(1+Inputs!$D$100) -> 113.3046813 | AD36: =AC36*(1+Inputs!$D$100) -> 114.0192662 | AE36: =AD36*(1+Inputs!$D$100) -> 114.7383577 | AF36: =AE36*(1+Inputs!$D$100) -> 115.4619843 | AG36: =AF36*(1+Inputs!$D$100) -> 116.1901747 | AH36: =AG36*(1+Inputs!$D$100) -> 116.9229577 | AI36: =AH36*(1+Inputs!$D$100) -> 117.6603621 | AJ36: =AI36*(1+Inputs!$D$100) -> 118.4024171 | AK36: =AJ36*(1+Inputs!$D$100) -> 119.1491521 | AL36: =AK36*(1+Inputs!$D$100) -> 119.9005965 | AM36: =AL36*(1+Inputs!$D$100) -> 120.6567802 | AN36: =AM36*(1+Inputs!$D$100) -> 121.4177329
A37: Build | D37: =D36*(1+Inputs!$D$101) -> 96.82514562 | E37: =E36*(1+Inputs!$D$101) -> 97.43579806 | F37: =F36*(1+Inputs!$D$101) -> 98.05030172 | G37: =G36*(1+Inputs!$D$101) -> 98.66868091 | H37: =H36*(1+Inputs!$D$101) -> 99.29096007 | I37: =I36*(1+Inputs!$D$101) -> 99.91716379 | J37: =J36*(1+Inputs!$D$101) -> 100.5473168 | K37: =K36*(1+Inputs!$D$101) -> 101.1814441 | L37: =L36*(1+Inputs!$D$101) -> 101.8195706 | M37: =M36*(1+Inputs!$D$101) -> 102.4617216 | N37: =N36*(1+Inputs!$D$101) -> 103.1079226 | O37: =O36*(1+Inputs!$D$101) -> 103.7581989 | P37: =P36*(1+Inputs!$D$101) -> 104.4125764 | Q37: =Q36*(1+Inputs!$D$101) -> 105.0710809 | R37: =R36*(1+Inputs!$D$101) -> 105.7337385 | S37: =S36*(1+Inputs!$D$101) -> 106.4005752 | T37: =T36*(1+Inputs!$D$101) -> 107.0716175 | U37: =U36*(1+Inputs!$D$101) -> 107.7468919 | V37: =V36*(1+Inputs!$D$101) -> 108.4264251 | W37: =W36*(1+Inputs!$D$101) -> 109.110244 | X37: =X36*(1+Inputs!$D$101) -> 109.7983755 | Y37: =Y36*(1+Inputs!$D$101) -> 110.4908469 | Z37: =Z36*(1+Inputs!$D$101) -> 111.1876856 | AA37: =AA36*(1+Inputs!$D$101) -> 111.888919 | AB37: =AB36*(1+Inputs!$D$101) -> 112.594575 | AC37: =AC36*(1+Inputs!$D$101) -> 113.3046813 | AD37: =AD36*(1+Inputs!$D$101) -> 114.0192662 | AE37: =AE36*(1+Inputs!$D$101) -> 114.7383577 | AF37: =AF36*(1+Inputs!$D$101) -> 115.4619843 | AG37: =AG36*(1+Inputs!$D$101) -> 116.1901747 | AH37: =AH36*(1+Inputs!$D$101) -> 116.9229577 | AI37: =AI36*(1+Inputs!$D$101) -> 117.6603621 | AJ37: =AJ36*(1+Inputs!$D$101) -> 118.4024171 | AK37: =AK36*(1+Inputs!$D$101) -> 119.1491521 | AL37: =AL36*(1+Inputs!$D$101) -> 119.9005965 | AM37: =AM36*(1+Inputs!$D$101) -> 120.6567802 | AN37: =AN36*(1+Inputs!$D$101) -> 121.4177329

Sheet Calc-1
A1: Travel Time Saving
D3: Base Year | E3: =BaseYear -> 2020
B4: Unit | C4: Value | D4: 2019 | E4: =D4+1 -> 2020 | F4: 2021 | G4: 2022 | H4: 2023 | I4: 2024 | J4: 2025 | K4: 2026 | L4: 2027 | M4: 2028 | N4: 2029 | O4: 2030 | P4: 2031 | Q4: 2032 | R4: 2033 | S4: 2034 | T4: 2035 | U4: 2036 | V4: 2037 | W4: 2038 | X4: 2039 | Y4: 2040 | Z4: 2041 | AA4: 2042 | AB4: 2043 | AC4: =AB4+1 -> 2044 | AD4: =AC4+1 -> 2045 | AE4: =AD4+1 -> 2046 | AF4: =AE4+1 -> 2047 | AG4: =AF4+1 -> 2048 | AH4: =AG4+1 -> 2049 | AI4: =AH4+1 -> 2050 | AJ4: =AI4+1 -> 2051 | AK4: =AJ4+1 -> 2052 | AL4: =AK4+1 -> 2053 | AM4: =AL4+1 -> 2054 | AN4: =AM4+1 -> 2055
A5: Benefits Index | B5: Number | D5: 0 | E5: 0 | F5: 0 | G5: 0 | H5: 0 | I5: 0 | J5: 0 | K5: 1 | L5: 2 | M5: 3 | N5: 4 | O5: 5 | P5: 6 | Q5: 7 | R5: 8 | S5: 9 | T5: 10 | U5: 11 | V5: 12 | W5: 13 | X5: 14 | Y5: 15 | Z5: 16 | AA5: 17 | AB5: 18 | AC5: 19 | AD5: 20 | AE5: 21 | AF5: 22 | AG5: 23 | AH5: 24 | AI5: 25 | AJ5: 26 | AK5: 27 | AL5: 28 | AM5: 29 | AN5: 30
A6: Discount Factor | B6: % | C6: 0.07 | D6: =1/(1+Inputs!$D$4)^(D4-$E$3) -> 1.07 | E6: =1/(1+Inputs!$D$4)^(E4-$E$3) -> 1 | F6: =1/(1+Inputs!$D$4)^(F4-$E$3) -> 0.9345794393 | G6: =1/(1+Inputs!$D$4)^(G4-$E$3) -> 0.8734387283 | H6: =1/(1+Inputs!$D$4)^(H4-$E$3) -> 0.8162978769 | I6: =1/(1+Inputs!$D$4)^(I4-$E$3) -> 0.762895212 | J6: =1/(1+Inputs!$D$4)^(J4-$E$3) -> 0.7129861795 | K6: =1/(1+Inputs!$D$4)^(K4-$E$3) -> 0.6663422238 | L6: =1/(1+Inputs!$D$4)^(L4-$E$3) -> 0.6227497419 | M6: =1/(1+Inputs!$D$4)^(M4-$E$3) -> 0.5820091046 | N6: =1/(1+Inputs!$D$4)^(N4-$E$3) -> 0.5439337426 | O6: =1/(1+Inputs!$D$4)^(O4-$E$3) -> 0.5083492921 | P6: =1/(1+Inputs!$D$4)^(P4-$E$3) -> 0.4750927964 | Q6: =1/(1+Inputs!$D$4)^(Q4-$E$3) -> 0.4440119592 | R6: =1/(1+Inputs!$D$4)^(R4-$E$3) -> 0.4149644479 | S6: =1/(1+Inputs!$D$4)^(S4-$E$3) -> 0.387817241 | T6: =1/(1+Inputs!$D$4)^(T4-$E$3) -> 0.3624460196 | U6: =1/(1+Inputs!$D$4)^(U4-$E$3) -> 0.3387345978 | V6: =1/(1+Inputs!$D$4)^(V4-$E$3) -> 0.3165743905 | W6: =1/(1+Inputs!$D$4)^(W4-$E$3) -> 0.2958639163 | X6: =1/(1+Inputs!$D$4)^(X4-$E$3) -> 0.276508333 | Y6: =1/(1+Inputs!$D$4)^(Y4-$E$3) -> 0.2584190028 | Z6: =1/(1+Inputs!$D$4)^(Z4-$E$3) -> 0.2415130867 | AA6: =1/(1+Inputs!$D$4)^(AA4-$E$3) -> 0.2257131652 | AB6: =1/(1+Inputs!$D$4)^(AB4-$E$3) -> 0.2109468833 | AC6: =1/(1+Inputs!$D$4)^(AC4-$E$3) -> 0.1971466199 | AD6: =1/(1+Inputs!$D$4)^(AD4-$E$3) -> 0.1842491775 | AE6: =1/(1+Inputs!$D$4)^(AE4-$E$3) -> 0.172195493 | AF6: =1/(1+Inputs!$D$4)^(AF4-$E$3) -> 0.1609303673 | AG6: =1/(1+Inputs!$D$4)^(AG4-$E$3) -> 0.1504022124 | AH6: =1/(1+Inputs!$D$4)^(AH4-$E$3) -> 0.1405628154 | AI6: =1/(1+Inputs!$D$4)^(AI4-$E$3) -> 0.1313671172 | AJ6: =1/(1+Inputs!$D$4)^(AJ4-$E$3) -> 0.1227730067 | AK6: =1/(1+Inputs!$D$4)^(AK4-$E$3) -> 0.1147411277 | AL6: =1/(1+Inputs!$D$4)^(AL4-$E$3) -> 0.1072346988 | AM6: =1/(1+Inputs!$D$4)^(AM4-$E$3) -> 0.1002193447 | AN6: =1/(1+Inputs!$D$4)^(AN4-$E$3) -> 0.09366293897
A7: Discount Factor | B7: % | C7: 0.03 | D7: =1/(1+Inputs!$D$5)^(D4-$E$3) -> 1.03 | E7: =1/(1+Inputs!$D$5)^(E4-$E$3) -> 1 | F7: =1/(1+Inputs!$D$5)^(F4-$E$3) -> 0.9708737864 | G7: =1/(1+Inputs!$D$5)^(G4-$E$3) -> 0.9425959091 | H7: =1/(1+Inputs!$D$5)^(H4-$E$3) -> 0.9151416594 | I7: =1/(1+Inputs!$D$5)^(I4-$E$3) -> 0.8884870479 | J7: =1/(1+Inputs!$D$5)^(J4-$E$3) -> 0.8626087844 | K7: =1/(1+Inputs!$D$5)^(K4-$E$3) -> 0.8374842567 | L7: =1/(1+Inputs!$D$5)^(L4-$E$3) -> 0.8130915113 | M7: =1/(1+Inputs!$D$5)^(M4-$E$3) -> 0.7894092343 | N7: =1/(1+Inputs!$D$5)^(N4-$E$3) -> 0.7664167323 | O7: =1/(1+Inputs!$D$5)^(O4-$E$3) -> 0.7440939149 | P7: =1/(1+Inputs!$D$5)^(P4-$E$3) -> 0.7224212766 | Q7: =1/(1+Inputs!$D$5)^(Q4-$E$3) -> 0.7013798802 | R7: =1/(1+Inputs!$D$5)^(R4-$E$3) -> 0.68095134 | S7: =1/(1+Inputs!$D$5)^(S4-$E$3) -> 0.6611178058 | T7: =1/(1+Inputs!$D$5)^(T4-$E$3) -> 0.6418619474 | U7: =1/(1+Inputs!$D$5)^(U4-$E$3) -> 0.6231669392 | V7: =1/(1+Inputs!$D$5)^(V4-$E$3) -> 0.6050164458 | W7: =1/(1+Inputs!$D$5)^(W4-$E$3) -> 0.5873946076 | X7: =1/(1+Inputs!$D$5)^(X4-$E$3) -> 0.5702860268 | Y7: =1/(1+Inputs!$D$5)^(Y4-$E$3) -> 0.5536757542 | Z7: =1/(1+Inputs!$D$5)^(Z4-$E$3) -> 0.5375492759 | AA7: =1/(1+Inputs!$D$5)^(AA4-$E$3) -> 0.5218925009 | AB7: =1/(1+Inputs!$D$5)^(AB4-$E$3) -> 0.5066917484 | AC7: =1/(1+Inputs!$D$5)^(AC4-$E$3) -> 0.4919337363 | AD7: =1/(1+Inputs!$D$5)^(AD4-$E$3) -> 0.4776055693 | AE7: =1/(1+Inputs!$D$5)^(AE4-$E$3) -> 0.4636947274 | AF7: =1/(1+Inputs!$D$5)^(AF4-$E$3) -> 0.4501890558 | AG7: =1/(1+Inputs!$D$5)^(AG4-$E$3) -> 0.4370767532 | AH7: =1/(1+Inputs!$D$5)^(AH4-$E$3) -> 0.4243463623 | AI7: =1/(1+Inputs!$D$5)^(AI4-$E$3) -> 0.4119867595 | AJ7: =1/(1+Inputs!$D$5)^(AJ4-$E$3) -> 0.3999871452 | AK7: =1/(1+Inputs!$D$5)^(AK4-$E$3) -> 0.3883370341 | AL7: =1/(1+Inputs!$D$5)^(AL4-$E$3) -> 0.3770262467 | AM7: =1/(1+Inputs!$D$5)^(AM4-$E$3) -> 0.3660448997 | AN7: =1/(1+Inputs!$D$5)^(AN4-$E$3) -> 0.3553833978
A9: Traffic on 51st Street
A10: 51st Street to Union Ave North | B10: ADT | D10: =Traffic!D6 -> 1309.890955 | E10: =Traffic!E6 -> 1320.008926 | F10: =Traffic!F6 -> 1330.205051 | G10: =Traffic!G6 -> 1340.479934 | H10: =Traffic!H6 -> 1350.834182 | I10: =Traffic!I6 -> 1361.26841 | J10: =Traffic!J6 -> 1371.783235 | K10: =Traffic!K6 -> 1382.379279 | L10: =Traffic!L6 -> 1393.057171 | M10: =Traffic!M6 -> 1403.817541 | N10: =Traffic!N6 -> 1414.661027 | O10: =Traffic!O6 -> 1425.588272 | P10: =Traffic!P6 -> 1436.599922 | Q10: =Traffic!Q6 -> 1447.696629 | R10: =Traffic!R6 -> 1458.87905 | S10: =Traffic!S6 -> 1470.147847 | T10: =Traffic!T6 -> 1481.503688 | U10: =Traffic!U6 -> 1492.947244 | V10: =Traffic!V6 -> 1504.479194 | W10: =Traffic!W6 -> 1516.100219 | X10: =Traffic!X6 -> 1527.811009 | Y10: =Traffic!Y6 -> 1539.612256 | Z10: =Traffic!Z6 -> 1551.50466 | AA10: =Traffic!AA6 -> 1563.488924 | AB10: =Traffic!AB6 -> 1575.565757 | AC10: =Traffic!AC6 -> 1587.735876 | AD10: =Traffic!AD6 -> 1600 | AE10: =Traffic!AE6 -> 1612.358856 | AF10: =Traffic!AF6 -> 1624.813175 | AG10: =Traffic!AG6 -> 1637.363694 | AH10: =Traffic!AH6 -> 1650.011158 | AI10: =Traffic!AI6 -> 1662.756314 | AJ10: =Traffic!AJ6 -> 1675.599917 | AK10: =Traffic!AK6 -> 1688.542728 | AL10: =Traffic!AL6 -> 1701.585513 | AM10: =Traffic!AM6 -> 1714.729044 | AN10: =Traffic!AN6 -> 1727.974099
A11: 51st Street to Union Ave South | B11: ADT | D11: =Traffic!D7 -> 3581.359392 | E11: =Traffic!E7 -> 3602.049296 | F11: =Traffic!F7 -> 3622.858728 | G11: =Traffic!G7 -> 3643.788378 | H11: =Traffic!H7 -> 3664.838942 | I11: =Traffic!I7 -> 3686.011116 | J11: =Traffic!J7 -> 3707.305605 | K11: =Traffic!K7 -> 3728.723114 | L11: =Traffic!L7 -> 3750.264355 | M11: =Traffic!M7 -> 3771.930041 | N11: =Traffic!N7 -> 3793.720893 | O11: =Traffic!O7 -> 3815.637633 | P11: =Traffic!P7 -> 3837.680988 | Q11: =Traffic!Q7 -> 3859.85169 | R11: =Traffic!R7 -> 3882.150475 | S11: =Traffic!S7 -> 3904.578082 | T11: =Traffic!T7 -> 3927.135256 | U11: =Traffic!U7 -> 3949.822745 | V11: =Traffic!V7 -> 3972.641302 | W11: =Traffic!W7 -> 3995.591685 | X11: =Traffic!X7 -> 4018.674654 | Y11: =Traffic!Y7 -> 4041.890976 | Z11: =Traffic!Z7 -> 4065.241422 | AA11: =Traffic!AA7 -> 4088.726765 | AB11: =Traffic!AB7 -> 4112.347786 | AC11: =Traffic!AC7 -> 4136.105268 | AD11: =Traffic!AD7 -> 4160 | AE11: =Traffic!AE7 -> 4184.032774 | AF11: =Traffic!AF7 -> 4208.204388 | AG11: =Traffic!AG7 -> 4232.515645 | AH11: =Traffic!AH7 -> 4256.96735 | AI11: =Traffic!AI7 -> 4281.560315 | AJ11: =Traffic!AJ7 -> 4306.295356 | AK11: =Traffic!AK7 -> 4331.173295 | AL11: =Traffic!AL7 -> 4356.194956 | AM11: =Traffic!AM7 -> 4381.361169 | AN11: =Traffic!AN7 -> 4406.672771
A13: Share of Traffic - Auto | B13: % | D13: =1-ShareTruck -> 0.92 | E13: 0.92 | F13: 0.92 | G13: 0.92 | H13: 0.92 | I13: 0.92 | J13: 0.92 | K13: 0.92 | L13: 0.92 | M13: 0.92 | N13: 0.92 | O13: 0.92 | P13: 0.92 | Q13: 0.92 | R13: 0.92 | S13: 0.92 | T13: 0.92 | U13: 0.92 | V13: 0.92 | W13: 0.92 | X13: 0.92 | Y13: 0.92 | Z13: 0.92 | AA13: 0.92 | AB13: 0.92 | AC13: 0.92 | AD13: 0.92 | AE13: 0.92 | AF13: 0.92 | AG13: 0.92 | AH13: 0.92 | AI13: 0.92 | AJ13: 0.92 | AK13: 0.92 | AL13: 0.92 | AM13: 0.92 | AN13: 0.92
A14: Share of Traffic - Trucks | B14: % | D14: =ShareTruck -> 0.08 | E14: 0.08 | F14: 0.08 | G14: 0.08 | H14: 0.08 | I14: 0.08 | J14: 0.08 | K14: 0.08 | L14: 0.08 | M14: 0.08 | N14: 0.08 | O14: 0.08 | P14: 0.08 | Q14: 0.08 | R14: 0.08 | S14: 0.08 | T14: 0.08 | U14: 0.08 | V14: 0.08 | W14: 0.08 | X14: 0.08 | Y14: 0.08 | Z14: 0.08 | AA14: 0.08 | AB14: 0.08 | AC14: 0.08 | AD14: 0.08 | AE14: 0.08 | AF14: 0.08 | AG14: 0.08 | AH14: 0.08 | AI14: 0.08 | AJ14: 0.08 | AK14: 0.08 | AL14: 0.08 | AM14: 0.08 | AN14: 0.08
A15: Average Vehicle Occupancy - Auto | B15: persons/vehicle | D15: =Avg_Veh_Occ -> 1.67 | E15: 1.67 | F15: 1.67 | G15: 1.67 | H15: 1.67 | I15: 1.67 | J15: 1.67 | K15: 1.67 | L15: 1.67 | M15: 1.67 | N15: 1.67 | O15: 1.67 | P15: 1.67 | Q15: 1.67 | R15: 1.67 | S15: 1.67 | T15: 1.67 | U15: 1.67 | V15: 1.67 | W15: 1.67 | X15: 1.67 | Y15: 1.67 | Z15: 1.67 | AA15: 1.67 | AB15: 1.67 | AC15: 1.67 | AD15: 1.67 | AE15: 1.67 | AF15: 1.67 | AG15: 1.67 | AH15: 1.67 | AI15: 1.67 | AJ15: 1.67 | AK15: 1.67 | AL15: 1.67 | AM15: 1.67 | AN15: 1.67
A16: Average Vehicle Occupancy - Truck | B16: persons/vehicle | D16: =Inputs!$D$129 -> 1 | E16: =Inputs!$D$129 -> 1 | F16: =Inputs!$D$129 -> 1 | G16: =Inputs!$D$129 -> 1 | H16: =Inputs!$D$129 -> 1 | I16: =Inputs!$D$129 -> 1 | J16: =Inputs!$D$129 -> 1 | K16: =Inputs!$D$129 -> 1 | L16: =Inputs!$D$129 -> 1 | M16: =Inputs!$D$129 -> 1 | N16: =Inputs!$D$129 -> 1 | O16: =Inputs!$D$129 -> 1 | P16: =Inputs!$D$129 -> 1 | Q16: =Inputs!$D$129 -> 1 | R16: =Inputs!$D$129 -> 1 | S16: =Inputs!$D$129 -> 1 | T16: =Inputs!$D$129 -> 1 | U16: =Inputs!$D$129 -> 1 | V16: =Inputs!$D$129 -> 1 | W16: =Inputs!$D$129 -> 1 | X16: =Inputs!$D$129 -> 1 | Y16: =Inputs!$D$129 -> 1 | Z16: =Inputs!$D$129 -> 1 | AA16: =Inputs!$D$129 -> 1 | AB16: =Inputs!$D$129 -> 1 | AC16: =Inputs!$D$129 -> 1 | AD16: =Inputs!$D$129 -> 1 | AE16: =Inputs!$D$129 -> 1 | AF16: =Inputs!$D$129 -> 1 | AG16: =Inputs!$D$129 -> 1 | AH16: =Inputs!$D$129 -> 1 | AI16: =Inputs!$D$129 -> 1 | AJ16: =Inputs!$D$129 -> 1 | AK16: =Inputs!$D$129 -> 1 | AL16: =Inputs!$D$129 -> 1 | AM16: =Inputs!$D$129 -> 1 | AN16: =Inputs!$D$129 -> 1
A17: Average Vehicle Occupancy - All Vehicles | B17: persons/vehicle | D17: =D13*D15 + D14*D16 -> 1.6164 | E17: =E13*E15 + E14*E16 -> 1.6164 | F17: 1.6164 | G17: 1.6164 | H17: 1.6164 | I17: 1.6164 | J17: 1.6164 | K17: 1.6164 | L17: 1.6164 | M17: 1.6164 | N17: 1.6164 | O17: 1.6164 | P17: 1.6164 | Q17: 1.6164 | R17: 1.6164 | S17: 1.6164 | T17: 1.6164 | U17: 1.6164 | V17: 1.6164 | W17: 1.6164 | X17: 1.6164 | Y17: 1.6164 | Z17: 1.6164 | AA17: 1.6164 | AB17: 1.6164 | AC17: 1.6164 | AD17: 1.6164 | AE17: 1.6164 | AF17: 1.6164 | AG17: 1.6164 | AH17: 1.6164 | AI17: 1.6164 | AJ17: 1.6164 | AK17: 1.6164 | AL17: 1.6164 | AM17: =AM13*AM15 + AM14*AM16 -> 1.6164 | AN17: 1.6164
A19: No Build Case Alternative | B19: Unit | C19: Value | D19: 2019 | E19: =D19+1 -> 2020 | F19: 2021 | G19: 2022 | H19: 2023 | I19: 2024 | J19: 2025 | K19: 2026 | L19: 2027 | M19: 2028 | N19: 2029 | O19: 2030 | P19: 2031 | Q19: 2032 | R19: 2033 | S19: 2034 | T19: 2035 | U19: 2036 | V19: 2037 | W19: 2038 | X19: 2039 | Y19: 2040 | Z19: 2041 | AA19: 2042 | AB19: 2043 | AC19: =AB19+1 -> 2044 | AD19: =AC19+1 -> 2045 | AE19: =AD19+1 -> 2046 | AF19: =AE19+1 -> 2047 | AG19: =AF19+1 -> 2048 | AH19: =AG19+1 -> 2049 | AI19: =AH19+1 -> 2050 | AJ19: =AI19+1 -> 2051 | AK19: =AJ19+1 -> 2052 | AL19: =AK19+1 -> 2053 | AM19: =AL19+1 -> 2054 | AN19: =AM19+1 -> 2055
A21: Travel Times for 51st Street Traffic, by OD Pairs | B21: Daily Vehicle-hours
A22: 51st Street to Union Ave North | D22: =D10*Inputs!$D$37/3600 -> 29.86551378 | E22: =E10*Inputs!$D$37/3600 -> 30.09620352 | F22: =F10*Inputs!$D$37/3600 -> 30.32867516 | G22: =G10*Inputs!$D$37/3600 -> 30.56294249 | H22: =H10*Inputs!$D$37/3600 -> 30.79901936 | I22: =I10*Inputs!$D$37/3600 -> 31.03691975 | J22: =J10*Inputs!$D$37/3600 -> 31.27665776 | K22: =K10*Inputs!$D$37/3600 -> 31.51824757 | L22: =L10*Inputs!$D$37/3600 -> 31.76170349 | M22: =M10*Inputs!$D$37/3600 -> 32.00703993 | N22: =N10*Inputs!$D$37/3600 -> 32.25427142 | O22: =O10*Inputs!$D$37/3600 -> 32.5034126 | P22: =P10*Inputs!$D$37/3600 -> 32.75447822 | Q22: =Q10*Inputs!$D$37/3600 -> 33.00748313 | R22: =R10*Inputs!$D$37/3600 -> 33.26244233 | S22: =S10*Inputs!$D$37/3600 -> 33.51937091 | T22: =T10*Inputs!$D$37/3600 -> 33.77828408 | U22: =U10*Inputs!$D$37/3600 -> 34.03919716 | V22: =V10*Inputs!$D$37/3600 -> 34.30212561 | W22: =W10*Inputs!$D$37/3600 -> 34.567085 | X22: =X10*Inputs!$D$37/3600 -> 34.83409101 | Y22: =Y10*Inputs!$D$37/3600 -> 35.10315945 | Z22: =Z10*Inputs!$D$37/3600 -> 35.37430625 | AA22: =AA10*Inputs!$D$37/3600 -> 35.64754746 | AB22: =AB10*Inputs!$D$37/3600 -> 35.92289927 | AC22: =AC10*Inputs!$D$37/3600 -> 36.20037797 | AD22: =AD10*Inputs!$D$37/3600 -> 36.48 | AE22: =AE10*Inputs!$D$37/3600 -> 36.76178191 | AF22: =AF10*Inputs!$D$37/3600 -> 37.04574038 | AG22: =AG10*Inputs!$D$37/3600 -> 37.33189223 | AH22: =AH10*Inputs!$D$37/3600 -> 37.62025439 | AI22: =AI10*Inputs!$D$37/3600 -> 37.91084395 | AJ22: =AJ10*Inputs!$D$37/3600 -> 38.20367811 | AK22: =AK10*Inputs!$D$37/3600 -> 38.4987742 | AL22: =AL10*Inputs!$D$37/3600 -> 38.79614969 | AM22: =AM10*Inputs!$D$37/3600 -> 39.0958222 | AN22: =AN10*Inputs!$D$37/3600 -> 39.39780946
A23: 51st Street to Union Ave South | D23: =D11*Inputs!$D$40/3600 -> 97.61762456 | E23: =E11*Inputs!$D$40/3600 -> 98.18157223 | F23: =F11*Inputs!$D$40/3600 -> 98.7487779 | G23: =G11*Inputs!$D$40/3600 -> 99.31926037 | H23: =H11*Inputs!$D$40/3600 -> 99.89303858 | I23: =I11*Inputs!$D$40/3600 -> 100.4701316 | J23: =J11*Inputs!$D$40/3600 -> 101.0505585 | K23: =K11*Inputs!$D$40/3600 -> 101.6343386 | L23: =L11*Inputs!$D$40/3600 -> 102.2214913 | M23: =M11*Inputs!$D$40/3600 -> 102.812036 | N23: =N11*Inputs!$D$40/3600 -> 103.4059923 | O23: =O11*Inputs!$D$40/3600 -> 104.00338 | P23: =P11*Inputs!$D$40/3600 -> 104.6042189 | Q23: =Q11*Inputs!$D$40/3600 -> 105.2085289 | R23: =R11*Inputs!$D$40/3600 -> 105.8163301 | S23: =S11*Inputs!$D$40/3600 -> 106.4276426 | T23: =T11*Inputs!$D$40/3600 -> 107.0424867 | U23: =U11*Inputs!$D$40/3600 -> 107.6608828 | V23: =V11*Inputs!$D$40/3600 -> 108.2828515 | W23: =W11*Inputs!$D$40/3600 -> 108.9084133 | X23: =X11*Inputs!$D$40/3600 -> 109.5375891 | Y23: =Y11*Inputs!$D$40/3600 -> 110.1703998 | Z23: =Z11*Inputs!$D$40/3600 -> 110.8068662 | AA23: =AA11*Inputs!$D$40/3600 -> 111.4470095 | AB23: =AB11*Inputs!$D$40/3600 -> 112.0908511 | AC23: =AC11*Inputs!$D$40/3600 -> 112.7384122 | AD23: =AD11*Inputs!$D$40/3600 -> 113.3897143 | AE23: =AE11*Inputs!$D$40/3600 -> 114.044779 | AF23: =AF11*Inputs!$D$40/3600 -> 114.7036282 | AG23: =AG11*Inputs!$D$40/3600 -> 115.3662836 | AH23: =AH11*Inputs!$D$40/3600 -> 116.0327672 | AI23: =AI11*Inputs!$D$40/3600 -> 116.7031011 | AJ23: =AJ11*Inputs!$D$40/3600 -> 117.3773077 | AK23: =AK11*Inputs!$D$40/3600 -> 118.0554092 | AL23: =AL11*Inputs!$D$40/3600 -> 118.7374282 | AM23: =AM11*Inputs!$D$40/3600 -> 119.4233873 | AN23: =AN11*Inputs!$D$40/3600 -> 120.1133092
A24: Total | D24: =D22+D23 -> 127.4831383 | E24: =E22+E23 -> 128.2777757 | F24: 129.0774531 | G24: 129.8822029 | H24: 130.6920579 | I24: 131.5070513 | J24: 132.3272162 | K24: 133.1525862 | L24: 133.9831948 | M24: 134.8190759 | N24: 135.6602638 | O24: 136.5067926 | P24: 137.3586971 | Q24: 138.2160121 | R24: 139.0787724 | S24: 139.9470135 | T24: 140.8207708 | U24: 141.70008 | V24: 142.5849771 | W24: 143.4754983 | X24: 144.3716801 | Y24: 145.2735592 | Z24: 146.1811724 | AA24: 147.094557 | AB24: 148.0137504 | AC24: 148.9387901 | AD24: 149.8697143 | AE24: 150.806561 | AF24: 151.7493686 | AG24: 152.6981758 | AH24: 153.6530216 | AI24: 154.6139451 | AJ24: 155.5809858 | AK24: 156.5541834 | AL24: 157.5335779 | AM24: =AM22+AM23 -> 158.5192095 | AN24: 159.5111187
A25: Total Cost of Travel Time on 51st Street | B25: $ Annually | D25: =D24*365*Inputs!$D$137*$D$17 -> 1424238.421 | E25: =E24*365*Inputs!$D$137*$D$17 -> 1433116.09 | F25: =F24*365*Inputs!$D$137*$D$17 -> 1442050.065 | G25: =G24*365*Inputs!$D$137*$D$17 -> 1451040.71 | H25: =H24*365*Inputs!$D$137*$D$17 -> 1460088.39 | I25: =I24*365*Inputs!$D$137*$D$17 -> 1469193.476 | J25: =J24*365*Inputs!$D$137*$D$17 -> 1478356.338 | K25: =K24*365*Inputs!$D$137*$D$17 -> 1487577.35 | L25: =L24*365*Inputs!$D$137*$D$17 -> 1496856.888 | M25: =M24*365*Inputs!$D$137*$D$17 -> 1506195.332 | N25: =N24*365*Inputs!$D$137*$D$17 -> 1515593.061 | O25: =O24*365*Inputs!$D$137*$D$17 -> 1525050.461 | P25: =P24*365*Inputs!$D$137*$D$17 -> 1534567.916 | Q25: =Q24*365*Inputs!$D$137*$D$17 -> 1544145.817 | R25: =R24*365*Inputs!$D$137*$D$17 -> 1553784.554 | S25: =S24*365*Inputs!$D$137*$D$17 -> 1563484.521 | T25: =T24*365*Inputs!$D$137*$D$17 -> 1573246.116 | U25: =U24*365*Inputs!$D$137*$D$17 -> 1583069.736 | V25: =V24*365*Inputs!$D$137*$D$17 -> 1592955.785 | W25: =W24*365*Inputs!$D$137*$D$17 -> 1602904.666 | X25: =X24*365*Inputs!$D$137*$D$17 -> 1612916.786 | Y25: =Y24*365*Inputs!$D$137*$D$17 -> 1622992.556 | Z25: =Z24*365*Inputs!$D$137*$D$17 -> 1633132.389 | AA25: =AA24*365*Inputs!$D$137*$D$17 -> 1643336.698 | AB25: =AB24*365*Inputs!$D$137*$D$17 -> 1653605.903 | AC25: =AC24*365*Inputs!$D$137*$D$17 -> 1663940.425 | AD25: =AD24*365*Inputs!$D$137*$D$17 -> 1674340.686 | AE25: =AE24*365*Inputs!$D$137*$D$17 -> 1684807.113 | AF25: =AF24*365*Inputs!$D$137*$D$17 -> 1695340.136 | AG25: =AG24*365*Inputs!$D$137*$D$17 -> 1705940.187 | AH25: =AH24*365*Inputs!$D$137*$D$17 -> 1716607.7 | AI25: =AI24*365*Inputs!$D$137*$D$17 -> 1727343.113 | AJ25: =AJ24*365*Inputs!$D$137*$D$17 -> 1738146.868 | AK25: =AK24*365*Inputs!$D$137*$D$17 -> 1749019.407 | AL25: =AL24*365*Inputs!$D$137*$D$17 -> 1759961.178 | AM25: =AM24*365*Inputs!$D$137*$D$17 -> 1770972.629 | AN25: =AN24*365*Inputs!$D$137*$D$17 -> 1782054.214
A27: Delays on Intersections | B27: Daily Vehicle-hours
A28: AM (One Hour) | D28: =Inputs!D45*(1+Inputs!D59)^(D4-2016) -> 16.87256494 | E28: =D28*(1+Inputs!$D$59) -> 17.35658363 | F28: =E28*(1+Inputs!$D$59) -> 17.85448722 | G28: =F28*(1+Inputs!$D$59) -> 18.36667404 | H28: =G28*(1+Inputs!$D$59) -> 18.89355383 | I28: =H28*(1+Inputs!$D$59) -> 19.43554807 | J28: =I28*(1+Inputs!$D$59) -> 19.99309036 | K28: =J28*(1+Inputs!$D$59) -> 20.56662671 | L28: =K28*(1+Inputs!$D$59) -> 21.15661594 | M28: =L28*(1+Inputs!$D$59) -> 21.76353003 | N28: =M28*(1+Inputs!$D$59) -> 22.3878545 | O28: =N28*(1+Inputs!$D$59) -> 23.0300888 | P28: =O28*(1+Inputs!$D$59) -> 23.69074669 | Q28: =P28*(1+Inputs!$D$59) -> 24.3703567 | R28: =Q28*(1+Inputs!$D$59) -> 25.0694625 | S28: =R28*(1+Inputs!$D$59) -> 25.78862336 | T28: =S28*(1+Inputs!$D$59) -> 26.52841459 | U28: =T28*(1+Inputs!$D$59) -> 27.28942801 | V28: =U28*(1+Inputs!$D$59) -> 28.07227241 | W28: =V28*(1+Inputs!$D$59) -> 28.87757406 | X28: =W28*(1+Inputs!$D$59) -> 29.70597718 | Y28: =X28*(1+Inputs!$D$59) -> 30.55814447 | Z28: =Y28*(1+Inputs!$D$59) -> 31.43475766 | AA28: =Z28*(1+Inputs!$D$59) -> 32.336518 | AB28: =AA28*(1+Inputs!$D$59) -> 33.26414691 | AC28: =AB28*(1+Inputs!$D$59) -> 34.21838645 | AD28: =AC28*(1+Inputs!$D$59) -> 35.2 | AE28: =AD28*(1+Inputs!$D$59) -> 36.20977283 | AF28: =AE28*(1+Inputs!$D$59) -> 37.24851274 | AG28: =AF28*(1+Inputs!$D$59) -> 38.3170507 | AH28: =AG28*(1+Inputs!$D$59) -> 39.41624152 | AI28: =AH28*(1+Inputs!$D$59) -> 40.54696453 | AJ28: =AI28*(1+Inputs!$D$59) -> 41.71012428 | AK28: =AJ28*(1+Inputs!$D$59) -> 42.90665128 | AL28: =AK28*(1+Inputs!$D$59) -> 44.13750272 | AM28: =AL28*(1+Inputs!$D$59) -> 45.40366327 | AN28: =AM28*(1+Inputs!$D$59) -> 46.70614581
A29: PM (One Hour) | D29: =Inputs!D48*(1+Inputs!D62)^(D4-2016) -> 28.64554061 | E29: =D29*(1+Inputs!$D$62) -> 29.77803049 | F29: =E29*(1+Inputs!$D$62) -> 30.9552929 | G29: =F29*(1+Inputs!$D$62) -> 32.17909791 | H29: =G29*(1+Inputs!$D$62) -> 33.45128555 | I29: =H29*(1+Inputs!$D$62) -> 34.77376862 | J29: =I29*(1+Inputs!$D$62) -> 36.14853553 | K29: =J29*(1+Inputs!$D$62) -> 37.57765328 | L29: =K29*(1+Inputs!$D$62) -> 39.06327064 | M29: =L29*(1+Inputs!$D$62) -> 40.60762127 | N29: =M29*(1+Inputs!$D$62) -> 42.21302718 | O29: =N29*(1+Inputs!$D$62) -> 43.88190217 | P29: =O29*(1+Inputs!$D$62) -> 45.61675545 | Q29: =P29*(1+Inputs!$D$62) -> 47.42019546 | R29: =Q29*(1+Inputs!$D$62) -> 49.29493375 | S29: =R29*(1+Inputs!$D$62) -> 51.24378905 | T29: =S29*(1+Inputs!$D$62) -> 53.26969156 | U29: =T29*(1+Inputs!$D$62) -> 55.37568731 | V29: =U29*(1+Inputs!$D$62) -> 57.56494275 | W29: =V29*(1+Inputs!$D$62) -> 59.84074952 | X29: =W29*(1+Inputs!$D$62) -> 62.20652939 | Y29: =X29*(1+Inputs!$D$62) -> 64.66583942 | Z29: =Y29*(1+Inputs!$D$62) -> 67.22237727 | AA29: =Z29*(1+Inputs!$D$62) -> 69.87998682 | AB29: =AA29*(1+Inputs!$D$62) -> 72.64266388 | AC29: =AB29*(1+Inputs!$D$62) -> 75.51456227 | AD29: =AC29*(1+Inputs!$D$62) -> 78.5 | AE29: =AD29*(1+Inputs!$D$62) -> 81.60346581 | AF29: =AE29*(1+Inputs!$D$62) -> 84.82962588 | AG29: =AF29*(1+Inputs!$D$62) -> 88.18333089 | AH29: =AG29*(1+Inputs!$D$62) -> 91.66962328 | AI29: =AH29*(1+Inputs!$D$62) -> 95.29374482 | AJ29: =AI29*(1+Inputs!$D$62) -> 99.06114455 | AK29: =AJ29*(1+Inputs!$D$62) -> 102.9774869 | AL29: =AK29*(1+Inputs!$D$62) -> 107.0486603 | AM29: =AL29*(1+Inputs!$D$62) -> 111.2807858 | AN29: =AM29*(1+Inputs!$D$62) -> 115.6802268
A30: Total Peak | D30: =D28*Inputs!$D$65+D29*Inputs!$D$66 -> 91.0362111 | E30: =E28*Inputs!$D$65+E29*Inputs!$D$66 -> 94.26922823 | F30: =F28*Inputs!$D$65+F29*Inputs!$D$66 -> 97.61956025 | G30: =G28*Inputs!$D$65+G29*Inputs!$D$66 -> 101.0915439 | H30: =H28*Inputs!$D$65+H29*Inputs!$D$66 -> 104.6896788 | I30: =I28*Inputs!$D$65+I29*Inputs!$D$66 -> 108.4186334 | J30: =J28*Inputs!$D$65+J29*Inputs!$D$66 -> 112.2832518 | K30: =K28*Inputs!$D$65+K29*Inputs!$D$66 -> 116.28856 | L30: =L28*Inputs!$D$65+L29*Inputs!$D$66 -> 120.4397731 | M30: =M28*Inputs!$D$65+M29*Inputs!$D$66 -> 124.7423026 | N30: =N28*Inputs!$D$65+N29*Inputs!$D$66 -> 129.2017634 | O30: =O28*Inputs!$D$65+O29*Inputs!$D$66 -> 133.8239819 | P30: =P28*Inputs!$D$65+P29*Inputs!$D$66 -> 138.6150043 | Q30: =Q28*Inputs!$D$65+Q29*Inputs!$D$66 -> 143.5811043 | R30: =R28*Inputs!$D$65+R29*Inputs!$D$66 -> 148.7287925 | S30: =S28*Inputs!$D$65+S29*Inputs!$D$66 -> 154.0648248 | T30: =T28*Inputs!$D$65+T29*Inputs!$D$66 -> 159.5962123 | U30: =U28*Inputs!$D$65+U29*Inputs!$D$66 -> 165.3302306 | V30: =V28*Inputs!$D$65+V29*Inputs!$D$66 -> 171.2744303 | W30: =W28*Inputs!$D$65+W29*Inputs!$D$66 -> 177.4366472 | X30: =X28*Inputs!$D$65+X29*Inputs!$D$66 -> 183.8250131 | Y30: =Y28*Inputs!$D$65+Y29*Inputs!$D$66 -> 190.4479678 | Z30: =Z28*Inputs!$D$65+Z29*Inputs!$D$66 -> 197.3142699 | AA30: =AA28*Inputs!$D$65+AA29*Inputs!$D$66 -> 204.4330096 | AB30: =AB28*Inputs!$D$65+AB29*Inputs!$D$66 -> 211.8136216 | AC30: =AC28*Inputs!$D$65+AC29*Inputs!$D$66 -> 219.4658974 | AD30: =AD28*Inputs!$D$65+AD29*Inputs!$D$66 -> 227.4 | AE30: =AE28*Inputs!$D$65+AE29*Inputs!$D$66 -> 235.6264773 | AF30: =AF28*Inputs!$D$65+AF29*Inputs!$D$66 -> 244.1562772 | AG30: =AG28*Inputs!$D$65+AG29*Inputs!$D$66 -> 253.0007632 | AH30: =AH28*Inputs!$D$65+AH29*Inputs!$D$66 -> 262.1717296 | AI30: =AI28*Inputs!$D$65+AI29*Inputs!$D$66 -> 271.6814187 | AJ30: =AJ28*Inputs!$D$65+AJ29*Inputs!$D$66 -> 281.5425377 | AK30: =AK28*Inputs!$D$65+AK29*Inputs!$D$66 -> 291.7682764 | AL30: =AL28*Inputs!$D$65+AL29*Inputs!$D$66 -> 302.372326 | AM30: =AM28*Inputs!$D$65+AM29*Inputs!$D$66 -> 313.3688982 | AN30: =AN28*Inputs!$D$65+AN29*Inputs!$D$66 -> 324.7727452
A31: Total Cost of Travel Delays on Intersections | B31: $ Annually | D31: =D30*365*Inputs!$D$137*$D$17 -> 1017054.265 | E31: =E30*365*Inputs!$D$137*$D$17 -> 1053173.451 | F31: =F30*365*Inputs!$D$137*$D$17 -> 1090603.276 | G31: =G30*365*Inputs!$D$137*$D$17 -> 1129392.191 | H31: =H30*365*Inputs!$D$137*$D$17 -> 1169590.463 | I31: =I30*365*Inputs!$D$137*$D$17 -> 1211250.251 | J31: =J30*365*Inputs!$D$137*$D$17 -> 1254425.67 | K31: =K30*365*Inputs!$D$137*$D$17 -> 1299172.873 | L31: =L30*365*Inputs!$D$137*$D$17 -> 1345550.122 | M31: =M30*365*Inputs!$D$137*$D$17 -> 1393617.873 | N31: =N30*365*Inputs!$D$137*$D$17 -> 1443438.857 | O31: =O30*365*Inputs!$D$137*$D$17 -> 1495078.167 | P31: =P30*365*Inputs!$D$137*$D$17 -> 1548603.348 | Q31: =Q30*365*Inputs!$D$137*$D$17 -> 1604084.493 | R31: =R30*365*Inputs!$D$137*$D$17 -> 1661594.336 | S31: =S30*365*Inputs!$D$137*$D$17 -> 1721208.355 | T31: =T30*365*Inputs!$D$137*$D$17 -> 1783004.877 | U31: =U30*365*Inputs!$D$137*$D$17 -> 1847065.186 | V31: =V30*365*Inputs!$D$137*$D$17 -> 1913473.636 | W31: =W30*365*Inputs!$D$137*$D$17 -> 1982317.768 | X31: =X30*365*Inputs!$D$137*$D$17 -> 2053688.432 | Y31: =Y30*365*Inputs!$D$137*$D$17 -> 2127679.915 | Z31: =Z30*365*Inputs!$D$137*$D$17 -> 2204390.069 | AA31: =AA30*365*Inputs!$D$137*$D$17 -> 2283920.452 | AB31: =AB30*365*Inputs!$D$137*$D$17 -> 2366376.463 | AC31: =AC30*365*Inputs!$D$137*$D$17 -> 2451867.497 | AD31: =AD30*365*Inputs!$D$137*$D$17 -> 2540507.091 | AE31: =AE30*365*Inputs!$D$137*$D$17 -> 2632413.089 | AF31: =AF30*365*Inputs!$D$137*$D$17 -> 2727707.8 | AG31: =AG30*365*Inputs!$D$137*$D$17 -> 2826518.175 | AH31: =AH30*365*Inputs!$D$137*$D$17 -> 2928975.982 | AI31: =AI30*365*Inputs!$D$137*$D$17 -> 3035217.989 | AJ31: =AJ30*365*Inputs!$D$137*$D$17 -> 3145386.163 | AK31: =AK30*365*Inputs!$D$137*$D$17 -> 3259627.859 | AL31: =AL30*365*Inputs!$D$137*$D$17 -> 3378096.035 | AM31: =AM30*365*Inputs!$D$137*$D$17 -> 3500949.464 | AN31: =AN30*365*Inputs!$D$137*$D$17 -> 3628352.956
A33: Build (Alternative Case) | B33: Unit | C33: Value | D33: 2019 | E33: =D33+1 -> 2020 | F33: 2021 | G33: 2022 | H33: 2023 | I33: 2024 | J33: 2025 | K33: 2026 | L33: 2027 | M33: 2028 | N33: 2029 | O33: 2030 | P33: 2031 | Q33: 2032 | R33: 2033 | S33: 2034 | T33: 2035 | U33: 2036 | V33: 2037 | W33: 2038 | X33: 2039 | Y33: 2040 | Z33: 2041 | AA33: 2042 | AB33: 2043 | AC33: =AB33+1 -> 2044 | AD33: =AC33+1 -> 2045 | AE33: =AD33+1 -> 2046 | AF33: =AE33+1 -> 2047 | AG33: =AF33+1 -> 2048 | AH33: =AG33+1 -> 2049 | AI33: =AH33+1 -> 2050 | AJ33: =AI33+1 -> 2051 | AK33: =AJ33+1 -> 2052 | AL33: =AK33+1 -> 2053 | AM33: =AL33+1 -> 2054 | AN33: =AM33+1 -> 2055
A35: Travel Times for 51st Street Traffic, by OD Pairs | B35: Daily Vehicle-hours
A36: 51st Street to Union Ave North | D36: =D10*Inputs!$D$38/3600 -> 21.33250984 | E36: =E10*Inputs!$D$38/3600 -> 21.49728823 | F36: =F10*Inputs!$D$38/3600 -> 21.6633394 | G36: =G10*Inputs!$D$38/3600 -> 21.8306732 | H36: =H10*Inputs!$D$38/3600 -> 21.99929954 | I36: =I10*Inputs!$D$38/3600 -> 22.1692284 | J36: =J10*Inputs!$D$38/3600 -> 22.34046983 | K36: =K10*Inputs!$D$38/3600 -> 22.51303398 | L36: =L10*Inputs!$D$38/3600 -> 22.68693106 | M36: =M10*Inputs!$D$38/3600 -> 22.86217138 | N36: =N10*Inputs!$D$38/3600 -> 23.0387653 | O36: =O10*Inputs!$D$38/3600 -> 23.21672329 | P36: =P10*Inputs!$D$38/3600 -> 23.39605587 | Q36: =Q10*Inputs!$D$38/3600 -> 23.57677367 | R36: =R10*Inputs!$D$38/3600 -> 23.75888738 | S36: =S10*Inputs!$D$38/3600 -> 23.94240779 | T36: =T10*Inputs!$D$38/3600 -> 24.12734577 | U36: =U10*Inputs!$D$38/3600 -> 24.31371226 | V36: =V10*Inputs!$D$38/3600 -> 24.50151829 | W36: =W10*Inputs!$D$38/3600 -> 24.690775 | X36: =X10*Inputs!$D$38/3600 -> 24.88149358 | Y36: =Y10*Inputs!$D$38/3600 -> 25.07368532 | Z36: =Z10*Inputs!$D$38/3600 -> 25.2673616 | AA36: =AA10*Inputs!$D$38/3600 -> 25.4625339 | AB36: =AB10*Inputs!$D$38/3600 -> 25.65921376 | AC36: =AC10*Inputs!$D$38/3600 -> 25.85741284 | AD36: =AD10*Inputs!$D$38/3600 -> 26.05714286 | AE36: =AE10*Inputs!$D$38/3600 -> 26.25841565 | AF36: =AF10*Inputs!$D$38/3600 -> 26.46124313 | AG36: =AG10*Inputs!$D$38/3600 -> 26.66563731 | AH36: =AH10*Inputs!$D$38/3600 -> 26.87161028 | AI36: =AI10*Inputs!$D$38/3600 -> 27.07917425 | AJ36: =AJ10*Inputs!$D$38/3600 -> 27.28834151 | AK36: =AK10*Inputs!$D$38/3600 -> 27.49912443 | AL36: =AL10*Inputs!$D$38/3600 -> 27.71153549 | AM36: =AM10*Inputs!$D$38/3600 -> 27.92558729 | AN36: =AN10*Inputs!$D$38/3600 -> 28.14129247
A37: 51st Street to Union Ave South | D37: =D11*Inputs!$D$41/3600 -> 40.92982162 | E37: =E11*Inputs!$D$41/3600 -> 41.16627767 | F37: =F11*Inputs!$D$41/3600 -> 41.40409975 | G37: =G11*Inputs!$D$41/3600 -> 41.64329575 | H37: =H11*Inputs!$D$41/3600 -> 41.88387362 | I37: =I11*Inputs!$D$41/3600 -> 42.12584133 | J37: =J11*Inputs!$D$41/3600 -> 42.36920691 | K37: =K11*Inputs!$D$41/3600 -> 42.61397845 | L37: =L11*Inputs!$D$41/3600 -> 42.86016405 | M37: =M11*Inputs!$D$41/3600 -> 43.1077719 | N37: =N11*Inputs!$D$41/3600 -> 43.35681021 | O37: =O11*Inputs!$D$41/3600 -> 43.60728723 | P37: =P11*Inputs!$D$41/3600 -> 43.85921129 | Q37: =Q11*Inputs!$D$41/3600 -> 44.11259074 | R37: =R11*Inputs!$D$41/3600 -> 44.367434 | S37: =S11*Inputs!$D$41/3600 -> 44.62374951 | T37: =T11*Inputs!$D$41/3600 -> 44.88154578 | U37: =U11*Inputs!$D$41/3600 -> 45.14083137 | V37: =V11*Inputs!$D$41/3600 -> 45.40161488 | W37: =W11*Inputs!$D$41/3600 -> 45.66390497 | X37: =X11*Inputs!$D$41/3600 -> 45.92771033 | Y37: =Y11*Inputs!$D$41/3600 -> 46.19303973 | Z37: =Z11*Inputs!$D$41/3600 -> 46.45990196 | AA37: =AA11*Inputs!$D$41/3600 -> 46.72830589 | AB37: =AB11*Inputs!$D$41/3600 -> 46.99826041 | AC37: =AC11*Inputs!$D$41/3600 -> 47.26977449 | AD37: =AD11*Inputs!$D$41/3600 -> 47.54285714 | AE37: =AE11*Inputs!$D$41/3600 -> 47.81751742 | AF37: =AF11*Inputs!$D$41/3600 -> 48.09376444 | AG37: =AG11*Inputs!$D$41/3600 -> 48.37160737 | AH37: =AH11*Inputs!$D$41/3600 -> 48.65105542 | AI37: =AI11*Inputs!$D$41/3600 -> 48.93211788 | AJ37: =AJ11*Inputs!$D$41/3600 -> 49.21480407 | AK37: =AK11*Inputs!$D$41/3600 -> 49.49912337 | AL37: =AL11*Inputs!$D$41/3600 -> 49.78508521 | AM37: =AM11*Inputs!$D$41/3600 -> 50.07269908 | AN37: =AN11*Inputs!$D$41/3600 -> 50.36197453
A38: Total | D38: =D36+D37 -> 62.26233146 | E38: =E36+E37 -> 62.66356589 | F38: 63.06743915 | G38: 63.47396896 | H38: 63.88317316 | I38: 64.29506972 | J38: 64.70967674 | K38: 65.12701243 | L38: 65.54709512 | M38: 65.96994328 | N38: 66.39557551 | O38: 66.82401052 | P38: 67.25526716 | Q38: 67.68936441 | R38: 68.12632138 | S38: 68.5661573 | T38: 69.00889155 | U38: 69.45454363 | V38: 69.90313318 | W38: 70.35467997 | X38: 70.80920391 | Y38: 71.26672505 | Z38: 71.72726357 | AA38: 72.19083979 | AB38: 72.65747418 | AC38: 73.12718733 | AD38: 73.6 | AE38: 74.07593307 | AF38: 74.55500757 | AG38: 75.03724467 | AH38: 75.52266571 | AI38: 76.01129213 | AJ38: 76.50314557 | AK38: 76.99824779 | AL38: 77.4966207 | AM38: =AM36+AM37 -> 77.99828636 | AN38: 78.503267
A39: Total Cost of Travel Time on 51st Street | B39: $ M Annually | D39: =D38*365*Inputs!$D$137*$D$17 -> 695593.2041 | E39: =E38*365*Inputs!$D$137*$D$17 -> 700075.785 | F39: =F38*365*Inputs!$D$137*$D$17 -> 704587.8469 | G39: =G38*365*Inputs!$D$137*$D$17 -> 709129.5877 | H39: =H38*365*Inputs!$D$137*$D$17 -> 713701.2068 | I39: =I38*365*Inputs!$D$137*$D$17 -> 718302.9049 | J39: =J38*365*Inputs!$D$137*$D$17 -> 722934.8841 | K39: =K38*365*Inputs!$D$137*$D$17 -> 727597.3479 | L39: =L38*365*Inputs!$D$137*$D$17 -> 732290.5012 | M39: =M38*365*Inputs!$D$137*$D$17 -> 737014.5502 | N39: =N38*365*Inputs!$D$137*$D$17 -> 741769.7028 | O39: =O38*365*Inputs!$D$137*$D$17 -> 746556.168 | P39: =P38*365*Inputs!$D$137*$D$17 -> 751374.1563 | Q39: =Q38*365*Inputs!$D$137*$D$17 -> 756223.8799 | R39: =R38*365*Inputs!$D$137*$D$17 -> 761105.5522 | S39: =S38*365*Inputs!$D$137*$D$17 -> 766019.3881 | T39: =T38*365*Inputs!$D$137*$D$17 -> 770965.604 | U39: =U38*365*Inputs!$D$137*$D$17 -> 775944.4178 | V39: =V38*365*Inputs!$D$137*$D$17 -> 780956.049 | W39: =W38*365*Inputs!$D$137*$D$17 -> 786000.7184 | X39: =X38*365*Inputs!$D$137*$D$17 -> 791078.6485 | Y39: =Y38*365*Inputs!$D$137*$D$17 -> 796190.0631 | Z39: =Z38*365*Inputs!$D$137*$D$17 -> 801335.1879 | AA39: =AA38*365*Inputs!$D$137*$D$17 -> 806514.2498 | AB39: =AB38*365*Inputs!$D$137*$D$17 -> 811727.4775 | AC39: =AC38*365*Inputs!$D$137*$D$17 -> 816975.1011 | AD39: =AD38*365*Inputs!$D$137*$D$17 -> 822257.3523 | AE39: =AE38*365*Inputs!$D$137*$D$17 -> 827574.4646 | AF39: =AF38*365*Inputs!$D$137*$D$17 -> 832926.6729 | AG39: =AG38*365*Inputs!$D$137*$D$17 -> 838314.2137 | AH39: =AH38*365*Inputs!$D$137*$D$17 -> 843737.3253 | AI39: =AI38*365*Inputs!$D$137*$D$17 -> 849196.2475 | AJ39: =AJ38*365*Inputs!$D$137*$D$17 -> 854691.2218 | AK39: =AK38*365*Inputs!$D$137*$D$17 -> 860222.4914 | AL39: =AL38*365*Inputs!$D$137*$D$17 -> 865790.301 | AM39: =AM38*365*Inputs!$D$137*$D$17 -> 871394.8972 | AN39: =AN38*365*Inputs!$D$137*$D$17 -> 877036.5282
A41: Delays on Intersections | B41: Daily Vehicle-hours
A42: AM (One Hour) | D42: =Inputs!D46*(1+Inputs!D60)^(D33-2016) -> 13.39134772 | E42: =D42*(1+Inputs!$D$60) -> 13.63006131 | F42: =E42*(1+Inputs!$D$60) -> 13.87303019 | G42: =F42*(1+Inputs!$D$60) -> 14.12033022 | H42: =G42*(1+Inputs!$D$60) -> 14.37203862 | I42: =H42*(1+Inputs!$D$60) -> 14.62823395 | J42: =I42*(1+Inputs!$D$60) -> 14.88899622 | K42: =J42*(1+Inputs!$D$60) -> 15.15440682 | L42: =K42*(1+Inputs!$D$60) -> 15.42454862 | M42: =L42*(1+Inputs!$D$60) -> 15.69950595 | N42: =M42*(1+Inputs!$D$60) -> 15.97936466 | O42: =N42*(1+Inputs!$D$60) -> 16.26421212 | P42: =O42*(1+Inputs!$D$60) -> 16.55413726 | Q42: =P42*(1+Inputs!$D$60) -> 16.8492306 | R42: =Q42*(1+Inputs!$D$60) -> 17.14958425 | S42: =R42*(1+Inputs!$D$60) -> 17.455292 | T42: =S42*(1+Inputs!$D$60) -> 17.76644927 | U42: =T42*(1+Inputs!$D$60) -> 18.08315323 | V42: =U42*(1+Inputs!$D$60) -> 18.40550273 | W42: =V42*(1+Inputs!$D$60) -> 18.73359843 | X42: =W42*(1+Inputs!$D$60) -> 19.06754274 | Y42: =X42*(1+Inputs!$D$60) -> 19.40743993 | Z42: =Y42*(1+Inputs!$D$60) -> 19.75339611 | AA42: =Z42*(1+Inputs!$D$60) -> 20.10551929 | AB42: =AA42*(1+Inputs!$D$60) -> 20.46391941 | AC42: =AB42*(1+Inputs!$D$60) -> 20.82870835 | AD42: =AC42*(1+Inputs!$D$60) -> 21.2 | AE42: =AD42*(1+Inputs!$D$60) -> 21.57791028 | AF42: =AE42*(1+Inputs!$D$60) -> 21.96255717 | AG42: =AF42*(1+Inputs!$D$60) -> 22.35406076 | AH42: =AG42*(1+Inputs!$D$60) -> 22.75254328 | AI42: =AH42*(1+Inputs!$D$60) -> 23.15812913 | AJ42: =AI42*(1+Inputs!$D$60) -> 23.57094494 | AK42: =AJ42*(1+Inputs!$D$60) -> 23.99111958 | AL42: =AK42*(1+Inputs!$D$60) -> 24.41878424 | AM42: =AL42*(1+Inputs!$D$60) -> 24.85407243 | AN42: =AM42*(1+Inputs!$D$60) -> 25.29712004
A43: PM (One Hour) | D43: =Inputs!D49*(1+Inputs!D63)^(D33-2016) -> 20.4139823 | E43: =D42*(1+Inputs!$D$63) -> 13.64419012 | F43: =E42*(1+Inputs!$D$63) -> 13.88741086 | G43: =F42*(1+Inputs!$D$63) -> 14.13496724 | H43: =G42*(1+Inputs!$D$63) -> 14.38693655 | I43: =H42*(1+Inputs!$D$63) -> 14.64339746 | J43: =I42*(1+Inputs!$D$63) -> 14.90443003 | K43: =J42*(1+Inputs!$D$63) -> 15.17011575 | L43: =K42*(1+Inputs!$D$63) -> 15.44053758 | M43: =L42*(1+Inputs!$D$63) -> 15.71577993 | N43: =M42*(1+Inputs!$D$63) -> 15.99592874 | O43: =N42*(1+Inputs!$D$63) -> 16.28107147 | P43: =O42*(1+Inputs!$D$63) -> 16.57129715 | Q43: =P42*(1+Inputs!$D$63) -> 16.86669637 | R43: =Q42*(1+Inputs!$D$63) -> 17.16736137 | S43: =R42*(1+Inputs!$D$63) -> 17.47338601 | T43: =S42*(1+Inputs!$D$63) -> 17.78486583 | U43: =T42*(1+Inputs!$D$63) -> 18.10189808 | V43: =U42*(1+Inputs!$D$63) -> 18.42458173 | W43: =V42*(1+Inputs!$D$63) -> 18.75301752 | X43: =W42*(1+Inputs!$D$63) -> 19.087308 | Y43: =X42*(1+Inputs!$D$63) -> 19.42755752 | Z43: =Y42*(1+Inputs!$D$63) -> 19.77387232 | AA43: =Z42*(1+Inputs!$D$63) -> 20.12636051 | AB43: =AA42*(1+Inputs!$D$63) -> 20.48513214 | AC43: =AB42*(1+Inputs!$D$63) -> 20.85029922 | AD43: =AC42*(1+Inputs!$D$63) -> 21.22197575 | AE43: =AD42*(1+Inputs!$D$63) -> 21.60027776 | AF43: =AE42*(1+Inputs!$D$63) -> 21.98532338 | AG43: =AF42*(1+Inputs!$D$63) -> 22.3772328 | AH43: =AG42*(1+Inputs!$D$63) -> 22.77612838 | AI43: =AH42*(1+Inputs!$D$63) -> 23.18213466 | AJ43: =AI42*(1+Inputs!$D$63) -> 23.59537839 | AK43: =AJ42*(1+Inputs!$D$63) -> 24.01598858 | AL43: =AK42*(1+Inputs!$D$63) -> 24.44409655 | AM43: =AL42*(1+Inputs!$D$63) -> 24.87983595 | AN43: =AM42*(1+Inputs!$D$63) -> 25.32334283
A44: Total Peak | D44: =D42*Inputs!$D$65+D43*Inputs!$D$66 -> 67.61066005 | E44: =E42*Inputs!$D$65+E43*Inputs!$D$66 -> 54.54850284 | F44: =F42*Inputs!$D$65+F43*Inputs!$D$66 -> 55.52088209 | G44: =G42*Inputs!$D$65+G43*Inputs!$D$66 -> 56.51059492 | H44: =H42*Inputs!$D$65+H43*Inputs!$D$66 -> 57.51795034 | I44: =I42*Inputs!$D$65+I43*Inputs!$D$66 -> 58.54326283 | J44: =J42*Inputs!$D$65+J43*Inputs!$D$66 -> 59.58685249 | K44: =K42*Inputs!$D$65+K43*Inputs!$D$66 -> 60.64904514 | L44: =L42*Inputs!$D$65+L43*Inputs!$D$66 -> 61.73017239 | M44: =M42*Inputs!$D$65+M43*Inputs!$D$66 -> 62.83057176 | N44: =N42*Inputs!$D$65+N43*Inputs!$D$66 -> 63.95058681 | O44: =O42*Inputs!$D$65+O43*Inputs!$D$66 -> 65.09056719 | P44: =P42*Inputs!$D$65+P43*Inputs!$D$66 -> 66.25086882 | Q44: =Q42*Inputs!$D$65+Q43*Inputs!$D$66 -> 67.43185394 | R44: =R42*Inputs!$D$65+R43*Inputs!$D$66 -> 68.63389124 | S44: =S42*Inputs!$D$65+S43*Inputs!$D$66 -> 69.85735601 | T44: =T42*Inputs!$D$65+T43*Inputs!$D$66 -> 71.10263021 | U44: =U42*Inputs!$D$65+U43*Inputs!$D$66 -> 72.37010261 | V44: =V42*Inputs!$D$65+V43*Inputs!$D$66 -> 73.66016892 | W44: =W42*Inputs!$D$65+W43*Inputs!$D$66 -> 74.97323189 | X44: =X42*Inputs!$D$65+X43*Inputs!$D$66 -> 76.30970147 | Y44: =Y42*Inputs!$D$65+Y43*Inputs!$D$66 -> 77.6699949 | Z44: =Z42*Inputs!$D$65+Z43*Inputs!$D$66 -> 79.05453686 | AA44: =AA42*Inputs!$D$65+AA43*Inputs!$D$66 -> 80.46375961 | AB44: =AB42*Inputs!$D$65+AB43*Inputs!$D$66 -> 81.8981031 | AC44: =AC42*Inputs!$D$65+AC43*Inputs!$D$66 -> 83.35801513 | AD44: =AD42*Inputs!$D$65+AD43*Inputs!$D$66 -> 84.84395149 | AE44: =AE42*Inputs!$D$65+AE43*Inputs!$D$66 -> 86.35637609 | AF44: =AF42*Inputs!$D$65+AF43*Inputs!$D$66 -> 87.89576111 | AG44: =AG42*Inputs!$D$65+AG43*Inputs!$D$66 -> 89.46258713 | AH44: =AH42*Inputs!$D$65+AH43*Inputs!$D$66 -> 91.05734333 | AI44: =AI42*Inputs!$D$65+AI43*Inputs!$D$66 -> 92.68052758 | AJ44: =AJ42*Inputs!$D$65+AJ43*Inputs!$D$66 -> 94.33264664 | AK44: =AK42*Inputs!$D$65+AK43*Inputs!$D$66 -> 96.01421631 | AL44: =AL42*Inputs!$D$65+AL43*Inputs!$D$66 -> 97.72576157 | AM44: =AM42*Inputs!$D$65+AM43*Inputs!$D$66 -> 99.46781675 | AN44: =AN42*Inputs!$D$65+AN43*Inputs!$D$66 -> 101.2409257
A45: Total Cost of Travel Delays on Intersections | D45: =D44*365*Inputs!$D$137*$D$17 -> 755344.5968 | E45: =E44*365*Inputs!$D$137*$D$17 -> 609414.5044 | F45: =F44*365*Inputs!$D$137*$D$17 -> 620277.9009 | G45: =G44*365*Inputs!$D$137*$D$17 -> 631334.9479 | H45: =H44*365*Inputs!$D$137*$D$17 -> 642589.0972 | I45: =I44*365*Inputs!$D$137*$D$17 -> 654043.8626 | J45: =J44*365*Inputs!$D$137*$D$17 -> 665702.8201 | K45: =K44*365*Inputs!$D$137*$D$17 -> 677569.6097 | L45: =L44*365*Inputs!$D$137*$D$17 -> 689647.9362 | M45: =M44*365*Inputs!$D$137*$D$17 -> 701941.5704 | N45: =N44*365*Inputs!$D$137*$D$17 -> 714454.3504 | O45: =O44*365*Inputs!$D$137*$D$17 -> 727190.1827 | P45: =P44*365*Inputs!$D$137*$D$17 -> 740153.0433 | Q45: =Q44*365*Inputs!$D$137*$D$17 -> 753346.9794 | R45: =R44*365*Inputs!$D$137*$D$17 -> 766776.1099 | S45: =S44*365*Inputs!$D$137*$D$17 -> 780444.6276 | T45: =T44*365*Inputs!$D$137*$D$17 -> 794356.7997 | U45: =U44*365*Inputs!$D$137*$D$17 -> 808516.9696 | V45: =V44*365*Inputs!$D$137*$D$17 -> 822929.558 | W45: =W44*365*Inputs!$D$137*$D$17 -> 837599.0646 | X45: =X44*365*Inputs!$D$137*$D$17 -> 852530.0692 | Y45: =Y44*365*Inputs!$D$137*$D$17 -> 867727.2332 | Z45: =Z44*365*Inputs!$D$137*$D$17 -> 883195.3012 | AA45: =AA44*365*Inputs!$D$137*$D$17 -> 898939.1024 | AB45: =AB44*365*Inputs!$D$137*$D$17 -> 914963.5518 | AC45: =AC44*365*Inputs!$D$137*$D$17 -> 931273.6524 | AD45: =AD44*365*Inputs!$D$137*$D$17 -> 947874.4961 | AE45: =AE44*365*Inputs!$D$137*$D$17 -> 964771.2658 | AF45: =AF44*365*Inputs!$D$137*$D$17 -> 981969.2365 | AG45: =AG44*365*Inputs!$D$137*$D$17 -> 999473.7775 | AH45: =AH44*365*Inputs!$D$137*$D$17 -> 1017290.354 | AI45: =AI44*365*Inputs!$D$137*$D$17 -> 1035424.527 | AJ45: =AJ44*365*Inputs!$D$137*$D$17 -> 1053881.96 | AK45: =AK44*365*Inputs!$D$137*$D$17 -> 1072668.414 | AL45: =AL44*365*Inputs!$D$137*$D$17 -> 1091789.755 | AM45: =AM44*365*Inputs!$D$137*$D$17 -> 1111251.952 | AN45: =AN44*365*Inputs!$D$137*$D$17 -> 1131061.081
A47: No Build Less Build | B47: Unit | C47: Value | D47: 2019 | E47: =D47+1 -> 2020 | F47: 2021 | G47: 2022 | H47: 2023 | I47: 2024 | J47: 2025 | K47: 2026 | L47: 2027 | M47: 2028 | N47: 2029 | O47: 2030 | P47: 2031 | Q47: 2032 | R47: 2033 | S47: 2034 | T47: 2035 | U47: 2036 | V47: 2037 | W47: 2038 | X47: 2039 | Y47: 2040 | Z47: 2041 | AA47: 2042 | AB47: 2043 | AC47: =AB47+1 -> 2044 | AD47: =AC47+1 -> 2045 | AE47: =AD47+1 -> 2046 | AF47: =AE47+1 -> 2047 | AG47: =AF47+1 -> 2048 | AH47: =AG47+1 -> 2049 | AI47: =AH47+1 -> 2050 | AJ47: =AI47+1 -> 2051 | AK47: =AJ47+1 -> 2052 | AL47: =AK47+1 -> 2053 | AM47: =AL47+1 -> 2054 | AN47: =AM47+1 -> 2055
A48: Undiscounted Impacts | C48: Total over 20 Years
A49: From fewer vehicle miles travelled | C49: =SUM(J49:AD49) -> 16103801.53 | K49: =(K25-K39) -> 759980.0021 | L49: 764566.3872 | M49: 769180.7814 | N49: 773823.3584 | O49: 778494.2926 | P49: 783193.7599 | Q49: 787921.937 | R49: 792679.0018 | S49: 797465.1333 | T49: 802280.5118 | U49: 807125.3184 | V49: 811999.7357 | W49: 816903.9473 | X49: 821838.1378 | Y49: 826802.4933 | Z49: 831797.2007 | AA49: 836822.4483 | AB49: 841878.4257 | AC49: 846965.3234 | AD49: 852083.3333 | AE49: 857232.6485 | AF49: 862413.4632 | AG49: 867625.9729 | AH49: 872870.3744 | AI49: 878146.8657 | AJ49: 883455.646 | AK49: 888796.9157 | AL49: 894170.8767 | AM49: =(AM25-AM39) -> 899577.7319 | AN49: 905017.6857
A50: From reduced delays on intersections | C50: =SUM(J50:AD50) -> 20955209.6 | K50: =(K31-K45) -> 621603.2631 | L50: 655902.1859 | M50: 691676.3026 | N50: 728984.5064 | O50: 767887.9839 | P50: 808450.3049 | Q50: 850737.5138 | R50: 894818.2262 | S50: 940763.7276 | T50: 988648.0776 | U50: 1038548.217 | V50: 1090544.078 | W50: 1144718.703 | X50: 1201158.363 | Y50: 1259952.682 | Z50: 1321194.768 | AA50: 1384981.349 | AB50: 1451412.911 | AC50: 1520593.844 | AD50: 1592632.595 | AE50: 1667641.823 | AF50: 1745738.564 | AG50: 1827044.397 | AH50: 1911685.628 | AI50: 1999793.462 | AJ50: 2091504.203 | AK50: 2186959.445 | AL50: 2286306.28 | AM50: =(AM31-AM45) -> 2389697.512 | AN50: 2497291.875
A51: Total | C51: 37059011.13 | K51: =(K25-K39)+(K31-K45) -> 1381583.265 | L51: 1420468.573 | M51: 1460857.084 | N51: 1502807.865 | O51: 1546382.277 | P51: 1591644.065 | Q51: 1638659.451 | R51: 1687497.228 | S51: 1738228.861 | T51: 1790928.589 | U51: 1845673.535 | V51: 1902543.814 | W51: 1961622.65 | X51: 2022996.501 | Y51: 2086755.175 | Z51: 2152991.969 | AA51: 2221803.798 | AB51: 2293291.337 | AC51: 2367559.168 | AD51: 2444715.929 | AE51: 2524874.472 | AF51: 2608152.027 | AG51: 2694670.37 | AH51: 2784556.002 | AI51: 2877940.328 | AJ51: 2974959.849 | AK51: 3075756.36 | AL51: 3180477.157 | AM51: =(AM25-AM39)+(AM31-AM45) -> 3289275.244 | AN51: 3402309.561
A53: Discounted Impacts, at 7%
A54: From fewer vehicle miles travelled | C54: =SUM(J54:AD54) -> 6002184.297 | K54: =K49*K$6 -> 506406.7647 | L54: 476133.5203 | M54: 447670.2178 | N54: 420908.6354 | O54: 395747.0226 | P54: 372089.7135 | Q54: 349846.763 | R54: 328933.6043 | S54: 309270.7278 | T54: 290783.3781 | U54: 273401.2701 | V54: 257058.3214 | W54: 241692.4011 | X54: 227245.0935 | Y54: 213661.4758 | Z54: 200889.9095 | AA54: 188881.8435 | AB54: 177591.6301 | AC54: 166976.3507 | AD54: 156995.6533 | AE54: 147611.5985 | AF54: 138788.5154 | AG54: 130492.8659 | AH54: 122693.1173 | AI54: 115359.6222 | AJ54: 108464.5059 | AK54: 101981.5604 | AL54: 95886.14466 | AM54: =AM49*AM$6 -> 90155.0908 | AN54: 84766.61626
A55: From reduced delays on intersections | C55: =SUM(J55:AD55) -> 7092944.232 | K55: =K50*K$6 -> 414200.5007 | L55: 408462.9169 | M55: 402561.9056 | N55: 396519.2708 | O55: 390355.3131 | P55: 384088.9161 | Q55: 377737.6303 | R55: 371317.7512 | S55: 364844.3933 | T55: 358331.5606 | U55: 351792.2125 | V55: 345238.3267 | W55: 338680.9586 | X55: 332130.2966 | Y55: 325595.7156 | Z55: 319085.8266 | AA55: 312608.5241 | AB55: 306171.03 | AC55: 299779.9367 | AD55: 293441.2458 | AE55: 287160.4059 | AF55: 280942.3483 | AG55: 274791.5196 | AH55: 268711.9139 | AI55: 262707.102 | AJ55: 256780.2595 | AK55: 250934.193 | AL55: 245171.3654 | AM55: =AM50*AM$6 -> 239493.9187 | AN55: 233903.6965
A56: Total | C56: 13095128.53 | K56: =K51*K6 -> 920607.2653 | L56: 884596.4372 | M56: 850232.1234 | N56: 817427.9063 | O56: 786102.3357 | P56: 756178.6296 | Q56: 727584.3933 | R56: 700251.3555 | S56: 674115.1211 | T56: 649114.9387 | U56: 625193.4826 | V56: 602296.6481 | W56: 580373.3597 | X56: 559375.3901 | Y56: 539257.1914 | Z56: 519975.7361 | AA56: 501490.3676 | AB56: 483762.6601 | AC56: 466756.2874 | AD56: 450436.8991 | AE56: 434772.0044 | AF56: 419730.8636 | AG56: 405284.3855 | AH56: 391405.0312 | AI56: 378066.7242 | AJ56: 365244.7654 | AK56: 352915.7535 | AL56: 341057.5101 | AM56: =AM51*AM6 -> 329649.0095 | AN56: 318670.3128
A58: Discounted Impacts, at 3%
A59: From fewer vehicle miles travelled | C59: =SUM(J59:AD59) -> 10272654.2 | K59: =K49*K$7 -> 636471.2872 | L59: 621662.4393 | M59: 607198.4117 | N59: 593071.1697 | O59: 579272.8659 | P59: 565795.8359 | Q59: 552632.5938 | R59: 539775.8285 | S59: 527218.3992 | T59: 514953.3317 | U59: 502973.8143 | V59: 491273.1942 | W59: 479844.9736 | X59: 468682.8063 | Y59: 457780.494 | Z59: 447131.9829 | AA59: 436731.3604 | AB59: 426572.8515 | AC59: 416650.8161 | AD59: 406959.7455 | AE59: 397494.2593 | AF59: 388249.1027 | AG59: 379219.1432 | AH59: 370399.3682 | AI59: 361784.8816 | AJ59: 353370.9017 | AK59: 345152.7582 | AL59: 337125.8896 | AM59: =AM49*AM$7 -> 329285.8407 | AN59: 321628.2602
A60: From reduced delays on intersections | C60: 12815700.5 | K60: =K50*K$7 -> 520582.9467 | L60: 533308.4996 | M60: 546015.6605 | N60: 558705.9233 | O60: 571380.7762 | P60: 584041.7013 | Q60: 596690.1755 | R60: 609327.6702 | S60: 621955.6514 | T60: 634575.5804 | U60: 647188.9134 | V60: 659797.102 | W60: 672401.5934 | X60: 685003.8303 | Y60: 697605.2513 | Z60: 710207.291 | AA60: 722811.38 | AB60: 735418.9456 | AC60: 748031.4113 | AD60: 760650.1973 | AE60: 773276.7207 | AF60: 785912.3956 | AG60: 798558.6332 | AH60: 811216.842 | AI60: 823888.4281 | AJ60: 836574.7951 | AK60: 849277.3445 | AL60: 861997.4757 | AM60: =AM50*AM$7 -> 874736.5863 | AN60: 887496.0719
A61: Total | C61: 23088354.7 | K61: =K51*K7 -> 1157054.234 | L61: 1154970.939 | M61: 1153214.072 | N61: 1151777.093 | O61: 1150653.642 | P61: 1149837.537 | Q61: 1149322.769 | R61: 1149103.499 | S61: 1149174.051 | T61: 1149528.912 | U61: 1150162.728 | V61: 1151070.296 | W61: 1152246.567 | X61: 1153686.637 | Y61: 1155385.745 | Z61: 1157339.274 | AA61: 1159542.74 | AB61: 1161991.797 | AC61: 1164682.227 | AD61: 1167609.943 | AE61: 1170770.98 | AF61: 1174161.498 | AG61: 1177777.776 | AH61: 1181616.21 | AI61: 1185673.31 | AJ61: 1189945.697 | AK61: 1194430.103 | AL61: 1199123.365 | AM61: =AM51*AM7 -> 1204022.427 | AN61: 1209124.332
A63: Key Quantified Impacts
A64: Total Travel Time Saving | D64: =D48 -> 0 | E64: 0 | F64: 0 | G64: 0 | H64: 0 | I64: 0 | J64: =J51 -> 0 | K64: 1381583.265 | L64: 1420468.573 | M64: 1460857.084 | N64: 1502807.865 | O64: 1546382.277 | P64: 1591644.065 | Q64: 1638659.451 | R64: 1687497.228 | S64: 1738228.861 | T64: 1790928.589 | U64: 1845673.535 | V64: 1902543.814 | W64: 1961622.65 | X64: 2022996.501 | Y64: 2086755.175 | Z64: 2152991.969 | AA64: 2221803.798 | AB64: 2293291.337 | AC64: 2367559.168 | AD64: 2444715.929 | AE64: 2524874.472 | AF64: 2608152.027 | AG64: 2694670.37 | AH64: 2784556.002 | AI64: 2877940.328 | AJ64: 2974959.849 | AK64: 3075756.36 | AL64: 3180477.157 | AM64: =AM51 -> 3289275.244 | AN64: 3402309.561
A65: Total Hours Saved | B65: person-hours | C65: =(SUM(J24:AD24, J30:AD30)-SUM(J38:AD38,J44:AD44))*D17*365 -> 2028050.034

Sheet Calc-2
A1: Vehicle Operating Cost Savings due to Project
D3: Base Year | E3: =BaseYear -> 2020
B4: Unit | C4: Value | D4: 2019 | E4: =D4+1 -> 2020 | F4: 2021 | G4: 2022 | H4: 2023 | I4: 2024 | J4: 2025 | K4: 2026 | L4: 2027 | M4: 2028 | N4: 2029 | O4: 2030 | P4: 2031 | Q4: 2032 | R4: 2033 | S4: 2034 | T4: =S4+1 -> 2035 | U4: 2036 | V4: 2037 | W4: 2038 | X4: 2039 | Y4: 2040 | Z4: 2041 | AA4: 2042 | AB4: 2043 | AC4: =AB4+1 -> 2044 | AD4: =AC4+1 -> 2045 | AE4: =AD4+1 -> 2046 | AF4: =AE4+1 -> 2047 | AG4: =AF4+1 -> 2048 | AH4: =AG4+1 -> 2049 | AI4: =AH4+1 -> 2050 | AJ4: =AI4+1 -> 2051 | AK4: =AJ4+1 -> 2052 | AL4: =AK4+1 -> 2053 | AM4: =AL4+1 -> 2054 | AN4: =AM4+1 -> 2055
A5: Benefits Index | B5: Number | D5: 0 | E5: 0 | F5: 0 | G5: 0 | H5: 0 | I5: 0 | J5: 0 | K5: 1 | L5: 2 | M5: 3 | N5: 4 | O5: 5 | P5: 6 | Q5: 7 | R5: 8 | S5: 9 | T5: 10 | U5: 11 | V5: 12 | W5: 13 | X5: 14 | Y5: 15 | Z5: 16 | AA5: 17 | AB5: 18 | AC5: 19 | AD5: 20 | AE5: 21 | AF5: 22 | AG5: 23 | AH5: 24 | AI5: 25 | AJ5: 26 | AK5: 27 | AL5: 28 | AM5: 29 | AN5: 30
A6: Discount Factor | B6: % | C6: 0.07 | D6: =1/(1+Inputs!$D$4)^(D4-$E$3) -> 1.07 | E6: =1/(1+Inputs!$D$4)^(E4-$E$3) -> 1 | F6: =1/(1+Inputs!$D$4)^(F4-$E$3) -> 0.9345794393 | G6: =1/(1+Inputs!$D$4)^(G4-$E$3) -> 0.8734387283 | H6: =1/(1+Inputs!$D$4)^(H4-$E$3) -> 0.8162978769 | I6: =1/(1+Inputs!$D$4)^(I4-$E$3) -> 0.762895212 | J6: =1/(1+Inputs!$D$4)^(J4-$E$3) -> 0.7129861795 | K6: =1/(1+Inputs!$D$4)^(K4-$E$3) -> 0.6663422238 | L6: =1/(1+Inputs!$D$4)^(L4-$E$3) -> 0.6227497419 | M6: =1/(1+Inputs!$D$4)^(M4-$E$3) -> 0.5820091046 | N6: =1/(1+Inputs!$D$4)^(N4-$E$3) -> 0.5439337426 | O6: =1/(1+Inputs!$D$4)^(O4-$E$3) -> 0.5083492921 | P6: =1/(1+Inputs!$D$4)^(P4-$E$3) -> 0.4750927964 | Q6: =1/(1+Inputs!$D$4)^(Q4-$E$3) -> 0.4440119592 | R6: =1/(1+Inputs!$D$4)^(R4-$E$3) -> 0.4149644479 | S6: =1/(1+Inputs!$D$4)^(S4-$E$3) -> 0.387817241 | T6: =1/(1+Inputs!$D$4)^(T4-$E$3) -> 0.3624460196 | U6: =1/(1+Inputs!$D$4)^(U4-$E$3) -> 0.3387345978 | V6: =1/(1+Inputs!$D$4)^(V4-$E$3) -> 0.3165743905 | W6: =1/(1+Inputs!$D$4)^(W4-$E$3) -> 0.2958639163 | X6: =1/(1+Inputs!$D$4)^(X4-$E$3) -> 0.276508333 | Y6: =1/(1+Inputs!$D$4)^(Y4-$E$3) -> 0.2584190028 | Z6: =1/(1+Inputs!$D$4)^(Z4-$E$3) -> 0.2415130867 | AA6: =1/(1+Inputs!$D$4)^(AA4-$E$3) -> 0.2257131652 | AB6: =1/(1+Inputs!$D$4)^(AB4-$E$3) -> 0.2109468833 | AC6: =1/(1+Inputs!$D$4)^(AC4-$E$3) -> 0.1971466199 | AD6: =1/(1+Inputs!$D$4)^(AD4-$E$3) -> 0.1842491775 | AE6: =1/(1+Inputs!$D$4)^(AE4-$E$3) -> 0.172195493 | AF6: =1/(1+Inputs!$D$4)^(AF4-$E$3) -> 0.1609303673 | AG6: =1/(1+Inputs!$D$4)^(AG4-$E$3) -> 0.1504022124 | AH6: =1/(1+Inputs!$D$4)^(AH4-$E$3) -> 0.1405628154 | AI6: =1/(1+Inputs!$D$4)^(AI4-$E$3) -> 0.1313671172 | AJ6: =1/(1+Inputs!$D$4)^(AJ4-$E$3) -> 0.1227730067 | AK6: =1/(1+Inputs!$D$4)^(AK4-$E$3) -> 0.1147411277 | AL6: =1/(1+Inputs!$D$4)^(AL4-$E$3) -> 0.1072346988 | AM6: =1/(1+Inputs!$D$4)^(AM4-$E$3) -> 0.1002193447 | AN6: =1/(1+Inputs!$D$4)^(AN4-$E$3) -> 0.09366293897
A7: Discount Factor | B7: % | C7: 0.03 | D7: =1/(1+Inputs!$D$5)^(D4-$E$3) -> 1.03 | E7: =1/(1+Inputs!$D$5)^(E4-$E$3) -> 1 | F7: =1/(1+Inputs!$D$5)^(F4-$E$3) -> 0.9708737864 | G7: =1/(1+Inputs!$D$5)^(G4-$E$3) -> 0.9425959091 | H7: =1/(1+Inputs!$D$5)^(H4-$E$3) -> 0.9151416594 | I7: =1/(1+Inputs!$D$5)^(I4-$E$3) -> 0.8884870479 | J7: =1/(1+Inputs!$D$5)^(J4-$E$3) -> 0.8626087844 | K7: =1/(1+Inputs!$D$5)^(K4-$E$3) -> 0.8374842567 | L7: =1/(1+Inputs!$D$5)^(L4-$E$3) -> 0.8130915113 | M7: =1/(1+Inputs!$D$5)^(M4-$E$3) -> 0.7894092343 | N7: =1/(1+Inputs!$D$5)^(N4-$E$3) -> 0.7664167323 | O7: =1/(1+Inputs!$D$5)^(O4-$E$3) -> 0.7440939149 | P7: =1/(1+Inputs!$D$5)^(P4-$E$3) -> 0.7224212766 | Q7: =1/(1+Inputs!$D$5)^(Q4-$E$3) -> 0.7013798802 | R7: =1/(1+Inputs!$D$5)^(R4-$E$3) -> 0.68095134 | S7: =1/(1+Inputs!$D$5)^(S4-$E$3) -> 0.6611178058 | T7: =1/(1+Inputs!$D$5)^(T4-$E$3) -> 0.6418619474 | U7: =1/(1+Inputs!$D$5)^(U4-$E$3) -> 0.6231669392 | V7: =1/(1+Inputs!$D$5)^(V4-$E$3) -> 0.6050164458 | W7: =1/(1+Inputs!$D$5)^(W4-$E$3) -> 0.5873946076 | X7: =1/(1+Inputs!$D$5)^(X4-$E$3) -> 0.5702860268 | Y7: =1/(1+Inputs!$D$5)^(Y4-$E$3) -> 0.5536757542 | Z7: =1/(1+Inputs!$D$5)^(Z4-$E$3) -> 0.5375492759 | AA7: =1/(1+Inputs!$D$5)^(AA4-$E$3) -> 0.5218925009 | AB7: =1/(1+Inputs!$D$5)^(AB4-$E$3) -> 0.5066917484 | AC7: =1/(1+Inputs!$D$5)^(AC4-$E$3) -> 0.4919337363 | AD7: =1/(1+Inputs!$D$5)^(AD4-$E$3) -> 0.4776055693 | AE7: =1/(1+Inputs!$D$5)^(AE4-$E$3) -> 0.4636947274 | AF7: =1/(1+Inputs!$D$5)^(AF4-$E$3) -> 0.4501890558 | AG7: =1/(1+Inputs!$D$5)^(AG4-$E$3) -> 0.4370767532 | AH7: =1/(1+Inputs!$D$5)^(AH4-$E$3) -> 0.4243463623 | AI7: =1/(1+Inputs!$D$5)^(AI4-$E$3) -> 0.4119867595 | AJ7: =1/(1+Inputs!$D$5)^(AJ4-$E$3) -> 0.3999871452 | AK7: =1/(1+Inputs!$D$5)^(AK4-$E$3) -> 0.3883370341 | AL7: =1/(1+Inputs!$D$5)^(AL4-$E$3) -> 0.3770262467 | AM7: =1/(1+Inputs!$D$5)^(AM4-$E$3) -> 0.3660448997 | AN7: =1/(1+Inputs!$D$5)^(AN4-$E$3) -> 0.3553833978
A9: Share of Traffic - Auto | B9: % | C9: =1-ShareTruck -> 0.92 | D9: =1-ShareTruck -> 0.92 | E9: 0.92 | F9: 0.92 | G9: 0.92 | H9: 0.92 | I9: 0.92 | J9: 0.92 | K9: 0.92 | L9: 0.92 | M9: 0.92 | N9: 0.92 | O9: 0.92 | P9: 0.92 | Q9: 0.92 | R9: 0.92 | S9: 0.92 | T9: 0.92 | U9: 0.92 | V9: 0.92 | W9: 0.92 | X9: 0.92 | Y9: 0.92 | Z9: 0.92 | AA9: 0.92 | AB9: 0.92 | AC9: 0.92 | AD9: 0.92 | AE9: 0.92 | AF9: 0.92 | AG9: 0.92 | AH9: 0.92 | AI9: 0.92 | AJ9: 0.92 | AK9: 0.92 | AL9: 0.92 | AM9: 0.92 | AN9: 0.92
A10: Share of Traffic - Trucks | B10: % | C10: =ShareTruck -> 0.08 | D10: =Inputs!$D$27 -> 0.08 | E10: =Inputs!$D$27 -> 0.08 | F10: =Inputs!$D$27 -> 0.08 | G10: =Inputs!$D$27 -> 0.08 | H10: =Inputs!$D$27 -> 0.08 | I10: =Inputs!$D$27 -> 0.08 | J10: =Inputs!$D$27 -> 0.08 | K10: =Inputs!$D$27 -> 0.08 | L10: =Inputs!$D$27 -> 0.08 | M10: =Inputs!$D$27 -> 0.08 | N10: =Inputs!$D$27 -> 0.08 | O10: =Inputs!$D$27 -> 0.08 | P10: =Inputs!$D$27 -> 0.08 | Q10: =Inputs!$D$27 -> 0.08 | R10: =Inputs!$D$27 -> 0.08 | S10: =Inputs!$D$27 -> 0.08 | T10: =Inputs!$D$27 -> 0.08 | U10: =Inputs!$D$27 -> 0.08 | V10: =Inputs!$D$27 -> 0.08 | W10: =Inputs!$D$27 -> 0.08 | X10: =Inputs!$D$27 -> 0.08 | Y10: =Inputs!$D$27 -> 0.08 | Z10: =Inputs!$D$27 -> 0.08 | AA10: =Inputs!$D$27 -> 0.08 | AB10: =Inputs!$D$27 -> 0.08 | AC10: =Inputs!$D$27 -> 0.08 | AD10: =Inputs!$D$27 -> 0.08 | AE10: =Inputs!$D$27 -> 0.08 | AF10: =Inputs!$D$27 -> 0.08 | AG10: =Inputs!$D$27 -> 0.08 | AH10: =Inputs!$D$27 -> 0.08 | AI10: =Inputs!$D$27 -> 0.08 | AJ10: =Inputs!$D$27 -> 0.08 | AK10: =Inputs!$D$27 -> 0.08 | AL10: =Inputs!$D$27 -> 0.08 | AM10: =Inputs!$D$27 -> 0.08 | AN10: =Inputs!$D$27 -> 0.08
A12: No Build Case Alternative | B12: Unit | C12: Value | D12: 2019 | E12: =D12+1 -> 2020 | F12: 2021 | G12: 2022 | H12: 2023 | I12: 2024 | J12: 2025 | K12: 2026 | L12: 2027 | M12: 2028 | N12: 2029 | O12: 2030 | P12: 2031 | Q12: 2032 | R12: 2033 | S12: 2034 | T12: 2035 | U12: 2036 | V12: 2037 | W12: 2038 | X12: 2039 | Y12: 2040 | Z12: 2041 | AA12: 2042 | AB12: 2043 | AC12: =AB12+1 -> 2044 | AD12: =AC12+1 -> 2045 | AE12: =AD12+1 -> 2046 | AF12: =AE12+1 -> 2047 | AG12: =AF12+1 -> 2048 | AH12: =AG12+1 -> 2049 | AI12: =AH12+1 -> 2050 | AJ12: =AI12+1 -> 2051 | AK12: =AJ12+1 -> 2052 | AL12: =AK12+1 -> 2053 | AM12: =AL12+1 -> 2054 | AN12: =AM12+1 -> 2055
A14: Travel on 51st Street to Union Ave
A15: Auto Daily VMT | B15: =Traffic!B17 -> Daily VMT | D15: =Traffic!D19 -> 3092.147784 | E15: =Traffic!E19 -> 3111.348988 | F15: =Traffic!F19 -> 3130.67145 | G15: =Traffic!G19 -> 3150.115952 | H15: =Traffic!H19 -> 3169.683278 | I15: =Traffic!I19 -> 3189.37422 | J15: =Traffic!J19 -> 3209.189573 | K15: =Traffic!K19 -> 3229.130138 | L15: =Traffic!L19 -> 3249.196721 | M15: =Traffic!M19 -> 3269.390134 | N15: =Traffic!N19 -> 3289.711194 | O15: =Traffic!O19 -> 3310.160724 | P15: =Traffic!P19 -> 3330.73955 | Q15: =Traffic!Q19 -> 3351.448507 | R15: =Traffic!R19 -> 3372.288432 | S15: =Traffic!S19 -> 3393.260171 | T15: =Traffic!T19 -> 3414.364571 | U15: =Traffic!U19 -> 3435.60249 | V15: =Traffic!V19 -> 3456.974788 | W15: =Traffic!W19 -> 3478.48233 | X15: =Traffic!X19 -> 3500.125991 | Y15: =Traffic!Y19 -> 3521.906647 | Z15: =Traffic!Z19 -> 3543.825182 | AA15: =Traffic!AA19 -> 3565.882487 | AB15: =Traffic!AB19 -> 3588.079456 | AC15: =Traffic!AC19 -> 3610.416992 | AD15: =Traffic!AD19 -> 3632.896 | AE15: =Traffic!AE19 -> 3655.517395 | AF15: =Traffic!AF19 -> 3678.282096 | AG15: =Traffic!AG19 -> 3701.191028 | AH15: =Traffic!AH19 -> 3724.245123 | AI15: =Traffic!AI19 -> 3747.445318 | AJ15: =Traffic!AJ19 -> 3770.792558 | AK15: =Traffic!AK19 -> 3794.287791 | AL15: =Traffic!AL19 -> 3817.931975 | AM15: =Traffic!AM19 -> 3841.726072 | AN15: =Traffic!AN19 -> 3865.671051
A16: Truck Daily VMT | D16: =Traffic!D20 -> 268.882416 | E16: =Traffic!E20 -> 270.5520859 | F16: =Traffic!F20 -> 272.2323 | G16: =Traffic!G20 -> 273.9231263 | H16: =Traffic!H20 -> 275.6246329 | I16: =Traffic!I20 -> 277.3368887 | J16: =Traffic!J20 -> 279.0599628 | K16: =Traffic!K20 -> 280.793925 | L16: =Traffic!L20 -> 282.5388453 | M16: =Traffic!M20 -> 284.2947943 | N16: =Traffic!N20 -> 286.061843 | O16: =Traffic!O20 -> 287.840063 | P16: =Traffic!P20 -> 289.6295261 | Q16: =Traffic!Q20 -> 291.430305 | R16: =Traffic!R20 -> 293.2424724 | S16: =Traffic!S20 -> 295.0661018 | T16: =Traffic!T20 -> 296.9012671 | U16: =Traffic!U20 -> 298.7480426 | V16: =Traffic!V20 -> 300.6065033 | W16: =Traffic!W20 -> 302.4767244 | X16: =Traffic!X20 -> 304.3587818 | Y16: =Traffic!Y20 -> 306.2527519 | Z16: =Traffic!Z20 -> 308.1587115 | AA16: =Traffic!AA20 -> 310.076738 | AB16: =Traffic!AB20 -> 312.0069092 | AC16: =Traffic!AC20 -> 313.9493036 | AD16: =Traffic!AD20 -> 315.904 | AE16: =Traffic!AE20 -> 317.8710778 | AF16: =Traffic!AF20 -> 319.850617 | AG16: =Traffic!AG20 -> 321.8426981 | AH16: =Traffic!AH20 -> 323.847402 | AI16: =Traffic!AI20 -> 325.8648103 | AJ16: =Traffic!AJ20 -> 327.895005 | AK16: =Traffic!AK20 -> 329.9380688 | AL16: =Traffic!AL20 -> 331.9940848 | AM16: =Traffic!AM20 -> 334.0631367 | AN16: =Traffic!AN20 -> 336.1453088
A18: Operating Cost for Auto | B18: $/year | D18: =D15*Annualization_Factor*OperatingCost_Passenger -> 507885.2736 | E18: =E15*Annualization_Factor*OperatingCost_Passenger -> 511039.0713 | F18: 514212.7857 | G18: 517406.5451 | H18: 520620.4785 | I18: 523854.7156 | J18: 527109.3873 | K18: 530384.6251 | L18: 533680.5614 | M18: 536997.3295 | N18: 540335.0637 | O18: 543693.8989 | P18: 547073.9712 | Q18: 550475.4173 | R18: 553898.375 | S18: 557342.983 | T18: 560809.3809 | U18: 564297.709 | V18: 567808.1089 | W18: 571340.7228 | X18: 574895.694 | Y18: 578473.1667 | Z18: 582073.2862 | AA18: 585696.1985 | AB18: =AB15*Annualization_Factor*OperatingCost_Passenger -> 589342.0507 | AC18: 593010.9909 | AD18: 596703.168 | AE18: 600418.7321 | AF18: 604157.8343 | AG18: 607920.6264 | AH18: 611707.2615 | AI18: 615517.8935 | AJ18: 619352.6776 | AK18: 623211.7697 | AL18: 627095.3269 | AM18: =AM15*Annualization_Factor*OperatingCost_Passenger -> 631003.5073 | AN18: 634936.4701
A19: Operating Cost for Trucks | B19: $/year | D19: =D16*Annualization_Factor*OperatingCost_Trucks -> 92253.55694 | E19: =E16*Annualization_Factor*OperatingCost_Trucks -> 92826.42067 | F19: =F16*Annualization_Factor*OperatingCost_Trucks -> 93402.90214 | G19: =(G16*Annualization_Factor*OperatingCost_Trucks) -> 93983.02462 | H19: 94566.81155 | I19: 95154.28651 | J19: 95745.47325 | K19: 96340.39567 | L19: 96939.07782 | M19: 97541.54392 | N19: 98147.81833 | O19: 98757.9256 | P19: 99371.89041 | Q19: 99989.73763 | R19: 100611.4923 | S19: 101237.1795 | T19: 101866.8247 | U19: 102500.4534 | V19: 103138.0913 | W19: 103779.7641 | X19: 104425.498 | Y19: 105075.3192 | Z19: 105729.2539 | AA19: 106387.3288 | AB19: =(AB16*Annualization_Factor*OperatingCost_Trucks) -> 107049.5706 | AC19: 107716.0061 | AD19: 108386.6624 | AE19: 109061.5668 | AF19: 109740.7467 | AG19: 110424.2297 | AH19: 111112.0436 | AI19: 111804.2164 | AJ19: 112500.7762 | AK19: 113201.7514 | AL19: 113907.1705 | AM19: =(AM16*Annualization_Factor*OperatingCost_Trucks) -> 114617.0622 | AN19: 115331.4554
A20: Total Operating Cost | D20: =SUM(D18:D19) -> 600138.8305 | E20: 603865.4919 | F20: 607615.6879 | G20: 611389.5697 | H20: 615187.29 | I20: 619009.0021 | J20: 622854.8606 | K20: 626725.0208 | L20: 630619.6392 | M20: 634538.8735 | N20: 638482.882 | O20: 642451.8245 | P20: 646445.8616 | Q20: 650465.1549 | R20: 654509.8673 | S20: 658580.1626 | T20: 662676.2056 | U20: 666798.1624 | V20: 670946.2001 | W20: 675120.4869 | X20: 679321.192 | Y20: 683548.4859 | Z20: 687802.5401 | AA20: 692083.5273 | AB20: 696391.6213 | AC20: 700726.9969 | AD20: 705089.8304 | AE20: 709480.2989 | AF20: 713898.581 | AG20: 718344.8561 | AH20: 722819.3051 | AI20: 727322.1099 | AJ20: 731853.4538 | AK20: 736413.5211 | AL20: 741002.4974 | AM20: =SUM(AM18:AM19) -> 745620.5695 | AN20: 750267.9255
A22: Fuel Use During Delays on Intersections | B22: Gallons per Day
A23: AM (One Hour) | D23: =Inputs!D70*(1+Inputs!D84)^(D4-2016) -> 75.95707812 | E23: =D23*(1+Inputs!$D$84) -> 76.69002504 | F23: =E23*(1+Inputs!$D$84) -> 77.43004453 | G23: =F23*(1+Inputs!$D$84) -> 78.17720483 | H23: =G23*(1+Inputs!$D$84) -> 78.93157484 | I23: =H23*(1+Inputs!$D$84) -> 79.69322414 | J23: =I23*(1+Inputs!$D$84) -> 80.46222296 | K23: =J23*(1+Inputs!$D$84) -> 81.23864223 | L23: =K23*(1+Inputs!$D$84) -> 82.02255354 | M23: =L23*(1+Inputs!$D$84) -> 82.8140292 | N23: =M23*(1+Inputs!$D$84) -> 83.6131422 | O23: =N23*(1+Inputs!$D$84) -> 84.41996622 | P23: =O23*(1+Inputs!$D$84) -> 85.23457568 | Q23: =P23*(1+Inputs!$D$84) -> 86.05704571 | R23: =Q23*(1+Inputs!$D$84) -> 86.88745215 | S23: =R23*(1+Inputs!$D$84) -> 87.72587159 | T23: =S23*(1+Inputs!$D$84) -> 88.57238135 | U23: =T23*(1+Inputs!$D$84) -> 89.4270595 | V23: =U23*(1+Inputs!$D$84) -> 90.28998485 | W23: =V23*(1+Inputs!$D$84) -> 91.16123699 | X23: =W23*(1+Inputs!$D$84) -> 92.04089626 | Y23: =X23*(1+Inputs!$D$84) -> 92.9290438 | Z23: =Y23*(1+Inputs!$D$84) -> 93.82576151 | AA23: =Z23*(1+Inputs!$D$84) -> 94.73113208 | AB23: =AA23*(1+Inputs!$D$84) -> 95.64523902 | AC23: =AB23*(1+Inputs!$D$84) -> 96.56816662 | AD23: =AC23*(1+Inputs!$D$84) -> 97.5 | AE23: =AD23*(1+Inputs!$D$84) -> 98.44082509 | AF23: =AE23*(1+Inputs!$D$84) -> 99.39072867 | AG23: =AF23*(1+Inputs!$D$84) -> 100.3497983 | AH23: =AG23*(1+Inputs!$D$84) -> 101.3181225 | AI23: =AH23*(1+Inputs!$D$84) -> 102.2957905 | AJ23: =AI23*(1+Inputs!$D$84) -> 103.2828926 | AK23: =AJ23*(1+Inputs!$D$84) -> 104.2795196 | AL23: =AK23*(1+Inputs!$D$84) -> 105.2857636 | AM23: =AL23*(1+Inputs!$D$84) -> 106.3017173 | AN23: =AM23*(1+Inputs!$D$84) -> 107.3274745
A24: PM (One Hour) | D24: =Inputs!D73*(1+Inputs!D87)^(D4-2016) -> 89.54647891 | E24: =D24*(1+Inputs!$D$87) -> 90.48114955 | F24: =E24*(1+Inputs!$D$87) -> 91.42557611 | G24: =F24*(1+Inputs!$D$87) -> 92.37986043 | H24: =G24*(1+Inputs!$D$87) -> 93.34410541 | I24: =H24*(1+Inputs!$D$87) -> 94.31841501 | J24: =I24*(1+Inputs!$D$87) -> 95.30289429 | K24: =J24*(1+Inputs!$D$87) -> 96.29764939 | L24: =K24*(1+Inputs!$D$87) -> 97.30278757 | M24: =L24*(1+Inputs!$D$87) -> 98.31841721 | N24: =M24*(1+Inputs!$D$87) -> 99.34464781 | O24: =N24*(1+Inputs!$D$87) -> 100.38159 | P24: =O24*(1+Inputs!$D$87) -> 101.4293557 | Q24: =P24*(1+Inputs!$D$87) -> 102.4880577 | R24: =Q24*(1+Inputs!$D$87) -> 103.5578103 | S24: =R24*(1+Inputs!$D$87) -> 104.6387288 | T24: =S24*(1+Inputs!$D$87) -> 105.7309297 | U24: =T24*(1+Inputs!$D$87) -> 106.8345308 | V24: =U24*(1+Inputs!$D$87) -> 107.9496512 | W24: =V24*(1+Inputs!$D$87) -> 109.0764109 | X24: =W24*(1+Inputs!$D$87) -> 110.2149316 | Y24: =X24*(1+Inputs!$D$87) -> 111.365336 | Z24: =Y24*(1+Inputs!$D$87) -> 112.5277481 | AA24: =Z24*(1+Inputs!$D$87) -> 113.7022932 | AB24: =AA24*(1+Inputs!$D$87) -> 114.889098 | AC24: =AB24*(1+Inputs!$D$87) -> 116.0882905 | AD24: =AC24*(1+Inputs!$D$87) -> 117.3 | AE24: =AD24*(1+Inputs!$D$87) -> 118.5243571 | AF24: =AE24*(1+Inputs!$D$87) -> 119.7614938 | AG24: =AF24*(1+Inputs!$D$87) -> 121.0115435 | AH24: =AG24*(1+Inputs!$D$87) -> 122.274641 | AI24: =AH24*(1+Inputs!$D$87) -> 123.5509226 | AJ24: =AI24*(1+Inputs!$D$87) -> 124.8405257 | AK24: =AJ24*(1+Inputs!$D$87) -> 126.1435895 | AL24: =AK24*(1+Inputs!$D$87) -> 127.4602544 | AM24: =AL24*(1+Inputs!$D$87) -> 128.7906624 | AN24: =AM24*(1+Inputs!$D$87) -> 130.1349571
A25: Total Peak | D25: =D23*Inputs!$D$90+D24*Inputs!$D$91 -> 331.0071141 | E25: =E23*Inputs!$D$90+E24*Inputs!$D$91 -> 334.3423492 | F25: =F23*Inputs!$D$90+F24*Inputs!$D$91 -> 337.7112413 | G25: =G23*Inputs!$D$90+G24*Inputs!$D$91 -> 341.1141305 | H25: =H23*Inputs!$D$90+H24*Inputs!$D$91 -> 344.5513605 | I25: =I23*Inputs!$D$90+I24*Inputs!$D$91 -> 348.0232783 | J25: =J23*Inputs!$D$90+J24*Inputs!$D$91 -> 351.5302345 | K25: =K23*Inputs!$D$90+K24*Inputs!$D$91 -> 355.0725832 | L25: =L23*Inputs!$D$90+L24*Inputs!$D$91 -> 358.6506822 | M25: =M23*Inputs!$D$90+M24*Inputs!$D$91 -> 362.2648928 | N25: =N23*Inputs!$D$90+N24*Inputs!$D$91 -> 365.91558 | O25: =O23*Inputs!$D$90+O24*Inputs!$D$91 -> 369.6031125 | P25: =P23*Inputs!$D$90+P24*Inputs!$D$91 -> 373.3278627 | Q25: =Q23*Inputs!$D$90+Q24*Inputs!$D$91 -> 377.0902069 | R25: =R23*Inputs!$D$90+R24*Inputs!$D$91 -> 380.8905249 | S25: =S23*Inputs!$D$90+S24*Inputs!$D$91 -> 384.7292008 | T25: =T23*Inputs!$D$90+T24*Inputs!$D$91 -> 388.6066222 | U25: =U23*Inputs!$D$90+U24*Inputs!$D$91 -> 392.5231807 | V25: =V23*Inputs!$D$90+V24*Inputs!$D$91 -> 396.479272 | W25: =W23*Inputs!$D$90+W24*Inputs!$D$91 -> 400.4752958 | X25: =X23*Inputs!$D$90+X24*Inputs!$D$91 -> 404.5116558 | Y25: =Y23*Inputs!$D$90+Y24*Inputs!$D$91 -> 408.5887596 | Z25: =Z23*Inputs!$D$90+Z24*Inputs!$D$91 -> 412.7070191 | AA25: =AA23*Inputs!$D$90+AA24*Inputs!$D$91 -> 416.8668506 | AB25: =AB23*Inputs!$D$90+AB24*Inputs!$D$91 -> 421.0686741 | AC25: =AC23*Inputs!$D$90+AC24*Inputs!$D$91 -> 425.3129143 | AD25: =AD23*Inputs!$D$90+AD24*Inputs!$D$91 -> 429.6 | AE25: =AE23*Inputs!$D$90+AE24*Inputs!$D$91 -> 433.9303643 | AF25: =AF23*Inputs!$D$90+AF24*Inputs!$D$91 -> 438.3044449 | AG25: =AG23*Inputs!$D$90+AG24*Inputs!$D$91 -> 442.7226837 | AH25: =AH23*Inputs!$D$90+AH24*Inputs!$D$91 -> 447.1855271 | AI25: =AI23*Inputs!$D$90+AI24*Inputs!$D$91 -> 451.6934262 | AJ25: =AJ23*Inputs!$D$90+AJ24*Inputs!$D$91 -> 456.2468365 | AK25: =AK23*Inputs!$D$90+AK24*Inputs!$D$91 -> 460.8462181 | AL25: =AL23*Inputs!$D$90+AL24*Inputs!$D$91 -> 465.492036 | AM25: =AM23*Inputs!$D$90+AM24*Inputs!$D$91 -> 470.1847595 | AN25: =AN23*Inputs!$D$90+AN24*Inputs!$D$91 -> 474.9248631
A26: Total Cost of Travel Delays on Intersections | B26: $ Annually | F26: =('Fuel Prices'!C129/DeflatorRate*$C$9+'Fuel Prices'!C130/DeflatorRate*$C$10)*F25*Inputs!$D$92 -> 233604.7589 | G26: =('Fuel Prices'!D129/DeflatorRate*$C$9+'Fuel Prices'!D130/DeflatorRate*$C$10)*G25*Inputs!$D$92 -> 227929.1128 | H26: =('Fuel Prices'!E129/DeflatorRate*$C$9+'Fuel Prices'!E130/DeflatorRate*$C$10)*H25*Inputs!$D$92 -> 206794.7636 | I26: =('Fuel Prices'!F129/DeflatorRate*$C$9+'Fuel Prices'!F130/DeflatorRate*$C$10)*I25*Inputs!$D$92 -> 209204.1157 | J26: =('Fuel Prices'!G129/DeflatorRate*$C$9+'Fuel Prices'!G130/DeflatorRate*$C$10)*J25*Inputs!$D$92 -> 209434.4665 | K26: =('Fuel Prices'!H129/DeflatorRate*$C$9+'Fuel Prices'!H130/DeflatorRate*$C$10)*K25*Inputs!$D$92 -> 213712.0572 | L26: =('Fuel Prices'!I129/DeflatorRate*$C$9+'Fuel Prices'!I130/DeflatorRate*$C$10)*L25*Inputs!$D$92 -> 218533.4535 | M26: =('Fuel Prices'!J129/DeflatorRate*$C$9+'Fuel Prices'!J130/DeflatorRate*$C$10)*M25*Inputs!$D$92 -> 223225.1276 | N26: =('Fuel Prices'!K129/DeflatorRate*$C$9+'Fuel Prices'!K130/DeflatorRate*$C$10)*N25*Inputs!$D$92 -> 227188.943 | O26: =('Fuel Prices'!L129/DeflatorRate*$C$9+'Fuel Prices'!L130/DeflatorRate*$C$10)*O25*Inputs!$D$92 -> 234439.38 | P26: =('Fuel Prices'!M129/DeflatorRate*$C$9+'Fuel Prices'!M130/DeflatorRate*$C$10)*P25*Inputs!$D$92 -> 244280.9968 | Q26: =('Fuel Prices'!N129/DeflatorRate*$C$9+'Fuel Prices'!N130/DeflatorRate*$C$10)*Q25*Inputs!$D$92 -> 249217.519 | R26: =('Fuel Prices'!O129/DeflatorRate*$C$9+'Fuel Prices'!O130/DeflatorRate*$C$10)*R25*Inputs!$D$92 -> 253720.239 | S26: =('Fuel Prices'!P129/DeflatorRate*$C$9+'Fuel Prices'!P130/DeflatorRate*$C$10)*S25*Inputs!$D$92 -> 258266.7849 | T26: =('Fuel Prices'!Q129/DeflatorRate*$C$9+'Fuel Prices'!Q130/DeflatorRate*$C$10)*T25*Inputs!$D$92 -> 261871.2109 | U26: =('Fuel Prices'!R129/DeflatorRate*$C$9+'Fuel Prices'!R130/DeflatorRate*$C$10)*U25*Inputs!$D$92 -> 266461.145 | V26: =('Fuel Prices'!S129/DeflatorRate*$C$9+'Fuel Prices'!S130/DeflatorRate*$C$10)*V25*Inputs!$D$92 -> 271016.9412 | W26: =('Fuel Prices'!T129/DeflatorRate*$C$9+'Fuel Prices'!T130/DeflatorRate*$C$10)*W25*Inputs!$D$92 -> 276682.1887 | X26: =('Fuel Prices'!U129/DeflatorRate*$C$9+'Fuel Prices'!U130/DeflatorRate*$C$10)*X25*Inputs!$D$92 -> 279724.321 | Y26: =('Fuel Prices'!V129/DeflatorRate*$C$9+'Fuel Prices'!V130/DeflatorRate*$C$10)*Y25*Inputs!$D$92 -> 284789.641 | Z26: =('Fuel Prices'!W129/DeflatorRate*$C$9+'Fuel Prices'!W130/DeflatorRate*$C$10)*Z25*Inputs!$D$92 -> 289486.0195 | AA26: =('Fuel Prices'!X129/DeflatorRate*$C$9+'Fuel Prices'!X130/DeflatorRate*$C$10)*AA25*Inputs!$D$92 -> 292850.1082 | AB26: =('Fuel Prices'!Y129/DeflatorRate*$C$9+'Fuel Prices'!Y130/DeflatorRate*$C$10)*AB25*Inputs!$D$92 -> 298873.9221 | AC26: =('Fuel Prices'!Z129/DeflatorRate*$C$9+'Fuel Prices'!Z130/DeflatorRate*$C$10)*AC25*Inputs!$D$92 -> 304920.813 | AD26: =('Fuel Prices'!AA129/DeflatorRate*$C$9+'Fuel Prices'!AA130/DeflatorRate*$C$10)*AD25*Inputs!$D$92 -> 309020.3116 | AE26: =('Fuel Prices'!AB129/DeflatorRate*$C$9+'Fuel Prices'!AB130/DeflatorRate*$C$10)*AE25*Inputs!$D$92 -> 314686.56 | AF26: =('Fuel Prices'!AC129/DeflatorRate*$C$9+'Fuel Prices'!AC130/DeflatorRate*$C$10)*AF25*Inputs!$D$92 -> 318849.8203 | AG26: =('Fuel Prices'!AD129/DeflatorRate*$C$9+'Fuel Prices'!AD130/DeflatorRate*$C$10)*AG25*Inputs!$D$92 -> 321199.0532 | AH26: =('Fuel Prices'!AE129/DeflatorRate*$C$9+'Fuel Prices'!AE130/DeflatorRate*$C$10)*AH25*Inputs!$D$92 -> 324638.7004 | AI26: =('Fuel Prices'!$AF$129/DeflatorRate*$C$9+'Fuel Prices'!$AF$130/DeflatorRate*$C$10)*AI25*Inputs!$D$92 -> 327709.6833 | AJ26: =('Fuel Prices'!$AF$129/DeflatorRate*$C$9+'Fuel Prices'!$AF$130/DeflatorRate*$C$10)*AJ25*Inputs!$D$92 -> 331013.2439 | AK26: =('Fuel Prices'!$AF$129/DeflatorRate*$C$9+'Fuel Prices'!$AF$130/DeflatorRate*$C$10)*AK25*Inputs!$D$92 -> 334350.1575 | AL26: =('Fuel Prices'!$AF$129/DeflatorRate*$C$9+'Fuel Prices'!$AF$130/DeflatorRate*$C$10)*AL25*Inputs!$D$92 -> 337720.7611 | AM26: =('Fuel Prices'!$AF$129/DeflatorRate*$C$9+'Fuel Prices'!$AF$130/DeflatorRate*$C$10)*AM25*Inputs!$D$92 -> 341125.3954 | AN26: =('Fuel Prices'!$AF$129/DeflatorRate*$C$9+'Fuel Prices'!$AF$130/DeflatorRate*$C$10)*AN25*Inputs!$D$92 -> 344564.4046
A28: Build (Alternative Case) | B28: Unit | C28: Value | D28: 2019 | E28: =D28+1 -> 2020 | F28: 2021 | G28: 2022 | H28: 2023 | I28: 2024 | J28: 2025 | K28: 2026 | L28: 2027 | M28: 2028 | N28: 2029 | O28: 2030 | P28: 2031 | Q28: 2032 | R28: 2033 | S28: 2034 | T28: 2035 | U28: 2036 | V28: 2037 | W28: 2038 | X28: 2039 | Y28: 2040 | Z28: 2041 | AA28: 2042 | AB28: 2043 | AC28: =AB28+1 -> 2044 | AD28: =AC28+1 -> 2045 | AE28: =AD28+1 -> 2046 | AF28: =AE28+1 -> 2047 | AG28: =AF28+1 -> 2048 | AH28: =AG28+1 -> 2049 | AI28: =AH28+1 -> 2050 | AJ28: =AI28+1 -> 2051 | AK28: =AJ28+1 -> 2052 | AL28: =AK28+1 -> 2053 | AM28: =AL28+1 -> 2054 | AN28: =AM28+1 -> 2055
A30: Auto Daily VMT | B30: =Traffic!B25 -> Daily VMT | D30: =Traffic!D27 -> 2004.847073 | E30: =Traffic!E27 -> 2017.766822 | F30: =Traffic!F27 -> 2030.771541 | G30: =Traffic!G27 -> 2043.8618 | H30: =Traffic!H27 -> 2057.038176 | I30: =Traffic!I27 -> 2070.301245 | J30: =Traffic!J27 -> 2083.651591 | K30: =Traffic!K27 -> 2097.0898 | L30: =Traffic!L27 -> 2110.616463 | M30: =Traffic!M27 -> 2124.232174 | N30: =Traffic!N27 -> 2137.937531 | O30: =Traffic!O27 -> 2151.733139 | P30: =Traffic!P27 -> 2165.619603 | Q30: =Traffic!Q27 -> 2179.597534 | R30: =Traffic!R27 -> 2193.667548 | S30: =Traffic!S27 -> 2207.830265 | T30: =Traffic!T27 -> 2222.086308 | U30: =Traffic!U27 -> 2236.436305 | V30: =Traffic!V27 -> 2250.880888 | W30: =Traffic!W27 -> 2265.420695 | X30: =Traffic!X27 -> 2280.056366 | Y30: =Traffic!Y27 -> 2294.788546 | Z30: =Traffic!Z27 -> 2309.617887 | AA30: =Traffic!AA27 -> 2324.545041 | AB30: =Traffic!AB27 -> 2339.570668 | AC30: =Traffic!AC27 -> 2354.695432 | AD30: =Traffic!AD27 -> 2369.92 | AE30: =Traffic!AE27 -> 2385.245045 | AF30: =Traffic!AF27 -> 2400.671244 | AG30: =Traffic!AG27 -> 2416.199278 | AH30: =Traffic!AH27 -> 2431.829836 | AI30: =Traffic!AI27 -> 2447.563607 | AJ30: =Traffic!AJ27 -> 2463.401288 | AK30: =Traffic!AK27 -> 2479.343579 | AL30: =Traffic!AL27 -> 2495.391187 | AM30: =Traffic!AM27 -> 2511.544821 | AN30: =Traffic!AN27 -> 2527.805197
A31: Truck Daily VMT | B31: =Traffic!B26 -> Daily VMT | D31: =Traffic!D28 -> 174.3345281 | E31: =Traffic!E28 -> 175.4579845 | F31: =Traffic!F28 -> 176.5888296 | G31: =Traffic!G28 -> 177.7271131 | H31: =Traffic!H28 -> 178.8728848 | I31: =Traffic!I28 -> 180.0261952 | J31: =Traffic!J28 -> 181.1870949 | K31: =Traffic!K28 -> 182.3556348 | L31: =Traffic!L28 -> 183.5318663 | M31: =Traffic!M28 -> 184.7158412 | N31: =Traffic!N28 -> 185.9076114 | O31: =Traffic!O28 -> 187.1072295 | P31: =Traffic!P28 -> 188.314748 | Q31: =Traffic!Q28 -> 189.5302203 | R31: =Traffic!R28 -> 190.7536999 | S31: =Traffic!S28 -> 191.9852404 | T31: =Traffic!T28 -> 193.2248963 | U31: =Traffic!U28 -> 194.4727222 | V31: =Traffic!V28 -> 195.7287729 | W31: =Traffic!W28 -> 196.9931039 | X31: =Traffic!X28 -> 198.2657709 | Y31: =Traffic!Y28 -> 199.5468301 | Z31: =Traffic!Z28 -> 200.836338 | AA31: =Traffic!AA28 -> 202.1343514 | AB31: =Traffic!AB28 -> 203.4409277 | AC31: =Traffic!AC28 -> 204.7561245 | AD31: =Traffic!AD28 -> 206.08 | AE31: =Traffic!AE28 -> 207.4126126 | AF31: =Traffic!AF28 -> 208.7540212 | AG31: =Traffic!AG28 -> 210.1042851 | AH31: =Traffic!AH28 -> 211.463464 | AI31: =Traffic!AI28 -> 212.831618 | AJ31: =Traffic!AJ28 -> 214.2088076 | AK31: =Traffic!AK28 -> 215.5950938 | AL31: =Traffic!AL28 -> 216.990538 | AM31: =Traffic!AM28 -> 218.3952018 | AN31: =Traffic!AN28 -> 219.8091476
A33: Operating Cost for Auto | B33: $/year | D33: =(D30*Annualization_Factor*OperatingCost_Passenger) -> 329296.1318 | E33: =(E30*Annualization_Factor*OperatingCost_Passenger) -> 331418.2005 | F33: =(F30*Annualization_Factor*OperatingCost_Passenger) -> 333554.2255 | G33: =(G30*Annualization_Factor*OperatingCost_Passenger) -> 335704.3007 | H33: =H30*Annualization_Factor*OperatingCost_Passenger -> 337868.5204 | I33: 340046.9795 | J33: 342239.7738 | K33: 344446.9997 | L33: 346668.754 | M33: 348905.1345 | N33: 351156.2395 | O33: 353422.168 | P33: 355703.0197 | Q33: 357998.895 | R33: 360309.8948 | S33: 362636.121 | T33: 364977.6761 | U33: 367334.6631 | V33: 369707.1859 | W33: 372095.3491 | X33: 374499.2581 | Y33: 376919.0188 | Z33: 379354.7379 | AA33: 381806.523 | AB33: =AB30*Annualization_Factor*OperatingCost_Passenger -> 384274.4823 | AC33: 386758.7247 | AD33: 389259.36 | AE33: 391776.4986 | AF33: 394310.2518 | AG33: 396860.7315 | AH33: 399428.0505 | AI33: 402012.3224 | AJ33: 404613.6615 | AK33: 407232.1828 | AL33: 409868.0024 | AM33: =AM30*Annualization_Factor*OperatingCost_Passenger -> 412521.2368 | AN33: 415192.0037
A34: Operating Cost for Trucks | B34: $/year | D34: =(D31*Annualization_Factor*OperatingCost_Trucks) -> 59814.17659 | E34: =(E31*Annualization_Factor*OperatingCost_Trucks) -> 60199.63448 | F34: =(F31*Annualization_Factor*OperatingCost_Trucks) -> 60587.62744 | G34: =(G31*Annualization_Factor*OperatingCost_Trucks) -> 60978.1725 | H34: =H31*Annualization_Factor*OperatingCost_Trucks -> 61371.28679 | I34: 61766.98758 | J34: 62165.29225 | K34: 62566.2183 | L34: 62969.78334 | M34: 63376.00511 | N34: 63784.90148 | O34: 64196.49042 | P34: 64610.79005 | Q34: 65027.8186 | R34: 65447.59442 | S34: 65870.13599 | T34: 66295.46193 | U34: 66723.59097 | V34: 67154.54198 | W34: 67588.33395 | X34: 68024.98601 | Y34: 68464.51742 | Z34: 68906.94756 | AA34: 69352.29597 | AB34: =AB31*Annualization_Factor*OperatingCost_Trucks -> 69800.58229 | AC34: 70251.82633 | AD34: 70706.048 | AE34: 71163.26738 | AF34: 71623.50467 | AG34: 72086.78021 | AH34: 72553.11449 | AI34: 73022.52813 | AJ34: 73495.04189 | AK34: 73970.67669 | AL34: 74449.45357 | AM34: =AM31*Annualization_Factor*OperatingCost_Trucks -> 74931.39374 | AN34: 75416.51854
A35: Total Operating Cost | D35: =SUM(D33:D34) -> 389110.3083 | E35: 391617.8349 | F35: 394141.853 | G35: 396682.4732 | H35: 399239.8071 | I35: 401813.9671 | J35: 404405.0661 | K35: 407013.218 | L35: 409638.5374 | M35: 412281.1396 | N35: 414941.141 | O35: 417618.6585 | P35: 420313.8098 | Q35: 423026.7136 | R35: 425757.4892 | S35: 428506.257 | T35: 431273.138 | U35: 434058.254 | V35: 436861.7279 | W35: 439683.6831 | X35: 442524.2441 | Y35: 445383.5362 | Z35: 448261.6855 | AA35: 451158.819 | AB35: 454075.0646 | AC35: 457010.551 | AD35: 459965.408 | AE35: 462939.766 | AF35: 465933.7564 | AG35: 468947.5117 | AH35: 471981.165 | AI35: 475034.8505 | AJ35: 478108.7034 | AK35: 481202.8595 | AL35: 484317.456 | AM35: =SUM(AM33:AM34) -> 487452.6306 | AN35: 490608.5222
A37: Fuel Use During Delays on Intersections | B37: Gallons per Day
A38: AM (One Hour) | D38: =Inputs!D71*(1+Inputs!D85)^(D28-2016) -> 68.52752507 | E38: =D38*(1+Inputs!$D$85) -> 69.11323827 | F38: =E38*(1+Inputs!$D$85) -> 69.70395762 | G38: =F38*(1+Inputs!$D$85) -> 70.29972593 | H38: =G38*(1+Inputs!$D$85) -> 70.90058635 | I38: =H38*(1+Inputs!$D$85) -> 71.50658239 | J38: =I38*(1+Inputs!$D$85) -> 72.11775795 | K38: =J38*(1+Inputs!$D$85) -> 72.73415731 | L38: =K38*(1+Inputs!$D$85) -> 73.35582511 | M38: =L38*(1+Inputs!$D$85) -> 73.98280638 | N38: =M38*(1+Inputs!$D$85) -> 74.61514654 | O38: =N38*(1+Inputs!$D$85) -> 75.25289138 | P38: =O38*(1+Inputs!$D$85) -> 75.89608711 | Q38: =P38*(1+Inputs!$D$85) -> 76.54478032 | R38: =Q38*(1+Inputs!$D$85) -> 77.19901798 | S38: =R38*(1+Inputs!$D$85) -> 77.85884749 | T38: =S38*(1+Inputs!$D$85) -> 78.52431665 | U38: =T38*(1+Inputs!$D$85) -> 79.19547365 | V38: =U38*(1+Inputs!$D$85) -> 79.87236712 | W38: =V38*(1+Inputs!$D$85) -> 80.55504608 | X38: =W38*(1+Inputs!$D$85) -> 81.24355997 | Y38: =X38*(1+Inputs!$D$85) -> 81.93795868 | Z38: =Y38*(1+Inputs!$D$85) -> 82.63829251 | AA38: =Z38*(1+Inputs!$D$85) -> 83.34461217 | AB38: =AA38*(1+Inputs!$D$85) -> 84.05696883 | AC38: =AB38*(1+Inputs!$D$85) -> 84.7754141 | AD38: =AC38*(1+Inputs!$D$85) -> 85.5 | AE38: =AD38*(1+Inputs!$D$85) -> 86.23077903 | AF38: =AE38*(1+Inputs!$D$85) -> 86.96780412 | AG38: =AF38*(1+Inputs!$D$85) -> 87.71112865 | AH38: =AG38*(1+Inputs!$D$85) -> 88.46080646 | AI38: =AH38*(1+Inputs!$D$85) -> 89.21689187 | AJ38: =AI38*(1+Inputs!$D$85) -> 89.97943963 | AK38: =AJ38*(1+Inputs!$D$85) -> 90.74850498 | AL38: =AK38*(1+Inputs!$D$85) -> 91.52414363 | AM38: =AL38*(1+Inputs!$D$85) -> 92.30641175 | AN38: =AM38*(1+Inputs!$D$85) -> 93.09536602
A39: PM (One Hour) | D39: =Inputs!D74*(1+Inputs!D88)^(D28-2016) -> 82.00222596 | E39: =D39*(1+Inputs!$D$88) -> 82.64628755 | F39: =E39*(1+Inputs!$D$88) -> 83.29540774 | G39: =F39*(1+Inputs!$D$88) -> 83.94962624 | H39: =G39*(1+Inputs!$D$88) -> 84.6089831 | I39: =H39*(1+Inputs!$D$88) -> 85.27351868 | J39: =I39*(1+Inputs!$D$88) -> 85.94327366 | K39: =J39*(1+Inputs!$D$88) -> 86.61828902 | L39: =K39*(1+Inputs!$D$88) -> 87.29860608 | M39: =L39*(1+Inputs!$D$88) -> 87.98426649 | N39: =M39*(1+Inputs!$D$88) -> 88.67531221 | O39: =N39*(1+Inputs!$D$88) -> 89.37178554 | P39: =O39*(1+Inputs!$D$88) -> 90.0737291 | Q39: =P39*(1+Inputs!$D$88) -> 90.78118587 | R39: =Q39*(1+Inputs!$D$88) -> 91.49419915 | S39: =R39*(1+Inputs!$D$88) -> 92.21281257 | T39: =S39*(1+Inputs!$D$88) -> 92.93707012 | U39: =T39*(1+Inputs!$D$88) -> 93.66701613 | V39: =U39*(1+Inputs!$D$88) -> 94.40269528 | W39: =V39*(1+Inputs!$D$88) -> 95.14415261 | X39: =W39*(1+Inputs!$D$88) -> 95.89143348 | Y39: =X39*(1+Inputs!$D$88) -> 96.64458364 | Z39: =Y39*(1+Inputs!$D$88) -> 97.40364919 | AA39: =Z39*(1+Inputs!$D$88) -> 98.1686766 | AB39: =AA39*(1+Inputs!$D$88) -> 98.93971267 | AC39: =AB39*(1+Inputs!$D$88) -> 99.71680462 | AD39: =AC39*(1+Inputs!$D$88) -> 100.5 | AE39: =AD39*(1+Inputs!$D$88) -> 101.2893468 | AF39: =AE39*(1+Inputs!$D$88) -> 102.0848932 | AG39: =AF39*(1+Inputs!$D$88) -> 102.886688 | AH39: =AG39*(1+Inputs!$D$88) -> 103.6947803 | AI39: =AH39*(1+Inputs!$D$88) -> 104.5092194 | AJ39: =AI39*(1+Inputs!$D$88) -> 105.3300554 | AK39: =AJ39*(1+Inputs!$D$88) -> 106.1573383 | AL39: =AK39*(1+Inputs!$D$88) -> 106.9911189 | AM39: =AL39*(1+Inputs!$D$88) -> 107.8314482 | AN39: =AM39*(1+Inputs!$D$88) -> 108.6783776
A40: Total Peak | D40: =D38*Inputs!$D$90+D39*Inputs!$D$91 -> 301.0595021 | E40: =E38*Inputs!$D$90+E39*Inputs!$D$91 -> 303.5190516 | F40: =F38*Inputs!$D$90+F39*Inputs!$D$91 -> 305.9987307 | G40: =G38*Inputs!$D$90+G39*Inputs!$D$91 -> 308.4987043 | H40: =H38*Inputs!$D$90+H39*Inputs!$D$91 -> 311.0191389 | I40: =I38*Inputs!$D$90+I39*Inputs!$D$91 -> 313.5602021 | J40: =J38*Inputs!$D$90+J39*Inputs!$D$91 -> 316.1220632 | K40: =K38*Inputs!$D$90+K39*Inputs!$D$91 -> 318.7048927 | L40: =L38*Inputs!$D$90+L39*Inputs!$D$91 -> 321.3088624 | M40: =M38*Inputs!$D$90+M39*Inputs!$D$91 -> 323.9341457 | N40: =N38*Inputs!$D$90+N39*Inputs!$D$91 -> 326.5809175 | O40: =O38*Inputs!$D$90+O39*Inputs!$D$91 -> 329.2493538 | P40: =P38*Inputs!$D$90+P39*Inputs!$D$91 -> 331.9396324 | Q40: =Q38*Inputs!$D$90+Q39*Inputs!$D$91 -> 334.6519324 | R40: =R38*Inputs!$D$90+R39*Inputs!$D$91 -> 337.3864343 | S40: =S38*Inputs!$D$90+S39*Inputs!$D$91 -> 340.1433201 | T40: =T38*Inputs!$D$90+T39*Inputs!$D$91 -> 342.9227735 | U40: =U38*Inputs!$D$90+U39*Inputs!$D$91 -> 345.7249796 | V40: =V38*Inputs!$D$90+V39*Inputs!$D$91 -> 348.5501248 | W40: =W38*Inputs!$D$90+W39*Inputs!$D$91 -> 351.3983974 | X40: =X38*Inputs!$D$90+X39*Inputs!$D$91 -> 354.2699869 | Y40: =Y38*Inputs!$D$90+Y39*Inputs!$D$91 -> 357.1650847 | Z40: =Z38*Inputs!$D$90+Z39*Inputs!$D$91 -> 360.0838834 | AA40: =AA38*Inputs!$D$90+AA39*Inputs!$D$91 -> 363.0265775 | AB40: =AB38*Inputs!$D$90+AB39*Inputs!$D$91 -> 365.993363 | AC40: =AC38*Inputs!$D$90+AC39*Inputs!$D$91 -> 368.9844374 | AD40: =AD38*Inputs!$D$90+AD39*Inputs!$D$91 -> 372 | AE40: =AE38*Inputs!$D$90+AE39*Inputs!$D$91 -> 375.0402516 | AF40: =AF38*Inputs!$D$90+AF39*Inputs!$D$91 -> 378.1053946 | AG40: =AG38*Inputs!$D$90+AG39*Inputs!$D$91 -> 381.1956333 | AH40: =AH38*Inputs!$D$90+AH39*Inputs!$D$91 -> 384.3111735 | AI40: =AI38*Inputs!$D$90+AI39*Inputs!$D$91 -> 387.4522226 | AJ40: =AJ38*Inputs!$D$90+AJ39*Inputs!$D$91 -> 390.61899 | AK40: =AK38*Inputs!$D$90+AK39*Inputs!$D$91 -> 393.8116867 | AL40: =AL38*Inputs!$D$90+AL39*Inputs!$D$91 -> 397.0305251 | AM40: =AM38*Inputs!$D$90+AM39*Inputs!$D$91 -> 400.2757199 | AN40: =AN38*Inputs!$D$90+AN39*Inputs!$D$91 -> 403.5474873
A41: Total Cost of Travel Delays on Intersections | B41: $ Annually | F41: =('Fuel Prices'!C129/DeflatorRate*$C$9+'Fuel Prices'!C130/DeflatorRate*$C$10)*F40*Inputs!$D$92 -> 211668.2863 | G41: =('Fuel Prices'!D129/DeflatorRate*$C$9+'Fuel Prices'!D130/DeflatorRate*$C$10)*G40*Inputs!$D$92 -> 206135.8052 | H41: =('Fuel Prices'!E129/DeflatorRate*$C$9+'Fuel Prices'!E130/DeflatorRate*$C$10)*H40*Inputs!$D$92 -> 186669.2072 | I41: =('Fuel Prices'!F129/DeflatorRate*$C$9+'Fuel Prices'!F130/DeflatorRate*$C$10)*I40*Inputs!$D$92 -> 188487.6355 | J41: =('Fuel Prices'!G129/DeflatorRate*$C$9+'Fuel Prices'!G130/DeflatorRate*$C$10)*J40*Inputs!$D$92 -> 188339.008 | K41: =('Fuel Prices'!H129/DeflatorRate*$C$9+'Fuel Prices'!H130/DeflatorRate*$C$10)*K40*Inputs!$D$92 -> 191822.9721 | L41: =('Fuel Prices'!I129/DeflatorRate*$C$9+'Fuel Prices'!I130/DeflatorRate*$C$10)*L40*Inputs!$D$92 -> 195780.2922 | M41: =('Fuel Prices'!J129/DeflatorRate*$C$9+'Fuel Prices'!J130/DeflatorRate*$C$10)*M40*Inputs!$D$92 -> 199605.9857 | N41: =('Fuel Prices'!K129/DeflatorRate*$C$9+'Fuel Prices'!K130/DeflatorRate*$C$10)*N40*Inputs!$D$92 -> 202766.9154 | O41: =('Fuel Prices'!L129/DeflatorRate*$C$9+'Fuel Prices'!L130/DeflatorRate*$C$10)*O40*Inputs!$D$92 -> 208842.9771 | P41: =('Fuel Prices'!M129/DeflatorRate*$C$9+'Fuel Prices'!M130/DeflatorRate*$C$10)*P40*Inputs!$D$92 -> 217199.2834 | Q41: =('Fuel Prices'!N129/DeflatorRate*$C$9+'Fuel Prices'!N130/DeflatorRate*$C$10)*Q40*Inputs!$D$92 -> 221170.2208 | R41: =('Fuel Prices'!O129/DeflatorRate*$C$9+'Fuel Prices'!O130/DeflatorRate*$C$10)*R40*Inputs!$D$92 -> 224741.1293 | S41: =('Fuel Prices'!P129/DeflatorRate*$C$9+'Fuel Prices'!P130/DeflatorRate*$C$10)*S40*Inputs!$D$92 -> 228336.5066 | T41: =('Fuel Prices'!Q129/DeflatorRate*$C$9+'Fuel Prices'!Q130/DeflatorRate*$C$10)*T40*Inputs!$D$92 -> 231086.134 | U41: =('Fuel Prices'!R129/DeflatorRate*$C$9+'Fuel Prices'!R130/DeflatorRate*$C$10)*U40*Inputs!$D$92 -> 234692.5696 | V41: =('Fuel Prices'!S129/DeflatorRate*$C$9+'Fuel Prices'!S130/DeflatorRate*$C$10)*V40*Inputs!$D$92 -> 238254.5453 | W41: =('Fuel Prices'!T129/DeflatorRate*$C$9+'Fuel Prices'!T130/DeflatorRate*$C$10)*W40*Inputs!$D$92 -> 242775.7185 | X41: =('Fuel Prices'!U129/DeflatorRate*$C$9+'Fuel Prices'!U130/DeflatorRate*$C$10)*X40*Inputs!$D$92 -> 244981.6467 | Y41: =('Fuel Prices'!V129/DeflatorRate*$C$9+'Fuel Prices'!V130/DeflatorRate*$C$10)*Y40*Inputs!$D$92 -> 248946.9273 | Z41: =('Fuel Prices'!W129/DeflatorRate*$C$9+'Fuel Prices'!W130/DeflatorRate*$C$10)*Z40*Inputs!$D$92 -> 252574.4541 | AA41: =('Fuel Prices'!X129/DeflatorRate*$C$9+'Fuel Prices'!X130/DeflatorRate*$C$10)*AA40*Inputs!$D$92 -> 255027.1684 | AB41: =('Fuel Prices'!Y129/DeflatorRate*$C$9+'Fuel Prices'!Y130/DeflatorRate*$C$10)*AB40*Inputs!$D$92 -> 259781.5477 | AC41: =('Fuel Prices'!Z129/DeflatorRate*$C$9+'Fuel Prices'!Z130/DeflatorRate*$C$10)*AC40*Inputs!$D$92 -> 264537.0758 | AD41: =('Fuel Prices'!AA129/DeflatorRate*$C$9+'Fuel Prices'!AA130/DeflatorRate*$C$10)*AD40*Inputs!$D$92 -> 267587.4206 | AE41: =('Fuel Prices'!AB129/DeflatorRate*$C$9+'Fuel Prices'!AB130/DeflatorRate*$C$10)*AE40*Inputs!$D$92 -> 271979.415 | AF41: =('Fuel Prices'!AC129/DeflatorRate*$C$9+'Fuel Prices'!AC130/DeflatorRate*$C$10)*AF40*Inputs!$D$92 -> 275057.2998 | AG41: =('Fuel Prices'!AD129/DeflatorRate*$C$9+'Fuel Prices'!AD130/DeflatorRate*$C$10)*AG40*Inputs!$D$92 -> 276560.6575 | AH41: =('Fuel Prices'!AE129/DeflatorRate*$C$9+'Fuel Prices'!AE130/DeflatorRate*$C$10)*AH40*Inputs!$D$92 -> 278994.4494 | AI41: =('Fuel Prices'!$AF$129/DeflatorRate*$C$9+'Fuel Prices'!$AF$130/DeflatorRate*$C$10)*AI40*Inputs!$D$92 -> 281101.8222 | AJ41: =('Fuel Prices'!$AF$129/DeflatorRate*$C$9+'Fuel Prices'!$AF$130/DeflatorRate*$C$10)*AJ40*Inputs!$D$92 -> 283399.3547 | AK41: =('Fuel Prices'!$AF$129/DeflatorRate*$C$9+'Fuel Prices'!$AF$130/DeflatorRate*$C$10)*AK40*Inputs!$D$92 -> 285715.6992 | AL41: =('Fuel Prices'!$AF$129/DeflatorRate*$C$9+'Fuel Prices'!$AF$130/DeflatorRate*$C$10)*AL40*Inputs!$D$92 -> 288051.01 | AM41: =('Fuel Prices'!$AF$129/DeflatorRate*$C$9+'Fuel Prices'!$AF$130/DeflatorRate*$C$10)*AM40*Inputs!$D$92 -> 290405.4427 | AN41: =('Fuel Prices'!$AF$129/DeflatorRate*$C$9+'Fuel Prices'!$AF$130/DeflatorRate*$C$10)*AN40*Inputs!$D$92 -> 292779.1541
A44: No Build Less Build | B44: Unit | C44: Value | D44: 2019 | E44: =D44+1 -> 2020 | F44: 2021 | G44: 2022 | H44: 2023 | I44: 2024 | J44: 2025 | K44: 2026 | L44: 2027 | M44: 2028 | N44: 2029 | O44: 2030 | P44: 2031 | Q44: 2032 | R44: 2033 | S44: 2034 | T44: 2035 | U44: 2036 | V44: 2037 | W44: 2038 | X44: 2039 | Y44: 2040 | Z44: 2041 | AA44: 2042 | AB44: 2043 | AC44: =AB44+1 -> 2044 | AD44: =AC44+1 -> 2045 | AE44: =AD44+1 -> 2046 | AF44: =AE44+1 -> 2047 | AG44: =AF44+1 -> 2048 | AH44: =AG44+1 -> 2049 | AI44: =AH44+1 -> 2050 | AJ44: =AI44+1 -> 2051 | AK44: =AJ44+1 -> 2052 | AL44: =AK44+1 -> 2053 | AM44: =AL44+1 -> 2054 | AN44: =AM44+1 -> 2055
A45: Undiscounted Impacts | C45: Total over 20 Years
A46: From fewer vehicle miles travelled | C46: =SUM(D46:AD46) -> 4643971.46 | K46: =(K20-K35) -> 219711.8028 | L46: 220981.1019 | M46: 222257.7338 | N46: 223541.741 | O46: 224833.1661 | P46: 226132.0518 | Q46: 227438.4414 | R46: 228752.3781 | S46: 230073.9055 | T46: 231403.0676 | U46: 232739.9084 | V46: 234084.4723 | W46: 235436.8038 | X46: 236796.9479 | Y46: 238164.9497 | Z46: 239540.8547 | AA46: 240924.7083 | AB46: 242316.5567 | AC46: 243716.4459 | AD46: 245124.4224 | AE46: 246540.533 | AF46: 247964.8245 | AG46: 249397.3444 | AH46: 250838.1401 | AI46: 252287.2594 | AJ46: 253744.7504 | AK46: 255210.6616 | AL46: 256685.0414 | AM46: =(AM20-AM35) -> 258167.9389 | AN46: 259659.4033
A47: From reduced fuel used during delays | C47: =SUM(D47:AD47) -> 627769.6322 | K47: =(K26-K41) -> 21889.08503 | L47: 22753.16138 | M47: 23619.1419 | N47: 24422.02762 | O47: 25596.40285 | P47: 27081.71332 | Q47: 28047.2982 | R47: 28979.10965 | S47: 29930.2783 | T47: 30785.07692 | U47: 31768.57539 | V47: 32762.3959 | W47: 33906.47021 | X47: 34742.67429 | Y47: 35842.71366 | Z47: 36911.56532 | AA47: 37822.93977 | AB47: 39092.37436 | AC47: 40383.73722 | AD47: 41432.89094 | AE47: 42707.14505 | AF47: 43792.52046 | AG47: 44638.39568 | AH47: 45644.25103 | AI47: 46607.86111 | AJ47: 47613.88924 | AK47: 48634.45825 | AL47: 49669.75105 | AM47: =(AM26-AM41) -> 50719.95272 | AN47: 51785.25052
A48: Total | C48: 5271741.092 | K48: =(K20-K35)+(K26-K41) -> 241600.8878 | L48: 243734.2632 | M48: 245876.8757 | N48: 247963.7686 | O48: 250429.5689 | P48: 253213.7651 | Q48: 255485.7396 | R48: 257731.4877 | S48: 260004.1838 | T48: 262188.1445 | U48: 264508.4838 | V48: 266846.8682 | W48: 269343.274 | X48: 271539.6222 | Y48: 274007.6634 | Z48: 276452.42 | AA48: 278747.6481 | AB48: 281408.931 | AC48: 284100.1831 | AD48: 286557.3133 | AE48: 289247.678 | AF48: 291757.345 | AG48: 294035.7401 | AH48: 296482.3911 | AI48: 298895.1205 | AJ48: 301358.6397 | AK48: 303845.1198 | AL48: 306354.7925 | AM48: =(AM20-AM35)+(AM26-AM41) -> 308887.8917 | AN48: 311444.6538
A50: Discounted Impacts, at 7%
A51: From fewer vehicle miles travelled | C51: =SUM(D51:AD51) -> 1731883.866 | K51: =K46*K$6 -> 146403.2513 | L51: 137615.9242 | M51: 129356.0246 | N51: 121591.8958 | O51: 114293.7808 | P51: 107433.7088 | Q51: 100985.388 | R51: 94924.10427 | S51: 89226.62727 | T51: 83871.12079 | U51: 78837.05926 | V51: 74105.14912 | W51: 69657.25482 | X51: 65476.32933 | Y51: 61546.34882 | Z51: 57852.25121 | AA51: 54379.87849 | AB51: 51115.92241 | AC51: 48047.87353 | AD51: 45163.97322 | AE51: 42453.16862 | AF51: 39905.07029 | AG51: 37509.91237 | AH51: 35258.51517 | AI51: 33142.24996 | AJ51: 31153.00594 | AK51: 29283.15912 | AL51: 27525.54311 | AM51: =AM46*AM$6 -> 25873.42166 | AN51: 24320.46284
A52: From reduced fuel used during delays | C52: 220235.2492 | K52: =K47*K$6 -> 14585.6216 | L52: 14169.52537 | M52: 13746.55563 | N52: 13283.96489 | O52: 13011.91327 | P52: 12866.32691 | Q52: 12453.33582 | R52: 12025.30023 | S52: 11607.47795 | T52: 11157.92859 | U52: 10761.11561 | V52: 10371.73551 | W52: 10031.70106 | X52: 9606.638953 | Y52: 9262.438322 | Z52: 8914.626077 | AA52: 8537.135453 | AB52: 8246.414533 | AC52: 7961.517293 | AD52: 7633.976077 | AE52: 7353.977897 | AF52: 7047.546403 | AG52: 6713.713469 | AH52: 6415.88443 | AI52: 6122.74035 | AJ52: 5845.700342 | AK52: 5580.372586 | AL52: 5326.320794 | AM52: =AM47*AM$6 -> 5083.120425 | AN52: 4850.358759
A53: Total | C53: 1952119.115 | K53: =K48*K6 -> 160988.8729 | L53: 151785.4495 | M53: 143102.5803 | N53: 134875.8607 | O53: 127305.6941 | P53: 120300.0358 | Q53: 113438.7238 | R53: 106949.4045 | S53: 100834.1052 | T53: 95029.04938 | U53: 89598.17487 | V53: 84476.88463 | W53: 79688.95588 | X53: 75082.96829 | Y53: 70808.78714 | Z53: 66766.87729 | AA53: 62917.01394 | AB53: 59362.33695 | AC53: 56009.39082 | AD53: 52797.9493 | AE53: 49807.14652 | AF53: 46952.61669 | AG53: 44223.62584 | AH53: 41674.3996 | AI53: 39264.99031 | AJ53: 36998.70629 | AK53: 34863.53171 | AL53: 32851.86391 | AM53: =AM48*AM6 -> 30956.54209 | AN53: 29170.8216
A55: Discounted Impacts, at 3%
A56: From fewer vehicle miles travelled | C56: =SUM(D56:AD56) -> 2963155.805 | K56: =K46*K$7 -> 184005.1758 | L56: 179677.8581 | M56: 175452.3075 | N56: 171326.1307 | O56: 167296.9907 | P56: 163362.6055 | Q56: 159520.7468 | R56: 155769.2384 | S56: 152105.9556 | T56: 148528.8236 | U56: 145035.8163 | V56: 141624.9554 | W56: 138294.309 | X56: 135041.9906 | Y56: 131866.1582 | Z56: 128765.013 | AA56: 125736.7986 | AB56: 122779.7998 | AC56: 119892.3418 | AD56: 117072.7893 | AE56: 114319.5452 | AF56: 111631.0502 | AG56: 109005.7815 | AH56: 106442.2523 | AI56: 103939.0105 | AJ56: 101494.6383 | AK56: 99107.75139 | AL56: 96776.99776 | AM56: =AM46*AM$7 -> 94501.05732 | AN56: 92278.64102
A57: From reduced fuel used during delays | C57: 389995.3776 | K57: =K47*K$7 -> 18331.76411 | L57: 18500.40237 | M57: 18645.16872 | N57: 18717.45061 | O57: 19046.12761 | P57: 19564.40591 | Q57: 19671.81065 | R57: 19733.36355 | S57: 19787.43992 | T57: 19759.76942 | U57: 19797.12589 | V57: 19821.78833 | W57: 19916.47776 | X57: 19813.26168 | Y57: 19845.24152 | Z57: 19841.78521 | AA57: 19739.50863 | AB57: 19807.78351 | AC57: 19866.12274 | AD57: 19788.57946 | AE57: 19803.07798 | AF57: 19714.91344 | AG57: 19510.40505 | AH57: 19368.97189 | AI57: 19201.82167 | AJ57: 19044.94363 | AK57: 18886.56127 | AL57: 18726.79981 | AM57: =AM47*AM$7 -> 18565.78001 | AN57: 18403.61829
A58: Total | C58: 3353151.182 | K58: =K48*K7 -> 202336.94 | L58: 198178.2605 | M58: 194097.4762 | N58: 190043.5813 | O58: 186343.1183 | P58: 182927.0115 | Q58: 179192.5574 | R58: 175502.6019 | S58: 171893.3955 | T58: 168288.593 | U58: 164832.9422 | V58: 161446.7438 | W58: 158210.7868 | X58: 154855.2523 | Y58: 151711.3997 | Z58: 148606.7982 | AA58: 145476.3072 | AB58: 142587.5833 | AC58: 139758.4646 | AD58: 136861.3688 | AE58: 134122.6232 | AF58: 131345.9637 | AG58: 128516.1866 | AH58: 125811.2242 | AI58: 123140.8321 | AJ58: 120539.582 | AK58: 117994.3127 | AL58: 115503.7976 | AM58: =AM48*AM7 -> 113066.8373 | AN58: 110682.2593
A60: Key Quantified Impacts
A61: Total Operating Cost Saving | D61: =D45 -> 0 | E61: 0 | F61: 0 | G61: 0 | H61: 0 | I61: 0 | J61: =J48 -> 0 | K61: 241600.8878 | L61: 243734.2632 | M61: 245876.8757 | N61: 247963.7686 | O61: 250429.5689 | P61: 253213.7651 | Q61: 255485.7396 | R61: 257731.4877 | S61: 260004.1838 | T61: 262188.1445 | U61: 264508.4838 | V61: 266846.8682 | W61: 269343.274 | X61: 271539.6222 | Y61: 274007.6634 | Z61: 276452.42 | AA61: 278747.6481 | AB61: 281408.931 | AC61: 284100.1831 | AD61: 286557.3133 | AE61: 289247.678 | AF61: 291757.345 | AG61: 294035.7401 | AH61: 296482.3911 | AI61: 298895.1205 | AJ61: 301358.6397 | AK61: 303845.1198 | AL61: 306354.7925 | AM61: =AM48 -> 308887.8917 | AN61: 311444.6538
A62: Reduction in Vehicle Miles Travelled | B62: miles | C62: =(SUM(J15:AD16)-SUM(J30:AD31))*365 -> 9939536.497
A63: Reduction in Fuel Used During Delays | B63: gallons | C63: =(SUM(J25:AD25)-SUM(J40:AD40))*Inputs!D90*Inputs!D92 -> 502150.4603

Sheet Calc-3
A1: Accident Impacts
D3: Base Year | E3: =BaseYear -> 2020
B4: Unit | C4: Value | D4: 2019 | E4: =D4+1 -> 2020 | F4: 2021 | G4: 2022 | H4: 2023 | I4: 2024 | J4: 2025 | K4: 2026 | L4: 2027 | M4: 2028 | N4: 2029 | O4: 2030 | P4: 2031 | Q4: 2032 | R4: 2033 | S4: 2034 | T4: =S4+1 -> 2035 | U4: 2036 | V4: 2037 | W4: 2038 | X4: 2039 | Y4: 2040 | Z4: 2041 | AA4: =Z4+1 -> 2042 | AB4: =AA4+1 -> 2043 | AC4: =AB4+1 -> 2044 | AD4: 2045 | AE4: 2046 | AF4: 2047 | AG4: 2048 | AH4: 2049 | AI4: 2050 | AJ4: 2051 | AK4: 2052 | AL4: 2053 | AM4: =AL4+1 -> 2054 | AN4: =AM4+1 -> 2055
A5: Benefits Index | B5: Number | D5: 0 | E5: 0 | F5: 0 | G5: 0 | H5: 0 | I5: 0 | J5: 0 | K5: 1 | L5: 2 | M5: 3 | N5: 4 | O5: 5 | P5: 6 | Q5: 7 | R5: 8 | S5: 9 | T5: 10 | U5: 11 | V5: 12 | W5: 13 | X5: 14 | Y5: 15 | Z5: 16 | AA5: =Z5+1 -> 17 | AB5: =AA5+1 -> 18 | AC5: =AB5+1 -> 19 | AD5: 20 | AE5: 21 | AF5: 22 | AG5: 23 | AH5: 24 | AI5: 25 | AJ5: 26 | AK5: 27 | AL5: 28 | AM5: 29 | AN5: 30
A6: Discount Factor | B6: % | C6: 0.07 | D6: =1/(1+Inputs!$D$4)^(D4-$E$3) -> 1.07 | E6: =1/(1+Inputs!$D$4)^(E4-$E$3) -> 1 | F6: =1/(1+Inputs!$D$4)^(F4-$E$3) -> 0.9345794393 | G6: =1/(1+Inputs!$D$4)^(G4-$E$3) -> 0.8734387283 | H6: =1/(1+Inputs!$D$4)^(H4-$E$3) -> 0.8162978769 | I6: =1/(1+Inputs!$D$4)^(I4-$E$3) -> 0.762895212 | J6: =1/(1+Inputs!$D$4)^(J4-$E$3) -> 0.7129861795 | K6: =1/(1+Inputs!$D$4)^(K4-$E$3) -> 0.6663422238 | L6: =1/(1+Inputs!$D$4)^(L4-$E$3) -> 0.6227497419 | M6: =1/(1+Inputs!$D$4)^(M4-$E$3) -> 0.5820091046 | N6: =1/(1+Inputs!$D$4)^(N4-$E$3) -> 0.5439337426 | O6: =1/(1+Inputs!$D$4)^(O4-$E$3) -> 0.5083492921 | P6: =1/(1+Inputs!$D$4)^(P4-$E$3) -> 0.4750927964 | Q6: =1/(1+Inputs!$D$4)^(Q4-$E$3) -> 0.4440119592 | R6: =1/(1+Inputs!$D$4)^(R4-$E$3) -> 0.4149644479 | S6: =1/(1+Inputs!$D$4)^(S4-$E$3) -> 0.387817241 | T6: =1/(1+Inputs!$D$4)^(T4-$E$3) -> 0.3624460196 | U6: =1/(1+Inputs!$D$4)^(U4-$E$3) -> 0.3387345978 | V6: =1/(1+Inputs!$D$4)^(V4-$E$3) -> 0.3165743905 | W6: =1/(1+Inputs!$D$4)^(W4-$E$3) -> 0.2958639163 | X6: =1/(1+Inputs!$D$4)^(X4-$E$3) -> 0.276508333 | Y6: =1/(1+Inputs!$D$4)^(Y4-$E$3) -> 0.2584190028 | Z6: =1/(1+Inputs!$D$4)^(Z4-$E$3) -> 0.2415130867 | AA6: =1/(1+Inputs!$D$4)^(AA4-$E$3) -> 0.2257131652 | AB6: =1/(1+Inputs!$D$4)^(AB4-$E$3) -> 0.2109468833 | AC6: =1/(1+Inputs!$D$4)^(AC4-$E$3) -> 0.1971466199 | AD6: =1/(1+Inputs!$D$4)^(AD4-$E$3) -> 0.1842491775 | AE6: =1/(1+Inputs!$D$4)^(AE4-$E$3) -> 0.172195493 | AF6: =1/(1+Inputs!$D$4)^(AF4-$E$3) -> 0.1609303673 | AG6: =1/(1+Inputs!$D$4)^(AG4-$E$3) -> 0.1504022124 | AH6: =1/(1+Inputs!$D$4)^(AH4-$E$3) -> 0.1405628154 | AI6: =1/(1+Inputs!$D$4)^(AI4-$E$3) -> 0.1313671172 | AJ6: =1/(1+Inputs!$D$4)^(AJ4-$E$3) -> 0.1227730067 | AK6: =1/(1+Inputs!$D$4)^(AK4-$E$3) -> 0.1147411277 | AL6: =1/(1+Inputs!$D$4)^(AL4-$E$3) -> 0.1072346988 | AM6: =1/(1+Inputs!$D$4)^(AM4-$E$3) -> 0.1002193447 | AN6: =1/(1+Inputs!$D$4)^(AN4-$E$3) -> 0.09366293897
A7: Discount Factor | B7: % | C7: 0.03 | D7: =1/(1+Inputs!$D$5)^(D4-$E$3) -> 1.03 | E7: =1/(1+Inputs!$D$5)^(E4-$E$3) -> 1 | F7: =1/(1+Inputs!$D$5)^(F4-$E$3) -> 0.9708737864 | G7: =1/(1+Inputs!$D$5)^(G4-$E$3) -> 0.9425959091 | H7: =1/(1+Inputs!$D$5)^(H4-$E$3) -> 0.9151416594 | I7: =1/(1+Inputs!$D$5)^(I4-$E$3) -> 0.8884870479 | J7: =1/(1+Inputs!$D$5)^(J4-$E$3) -> 0.8626087844 | K7: =1/(1+Inputs!$D$5)^(K4-$E$3) -> 0.8374842567 | L7: =1/(1+Inputs!$D$5)^(L4-$E$3) -> 0.8130915113 | M7: =1/(1+Inputs!$D$5)^(M4-$E$3) -> 0.7894092343 | N7: =1/(1+Inputs!$D$5)^(N4-$E$3) -> 0.7664167323 | O7: =1/(1+Inputs!$D$5)^(O4-$E$3) -> 0.7440939149 | P7: =1/(1+Inputs!$D$5)^(P4-$E$3) -> 0.7224212766 | Q7: =1/(1+Inputs!$D$5)^(Q4-$E$3) -> 0.7013798802 | R7: =1/(1+Inputs!$D$5)^(R4-$E$3) -> 0.68095134 | S7: =1/(1+Inputs!$D$5)^(S4-$E$3) -> 0.6611178058 | T7: =1/(1+Inputs!$D$5)^(T4-$E$3) -> 0.6418619474 | U7: =1/(1+Inputs!$D$5)^(U4-$E$3) -> 0.6231669392 | V7: =1/(1+Inputs!$D$5)^(V4-$E$3) -> 0.6050164458 | W7: =1/(1+Inputs!$D$5)^(W4-$E$3) -> 0.5873946076 | X7: =1/(1+Inputs!$D$5)^(X4-$E$3) -> 0.5702860268 | Y7: =1/(1+Inputs!$D$5)^(Y4-$E$3) -> 0.5536757542 | Z7: =1/(1+Inputs!$D$5)^(Z4-$E$3) -> 0.5375492759 | AA7: =1/(1+Inputs!$D$5)^(AA4-$E$3) -> 0.5218925009 | AB7: =1/(1+Inputs!$D$5)^(AB4-$E$3) -> 0.5066917484 | AC7: =1/(1+Inputs!$D$5)^(AC4-$E$3) -> 0.4919337363 | AD7: =1/(1+Inputs!$D$5)^(AD4-$E$3) -> 0.4776055693 | AE7: =1/(1+Inputs!$D$5)^(AE4-$E$3) -> 0.4636947274 | AF7: =1/(1+Inputs!$D$5)^(AF4-$E$3) -> 0.4501890558 | AG7: =1/(1+Inputs!$D$5)^(AG4-$E$3) -> 0.4370767532 | AH7: =1/(1+Inputs!$D$5)^(AH4-$E$3) -> 0.4243463623 | AI7: =1/(1+Inputs!$D$5)^(AI4-$E$3) -> 0.4119867595 | AJ7: =1/(1+Inputs!$D$5)^(AJ4-$E$3) -> 0.3999871452 | AK7: =1/(1+Inputs!$D$5)^(AK4-$E$3) -> 0.3883370341 | AL7: =1/(1+Inputs!$D$5)^(AL4-$E$3) -> 0.3770262467 | AM7: =1/(1+Inputs!$D$5)^(AM4-$E$3) -> 0.3660448997 | AN7: =1/(1+Inputs!$D$5)^(AN4-$E$3) -> 0.3553833978
A9: Share of Traffic - Auto | B9: % | D9: =1-ShareTruck -> 0.92 | E9: 0.92 | F9: 0.92 | G9: 0.92 | H9: 0.92 | I9: 0.92 | J9: 0.92 | K9: 0.92 | L9: 0.92 | M9: 0.92 | N9: 0.92 | O9: 0.92 | P9: 0.92 | Q9: 0.92 | R9: 0.92 | S9: 0.92 | T9: 0.92 | U9: 0.92 | V9: 0.92 | W9: 0.92 | X9: 0.92 | Y9: 0.92 | Z9: 0.92 | AA9: 0.92 | AB9: 0.92 | AC9: 0.92 | AD9: 0.92 | AE9: 0.92 | AF9: 0.92 | AG9: 0.92 | AH9: 0.92 | AI9: 0.92 | AJ9: 0.92 | AK9: 0.92 | AL9: 0.92 | AM9: 0.92 | AN9: 0.92
A10: Share of Traffic - Trucks | B10: % | D10: =Inputs!$D$27 -> 0.08 | E10: =Inputs!$D$27 -> 0.08 | F10: =Inputs!$D$27 -> 0.08 | G10: =Inputs!$D$27 -> 0.08 | H10: =Inputs!$D$27 -> 0.08 | I10: =Inputs!$D$27 -> 0.08 | J10: =Inputs!$D$27 -> 0.08 | K10: =Inputs!$D$27 -> 0.08 | L10: =Inputs!$D$27 -> 0.08 | M10: =Inputs!$D$27 -> 0.08 | N10: =Inputs!$D$27 -> 0.08 | O10: =Inputs!$D$27 -> 0.08 | P10: =Inputs!$D$27 -> 0.08 | Q10: =Inputs!$D$27 -> 0.08 | R10: =Inputs!$D$27 -> 0.08 | S10: =Inputs!$D$27 -> 0.08 | T10: =Inputs!$D$27 -> 0.08 | U10: =Inputs!$D$27 -> 0.08 | V10: =Inputs!$D$27 -> 0.08 | W10: =Inputs!$D$27 -> 0.08 | X10: =Inputs!$D$27 -> 0.08 | Y10: =Inputs!$D$27 -> 0.08 | Z10: =Inputs!$D$27 -> 0.08 | AA10: =Inputs!$D$27 -> 0.08 | AB10: =Inputs!$D$27 -> 0.08 | AC10: =Inputs!$D$27 -> 0.08 | AD10: =Inputs!$D$27 -> 0.08 | AE10: =Inputs!$D$27 -> 0.08 | AF10: =Inputs!$D$27 -> 0.08 | AG10: =Inputs!$D$27 -> 0.08 | AH10: =Inputs!$D$27 -> 0.08 | AI10: =Inputs!$D$27 -> 0.08 | AJ10: =Inputs!$D$27 -> 0.08 | AK10: =Inputs!$D$27 -> 0.08 | AL10: =Inputs!$D$27 -> 0.08 | AM10: =Inputs!$D$27 -> 0.08 | AN10: =Inputs!$D$27 -> 0.08
A12: No Build Case Alternative | B12: Unit | C12: Value | D12: 2019 | E12: =D12+1 -> 2020 | F12: 2021 | G12: 2022 | H12: 2023 | I12: 2024 | J12: 2025 | K12: 2026 | L12: 2027 | M12: 2028 | N12: 2029 | O12: 2030 | P12: 2031 | Q12: 2032 | R12: 2033 | S12: 2034 | T12: 2035 | U12: 2036 | V12: 2037 | W12: 2038 | X12: 2039 | Y12: 2040 | Z12: 2041 | AA12: =Z12+1 -> 2042 | AB12: =AA12+1 -> 2043 | AC12: =AB12+1 -> 2044 | AD12: 2045 | AE12: 2046 | AF12: 2047 | AG12: 2048 | AH12: 2049 | AI12: 2050 | AJ12: 2051 | AK12: 2052 | AL12: 2053 | AM12: =AL12+1 -> 2054 | AN12: =AM12+1 -> 2055
A14: Expected Number of Accidents | B14: Number/year | D14: =Inputs!D111*(1+Inputs!D118)^(D12-2016) -> 4.349874179 | E14: =D14*(1+Inputs!$D$118) -> 4.376666873 | F14: =E14*(1+Inputs!$D$118) -> 4.403624594 | G14: =F14*(1+Inputs!$D$118) -> 4.430748359 | H14: =G14*(1+Inputs!$D$118) -> 4.45803919 | I14: =H14*(1+Inputs!$D$118) -> 4.485498117 | J14: =I14*(1+Inputs!$D$118) -> 4.513126176 | K14: =J14*(1+Inputs!$D$118) -> 4.540924407 | L14: =K14*(1+Inputs!$D$118) -> 4.568893859 | M14: =L14*(1+Inputs!$D$118) -> 4.597035586 | N14: =M14*(1+Inputs!$D$118) -> 4.62535065 | O14: =N14*(1+Inputs!$D$118) -> 4.653840119 | P14: =O14*(1+Inputs!$D$118) -> 4.682505066 | Q14: =P14*(1+Inputs!$D$118) -> 4.711346572 | R14: =Q14*(1+Inputs!$D$118) -> 4.740365726 | S14: =R14*(1+Inputs!$D$118) -> 4.76956362 | T14: =S14*(1+Inputs!$D$118) -> 4.798941356 | U14: =T14*(1+Inputs!$D$118) -> 4.828500043 | V14: =U14*(1+Inputs!$D$118) -> 4.858240793 | W14: =V14*(1+Inputs!$D$118) -> 4.888164729 | X14: =W14*(1+Inputs!$D$118) -> 4.91827298 | Y14: =X14*(1+Inputs!$D$118) -> 4.948566679 | Z14: =Y14*(1+Inputs!$D$118) -> 4.97904697 | AA14: =Z14*(1+Inputs!$D$118) -> 5.009715002 | AB14: =AA14*(1+Inputs!$D$118) -> 5.040571932 | AC14: =AB14*(1+Inputs!$D$118) -> 5.071618922 | AD14: =AC14*(1+Inputs!$D$118) -> 5.102857143 | AE14: =AD14*(1+Inputs!$D$118) -> 5.134287773 | AF14: =AE14*(1+Inputs!$D$118) -> 5.165911998 | AG14: =AF14*(1+Inputs!$D$118) -> 5.19773101 | AH14: =AG14*(1+Inputs!$D$118) -> 5.229746009 | AI14: =AH14*(1+Inputs!$D$118) -> 5.261958201 | AJ14: =AI14*(1+Inputs!$D$118) -> 5.294368801 | AK14: =AJ14*(1+Inputs!$D$118) -> 5.326979032 | AL14: =AK14*(1+Inputs!$D$118) -> 5.359790123 | AM14: =AL14*(1+Inputs!$D$118) -> 5.392803312 | AN14: =AM14*(1+Inputs!$D$118) -> 5.426019842
A15: Accidents by Severity
A16: Fatal | B16: fatalities/year | D16: =D14*Inputs!$D$121 -> 0.0126777421 | E16: =E14*Inputs!$D$121 -> 0.01275582962 | F16: =F14*Inputs!$D$121 -> 0.0128343981 | G16: =G14*Inputs!$D$121 -> 0.01291345053 | H16: =H14*Inputs!$D$121 -> 0.01299298987 | I16: =I14*Inputs!$D$121 -> 0.01307301912 | J16: =J14*Inputs!$D$121 -> 0.01315354132 | K16: =K14*Inputs!$D$121 -> 0.01323455948 | L16: =L14*Inputs!$D$121 -> 0.01331607666 | M16: =M14*Inputs!$D$121 -> 0.01339809594 | N16: =N14*Inputs!$D$121 -> 0.01348062042 | O16: =O14*Inputs!$D$121 -> 0.0135636532 | P16: =P14*Inputs!$D$121 -> 0.01364719741 | Q16: =Q14*Inputs!$D$121 -> 0.0137312562 | R16: =R14*Inputs!$D$121 -> 0.01381583275 | S16: =S14*Inputs!$D$121 -> 0.01390093024 | T16: =T14*Inputs!$D$121 -> 0.01398655188 | U16: =U14*Inputs!$D$121 -> 0.0140727009 | V16: =V14*Inputs!$D$121 -> 0.01415938055 | W16: =W14*Inputs!$D$121 -> 0.01424659409 | X16: =X14*Inputs!$D$121 -> 0.01433434482 | Y16: =Y14*Inputs!$D$121 -> 0.01442263605 | Z16: =Z14*Inputs!$D$121 -> 0.01451147109 | AA16: =AA14*Inputs!$D$121 -> 0.01460085331 | AB16: =AB14*Inputs!$D$121 -> 0.01469078607 | AC16: =AC14*Inputs!$D$121 -> 0.01478127276 | AD16: =AD14*Inputs!$D$121 -> 0.0148723168 | AE16: =AE14*Inputs!$D$121 -> 0.01496392162 | AF16: =AF14*Inputs!$D$121 -> 0.01505609067 | AG16: =AG14*Inputs!$D$121 -> 0.01514882743 | AH16: =AH14*Inputs!$D$121 -> 0.01524213539 | AI16: =AI14*Inputs!$D$121 -> 0.01533601807 | AJ16: =AJ14*Inputs!$D$121 -> 0.01543047902 | AK16: =AK14*Inputs!$D$121 -> 0.01552552179 | AL16: =AL14*Inputs!$D$121 -> 0.01562114997 | AM16: =AM14*Inputs!$D$121 -> 0.01571736716 | AN16: =AN14*Inputs!$D$121 -> 0.015814177
A17: Suspected Serious Injury | D17: =D14*Inputs!$D$122 -> 0.1266083845 | E17: =E14*Inputs!$D$122 -> 0.1273882184 | F17: =F14*Inputs!$D$122 -> 0.1281728557 | G17: =G14*Inputs!$D$122 -> 0.1289623259 | H17: =H14*Inputs!$D$122 -> 0.1297566588 | I17: =I14*Inputs!$D$122 -> 0.1305558843 | J17: =J14*Inputs!$D$122 -> 0.1313600326 | K17: =K14*Inputs!$D$122 -> 0.132169134 | L17: =L14*Inputs!$D$122 -> 0.1329832189 | M17: =M14*Inputs!$D$122 -> 0.1338023182 | N17: =N14*Inputs!$D$122 -> 0.1346264626 | O17: =O14*Inputs!$D$122 -> 0.1354556833 | P17: =P14*Inputs!$D$122 -> 0.1362900114 | Q17: =Q14*Inputs!$D$122 -> 0.1371294786 | R17: =R14*Inputs!$D$122 -> 0.1379741164 | S17: =S14*Inputs!$D$122 -> 0.1388239567 | T17: =T14*Inputs!$D$122 -> 0.1396790314 | U17: =U14*Inputs!$D$122 -> 0.140539373 | V17: =V14*Inputs!$D$122 -> 0.1414050138 | W17: =W14*Inputs!$D$122 -> 0.1422759864 | X17: =X14*Inputs!$D$122 -> 0.1431523236 | Y17: =Y14*Inputs!$D$122 -> 0.1440340587 | Z17: =Z14*Inputs!$D$122 -> 0.1449212246 | AA17: =AA14*Inputs!$D$122 -> 0.1458138551 | AB17: =AB14*Inputs!$D$122 -> 0.1467119836 | AC17: =AC14*Inputs!$D$122 -> 0.147615644 | AD17: =AD14*Inputs!$D$122 -> 0.1485248705 | AE17: =AE14*Inputs!$D$122 -> 0.1494396972 | AF17: =AF14*Inputs!$D$122 -> 0.1503601588 | AG17: =AG14*Inputs!$D$122 -> 0.1512862899 | AH17: =AH14*Inputs!$D$122 -> 0.1522181254 | AI17: =AI14*Inputs!$D$122 -> 0.1531557005 | AJ17: =AJ14*Inputs!$D$122 -> 0.1540990505 | AK17: =AK14*Inputs!$D$122 -> 0.155048211 | AL17: =AL14*Inputs!$D$122 -> 0.1560032177 | AM17: =AM14*Inputs!$D$122 -> 0.1569641068 | AN17: =AN14*Inputs!$D$122 -> 0.1579309143
A18: Non-Incapacitating | D18: =D14*Inputs!$D$123 -> 0.8630443367 | E18: =E14*Inputs!$D$123 -> 0.8683601876 | F18: =F14*Inputs!$D$123 -> 0.8737087811 | G18: =G14*Inputs!$D$123 -> 0.8790903188 | H18: =H14*Inputs!$D$123 -> 0.8845050036 | I18: =I14*Inputs!$D$123 -> 0.8899530397 | J18: =J14*Inputs!$D$123 -> 0.8954346326 | K18: =K14*Inputs!$D$123 -> 0.9009499888 | L18: =L14*Inputs!$D$123 -> 0.9064993165 | M18: =M14*Inputs!$D$123 -> 0.9120828248 | N18: =N14*Inputs!$D$123 -> 0.9177007242 | O18: =O14*Inputs!$D$123 -> 0.9233532267 | P18: =P14*Inputs!$D$123 -> 0.9290405453 | Q18: =Q14*Inputs!$D$123 -> 0.9347628944 | R18: =R14*Inputs!$D$123 -> 0.9405204899 | S18: =S14*Inputs!$D$123 -> 0.9463135488 | T18: =T14*Inputs!$D$123 -> 0.9521422896 | U18: =U14*Inputs!$D$123 -> 0.958006932 | V18: =V14*Inputs!$D$123 -> 0.9639076973 | W18: =W14*Inputs!$D$123 -> 0.9698448078 | X18: =X14*Inputs!$D$123 -> 0.9758184874 | Y18: =Y14*Inputs!$D$123 -> 0.9818289615 | Z18: =Z14*Inputs!$D$123 -> 0.9878764565 | AA18: =AA14*Inputs!$D$123 -> 0.9939612007 | AB18: =AB14*Inputs!$D$123 -> 1.000083423 | AC18: =AC14*Inputs!$D$123 -> 1.006243355 | AD18: =AD14*Inputs!$D$123 -> 1.012441229 | AE18: =AE14*Inputs!$D$123 -> 1.018677278 | AF18: =AF14*Inputs!$D$123 -> 1.024951737 | AG18: =AG14*Inputs!$D$123 -> 1.031264843 | AH18: =AH14*Inputs!$D$123 -> 1.037616834 | AI18: =AI14*Inputs!$D$123 -> 1.04400795 | AJ18: =AJ14*Inputs!$D$123 -> 1.050438432 | AK18: =AK14*Inputs!$D$123 -> 1.056908521 | AL18: =AL14*Inputs!$D$123 -> 1.063418463 | AM18: =AM14*Inputs!$D$123 -> 1.069968502 | AN18: =AN14*Inputs!$D$123 -> 1.076558885
A19: Possible Injury | D19: =D14*Inputs!$D$124 -> 1.112035192 | E19: =E14*Inputs!$D$124 -> 1.118884681 | F19: =F14*Inputs!$D$124 -> 1.12577636 | G19: =G14*Inputs!$D$124 -> 1.132710487 | H19: =H14*Inputs!$D$124 -> 1.139687325 | I19: =I14*Inputs!$D$124 -> 1.146707135 | J19: =J14*Inputs!$D$124 -> 1.153770184 | K19: =K14*Inputs!$D$124 -> 1.160876737 | L19: =L14*Inputs!$D$124 -> 1.168027062 | M19: =M14*Inputs!$D$124 -> 1.175221429 | N19: =N14*Inputs!$D$124 -> 1.182460109 | O19: =O14*Inputs!$D$124 -> 1.189743375 | P19: =P14*Inputs!$D$124 -> 1.197071502 | Q19: =Q14*Inputs!$D$124 -> 1.204444766 | R19: =R14*Inputs!$D$124 -> 1.211863445 | S19: =S14*Inputs!$D$124 -> 1.219327819 | T19: =T14*Inputs!$D$124 -> 1.226838169 | U19: =U14*Inputs!$D$124 -> 1.234394778 | V19: =V14*Inputs!$D$124 -> 1.241997931 | W19: =W14*Inputs!$D$124 -> 1.249647916 | X19: =X14*Inputs!$D$124 -> 1.25734502 | Y19: =Y14*Inputs!$D$124 -> 1.265089533 | Z19: =Z14*Inputs!$D$124 -> 1.272881749 | AA19: =AA14*Inputs!$D$124 -> 1.28072196 | AB19: =AB14*Inputs!$D$124 -> 1.288610462 | AC19: =AC14*Inputs!$D$124 -> 1.296547552 | AD19: =AD14*Inputs!$D$124 -> 1.304533531 | AE19: =AE14*Inputs!$D$124 -> 1.312568698 | AF19: =AF14*Inputs!$D$124 -> 1.320653358 | AG19: =AG14*Inputs!$D$124 -> 1.328787814 | AH19: =AH14*Inputs!$D$124 -> 1.336972373 | AI19: =AI14*Inputs!$D$124 -> 1.345207345 | AJ19: =AJ14*Inputs!$D$124 -> 1.35349304 | AK19: =AK14*Inputs!$D$124 -> 1.361829769 | AL19: =AL14*Inputs!$D$124 -> 1.370217848 | AM19: =AM14*Inputs!$D$124 -> 1.378657593 | AN19: =AN14*Inputs!$D$124 -> 1.387149321
A20: PDO | D20: =D14*Inputs!$D$125 -> 2.235508524 | E20: =E14*Inputs!$D$125 -> 2.249277956 | F20: =F14*Inputs!$D$125 -> 2.263132199 | G20: =G14*Inputs!$D$125 -> 2.277071776 | H20: =H14*Inputs!$D$125 -> 2.291097213 | I20: =I14*Inputs!$D$125 -> 2.305209039 | J20: =J14*Inputs!$D$125 -> 2.319407785 | K20: =K14*Inputs!$D$125 -> 2.333693988 | L20: =L14*Inputs!$D$125 -> 2.348068185 | M20: =M14*Inputs!$D$125 -> 2.362530918 | N20: =N14*Inputs!$D$125 -> 2.377082734 | O20: =O14*Inputs!$D$125 -> 2.39172418 | P20: =P14*Inputs!$D$125 -> 2.406455809 | Q20: =Q14*Inputs!$D$125 -> 2.421278177 | R20: =R14*Inputs!$D$125 -> 2.436191841 | S20: =S14*Inputs!$D$125 -> 2.451197366 | T20: =T14*Inputs!$D$125 -> 2.466295315 | U20: =U14*Inputs!$D$125 -> 2.481486259 | V20: =V14*Inputs!$D$125 -> 2.49677077 | W20: =W14*Inputs!$D$125 -> 2.512149425 | X20: =X14*Inputs!$D$125 -> 2.527622804 | Y20: =Y14*Inputs!$D$125 -> 2.54319149 | Z20: =Z14*Inputs!$D$125 -> 2.558856069 | AA20: =AA14*Inputs!$D$125 -> 2.574617134 | AB20: =AB14*Inputs!$D$125 -> 2.590475277 | AC20: =AC14*Inputs!$D$125 -> 2.606431097 | AD20: =AD14*Inputs!$D$125 -> 2.622485196 | AE20: =AE14*Inputs!$D$125 -> 2.638638179 | AF20: =AF14*Inputs!$D$125 -> 2.654890655 | AG20: =AG14*Inputs!$D$125 -> 2.671243236 | AH20: =AH14*Inputs!$D$125 -> 2.68769654 | AI20: =AI14*Inputs!$D$125 -> 2.704251187 | AJ20: =AJ14*Inputs!$D$125 -> 2.7209078 | AK20: =AK14*Inputs!$D$125 -> 2.737667009 | AL20: =AL14*Inputs!$D$125 -> 2.754529445 | AM20: =AM14*Inputs!$D$125 -> 2.771495743 | AN20: =AN14*Inputs!$D$125 -> 2.788566544
A22: Cost of Fatalities | B22: $/year | D22: =(D16*AccidentCost_Fatality) -> 147061.8084 | E22: =(E16*AccidentCost_Fatality) -> 147967.6235 | F22: =(F16*AccidentCost_Fatality) -> 148879.018 | G22: =(G16*AccidentCost_Fatality) -> 149796.0261 | H22: 150718.6825 | I22: 151647.0218 | J22: 152581.0793 | K22: 153520.8899 | L22: 154466.4893 | M22: 155417.913 | N22: 156375.1969 | O22: 157338.3771 | P22: 158307.4899 | Q22: 159282.5719 | R22: 160263.6599 | S22: 161250.7908 | T22: 162244.0018 | U22: 163243.3305 | V22: 164248.8144 | W22: 165260.4915 | X22: 166278.4 | Y22: 167302.5781 | Z22: 168333.0647 | AA22: =(AA16*AccidentCost_Fatality) -> 169369.8984 | AB22: 170413.1184 | AC22: 171462.7641 | AD22: 172518.8749 | AE22: 173581.4908 | AF22: 174650.6518 | AG22: 175726.3981 | AH22: 176808.7705 | AI22: 177897.8096 | AJ22: 178993.5566 | AK22: 180096.0528 | AL22: 181205.3397 | AM22: =(AM16*AccidentCost_Fatality) -> 182321.4591 | AN22: 183444.4532
A23: Cost of Serious Injuries | B23: $/year | D23: =D17*Inputs!$D$140*NumberInjuryperCrash_Bridge -> 101148.9576 | E23: =E17*Inputs!$D$140*NumberInjuryperCrash_Bridge -> 101771.9764 | F23: =F17*Inputs!$D$140*NumberInjuryperCrash_Bridge -> 102398.8325 | G23: =G17*Inputs!$D$140*NumberInjuryperCrash_Bridge -> 103029.5497 | H23: =H17*Inputs!$D$140*NumberInjuryperCrash_Bridge -> 103664.1518 | I23: =I17*Inputs!$D$140*NumberInjuryperCrash_Bridge -> 104302.6627 | J23: =J17*Inputs!$D$140*NumberInjuryperCrash_Bridge -> 104945.1064 | K23: =K17*Inputs!$D$140*NumberInjuryperCrash_Bridge -> 105591.5072 | L23: =L17*Inputs!$D$140*NumberInjuryperCrash_Bridge -> 106241.8894 | M23: =M17*Inputs!$D$140*NumberInjuryperCrash_Bridge -> 106896.2776 | N23: =N17*Inputs!$D$140*NumberInjuryperCrash_Bridge -> 107554.6965 | O23: =O17*Inputs!$D$140*NumberInjuryperCrash_Bridge -> 108217.1708 | P23: =P17*Inputs!$D$140*NumberInjuryperCrash_Bridge -> 108883.7256 | Q23: =Q17*Inputs!$D$140*NumberInjuryperCrash_Bridge -> 109554.386 | R23: =R17*Inputs!$D$140*NumberInjuryperCrash_Bridge -> 110229.1773 | S23: =S17*Inputs!$D$140*NumberInjuryperCrash_Bridge -> 110908.1249 | T23: =T17*Inputs!$D$140*NumberInjuryperCrash_Bridge -> 111591.2544 | U23: =U17*Inputs!$D$140*NumberInjuryperCrash_Bridge -> 112278.5916 | V23: =V17*Inputs!$D$140*NumberInjuryperCrash_Bridge -> 112970.1624 | W23: =W17*Inputs!$D$140*NumberInjuryperCrash_Bridge -> 113665.9928 | X23: =X17*Inputs!$D$140*NumberInjuryperCrash_Bridge -> 114366.1092 | Y23: =Y17*Inputs!$D$140*NumberInjuryperCrash_Bridge -> 115070.5379 | Z23: =Z17*Inputs!$D$140*NumberInjuryperCrash_Bridge -> 115779.3054 | AA23: =AA17*Inputs!$D$140*NumberInjuryperCrash_Bridge -> 116492.4386 | AB23: =AB17*Inputs!$D$140*NumberInjuryperCrash_Bridge -> 117209.9642 | AC23: =AC17*Inputs!$D$140*NumberInjuryperCrash_Bridge -> 117931.9094 | AD23: =AD17*Inputs!$D$140*NumberInjuryperCrash_Bridge -> 118658.3013 | AE23: =AE17*Inputs!$D$140*NumberInjuryperCrash_Bridge -> 119389.1674 | AF23: =AF17*Inputs!$D$140*NumberInjuryperCrash_Bridge -> 120124.5352 | AG23: =AG17*Inputs!$D$140*NumberInjuryperCrash_Bridge -> 120864.4324 | AH23: =AH17*Inputs!$D$140*NumberInjuryperCrash_Bridge -> 121608.887 | AI23: =AI17*Inputs!$D$140*NumberInjuryperCrash_Bridge -> 122357.927 | AJ23: =AJ17*Inputs!$D$140*NumberInjuryperCrash_Bridge -> 123111.5806 | AK23: =AK17*Inputs!$D$140*NumberInjuryperCrash_Bridge -> 123869.8763 | AL23: =AL17*Inputs!$D$140*NumberInjuryperCrash_Bridge -> 124632.8427 | AM23: =AM17*Inputs!$D$140*NumberInjuryperCrash_Bridge -> 125400.5085 | AN23: =AN17*Inputs!$D$140*NumberInjuryperCrash_Bridge -> 126172.9026
A24: Cost of Non-Incapacitating Injuries | B24: $/year | D24: =D18*Inputs!$D$141*NumberInjuryperCrash_Bridge -> 187784.639 | E24: =E18*Inputs!$D$141*NumberInjuryperCrash_Bridge -> 188941.2831 | F24: =F18*Inputs!$D$141*NumberInjuryperCrash_Bridge -> 190105.0514 | G24: =G18*Inputs!$D$141*NumberInjuryperCrash_Bridge -> 191275.9879 | H24: =H18*Inputs!$D$141*NumberInjuryperCrash_Bridge -> 192454.1367 | I24: =I18*Inputs!$D$141*NumberInjuryperCrash_Bridge -> 193639.5422 | J24: =J18*Inputs!$D$141*NumberInjuryperCrash_Bridge -> 194832.2491 | K24: =K18*Inputs!$D$141*NumberInjuryperCrash_Bridge -> 196032.3024 | L24: =L18*Inputs!$D$141*NumberInjuryperCrash_Bridge -> 197239.7473 | M24: =M18*Inputs!$D$141*NumberInjuryperCrash_Bridge -> 198454.6293 | N24: =N18*Inputs!$D$141*NumberInjuryperCrash_Bridge -> 199676.9944 | O24: =O18*Inputs!$D$141*NumberInjuryperCrash_Bridge -> 200906.8885 | P24: =P18*Inputs!$D$141*NumberInjuryperCrash_Bridge -> 202144.358 | Q24: =Q18*Inputs!$D$141*NumberInjuryperCrash_Bridge -> 203389.4496 | R24: =R18*Inputs!$D$141*NumberInjuryperCrash_Bridge -> 204642.2103 | S24: =S18*Inputs!$D$141*NumberInjuryperCrash_Bridge -> 205902.6872 | T24: =T18*Inputs!$D$141*NumberInjuryperCrash_Bridge -> 207170.9279 | U24: =U18*Inputs!$D$141*NumberInjuryperCrash_Bridge -> 208446.9803 | V24: =V18*Inputs!$D$141*NumberInjuryperCrash_Bridge -> 209730.8924 | W24: =W18*Inputs!$D$141*NumberInjuryperCrash_Bridge -> 211022.7127 | X24: =X18*Inputs!$D$141*NumberInjuryperCrash_Bridge -> 212322.4898 | Y24: =Y18*Inputs!$D$141*NumberInjuryperCrash_Bridge -> 213630.2728 | Z24: =Z18*Inputs!$D$141*NumberInjuryperCrash_Bridge -> 214946.1109 | AA24: =AA18*Inputs!$D$141*NumberInjuryperCrash_Bridge -> 216270.0539 | AB24: =AB18*Inputs!$D$141*NumberInjuryperCrash_Bridge -> 217602.1516 | AC24: =AC18*Inputs!$D$141*NumberInjuryperCrash_Bridge -> 218942.4542 | AD24: =AD18*Inputs!$D$141*NumberInjuryperCrash_Bridge -> 220291.0123 | AE24: =AE18*Inputs!$D$141*NumberInjuryperCrash_Bridge -> 221647.8768 | AF24: =AF18*Inputs!$D$141*NumberInjuryperCrash_Bridge -> 223013.0987 | AG24: =AG18*Inputs!$D$141*NumberInjuryperCrash_Bridge -> 224386.7296 | AH24: =AH18*Inputs!$D$141*NumberInjuryperCrash_Bridge -> 225768.8213 | AI24: =AI18*Inputs!$D$141*NumberInjuryperCrash_Bridge -> 227159.4259 | AJ24: =AJ18*Inputs!$D$141*NumberInjuryperCrash_Bridge -> 228558.5957 | AK24: =AK18*Inputs!$D$141*NumberInjuryperCrash_Bridge -> 229966.3837 | AL24: =AL18*Inputs!$D$141*NumberInjuryperCrash_Bridge -> 231382.8428 | AM24: =AM18*Inputs!$D$141*NumberInjuryperCrash_Bridge -> 232808.0265 | AN24: =AN18*Inputs!$D$141*NumberInjuryperCrash_Bridge -> 234241.9884
A25: Cost of Possible Injuries | B25: $/year | D25: =D19*AccidentCost_Injury*NumberInjuryperCrash_Bridge -> 123622.7282 | E25: 124384.1723 | F25: 125150.3064 | G25: 125921.1594 | H25: 126696.7605 | I25: 127477.1388 | J25: 128262.3238 | K25: 129052.3451 | L25: 129847.2324 | M25: 130647.0158 | N25: 131451.7254 | O25: 132261.3916 | P25: 133076.0448 | Q25: 133895.7158 | R25: 134720.4355 | S25: 135550.2349 | T25: 136385.1455 | U25: 137225.1987 | V25: 138070.426 | W25: 138920.8595 | X25: 139776.5312 | Y25: 140637.4733 | Z25: 141503.7183 | AA25: 142375.2988 | AB25: 143252.2478 | AC25: 144134.5983 | AD25: 145022.3835 | AE25: 145915.637 | AF25: 146814.3925 | AG25: 147718.6837 | AH25: 148628.5448 | AI25: 149544.0102 | AJ25: 150465.1142 | AK25: 151391.8918 | AL25: 152324.3777 | AM25: =AM19*AccidentCost_Injury*NumberInjuryperCrash_Bridge -> 153262.6073 | AN25: 154206.6157
A26: Cost PDO Accidents | B26: $/year | D26: =D20*AccidentCost_PDO*DamagedVeh_PDOcrash -> 19538.3445 | E26: 19658.68933 | F26: 19779.77542 | G26: 19901.60732 | H26: 20024.18964 | I26: 20147.527 | J26: 20271.62404 | K26: 20396.48545 | L26: 20522.11593 | M26: 20648.52022 | N26: 20775.70309 | O26: 20903.66934 | P26: 21032.42377 | Q26: 21161.97127 | R26: 21292.31669 | S26: 21423.46498 | T26: 21555.42105 | U26: 21688.1899 | V26: 21821.77653 | W26: 21956.18598 | X26: 22091.42331 | Y26: 22227.49362 | Z26: 22364.40205 | AA26: 22502.15375 | AB26: 22640.75392 | AC26: 22780.20779 | AD26: 22920.52061 | AE26: 23061.69768 | AF26: 23203.74432 | AG26: 23346.66588 | AH26: 23490.46776 | AI26: 23635.15537 | AJ26: 23780.73418 | AK26: 23927.20966 | AL26: 24074.58735 | AM26: =AM20*AccidentCost_PDO*DamagedVeh_PDOcrash -> 24222.8728 | AN26: 24372.0716
A28: Total Accident Cost | D28: =SUM(D22:D26) -> 579156.4777 | E28: 582723.7446 | F28: 586312.9837 | G28: 589924.3305 | H28: 593557.9211 | I28: 597213.8925 | J28: 600892.3826 | K28: 604593.53 | L28: 608317.4743 | M28: 612064.356 | N28: 615834.3162 | O28: 619627.4973 | P28: 623444.0421 | Q28: 627284.0946 | R28: 631147.7996 | S28: 635035.3028 | T28: 638946.7507 | U28: 642882.2909 | V28: 646842.0717 | W28: 650826.2424 | X28: 654834.9534 | Y28: 658868.3556 | Z28: 662926.6013 | AA28: 667009.8434 | AB28: 671118.2359 | AC28: 675251.9337 | AD28: 679411.0927 | AE28: 683595.8697 | AF28: 687806.4224 | AG28: 692042.9098 | AH28: 696305.4914 | AI28: 700594.328 | AJ28: 704909.5814 | AK28: 709251.4142 | AL28: 713619.9902 | AM28: =SUM(AM22:AM26) -> 718015.4741 | AN28: 722438.0316
A30: Build (Alternative Case) | B30: Unit | C30: Value | D30: 2019 | E30: =D30+1 -> 2020 | F30: 2021 | G30: 2022 | H30: 2023 | I30: 2024 | J30: 2025 | K30: 2026 | L30: 2027 | M30: 2028 | N30: 2029 | O30: 2030 | P30: 2031 | Q30: 2032 | R30: 2033 | S30: 2034 | T30: 2035 | U30: 2036 | V30: 2037 | W30: 2038 | X30: 2039 | Y30: 2040 | Z30: 2041 | AA30: =Z30+1 -> 2042 | AB30: =AA30+1 -> 2043 | AC30: =AB30+1 -> 2044 | AD30: 2045 | AE30: 2046 | AF30: 2047 | AG30: 2048 | AH30: 2049 | AI30: 2050 | AJ30: 2051 | AK30: 2052 | AL30: 2053 | AM30: =AL30+1 -> 2054 | AN30: =AM30+1 -> 2055
A32: Expected Number of Accidents | B32: Number/year | D32: =Inputs!D112*(1+Inputs!D119)^(D30-2016) -> 1.862051403 | E32: =D32*(1+Inputs!$D$119) -> 1.873520556 | F32: =E32*(1+Inputs!$D$119) -> 1.885060352 | G32: =F32*(1+Inputs!$D$119) -> 1.896671227 | H32: =G32*(1+Inputs!$D$119) -> 1.908353618 | I32: =H32*(1+Inputs!$D$119) -> 1.920107966 | J32: =I32*(1+Inputs!$D$119) -> 1.931934714 | K32: =J32*(1+Inputs!$D$119) -> 1.943834307 | L32: =K32*(1+Inputs!$D$119) -> 1.955807196 | M32: =L32*(1+Inputs!$D$119) -> 1.96785383 | N32: =M32*(1+Inputs!$D$119) -> 1.979974664 | O32: =N32*(1+Inputs!$D$119) -> 1.992170156 | P32: =O32*(1+Inputs!$D$119) -> 2.004440765 | Q32: =P32*(1+Inputs!$D$119) -> 2.016786954 | R32: =Q32*(1+Inputs!$D$119) -> 2.029209188 | S32: =R32*(1+Inputs!$D$119) -> 2.041707936 | T32: =S32*(1+Inputs!$D$119) -> 2.054283668 | U32: =T32*(1+Inputs!$D$119) -> 2.06693686 | V32: =U32*(1+Inputs!$D$119) -> 2.079667989 | W32: =V32*(1+Inputs!$D$119) -> 2.092477533 | X32: =W32*(1+Inputs!$D$119) -> 2.105365977 | Y32: =X32*(1+Inputs!$D$119) -> 2.118333807 | Z32: =Y32*(1+Inputs!$D$119) -> 2.13138151 | AA32: =Z32*(1+Inputs!$D$119) -> 2.14450958 | AB32: =AA32*(1+Inputs!$D$119) -> 2.157718511 | AC32: =AB32*(1+Inputs!$D$119) -> 2.171008801 | AD32: =AC32*(1+Inputs!$D$119) -> 2.184380952 | AE32: =AD32*(1+Inputs!$D$119) -> 2.197835468 | AF32: =AE32*(1+Inputs!$D$119) -> 2.211372855 | AG32: =AF32*(1+Inputs!$D$119) -> 2.224993625 | AH32: =AG32*(1+Inputs!$D$119) -> 2.238698291 | AI32: =AH32*(1+Inputs!$D$119) -> 2.25248737 | AJ32: =AI32*(1+Inputs!$D$119) -> 2.266361382 | AK32: =AJ32*(1+Inputs!$D$119) -> 2.280320849 | AL32: =AK32*(1+Inputs!$D$119) -> 2.294366298 | AM32: =AL32*(1+Inputs!$D$119) -> 2.30849826 | AN32: =AM32*(1+Inputs!$D$119) -> 2.322717266
A33: Accidents by Severity
A34: Fatal | B34: fatalities/year | D34: =D32*Inputs!$D$121 -> 0.005426963286 | E34: =E32*Inputs!$D$121 -> 0.005460390221 | F34: =F32*Inputs!$D$121 -> 0.005494023048 | G34: =G32*Inputs!$D$121 -> 0.005527863033 | H34: =H32*Inputs!$D$121 -> 0.005561911452 | I34: =I32*Inputs!$D$121 -> 0.00559616959 | J34: =J32*Inputs!$D$121 -> 0.005630638738 | K34: =K32*Inputs!$D$121 -> 0.005665320197 | L34: =L32*Inputs!$D$121 -> 0.005700215272 | M34: =M32*Inputs!$D$121 -> 0.005735325281 | N34: =N32*Inputs!$D$121 -> 0.005770651548 | O34: =O32*Inputs!$D$121 -> 0.005806195403 | P34: =P32*Inputs!$D$121 -> 0.005841958188 | Q34: =Q32*Inputs!$D$121 -> 0.005877941251 | R34: =R32*Inputs!$D$121 -> 0.005914145949 | S34: =S32*Inputs!$D$121 -> 0.005950573646 | T34: =T32*Inputs!$D$121 -> 0.005987225717 | U34: =U32*Inputs!$D$121 -> 0.006024103544 | V34: =V32*Inputs!$D$121 -> 0.006061208516 | W34: =W32*Inputs!$D$121 -> 0.006098542034 | X34: =X32*Inputs!$D$121 -> 0.006136105504 | Y34: =Y32*Inputs!$D$121 -> 0.006173900343 | Z34: =Z32*Inputs!$D$121 -> 0.006211927976 | AA34: =AA32*Inputs!$D$121 -> 0.006250189838 | AB34: =AB32*Inputs!$D$121 -> 0.00628868737 | AC34: =AC32*Inputs!$D$121 -> 0.006327422025 | AD34: =AD32*Inputs!$D$121 -> 0.006366395263 | AE34: =AE32*Inputs!$D$121 -> 0.006405608553 | AF34: =AF32*Inputs!$D$121 -> 0.006445063374 | AG34: =AG32*Inputs!$D$121 -> 0.006484761214 | AH34: =AH32*Inputs!$D$121 -> 0.00652470357 | AI34: =AI32*Inputs!$D$121 -> 0.006564891947 | AJ34: =AJ32*Inputs!$D$121 -> 0.006605327861 | AK34: =AK32*Inputs!$D$121 -> 0.006646012837 | AL34: =AL32*Inputs!$D$121 -> 0.006686948409 | AM34: =AM32*Inputs!$D$121 -> 0.00672813612 | AN34: =AN32*Inputs!$D$121 -> 0.006769577523
A35: Suspected Serious Injury | D35: =D32*Inputs!$D$122 -> 0.05419727334 | E35: =E32*Inputs!$D$122 -> 0.05453109701 | F35: =F32*Inputs!$D$122 -> 0.05486697684 | G35: =G32*Inputs!$D$122 -> 0.05520492549 | H35: =H32*Inputs!$D$122 -> 0.0555449557 | I35: =I32*Inputs!$D$122 -> 0.05588708031 | J35: =J32*Inputs!$D$122 -> 0.0562313122 | K35: =K32*Inputs!$D$122 -> 0.05657766436 | L35: =L32*Inputs!$D$122 -> 0.05692614985 | M35: =M32*Inputs!$D$122 -> 0.05727678181 | N35: =N32*Inputs!$D$122 -> 0.05762957346 | O35: =O32*Inputs!$D$122 -> 0.05798453809 | P35: =P32*Inputs!$D$122 -> 0.05834168911 | Q35: =Q32*Inputs!$D$122 -> 0.05870103996 | R35: =R32*Inputs!$D$122 -> 0.05906260421 | S35: =S32*Inputs!$D$122 -> 0.05942639548 | T35: =T32*Inputs!$D$122 -> 0.0597924275 | U35: =U32*Inputs!$D$122 -> 0.06016071406 | V35: =V32*Inputs!$D$122 -> 0.06053126905 | W35: =W32*Inputs!$D$122 -> 0.06090410644 | X35: =X32*Inputs!$D$122 -> 0.0612792403 | Y35: =Y32*Inputs!$D$122 -> 0.06165668476 | Z35: =Z32*Inputs!$D$122 -> 0.06203645406 | AA35: =AA32*Inputs!$D$122 -> 0.06241856251 | AB35: =AB32*Inputs!$D$122 -> 0.06280302454 | AC35: =AC32*Inputs!$D$122 -> 0.06318985462 | AD35: =AD32*Inputs!$D$122 -> 0.06357906736 | AE35: =AE32*Inputs!$D$122 -> 0.06397067742 | AF35: =AF32*Inputs!$D$122 -> 0.06436469956 | AG35: =AG32*Inputs!$D$122 -> 0.06476114866 | AH35: =AH32*Inputs!$D$122 -> 0.06516003965 | AI35: =AI32*Inputs!$D$122 -> 0.06556138758 | AJ35: =AJ32*Inputs!$D$122 -> 0.06596520757 | AK35: =AK32*Inputs!$D$122 -> 0.06637151487 | AL35: =AL32*Inputs!$D$122 -> 0.06678032477 | AM35: =AM32*Inputs!$D$122 -> 0.06719165272 | AN35: =AN32*Inputs!$D$122 -> 0.0676055142
A36: Non-Incapacitating | D36: =D32*Inputs!$D$123 -> 0.3694435406 | E36: =E32*Inputs!$D$123 -> 0.3717190979 | F36: =F32*Inputs!$D$123 -> 0.3740086712 | G36: =G32*Inputs!$D$123 -> 0.376312347 | H36: =H32*Inputs!$D$123 -> 0.3786302121 | I36: =I32*Inputs!$D$123 -> 0.3809623538 | J36: =J32*Inputs!$D$123 -> 0.3833088603 | K36: =K32*Inputs!$D$123 -> 0.3856698198 | L36: =L32*Inputs!$D$123 -> 0.3880453214 | M36: =M32*Inputs!$D$123 -> 0.3904354548 | N36: =N32*Inputs!$D$123 -> 0.39284031 | O36: =O32*Inputs!$D$123 -> 0.3952599777 | P36: =P32*Inputs!$D$123 -> 0.3976945492 | Q36: =Q32*Inputs!$D$123 -> 0.4001441162 | R36: =R32*Inputs!$D$123 -> 0.4026087711 | S36: =S32*Inputs!$D$123 -> 0.4050886069 | T36: =T32*Inputs!$D$123 -> 0.4075837169 | U36: =U32*Inputs!$D$123 -> 0.4100941955 | V36: =V32*Inputs!$D$123 -> 0.4126201371 | W36: =W32*Inputs!$D$123 -> 0.415161637 | X36: =X32*Inputs!$D$123 -> 0.4177187911 | Y36: =Y32*Inputs!$D$123 -> 0.4202916958 | Z36: =Z32*Inputs!$D$123 -> 0.4228804481 | AA36: =AA32*Inputs!$D$123 -> 0.4254851455 | AB36: =AB32*Inputs!$D$123 -> 0.4281058864 | AC36: =AC32*Inputs!$D$123 -> 0.4307427696 | AD36: =AD32*Inputs!$D$123 -> 0.4333958944 | AE36: =AE32*Inputs!$D$123 -> 0.4360653609 | AF36: =AF32*Inputs!$D$123 -> 0.4387512698 | AG36: =AG32*Inputs!$D$123 -> 0.4414537223 | AH36: =AH32*Inputs!$D$123 -> 0.4441728203 | AI36: =AI32*Inputs!$D$123 -> 0.4469086664 | AJ36: =AJ32*Inputs!$D$123 -> 0.4496613638 | AK36: =AK32*Inputs!$D$123 -> 0.4524310161 | AL36: =AL32*Inputs!$D$123 -> 0.4552177279 | AM36: =AM32*Inputs!$D$123 -> 0.4580216042 | AN36: =AN32*Inputs!$D$123 -> 0.4608427508
A37: Possible Injury | D37: =D32*Inputs!$D$124 -> 0.4760290996 | E37: =E32*Inputs!$D$124 -> 0.4789611618 | F37: =F32*Inputs!$D$124 -> 0.4819112839 | G37: =G32*Inputs!$D$124 -> 0.4848795769 | H37: =H32*Inputs!$D$124 -> 0.487866153 | I37: =I32*Inputs!$D$124 -> 0.4908711246 | J37: =J32*Inputs!$D$124 -> 0.4938946051 | K37: =K32*Inputs!$D$124 -> 0.4969367084 | L37: =L32*Inputs!$D$124 -> 0.4999975494 | M37: =M32*Inputs!$D$124 -> 0.5030772433 | N37: =N32*Inputs!$D$124 -> 0.5061759064 | O37: =O32*Inputs!$D$124 -> 0.5092936555 | P37: =P32*Inputs!$D$124 -> 0.512430608 | Q37: =Q32*Inputs!$D$124 -> 0.5155868824 | R37: =R32*Inputs!$D$124 -> 0.5187625975 | S37: =S32*Inputs!$D$124 -> 0.5219578733 | T37: =T32*Inputs!$D$124 -> 0.52517283 | U37: =U32*Inputs!$D$124 -> 0.5284075891 | V37: =V32*Inputs!$D$124 -> 0.5316622723 | W37: =W32*Inputs!$D$124 -> 0.5349370026 | X37: =X32*Inputs!$D$124 -> 0.5382319032 | Y37: =Y32*Inputs!$D$124 -> 0.5415470985 | Z37: =Z32*Inputs!$D$124 -> 0.5448827135 | AA37: =AA32*Inputs!$D$124 -> 0.548238874 | AB37: =AB32*Inputs!$D$124 -> 0.5516157064 | AC37: =AC32*Inputs!$D$124 -> 0.5550133382 | AD37: =AD32*Inputs!$D$124 -> 0.5584318974 | AE37: =AE32*Inputs!$D$124 -> 0.5618715129 | AF37: =AF32*Inputs!$D$124 -> 0.5653323145 | AG37: =AG32*Inputs!$D$124 -> 0.5688144325 | AH37: =AH32*Inputs!$D$124 -> 0.5723179984 | AI37: =AI32*Inputs!$D$124 -> 0.5758431443 | AJ37: =AJ32*Inputs!$D$124 -> 0.579390003 | AK37: =AK32*Inputs!$D$124 -> 0.5829587082 | AL37: =AL32*Inputs!$D$124 -> 0.5865493946 | AM37: =AM32*Inputs!$D$124 -> 0.5901621976 | AN37: =AN32*Inputs!$D$124 -> 0.5937972533
A38: PDO | D38: =D32*Inputs!$D$125 -> 0.956954526 | E38: =E32*Inputs!$D$125 -> 0.962848809 | F38: =F32*Inputs!$D$125 -> 0.9687793974 | G38: =G32*Inputs!$D$125 -> 0.9747465148 | H38: =H32*Inputs!$D$125 -> 0.9807503861 | I38: =I32*Inputs!$D$125 -> 0.9867912377 | J38: =J32*Inputs!$D$125 -> 0.9928692976 | K38: =K32*Inputs!$D$125 -> 0.9989847947 | L38: =L32*Inputs!$D$125 -> 1.00513796 | M38: =M32*Inputs!$D$125 -> 1.011329025 | N38: =N32*Inputs!$D$125 -> 1.017558223 | O38: =O32*Inputs!$D$125 -> 1.023825789 | P38: =P32*Inputs!$D$125 -> 1.030131961 | Q38: =Q32*Inputs!$D$125 -> 1.036476974 | R38: =R32*Inputs!$D$125 -> 1.042861069 | S38: =S32*Inputs!$D$125 -> 1.049284486 | T38: =T32*Inputs!$D$125 -> 1.055747468 | U38: =U32*Inputs!$D$125 -> 1.062250258 | V38: =V32*Inputs!$D$125 -> 1.068793102 | W38: =W32*Inputs!$D$125 -> 1.075376245 | X38: =X32*Inputs!$D$125 -> 1.081999937 | Y38: =Y32*Inputs!$D$125 -> 1.088664427 | Z38: =Z32*Inputs!$D$125 -> 1.095369967 | AA38: =AA32*Inputs!$D$125 -> 1.102116808 | AB38: =AB32*Inputs!$D$125 -> 1.108905206 | AC38: =AC32*Inputs!$D$125 -> 1.115735417 | AD38: =AD32*Inputs!$D$125 -> 1.122607698 | AE38: =AE32*Inputs!$D$125 -> 1.129522308 | AF38: =AF32*Inputs!$D$125 -> 1.136479508 | AG38: =AG32*Inputs!$D$125 -> 1.143479561 | AH38: =AH32*Inputs!$D$125 -> 1.150522729 | AI38: =AI32*Inputs!$D$125 -> 1.15760928 | AJ38: =AJ32*Inputs!$D$125 -> 1.16473948 | AK38: =AK32*Inputs!$D$125 -> 1.171913597 | AL38: =AL32*Inputs!$D$125 -> 1.179131903 | AM38: =AM32*Inputs!$D$125 -> 1.186394669 | AN38: =AN32*Inputs!$D$125 -> 1.19370217
A40: Cost of Fatalities | B40: $/year | D40: =(D34*AccidentCost_Fatality) -> 62952.77411 | E40: =(E34*AccidentCost_Fatality) -> 63340.52657 | F40: =(F34*AccidentCost_Fatality) -> 63730.66735 | G40: =(G34*AccidentCost_Fatality) -> 64123.21118 | H40: 64518.17285 | I40: 64915.56725 | J40: 65315.40937 | K40: 65717.71428 | L40: 66122.49716 | M40: 66529.77326 | N40: 66939.55795 | O40: 67351.86668 | P40: 67766.71498 | Q40: 68184.11851 | R40: 68604.09301 | S40: 69026.6543 | T40: 69451.81832 | U40: 69879.60111 | V40: 70310.01879 | W40: 70743.08759 | X40: 71178.82384 | Y40: 71617.24398 | Z40: 72058.36453 | AA40: 72502.20212 | AB40: 72948.7735 | AC40: 73398.09549 | AD40: 73850.18505 | AE40: 74305.05921 | AF40: 74762.73514 | AG40: 75223.23008 | AH40: 75686.56141 | AI40: 76152.74658 | AJ40: 76621.80319 | AK40: 77093.74891 | AL40: 77568.60154 | AM40: =(AM34*AccidentCost_Fatality) -> 78046.37899 | AN40: 78527.09927
A41: Cost of Serious Injuries | B41: $/year | D41: =D35*Inputs!$D$140*NumberInjuryperCrash_Bridge -> 43298.85204 | E41: =E35*Inputs!$D$140*NumberInjuryperCrash_Bridge -> 43565.54778 | F41: =F35*Inputs!$D$140*NumberInjuryperCrash_Bridge -> 43833.8862 | G41: =G35*Inputs!$D$140*NumberInjuryperCrash_Bridge -> 44103.87743 | H41: =H35*Inputs!$D$140*NumberInjuryperCrash_Bridge -> 44375.53165 | I41: =I35*Inputs!$D$140*NumberInjuryperCrash_Bridge -> 44648.8591 | J41: =J35*Inputs!$D$140*NumberInjuryperCrash_Bridge -> 44923.87009 | K41: =K35*Inputs!$D$140*NumberInjuryperCrash_Bridge -> 45200.57499 | L41: =L35*Inputs!$D$140*NumberInjuryperCrash_Bridge -> 45478.98423 | M41: =M35*Inputs!$D$140*NumberInjuryperCrash_Bridge -> 45759.10831 | N41: =N35*Inputs!$D$140*NumberInjuryperCrash_Bridge -> 46040.95779 | O41: =O35*Inputs!$D$140*NumberInjuryperCrash_Bridge -> 46324.5433 | P41: =P35*Inputs!$D$140*NumberInjuryperCrash_Bridge -> 46609.87553 | Q41: =Q35*Inputs!$D$140*NumberInjuryperCrash_Bridge -> 46896.96524 | R41: =R35*Inputs!$D$140*NumberInjuryperCrash_Bridge -> 47185.82325 | S41: =S35*Inputs!$D$140*NumberInjuryperCrash_Bridge -> 47476.46047 | T41: =T35*Inputs!$D$140*NumberInjuryperCrash_Bridge -> 47768.88784 | U41: =U35*Inputs!$D$140*NumberInjuryperCrash_Bridge -> 48063.11639 | V41: =V35*Inputs!$D$140*NumberInjuryperCrash_Bridge -> 48359.15722 | W41: =W35*Inputs!$D$140*NumberInjuryperCrash_Bridge -> 48657.02149 | X41: =X35*Inputs!$D$140*NumberInjuryperCrash_Bridge -> 48956.72042 | Y41: =Y35*Inputs!$D$140*NumberInjuryperCrash_Bridge -> 49258.26533 | Z41: =Z35*Inputs!$D$140*NumberInjuryperCrash_Bridge -> 49561.66758 | AA41: =AA35*Inputs!$D$140*NumberInjuryperCrash_Bridge -> 49866.93862 | AB41: =AB35*Inputs!$D$140*NumberInjuryperCrash_Bridge -> 50174.08994 | AC41: =AC35*Inputs!$D$140*NumberInjuryperCrash_Bridge -> 50483.13314 | AD41: =AD35*Inputs!$D$140*NumberInjuryperCrash_Bridge -> 50794.07986 | AE41: =AE35*Inputs!$D$140*NumberInjuryperCrash_Bridge -> 51106.94184 | AF41: =AF35*Inputs!$D$140*NumberInjuryperCrash_Bridge -> 51421.73086 | AG41: =AG35*Inputs!$D$140*NumberInjuryperCrash_Bridge -> 51738.4588 | AH41: =AH35*Inputs!$D$140*NumberInjuryperCrash_Bridge -> 52057.1376 | AI41: =AI35*Inputs!$D$140*NumberInjuryperCrash_Bridge -> 52377.77927 | AJ41: =AJ35*Inputs!$D$140*NumberInjuryperCrash_Bridge -> 52700.39591 | AK41: =AK35*Inputs!$D$140*NumberInjuryperCrash_Bridge -> 53024.99968 | AL41: =AL35*Inputs!$D$140*NumberInjuryperCrash_Bridge -> 53351.60283 | AM41: =AM35*Inputs!$D$140*NumberInjuryperCrash_Bridge -> 53680.21765 | AN41: =AN35*Inputs!$D$140*NumberInjuryperCrash_Bridge -> 54010.85656
A42: Cost of Non-Incapacitating Injuries | B42: $/year | D42: =D36*Inputs!$D$141*NumberInjuryperCrash_Bridge -> 80385.00335 | E42: =E36*Inputs!$D$141*NumberInjuryperCrash_Bridge -> 80880.12819 | F42: =F36*Inputs!$D$141*NumberInjuryperCrash_Bridge -> 81378.30272 | G42: =G36*Inputs!$D$141*NumberInjuryperCrash_Bridge -> 81879.54571 | H42: =H36*Inputs!$D$141*NumberInjuryperCrash_Bridge -> 82383.87606 | I42: =I36*Inputs!$D$141*NumberInjuryperCrash_Bridge -> 82891.3128 | J42: =J36*Inputs!$D$141*NumberInjuryperCrash_Bridge -> 83401.87505 | K42: =K36*Inputs!$D$141*NumberInjuryperCrash_Bridge -> 83915.58207 | L42: =L36*Inputs!$D$141*NumberInjuryperCrash_Bridge -> 84432.45322 | M42: =M36*Inputs!$D$141*NumberInjuryperCrash_Bridge -> 84952.508 | N42: =N36*Inputs!$D$141*NumberInjuryperCrash_Bridge -> 85475.76602 | O42: =O36*Inputs!$D$141*NumberInjuryperCrash_Bridge -> 86002.247 | P42: =P36*Inputs!$D$141*NumberInjuryperCrash_Bridge -> 86531.97079 | Q42: =Q36*Inputs!$D$141*NumberInjuryperCrash_Bridge -> 87064.95738 | R42: =R36*Inputs!$D$141*NumberInjuryperCrash_Bridge -> 87601.22685 | S42: =S36*Inputs!$D$141*NumberInjuryperCrash_Bridge -> 88140.79943 | T42: =T36*Inputs!$D$141*NumberInjuryperCrash_Bridge -> 88683.69547 | U42: =U36*Inputs!$D$141*NumberInjuryperCrash_Bridge -> 89229.93543 | V42: =V36*Inputs!$D$141*NumberInjuryperCrash_Bridge -> 89779.53991 | W42: =W36*Inputs!$D$141*NumberInjuryperCrash_Bridge -> 90332.52963 | X42: =X36*Inputs!$D$141*NumberInjuryperCrash_Bridge -> 90888.92544 | Y42: =Y36*Inputs!$D$141*NumberInjuryperCrash_Bridge -> 91448.74834 | Z42: =Z36*Inputs!$D$141*NumberInjuryperCrash_Bridge -> 92012.01941 | AA42: =AA36*Inputs!$D$141*NumberInjuryperCrash_Bridge -> 92578.75991 | AB42: =AB36*Inputs!$D$141*NumberInjuryperCrash_Bridge -> 93148.9912 | AC42: =AC36*Inputs!$D$141*NumberInjuryperCrash_Bridge -> 93722.73478 | AD42: =AD36*Inputs!$D$141*NumberInjuryperCrash_Bridge -> 94300.01229 | AE42: =AE36*Inputs!$D$141*NumberInjuryperCrash_Bridge -> 94880.84549 | AF42: =AF36*Inputs!$D$141*NumberInjuryperCrash_Bridge -> 95465.25628 | AG42: =AG36*Inputs!$D$141*NumberInjuryperCrash_Bridge -> 96053.26671 | AH42: =AH36*Inputs!$D$141*NumberInjuryperCrash_Bridge -> 96644.89894 | AI42: =AI36*Inputs!$D$141*NumberInjuryperCrash_Bridge -> 97240.17528 | AJ42: =AJ36*Inputs!$D$141*NumberInjuryperCrash_Bridge -> 97839.11817 | AK42: =AK36*Inputs!$D$141*NumberInjuryperCrash_Bridge -> 98441.75021 | AL42: =AL36*Inputs!$D$141*NumberInjuryperCrash_Bridge -> 99048.09411 | AM42: =AM36*Inputs!$D$141*NumberInjuryperCrash_Bridge -> 99658.17273 | AN42: =AN36*Inputs!$D$141*NumberInjuryperCrash_Bridge -> 100272.0091
A43: Cost of Possible Injuries | B43: $/year | D43: =D37*AccidentCost_Injury*NumberInjuryperCrash_Bridge -> 52919.20294 | E43: 53245.15444 | F43: 53573.1136 | G43: 53903.09281 | H43: 54235.10449 | I43: 54569.16118 | J43: 54905.27546 | K43: 55243.46 | L43: 55583.72757 | M43: 55926.09099 | N43: 56270.56317 | O43: 56617.15709 | P43: 56965.88583 | Q43: 57316.76254 | R43: 57669.80044 | S43: 58025.01286 | T43: 58382.41317 | U43: 58742.01486 | V43: 59103.83149 | W43: 59467.8767 | X43: 59834.16422 | Y43: 60202.70785 | Z43: 60573.5215 | AA43: 60946.61914 | AB43: 61322.01485 | AC43: 61699.72278 | AD43: 62079.75717 | AE43: 62462.13235 | AF43: 62846.86273 | AG43: 63233.96284 | AH43: 63623.44725 | AI43: 64015.33066 | AJ43: 64409.62785 | AK43: 64806.35368 | AL43: 65205.5231 | AM43: =AM37*AccidentCost_Injury*NumberInjuryperCrash_Bridge -> 65607.15118 | AN43: 66011.25306
A44: Cost PDO Accidents | B44: $/year | D44: =D38*AccidentCost_PDO*DamagedVeh_PDOcrash -> 8363.782557 | E44: 8415.298591 | F44: 8467.131933 | G44: 8519.284539 | H44: 8571.758374 | I44: 8624.555418 | J44: 8677.677661 | K44: 8731.127105 | L44: 8784.905768 | M44: 8839.015675 | N44: 8893.458868 | O44: 8948.2374 | P44: 9003.353335 | Q44: 9058.808752 | R44: 9114.605743 | S44: 9170.74641 | T44: 9227.232872 | U44: 9284.067257 | V44: 9341.251709 | W44: 9398.788383 | X44: 9456.679451 | Y44: 9514.927093 | Z44: 9573.533507 | AA44: 9632.500903 | AB44: 9691.831503 | AC44: 9751.527545 | AD44: 9811.591281 | AE44: 9872.024973 | AF44: 9932.830903 | AG44: 9994.011361 | AH44: 10055.56866 | AI44: 10117.50511 | AJ44: 10179.82305 | AK44: 10242.52484 | AL44: 10305.61283 | AM44: =AM38*AccidentCost_PDO*DamagedVeh_PDOcrash -> 10369.08941 | AN44: 10432.95696
A46: Total Accident Cost | D46: =SUM(D40:D44) -> 247919.615 | E46: =SUM(E40:E44) -> 249446.6556 | F46: =SUM(F40:F44) -> 250983.1018 | G46: =SUM(G40:G44) -> 252529.0117 | H46: =SUM(H40:H44) -> 254084.4434 | I46: 255649.4557 | J46: 257224.1076 | K46: 258808.4584 | L46: 260402.568 | M46: 262006.4962 | N46: 263620.3038 | O46: 265244.0515 | P46: 266877.8005 | Q46: 268521.6124 | R46: 270175.5493 | S46: 271839.6735 | T46: 273514.0477 | U46: 275198.735 | V46: 276893.7991 | W46: 278599.3038 | X46: 280315.3134 | Y46: 282041.8926 | Z46: 283779.1065 | AA46: =SUM(AA40:AA44) -> 285527.0207 | AB46: =SUM(AB40:AB44) -> 287285.701 | AC46: =SUM(AC40:AC44) -> 289055.2137 | AD46: 290835.6256 | AE46: 292627.0039 | AF46: 294429.4159 | AG46: 296242.9298 | AH46: 298067.6139 | AI46: 299903.5369 | AJ46: 301750.7682 | AK46: 303609.3773 | AL46: 305479.4344 | AM46: =SUM(AM40:AM44) -> 307361.01 | AN46: 309254.1749
A48: No Build Less Build | B48: Unit | C48: Value | D48: 2019 | E48: =D48+1 -> 2020 | F48: 2021 | G48: 2022 | H48: 2023 | I48: 2024 | J48: 2025 | K48: 2026 | L48: 2027 | M48: 2028 | N48: 2029 | O48: 2030 | P48: 2031 | Q48: 2032 | R48: 2033 | S48: 2034 | T48: 2035 | U48: 2036 | V48: 2037 | W48: 2038 | X48: 2039 | Y48: 2040 | Z48: 2041 | AA48: =Z48+1 -> 2042 | AB48: =AA48+1 -> 2043 | AC48: =AB48+1 -> 2044 | AD48: 2045 | AE48: 2046 | AF48: 2047 | AG48: 2048 | AH48: 2049 | AI48: 2050 | AJ48: 2051 | AK48: 2052 | AL48: 2053 | AM48: =AL48+1 -> 2054 | AN48: =AM48+1 -> 2055
A49: Undiscounted Impacts | C49: Total over 20 Years
A50: Fatality | C50: =SUM(D50:AD50) -> 1862717.511 | K50: =K22-K40 -> 87803.17564 | L50: 88343.99211 | M50: 88888.13969 | N50: 89435.6389 | O50: 89986.5104 | P50: 90540.77494 | Q50: 91098.45342 | R50: 91659.56689 | S50: 92224.13648 | T50: 92792.1835 | U50: 93363.72935 | V50: 93938.79559 | W50: 94517.40391 | X50: 95099.57612 | Y50: 95685.33417 | Z50: 96274.70015 | AA50: 96867.69628 | AB50: 97464.34492 | AC50: 98064.66857 | AD50: 98668.68986 | AE50: 99276.43157 | AF50: 99887.91662 | AG50: 100503.1681 | AH50: 101122.2091 | AI50: 101745.0631 | AJ50: 102371.7534 | AK50: 103002.3039 | AL50: 103636.7381 | AM50: =AM22-AM40 -> 104275.0801 | AN50: 104917.3539
A51: Suspected Serious Injury | C51: =SUM(D51:AD51) -> 1281175.151 | K51: =K23-K41 -> 60390.93216 | L51: 60762.90516 | M51: 61137.1693 | N51: 61513.73869 | O51: 61892.62752 | P51: 62273.85009 | Q51: 62657.42077 | R51: 63043.35402 | S51: 63431.6644 | T51: 63822.36654 | U51: 64215.47518 | V51: 64611.00513 | W51: 65008.97133 | X51: 65409.38876 | Y51: 65812.27254 | Z51: 66217.63784 | AA51: 66625.49995 | AB51: 67035.87426 | AC51: 67448.77624 | AD51: 67864.22145 | AE51: 68282.22557 | AF51: 68702.80434 | AG51: 69125.97364 | AH51: 69551.74941 | AI51: 69980.14771 | AJ51: 70411.1847 | AK51: 70844.87663 | AL51: 71281.23984 | AM51: =AM23-AM41 -> 71720.2908 | AN51: 72162.04606
A52: Non-Incapacitating Injury | C52: 2378521.923 | K52: =K24-K42 -> 112116.7203 | L52: 112807.2941 | M52: 113502.1213 | N52: 114201.2284 | O52: 114904.6415 | P52: 115612.3872 | Q52: 116324.4922 | R52: 117040.9834 | S52: 117761.8878 | T52: 118487.2325 | U52: 119217.0449 | V52: 119951.3525 | W52: 120690.183 | X52: 121433.5643 | Y52: 122181.5244 | Z52: 122934.0915 | AA52: 123691.294 | AB52: 124453.1604 | AC52: 125219.7194 | AD52: 125991 | AE52: 126767.0313 | AF52: 127547.8424 | AG52: 128333.4629 | AH52: 129123.9224 | AI52: 129919.2506 | AJ52: 130719.4776 | AK52: 131524.6335 | AL52: 132334.7487 | AM52: =AM24-AM42 -> 133149.8537 | AN52: 133969.9793
A53: Possible Injury | C53: 1565832.918 | K53: =K25-K43 -> 73808.88509 | L53: 74263.50487 | M53: 74720.92485 | N53: 75181.16226 | O53: 75644.23447 | P53: 76110.15894 | Q53: 76578.95323 | R53: 77050.63502 | S53: 77525.22209 | T53: 78002.73235 | U53: 78483.18379 | V53: 78966.59453 | W53: 79452.9828 | X53: 79942.36694 | Y53: 80434.7654 | Z53: 80930.19675 | AA53: 81428.67967 | AB53: 81930.23295 | AC53: 82434.87551 | AD53: 82942.62638 | AE53: 83453.50469 | AF53: 83967.52972 | AG53: 84484.72084 | AH53: 85005.09756 | AI53: 85528.67949 | AJ53: 86055.48639 | AK53: 86585.53811 | AL53: 87118.85464 | AM53: =AM25-AM43 -> 87655.45609 | AN53: 88195.36269
A54: PDO | C54: 247477.0087 | K54: =K26-K44 -> 11665.35835 | L54: 11737.21016 | M54: 11809.50455 | N54: 11882.24423 | O54: 11955.43194 | P54: 12029.07044 | Q54: 12103.16251 | R54: 12177.71095 | S54: 12252.71856 | T54: 12328.18818 | U54: 12404.12265 | V54: 12480.52482 | W54: 12557.39759 | X54: 12634.74386 | Y54: 12712.56653 | Z54: 12790.86854 | AA54: 12869.65285 | AB54: 12948.92242 | AC54: 13028.68025 | AD54: 13108.92933 | AE54: 13189.67271 | AF54: 13270.91342 | AG54: 13352.65452 | AH54: 13434.89911 | AI54: 13517.65027 | AJ54: 13600.91113 | AK54: 13684.68482 | AL54: 13768.97452 | AM54: =AM26-AM44 -> 13853.78339 | AN54: 13939.11463
A55: Total | C55: 7335724.512 | K55: =K28-K46 -> 345785.0715 | L55: 347914.9064 | M55: 350057.8597 | N55: 352214.0124 | O55: 354383.4458 | P55: 356566.2416 | Q55: 358762.4822 | R55: 360972.2503 | S55: 363195.6293 | T55: 365432.703 | U55: 367683.5558 | V55: 369948.2726 | W55: 372226.9387 | X55: 374519.64 | Y55: 376826.4631 | Z55: 379147.4948 | AA55: 381482.8227 | AB55: 383832.5349 | AC55: 386196.72 | AD55: 388575.467 | AE55: 390968.8658 | AF55: 393377.0065 | AG55: 395799.98 | AH55: 398237.8775 | AI55: 400690.7911 | AJ55: 403158.8132 | AK55: 405642.0369 | AL55: 408140.5558 | AM55: =AM28-AM46 -> 410654.4641 | AN55: 413183.8567
A57: Discounted Impacts, at 7%
A58: Fatality | C58: =SUM(D58:AD58) -> 694085.9333 | K58: =K50*K$6 -> 58506.96331 | L58: 55016.19828 | M58: 51733.70659 | N58: 48647.06179 | O58: 45744.57886 | P58: 43015.26995 | Q58: 40448.80279 | R58: 38035.46157 | S58: 35766.11017 | T58: 33632.15756 | U58: 31625.52531 | V58: 29738.61696 | W58: 27964.28928 | X58: 26295.82526 | Y58: 24726.90864 | Z58: =Z50*Z$6 -> 23251.60001 | AA58: 21864.31433 | AB58: 20559.7998 | AC58: 19333.11794 | AD58: 18179.62495 | AE58: 17094.95408 | AF58: 16074.99911 | AG58: 15115.89883 | AH58: 14214.02241 | AI58: 13365.95562 | AJ58: 12568.48797 | AK58: 11818.60051 | AL58: 11113.4544 | AM58: =AM50*AM$6 -> 10450.3802 | AN58: 9826.867719
A59: Suspected Serious Injury | C59: 477391.5774 | K59: 40241.02803 | L59: 37840.08351 | M59: 35582.38916 | N59: 33459.3981 | O59: 31463.07339 | P59: 29585.85758 | Q59: 27820.64416 | R59: 26160.75059 | S59: 24599.89308 | T59: 23132.16272 | U59: 21752.00316 | V59: 20454.18957 | W59: 19233.80885 | X59: 18086.24105 | Y59: 17007.14184 | Z59: 15992.42611 | AA59: 15038.25248 | AB59: 14141.00875 | AC59: 13297.29826 | AD59: 12503.92699 | AE59: 11757.8915 | AF59: 11056.36754 | AG59: 10396.69937 | AH59: 9776.38971 | AI59: 9193.090263 | AJ59: 8644.59285 | AK59: 8128.821039 | AL59: 7643.822286 | AM59: =AM51*AM$6 -> 7187.760546 | AN59: 6758.909316
A60: Non-Incapacitating Injury | C60: 886285.0107 | K60: 74708.10473 | L60: 70250.71326 | M60: 66059.26801 | N60: 62117.90155 | O60: 58411.69316 | P60: 54926.61233 | Q60: 51649.46571 | R60: 48567.84706 | S60: 45670.09041 | T60: 42945.22579 | U60: 40382.93775 | V60: 37973.5263 | W60: 35707.87021 | X60: 33577.39244 | Y60: 31574.0277 | Z60: 29690.19191 | AA60: 27918.75347 | AB60: 26253.0063 | AC60: 24686.64443 | AD60: 23213.73813 | AE60: 21828.71145 | AF60: 20526.32113 | AG60: 19301.63675 | AH60: 18150.02206 | AI60: 17067.11741 | AJ60: 16048.82329 | AK60: 15091.28477 | AL60: 14190.87692 | AM60: =AM52*AM$6 -> 13344.19109 | AN60: 12548.022
A61: Possible Injury | C61: 583460.7749 | K61: 49181.97663 | L61: 46247.57849 | M61: 43488.25856 | N61: 40893.57096 | O61: 38453.69305 | P61: 36159.38824 | Q61: 34001.97106 | R61: 31973.27422 | S61: 30065.61774 | T61: 28271.77986 | U61: 26584.9697 | V61: 24998.80153 | W61: 23507.27066 | X61: 22104.73062 | Y61: 20785.87187 | Z61: 19545.70163 | AA61: 18379.52503 | AB61: 17282.92729 | AC61: 16251.75707 | AD61: 15282.11069 | AE61: 14370.31738 | AF61: 13512.9254 | AG61: 12706.68893 | AH61: 11948.55583 | AI61: 11235.65606 | AJ61: 10565.29081 | AK61: 9934.922289 | AL61: 9342.164139 | AM61: =AM53*AM$6 -> 8784.772368 | AN61: 8260.636873
A62: PDO | C62: 92214.90084 | K62: 7773.120822 | L62: 7309.344601 | M62: 6873.239168 | N62: 6463.153572 | O62: 6077.535362 | P62: 5714.924713 | Q62: 5373.948901 | R62: 5053.317102 | S62: 4751.815509 | T62: 4468.302736 | U62: 4201.705496 | V62: 3951.014539 | W62: 3715.280831 | X62: 3493.611962 | Y62: 3285.168765 | Z62: 3089.162143 | AA62: 2904.850079 | AB62: 2731.534827 | AC62: 2568.560273 | AD62: 2415.309448 | AE62: 2271.202195 | AF62: 2135.692971 | AG62: 2008.268782 | AH62: 1888.447242 | AI62: 1775.774746 | AJ62: 1669.824753 | AK62: 1570.196169 | AL62: 1476.511836 | AM62: =AM54*AM$6 -> 1388.417093 | AN62: 1305.578443
A63: Total | C63: =SUM(D63:AD63) -> 2733438.197 | K63: =K55*K6 -> 230411.1935 | L63: 216663.9181 | M63: 203736.8615 | N63: 191581.086 | O63: 180150.5738 | P63: 169402.0528 | Q63: 159294.8326 | R63: 149790.6505 | S63: 140853.5269 | T63: 132449.6287 | U63: 124547.1414 | V63: 117116.1489 | W63: 110128.5198 | X63: 103557.8013 | Y63: 97379.11882 | Z63: 91569.0818 | AA63: 86105.69538 | AB63: 80968.27697 | AC63: 76137.37798 | AD63: 71594.71021 | AE63: 67323.0766 | AF63: 63306.30615 | AG63: 59529.19267 | AH63: 55977.43725 | AI63: 52637.5941 | AJ63: 49497.01967 | AK63: 46543.82477 | AL63: 43766.82958 | AM63: =AM55*AM6 -> 41155.52129 | AN63: 38700.01435
A65: Discounted Impacts, at 3%
A66: Fatality | C66: =SUM(D66:AD66) -> 1188092.392 | K66: =K50*K$7 -> 73533.77728 | L66: 71831.75006 | M66: 70169.11829 | N66: 68544.97012 | O66: 66958.41481 | P66: 65408.58221 | Q66: 63894.62235 | R66: 62415.70489 | S66: 60971.01875 | T66: 59559.7716 | U66: 58181.18945 | V66: 56834.51624 | W66: 55519.01338 | X66: 54233.95942 | Y66: 52978.64956 | Z66: =Z50*Z$7 -> 51752.39535 | AA66: 50554.52426 | AB66: 49384.37934 | AC66: 48241.31881 | AD66: 47124.71579 | AE66: 46033.95788 | AF66: 44968.44687 | AG66: 43927.59838 | AH66: 42910.84158 | AI66: 41917.61883 | AJ66: 40947.3854 | AK66: 39999.60919 | AL66: 39073.7704 | AM66: =AM50*AM$7 -> 38169.36125 | AN66: 37285.88573
A67: Suspected Serious Injury | C67: 817168.7018 | K67: 50576.45493 | L67: 49405.80239 | M67: 48262.246 | N67: 47145.1586 | O67: 46053.92751 | P67: 44987.95428 | Q67: 43946.65427 | R67: 42929.4564 | S67: 41935.80278 | T67: 40965.14847 | U67: 40016.96112 | V67: 39090.72069 | W67: 38185.91921 | X67: 37302.06043 | Y67: 36438.65963 | Z67: 35595.24327 | AA67: 34771.34879 | AB67: 33966.52434 | AC67: 33180.32851 | AD67: 32412.33012 | AE67: 31662.10797 | AF67: 30929.25062 | AG67: 30213.35612 | AH67: 29514.03185 | AI67: 28830.89429 | AJ67: 28163.56876 | AK67: 27511.68927 | AL67: 26874.89832 | AM67: =AM51*AM$7 -> 26252.84666 | AN67: 25645.19312
A68: Non-Incapacitating Injury | C68: 1517086.614 | K68: 93895.98817 | L68: 91722.65322 | M68: 89599.62271 | N68: 87525.73227 | O68: 85499.84452 | P68: 83520.84836 | Q68: 81587.65843 | R68: 79699.21449 | S68: 77854.48085 | T68: 76052.44577 | U68: 74292.12096 | V68: 72572.54096 | W68: 70892.7627 | X68: 69251.86492 | Y68: 67648.94768 | Z68: 66083.13188 | AA68: 64553.55875 | AB68: 63059.38943 | AC68: 61599.80444 | AD68: 60174.00329 | AE68: 58781.20401 | AF68: 57420.64274 | AG68: 56091.57329 | AH68: 54793.26674 | AI68: 53525.01104 | AJ68: 52286.11065 | AK68: 51075.88608 | AL68: 49893.67361 | AM68: =AM52*AM$7 -> 48738.82486 | AN68: 47610.70646
A69: Possible Injury | C69: 998731.244 | K69: 61813.77926 | L69: 60383.02541 | M69: 58985.38807 | N69: 57620.10071 | O69: 56286.41457 | P69: 54983.59818 | Q69: 53710.93704 | R69: 52467.73316 | S69: 51253.30473 | T69: 50066.98569 | U69: 48908.12542 | V69: 47776.08836 | W69: 46670.25366 | X69: 45590.01482 | Y69: 44534.7794 | Z69: 43503.96866 | AA69: 42497.01728 | AB69: 41513.37298 | AC69: 40552.49632 | AD69: 39613.86029 | AE69: 38696.95011 | AF69: 37801.26292 | AG69: 36926.30748 | AH69: 36071.60393 | AI69: 35236.68351 | AJ69: 34421.08833 | AK69: 33624.37107 | AL69: 32846.09478 | AM69: =AM53*AM$7 -> 32085.83264 | AN69: 31343.16766
A70: PDO | C70: 157847.6336 | K70: 9769.553963 | L70: 9543.425952 | M70: 9322.531944 | N70: 9106.750792 | O70: 8895.964153 | P70: 8690.056423 | Q70: 8488.914674 | R70: 8292.428591 | S70: 8100.490413 | T70: 7912.994874 | U70: 7729.839143 | V70: 7550.922771 | W70: 7376.147633 | X70: 7205.417874 | Y70: 7038.639859 | Z70: 6875.722121 | AA70: 6716.575309 | AB70: 6561.11214 | AC70: 6409.247353 | AD70: 6260.897657 | AE70: 6115.981692 | AF70: 5974.419981 | AG70: 5836.134885 | AH70: 5701.050563 | AI70: 5569.092929 | AJ70: 5440.189613 | AK70: 5314.269917 | AL70: 5191.264784 | AM70: =AM54*AM$7 -> 5071.106752 | AN70: 4953.729921
A71: Total | C71: 4678926.585 | K71: =K55*K7 -> 289589.5536 | L71: 282886.657 | M71: 276338.907 | N71: 269942.7125 | O71: 263694.5656 | P71: 257591.0395 | Q71: 251628.7868 | R71: 245804.5375 | S71: 240115.0975 | T71: 234557.3464 | U71: 229128.2361 | V71: 223824.789 | W71: 218644.0966 | X71: 213583.3175 | Y71: 208639.6761 | Z71: 203810.4613 | AA71: 199093.0244 | AB71: 194484.7782 | AC71: 189983.1954 | AD71: 185585.8071 | AE71: 181290.2017 | AF71: 177094.0231 | AG71: 172994.9701 | AH71: 168990.7947 | AI71: 165079.3006 | AJ71: 161258.3427 | AK71: 157525.8255 | AL71: 153879.7019 | AM71: =AM55*AM7 -> 150317.9722 | AN71: 146838.6829
A73: Accidents Avoided | C73: Count over 20 Years
A74: Fatality | C74: =SUM(D16:AD16)-SUM(D34:AD34) -> 0.2122821071
A75: Suspected Serious Injury | C75: =SUM(D17:AD17)-SUM(D35:AD35) -> 2.119990642
A76: Non-Incapacitating Injury | C76: 14.45122237
A77: Possible Injury | C77: 18.62044295
A78: PDO | C78: 37.43241154
A79: Total | C79: =SUM(C74:C78) -> 72.83634962

Sheet Calc-4
A1: Environmental Impacts
D3: Base Year | E3: =BaseYear -> 2020
B4: Unit | C4: Value | D4: 2019 | E4: =D4+1 -> 2020 | F4: 2021 | G4: 2022 | H4: 2023 | I4: 2024 | J4: 2025 | K4: 2026 | L4: 2027 | M4: 2028 | N4: 2029 | O4: 2030 | P4: 2031 | Q4: 2032 | R4: 2033 | S4: 2034 | T4: =S4+1 -> 2035 | U4: 2036 | V4: 2037 | W4: 2038 | X4: 2039 | Y4: 2040 | Z4: 2041 | AA4: 2042 | AB4: 2043 | AC4: =AB4+1 -> 2044 | AD4: =AC4+1 -> 2045 | AE4: =AD4+1 -> 2046 | AF4: =AE4+1 -> 2047 | AG4: =AF4+1 -> 2048 | AH4: =AG4+1 -> 2049 | AI4: =AH4+1 -> 2050 | AJ4: =AI4+1 -> 2051 | AK4: =AJ4+1 -> 2052 | AL4: =AK4+1 -> 2053 | AM4: =AL4+1 -> 2054 | AN4: =AM4+1 -> 2055
A5: Benefits Index | B5: Number | D5: 0 | E5: 0 | F5: 0 | G5: 0 | H5: 0 | I5: 0 | J5: 0 | K5: 1 | L5: 2 | M5: 3 | N5: 4 | O5: 5 | P5: 6 | Q5: 7 | R5: 8 | S5: 9 | T5: 10 | U5: 11 | V5: 12 | W5: 13 | X5: 14 | Y5: 15 | Z5: 16 | AA5: 17 | AB5: 18 | AC5: 19 | AD5: 20 | AE5: 21 | AF5: 22 | AG5: 23 | AH5: 24 | AI5: 25 | AJ5: 26 | AK5: 27 | AL5: 28 | AM5: 29 | AN5: 30
A6: Discount Factor | B6: % | C6: 0.07 | D6: =1/(1+Inputs!$D$4)^(D4-$E$3) -> 1.07 | E6: =1/(1+Inputs!$D$4)^(E4-$E$3) -> 1 | F6: =1/(1+Inputs!$D$4)^(F4-$E$3) -> 0.9345794393 | G6: =1/(1+Inputs!$D$4)^(G4-$E$3) -> 0.8734387283 | H6: =1/(1+Inputs!$D$4)^(H4-$E$3) -> 0.8162978769 | I6: =1/(1+Inputs!$D$4)^(I4-$E$3) -> 0.762895212 | J6: =1/(1+Inputs!$D$4)^(J4-$E$3) -> 0.7129861795 | K6: =1/(1+Inputs!$D$4)^(K4-$E$3) -> 0.6663422238 | L6: =1/(1+Inputs!$D$4)^(L4-$E$3) -> 0.6227497419 | M6: =1/(1+Inputs!$D$4)^(M4-$E$3) -> 0.5820091046 | N6: =1/(1+Inputs!$D$4)^(N4-$E$3) -> 0.5439337426 | O6: =1/(1+Inputs!$D$4)^(O4-$E$3) -> 0.5083492921 | P6: =1/(1+Inputs!$D$4)^(P4-$E$3) -> 0.4750927964 | Q6: =1/(1+Inputs!$D$4)^(Q4-$E$3) -> 0.4440119592 | R6: =1/(1+Inputs!$D$4)^(R4-$E$3) -> 0.4149644479 | S6: =1/(1+Inputs!$D$4)^(S4-$E$3) -> 0.387817241 | T6: =1/(1+Inputs!$D$4)^(T4-$E$3) -> 0.3624460196 | U6: =1/(1+Inputs!$D$4)^(U4-$E$3) -> 0.3387345978 | V6: =1/(1+Inputs!$D$4)^(V4-$E$3) -> 0.3165743905 | W6: =1/(1+Inputs!$D$4)^(W4-$E$3) -> 0.2958639163 | X6: =1/(1+Inputs!$D$4)^(X4-$E$3) -> 0.276508333 | Y6: =1/(1+Inputs!$D$4)^(Y4-$E$3) -> 0.2584190028 | Z6: =1/(1+Inputs!$D$4)^(Z4-$E$3) -> 0.2415130867 | AA6: =1/(1+Inputs!$D$4)^(AA4-$E$3) -> 0.2257131652 | AB6: =1/(1+Inputs!$D$4)^(AB4-$E$3) -> 0.2109468833 | AC6: =1/(1+Inputs!$D$4)^(AC4-$E$3) -> 0.1971466199 | AD6: =1/(1+Inputs!$D$4)^(AD4-$E$3) -> 0.1842491775 | AE6: =1/(1+Inputs!$D$4)^(AE4-$E$3) -> 0.172195493 | AF6: =1/(1+Inputs!$D$4)^(AF4-$E$3) -> 0.1609303673 | AG6: =1/(1+Inputs!$D$4)^(AG4-$E$3) -> 0.1504022124 | AH6: =1/(1+Inputs!$D$4)^(AH4-$E$3) -> 0.1405628154 | AI6: =1/(1+Inputs!$D$4)^(AI4-$E$3) -> 0.1313671172 | AJ6: =1/(1+Inputs!$D$4)^(AJ4-$E$3) -> 0.1227730067 | AK6: =1/(1+Inputs!$D$4)^(AK4-$E$3) -> 0.1147411277 | AL6: =1/(1+Inputs!$D$4)^(AL4-$E$3) -> 0.1072346988 | AM6: =1/(1+Inputs!$D$4)^(AM4-$E$3) -> 0.1002193447 | AN6: =1/(1+Inputs!$D$4)^(AN4-$E$3) -> 0.09366293897
A7: Discount Factor | B7: % | C7: 0.03 | D7: =1/(1+Inputs!$D$5)^(D4-$E$3) -> 1.03 | E7: =1/(1+Inputs!$D$5)^(E4-$E$3) -> 1 | F7: =1/(1+Inputs!$D$5)^(F4-$E$3) -> 0.9708737864 | G7: =1/(1+Inputs!$D$5)^(G4-$E$3) -> 0.9425959091 | H7: =1/(1+Inputs!$D$5)^(H4-$E$3) -> 0.9151416594 | I7: =1/(1+Inputs!$D$5)^(I4-$E$3) -> 0.8884870479 | J7: =1/(1+Inputs!$D$5)^(J4-$E$3) -> 0.8626087844 | K7: =1/(1+Inputs!$D$5)^(K4-$E$3) -> 0.8374842567 | L7: =1/(1+Inputs!$D$5)^(L4-$E$3) -> 0.8130915113 | M7: =1/(1+Inputs!$D$5)^(M4-$E$3) -> 0.7894092343 | N7: =1/(1+Inputs!$D$5)^(N4-$E$3) -> 0.7664167323 | O7: =1/(1+Inputs!$D$5)^(O4-$E$3) -> 0.7440939149 | P7: =1/(1+Inputs!$D$5)^(P4-$E$3) -> 0.7224212766 | Q7: =1/(1+Inputs!$D$5)^(Q4-$E$3) -> 0.7013798802 | R7: =1/(1+Inputs!$D$5)^(R4-$E$3) -> 0.68095134 | S7: =1/(1+Inputs!$D$5)^(S4-$E$3) -> 0.6611178058 | T7: =1/(1+Inputs!$D$5)^(T4-$E$3) -> 0.6418619474 | U7: =1/(1+Inputs!$D$5)^(U4-$E$3) -> 0.6231669392 | V7: =1/(1+Inputs!$D$5)^(V4-$E$3) -> 0.6050164458 | W7: =1/(1+Inputs!$D$5)^(W4-$E$3) -> 0.5873946076 | X7: =1/(1+Inputs!$D$5)^(X4-$E$3) -> 0.5702860268 | Y7: =1/(1+Inputs!$D$5)^(Y4-$E$3) -> 0.5536757542 | Z7: =1/(1+Inputs!$D$5)^(Z4-$E$3) -> 0.5375492759 | AA7: =1/(1+Inputs!$D$5)^(AA4-$E$3) -> 0.5218925009 | AB7: =1/(1+Inputs!$D$5)^(AB4-$E$3) -> 0.5066917484 | AC7: =1/(1+Inputs!$D$5)^(AC4-$E$3) -> 0.4919337363 | AD7: =1/(1+Inputs!$D$5)^(AD4-$E$3) -> 0.4776055693 | AE7: =1/(1+Inputs!$D$5)^(AE4-$E$3) -> 0.4636947274 | AF7: =1/(1+Inputs!$D$5)^(AF4-$E$3) -> 0.4501890558 | AG7: =1/(1+Inputs!$D$5)^(AG4-$E$3) -> 0.4370767532 | AH7: =1/(1+Inputs!$D$5)^(AH4-$E$3) -> 0.4243463623 | AI7: =1/(1+Inputs!$D$5)^(AI4-$E$3) -> 0.4119867595 | AJ7: =1/(1+Inputs!$D$5)^(AJ4-$E$3) -> 0.3999871452 | AK7: =1/(1+Inputs!$D$5)^(AK4-$E$3) -> 0.3883370341 | AL7: =1/(1+Inputs!$D$5)^(AL4-$E$3) -> 0.3770262467 | AM7: =1/(1+Inputs!$D$5)^(AM4-$E$3) -> 0.3660448997 | AN7: =1/(1+Inputs!$D$5)^(AN4-$E$3) -> 0.3553833978
A10: Average Speed, No Build | B10: m/h | C10: 25
A11: Emission Factors | B11: g/VMT
A12: Autos
